Workbook

Sheet Bond Portfolio
B2: ='Read Me'!B1 -> Bond Portfolio Analysis Spreadsheet (Version 3.06)
S3: Actual Daycount Method
N4: Current Date: | O4: =TODAY() -> 2022-02-06 | S4: =MATCH(DayCountMethodSelection,DayCountMethodList)-1 -> 0 | BI4: = Update with current data
E5: hide | F5: hide | G5: hide | H5: hide | I5: hide | J5: hide | K5: hide | L5: hide | N5: Day Count Method: | O5: 30/360 (Default) | S5: hide | U5: hide | V5: hide | W5: hide | AD5: hide | AG5: hide | AH5: hide | AI5: hide | AJ5: hide | AK5: hide | AL5: hide | AM5: hide | AN5: hide | AO5: hide | AP5: hide | AQ5: hide | AR5: hide | AS5: hide | AT5: hide | AU5: hide | AV5: hide | AW5: hide | AX5: hide | AY5: hide | AZ5: hide | BA5: hide | BB5: hide | BC5: hide | BD5: hide | BE5: hide | BF5: hide | BG5: hide | BH5: hide | BI5: = Contains calculated totals or summary | BK5: hide | BO5: hide | BP5: hide | BQ5: hide | BR5: hide | BU5: hide | BV5: hide | BY5: hide | BZ5: hide | CA5: hide | CB5: hide | CC5: hide | CD5: hide | CE5: hide | CF5: hide | CG5: hide | CH5: hide | CI5: hide | CJ5: hide | CK5: hide | CL5: hide | CM5: hide | CN5: hide | CO5: hide | CP5: hide | CQ5: hide | CR5: hide | CS5: hide | CT5: hide | CU5: hide | CV5: hide | CW5: hide | CX5: hide | CY5: hide | CZ5: hide | DA5: hide | DB5: hide | DC5: hide | DD5: hide | DE5: hide | DF5: hide | DG5: hide | DH5: hide | DI5: hide | DJ5: hide | DK5: hide | DL5: hide | DM5: hide | DN5: hide | DO5: hide | DP5: hide | DQ5: hide | DR5: hide | DS5: hide | DT5: hide | DU5: hide | DV5: hide | DW5: hide | DX5: hide | DY5: hide | DZ5: hide | EA5: hide | EB5: hide | EC5: hide | ED5: hide | EE5: hide | EF5: hide | EG5: hide | EH5: hide | EI5: hide | EJ5: hide | EK5: hide | EL5: hide | EM5: hide | EN5: hide | EO5: hide | EP5: hide | EQ5: hide | ER5: hide | ES5: hide | ET5: hide | EU5: hide | EV5: hide | EW5: hide | EX5: hide | EY5: hide | EZ5: hide | FA5: hide | FB5: hide | FC5: hide | FD5: hide | FE5: hide | FF5: hide | FG5: hide | FH5: hide | FI5: hide | FJ5: hide | FK5: hide | FL5: hide | FM5: hide | FN5: hide | FO5: hide | FP5: hide | FQ5: hide | FR5: hide | FV5: hide | FW5: hide | FX5: hide | FY5: hide | GA5: hide | GC5: hide
BZ6: Compute Value by Maturity in next 6 columns | CJ6: Compute Value by Type in next 5 columns | CO6: Compute Value by Credit Quality in next 7 columns | CW6: Compute Credit Quality by Bond Type | DB6: Compute Credit Quality by Maturity in next 10 columns | DL6: Compute ModDuration by Type | DQ6: Compute ModDuration by Credit Quality in next 7 columns | DY6: Compute Yields by Bond Type | ED6: Compute After Tax Yields by Bond Type | EI6: Compute Yields by Maturity in next 10 | ES6: Compute After Tax Yields by Maturity in next 10 | FC6: Compute Yield by Credit Quality in next 7 columns | FK6: Compute AT Yield by Credit Quality in next 7 columns
B7: General Bond Information | Z7: Purchase Information | BJ7: Current Valuation | FU7: Bond Analysis
B8: # | C8: Mdy | D8: S&P | E8: Moody Score | F8: S&P Score | G8: Moody Value | H8: Sp Value | I8: Mdy Rank | J8: S&P Rank | K8: Avg Rank | L8: Avg Tier | M8: Insur | N8: CUSIP | O8: Issue Name | P8: Type | Q8: Cpn | R8: Cpn/Year | S8: Adj cpn/yr | T8: Mat. | U8: 1st Cpn Month | V8: Years To Maturity | W8: Weighted Yr to Mat. | X8: Call Price | Y8: Call Date | Z8: Date | AA8: Price | AB8: QTY | AC8: Fees | AD8: Adj Price | AE8: Total Cost | AF8: Annual Coupon | AG8: Adj QTY | AH8: Adj Fee | AI8: Weighted YTM | AJ8: Coupon Amount | AK8: 1 | AL8: 2 | AM8: 3 | AN8: 4 | AO8: 5 | AP8: 6 | AQ8: 7 | AR8: 8 | AS8: 9 | AT8: 10 | AU8: 11 | AV8: 12 | AW8: 1 | AX8: 2 | AY8: 3 | AZ8: 4 | BA8: 5 | BB8: 6 | BC8: 7 | BD8: 8 | BE8: 9 | BF8: 10 | BG8: 11 | BH8: 12 | BI8: YTM at Buy | BJ8: Current Price | BK8: Adj Price | BL8: YTM | BM8: YTC | BN8: LY | BO8: Weighted Yld | BP8: Weighted AT Yld | BQ8: Adjusted Maturity | BR8: Bond Type Index | BS8: Fair YTM | BT8: Fair Price | BU8: LY Prem | BV8: Prem Weight | BW8: Market Value | BX8: Percent Portfolio | BY8: Adj LY | BZ8: Maturity Bracket 1 | CA8: Maturity Bracket 2 | CB8: Maturity Bracket 3 | CC8: Maturity Bracket 4 | CD8: Maturity Bracket 5 | CE8: Maturity Bracket 6 | CF8: Maturity Bracket 7 | CG8: Maturity Bracket 8 | CH8: Maturity Bracket 9 | CI8: Maturity Bracket 10 | CJ8: =INDEX(BondTypeTable,1,1) -> Agency | CK8: =INDEX(BondTypeTable,2,1) -> Corp | CL8: =INDEX(BondTypeTable,3,1) -> Muni | CM8: =INDEX(BondTypeTable,4,1) -> TIPS | CN8: =INDEX(BondTypeTable,5,1) -> Tres | CO8: Prime | CP8: High Grade | CQ8: Upper Med | CR8: Lower Med | CS8: Speculative | CT8: High Risk | CU8: Poor | CV8: Unknown | CW8: =$CJ8 -> Agency | CX8: =$CK8 -> Corp | CY8: =$CL8 -> Muni | CZ8: =$CM8 -> TIPS | DA8: =$CN8 -> Tres | DB8: Maturity Bracket 1 | DC8: Maturity Bracket 2 | DD8: Maturity Bracket 3 | DE8: Maturity Bracket 4 | DF8: Maturity Bracket 5 | DG8: Maturity Bracket 6 | DH8: Maturity Bracket 7 | DI8: Maturity Bracket 8 | DJ8: Maturity Bracket 9 | DK8: Maturity Bracket 10 | DL8: =$CJ8 -> Agency | DM8: =$CK8 -> Corp | DN8: =$CL8 -> Muni | DO8: =$CM8 -> TIPS | DP8: =$CN8 -> Tres | DQ8: Prime | DR8: High Grade | DS8: Upper Med | DT8: Lower Med | DU8: Speculative | DV8: High Risk | DW8: Poor | DX8: Unknown | DY8: =$CJ8 -> Agency | DZ8: =$CK8 -> Corp | EA8: =$CL8 -> Muni | EB8: =$CM8 -> TIPS | EC8: =$CN8 -> Tres | ED8: =$CJ8 -> Agency | EE8: =$CK8 -> Corp | EF8: =$CL8 -> Muni | EG8: =$CM8 -> TIPS | EH8: =$CN8 -> Tres | EI8: Maturity Bracket 1 | EJ8: Maturity Bracket 2 | EK8: Maturity Bracket 3 | EL8: Maturity Bracket 4 | EM8: Maturity Bracket 5 | EN8: Maturity Bracket 6 | EO8: Maturity Bracket 7 | EP8: Maturity Bracket 8 | EQ8: Maturity Bracket 9 | ER8: Maturity Bracket 10 | ES8: Maturity Bracket 1 | ET8: Maturity Bracket 2 | EU8: Maturity Bracket 3 | EV8: Maturity Bracket 4 | EW8: Maturity Bracket 5 | EX8: Maturity Bracket 6 | EY8: Maturity Bracket 7 | EZ8: Maturity Bracket 8 | FA8: Maturity Bracket 9 | FB8: Maturity Bracket 10 | FC8: Prime - Aaa | FD8: High Grade - Aa1 | FE8: Upper Medium - A1 | FF8: Lower Medium - Baa1 | FG8: Speculative - Ba1 | FH8: Very Speculative - B1 | FI8: Poor - Caa | FJ8: Unknown | FK8: Prime - Aaa | FL8: High Grade - Aa1 | FM8: Upper Medium - A1 | FN8: Lower Medium - Baa1 | FO8: Speculative - Ba1 | FP8: Very Speculative - B1 | FQ8: Poor - Caa | FR8: Unknown | FS8: Interest Earned | FT8: Total Return | FU8: Mod Dur | FV8: Price if -100bp | FW8: Price if +100bp | FX8: Dur | FY8: Duration Weight | FZ8: Bond Cnvx | GA8: Cnvx Weight | GB8: Bond Risk | GC8: Risk Weight | GD8: Bond Sensitivity
B9: =IF('Bond Input Sheet'!B13="","", 'Bond Input Sheet'!B13) -> 1 | C9: =IF('Bond Input Sheet'!C13="","NR", 'Bond Input Sheet'!C13) -> Aaa | D9: =IF('Bond Input Sheet'!D13="","NR", 'Bond Input Sheet'!D13) -> NR | E9: =IF(AND(MoodyRating<>"NR",$G$510<>0),($G9/$G$510)*MATCH(MoodyRating,MoodyRatingTable,0),"") -> 0.04310600192 | F9: =IF(AND(SP_Rating<>"NR", $H$510<>0),($H9/$H$510)*MATCH(SP_Rating,SP_RatingTable,0),"") ->  | G9: =IF(I9="","",MarketValue) -> 2060 | H9: =IF(J9="","",MarketValue) ->  | I9: =IF(MoodyRating<>"NR",MATCH(MoodyRating,MoodyRatingTable,0),"") -> 2 | J9: =IF(SP_Rating<>"NR",MATCH(SP_Rating,SP_RatingTable,0),"") ->  | K9: =IF(B9="","",IF(AND(I9="",J9=""),MATCH("NR",SP_RatingTable,0),ROUND(AVERAGE(I9:J9),0))) -> 2 | L9: =IF(K9<>"",VLOOKUP(K9,NumberToRatingTable,4,1),8) -> 1 | M9: ='Bond Input Sheet'!E13 -> MBIA | N9: ='Bond Input Sheet'!F13 -> 077838HU7 | O9: ='Bond Input Sheet'!G13 -> Middlesex County | P9: ='Bond Input Sheet'!H13 -> Muni | Q9: ='Bond Input Sheet'!I13 -> 3.6 | R9: ='Bond Input Sheet'!J13 -> 2 | S9: =IF(CouponsPerYear=0,1,IF(CouponsPerYear=12,4,CouponsPerYear)) -> 2 | T9: ='Bond Input Sheet'!K13 -> 2018-11-07 | U9: =MONTH(Maturity) -> 11 | V9: =IF(Maturity<>"",DAYS360(ValueDate,Maturity)/365,"") -> -3.202739726 | W9: =YearsToMaturity*PercentPortfolio -> -0.06177665299 | X9: ='Bond Input Sheet'!L13 -> 0 | Y9: =IF('Bond Input Sheet'!M13=0,"",'Bond Input Sheet'!M13) ->  | Z9: ='Bond Input Sheet'!N13 -> 2003-08-01 | AA9: ='Bond Input Sheet'!O13 -> 94.27 | AB9: ='Bond Input Sheet'!P13 -> 2 | AC9: ='Bond Input Sheet'!Q13 -> 100 | AD9: =IF(ISERROR(SEARCH("-",AA9)),AA9,LEFT(AA9,SEARCH("-",AA9)-1)+(1/32)*MID(AA9,SEARCH("-",AA9)+1,2)+IF(LEN(RIGHT(AA9,LEN(AA9)-SEARCH("-",AA9)-2))=1,IF(MID(AA9,SEARCH("-",AA9)+3,1)="+",1/64, MID(AA9,SEARCH("-",AA9)+3,1)*(1/256)),0)) -> 94.27 | AE9: =Bonds*(10*PurchasePrice)+Commission -> 1985.4 | AF9: =(Bonds*1000)*(Coupon/100) -> 72 | AG9: =IF($B9<>"",AB9,0) -> 2 | AH9: =IF($B9<>"",AC9,0) -> 100 | AI9: =PurchaseYTM*(TotalPurchaseCost/OriginalPortfolioValue) -> 0.0007741536083 | AJ9: =IF(CouponsPerYear=0,0,AnnualCouponAmount/CouponsPerYear) -> 36 | AK9: =IF(CouponsPerYear<>0,IF(MOD(($U9-AK$8)/(12/CouponsPerYear),1),,CouponPaymentAmount),0) -> 0 | AL9: 0 | AM9: 0 | AN9: 0 | AO9: 36 | AP9: 0 | AQ9: 0 | AR9: 0 | AS9: 0 | AT9: 0 | AU9: 36 | AV9: 0 | AW9: =IF(CouponsPerYear<>0,IF(MOD(($U9-AW$8)/(12/CouponsPerYear),1),,$AJ9*(1-VLOOKUP(BondType,BondTypeTable,2))),0) -> 0 | AX9: 0 | AY9: 0 | AZ9: 0 | BA9: 36 | BB9: 0 | BC9: 0 | BD9: 0 | BE9: 0 | BF9: 0 | BG9: 36 | BH9: 0 | BI9: =IF(Bonds<>0,YIELD(SettlementDate,Maturity,Coupon/100,PurchasePrice+(Commission/10)/Bonds,100,AdjustedCouponsPerYear, DayCountMethod),0) -> 0.03662499558 | BJ9: ='Bond Input Sheet'!R13 -> 103 | BK9: =IF(ISERROR(SEARCH("-",BJ9)),BJ9,LEFT(BJ9,SEARCH("-",BJ9)-1)+(1/32)*MID(BJ9,SEARCH("-",BJ9)+1,2)+IF(LEN(RIGHT(BJ9,LEN(BJ9)-SEARCH("-",BJ9)-2))=1,IF(MID(BJ9,SEARCH("-",BJ9)+3,1)="+",1/64, MID(BJ9,SEARCH("-",BJ9)+3,1)*(1/256)),0)) -> 103 | BL9: =IF(B9<>"",YIELD( ValueDate,Maturity,Coupon/100,CurrentPrice,100,AdjustedCouponsPerYear,DayCountMethod),"") ->  | BM9: =IF(AND(CallPrice<>0,Y9>TODAY()),YIELD(ValueDate,CallDate,Coupon/100,CurrentPrice,CallPrice,AdjustedCouponsPerYear,DayCountMethod),"") ->  | BN9: =IF(CallYield<>0,IF(CurrentYield<CallYield,CurrentYield,CallYield),CurrentYield) ->  | BO9: =IF(LowestYield<>"",PercentPortfolio*LowestYield,"") ->  | BP9: =IF(LowestYield<>"",PercentPortfolio*LowestYield*(1-VLOOKUP(BondType,BondTypeTable,2)),"") ->  | BQ9: =IF(CallYield<>0,IF(CurrentYield<CallYield,Maturity,CallDate),Maturity) ->  | BR9: =IF(B9="","",MATCH(BondType, BondTypeList)) -> 3 | BS9: =IF(OR(BL9="",YearsToMaturity>29),BN9,INDEX(MarketYieldTable,YearsToMaturity+1,BondTypeIndex)+(INDEX(MarketYieldTable,YearsToMaturity+2,BondTypeIndex)-INDEX(MarketYieldTable,YearsToMaturity+1,BondTypeIndex))*(YearsToMaturity-INT(YearsToMaturity))) ->  | BT9: =IF(BL9="","",PRICE(ValueDate,Maturity,Coupon/100,FairYTM,100,AdjustedCouponsPerYear,DayCountMethod)) ->  | BU9: =IF(LowestYield<>"",LowestYield-FairYTM,"") ->  | BV9: =IF(BX9<>0,IF(BU9<>"",BU9*BX9,""),"") ->  | BW9: =(CurrentPrice*10)* Bonds -> 2060 | BX9: =MarketValue/TotalPortfolioValue -> 0.01928868977 | BY9: =IF(Bonds<>0,BN9,"") ->  | BZ9: =IF(Maturity<=BZ$511,MarketValue,"") -> 2060 | CA9: =IF(AND(Maturity<=CA$511,Maturity>BZ$511),MarketValue,"") ->  | CE9: =IF(AND(Maturity<=CE$511,Maturity>CD$511),MarketValue,"") ->  | CJ9: =IF(BondType=CJ$8,MarketValue,"") ->  | CL9: 2060 | CO9: =IF($L9=CO$511,$BW9,"") -> 2060 | CW9: =IF(CJ9<>"",AverageCreditQuality*(CJ9/CJ$510),"") ->  | CX9: =IF(CK9<>"",AverageCreditQuality*(CK9/CK$510),"") ->  | CY9: =IF(CL9<>"",AverageCreditQuality*(CL9/CL$510),"") -> 0.08492236406 | CZ9: =IF(CM9<>"",AverageCreditQuality*(CM9/CM$510),"") ->  | DA9: =IF(CN9<>"",AverageCreditQuality*(CN9/CN$510),"") ->  | DB9: =IF(B9="","",IF(BZ9<>"",AverageCreditQuality*(BZ9/BZ$510),"")) -> 0.04338055048 | DC9: =IF(CA9<>"",AverageCreditQuality*(CA9/CA$510),"") ->  | DD9: =IF(CB9<>"",AverageCreditQuality*(CB9/CB$510),"") ->  | DE9: =IF(CC9<>"",AverageCreditQuality*(CC9/CC$510),"") ->  | DF9: =IF(CD9<>"",AverageCreditQuality*(CD9/CD$510),"") ->  | DG9: =IF(CE9<>"",AverageCreditQuality*(CE9/CE$510),"") ->  | DH9: =IF(CF9<>"",AverageCreditQuality*(CF9/CF$510),"") ->  | DI9: =IF(CG9<>"",AverageCreditQuality*(CG9/CG$510),"") ->  | DJ9: =IF(CH9<>"",AverageCreditQuality*(CH9/CH$510),"") ->  | DK9: =IF(CI9<>"",AverageCreditQuality*(CI9/CI$510),"") ->  | DL9: =IF(CJ9<>"",ModDuration*(CJ9/CJ$510),"") ->  | DM9: =IF(CK9<>"",ModDuration*(CK9/CK$510),"") ->  | DN9: =IF(CL9<>"",ModDuration*(CL9/CL$510),"") ->  | DO9: =IF(CM9<>"",ModDuration*(CM9/CM$510),"") ->  | DP9: =IF(CN9<>"",ModDuration*(CN9/CN$510),"") ->  | DQ9: =IF(CO9<>"",ModDuration*(CO9/CO$510),"") ->  | DR9: =IF(CP9<>"",ModDuration*(CP9/CP$510),"") ->  | DS9: =IF(CQ9<>"",ModDuration*(CQ9/CQ$510),"") ->  | DT9: =IF(CR9<>"",ModDuration*(CR9/CR$510),"") ->  | DU9: =IF(CS9<>"",ModDuration*(CS9/CS$510),"") ->  | DV9: =IF(CT9<>"",ModDuration*(CT9/CT$510),"") ->  | DW9: =IF(CU9<>"",ModDuration*(CU9/CU$510),"") ->  | DX9: =IF(B9="","",IF(CV9<>"",ModDuration*(CV9/CV$510),"")) ->  | DY9: =IF(AND(LowestYield<>"",CJ9<>""),(CJ9/CJ$510)*LowestYield,"") ->  | DZ9: =IF(AND(LowestYield<>"",CK9<>""),(CK9/CK$510)*LowestYield,"") ->  | EA9: =IF(AND(LowestYield<>"",CL9<>""),(CL9/CL$510)*LowestYield,"") ->  | EB9: =IF(AND(LowestYield<>"",CM9<>""),(CM9/CM$510)*LowestYield,"") ->  | EC9: =IF(AND(LowestYield<>"",CN9<>""),(CN9/CN$510)*LowestYield,"") ->  | ED9: =IF(DY9="","",DY9*(1-VLOOKUP(BondType,BondTypeTable,2))) ->  | EE9: =IF(DZ9="","",DZ9*(1-VLOOKUP(BondType,BondTypeTable,2))) ->  | EF9: =IF(EA9="","",EA9*(1-VLOOKUP(BondType,BondTypeTable,2))) ->  | EG9: =IF(EB9="","",EB9*(1-VLOOKUP(BondType,BondTypeTable,2))) ->  | EH9: =IF(EC9="","",EC9*(1-VLOOKUP(BondType,BondTypeTable,2))) ->  | EI9: =IF(AND(LowestYield<>"",BZ9<>""),(BZ9/BZ$510)*LowestYield,"") ->  | EJ9: =IF(AND(LowestYield<>"",CA9<>""),(CA9/CA$510)*LowestYield,"") ->  | EK9: =IF(AND(LowestYield<>"",CB9<>""),(CB9/CB$510)*LowestYield,"") ->  | EL9: =IF(AND(LowestYield<>"",CC9<>""),(CC9/CC$510)*LowestYield,"") ->  | EM9: =IF(AND(LowestYield<>"",CD9<>""),(CD9/CD$510)*LowestYield,"") ->  | EN9: =IF(AND(LowestYield<>"",CE9<>""),(CE9/CE$510)*LowestYield,"") ->  | EO9: =IF(AND(LowestYield<>"",CF9<>""),(CF9/CF$510)*LowestYield,"") ->  | EP9: =IF(AND(LowestYield<>"",CG9<>""),(CG9/CG$510)*LowestYield,"") ->  | EQ9: =IF(AND(LowestYield<>"",CH9<>""),(CH9/CH$510)*LowestYield,"") ->  | ER9: =IF(AND(LowestYield<>"",CI9<>""),(CI9/CI$510)*LowestYield,"") ->  | ES9: =IF(EI9="","",EI9*(1-VLOOKUP(BondType,BondTypeTable,2))) ->  | ET9: =IF(EJ9="","",EJ9*(1-VLOOKUP(BondType,BondTypeTable,2))) ->  | EU9: =IF(EK9="","",EK9*(1-VLOOKUP(BondType,BondTypeTable,2))) ->  | EV9: =IF(EL9="","",EL9*(1-VLOOKUP(BondType,BondTypeTable,2))) ->  | EW9: =IF(EM9="","",EM9*(1-VLOOKUP(BondType,BondTypeTable,2))) ->  | EX9: =IF(EN9="","",EN9*(1-VLOOKUP(BondType,BondTypeTable,2))) ->  | EY9: =IF(EO9="","",EO9*(1-VLOOKUP(BondType,BondTypeTable,2))) ->  | EZ9: =IF(EP9="","",EP9*(1-VLOOKUP(BondType,BondTypeTable,2))) ->  | FA9: =IF(EQ9="","",EQ9*(1-VLOOKUP(BondType,BondTypeTable,2))) ->  | FB9: =IF(ER9="","",ER9*(1-VLOOKUP(BondType,BondTypeTable,2))) ->  | FC9: =IF(AND(LowestYield<>"",CO9<>""),(CO9/CO$510)*LowestYield,"") ->  | FD9: =IF(AND(LowestYield<>"",CP9<>""),(CP9/CP$510)*LowestYield,"") ->  | FE9: =IF(AND(LowestYield<>"",CQ9<>""),(CQ9/CQ$510)*LowestYield,"") ->  | FF9: =IF(AND(LowestYield<>"",CR9<>""),(CR9/CR$510)*LowestYield,"") ->  | FG9: =IF(AND(LowestYield<>"",CS9<>""),(CS9/CS$510)*LowestYield,"") ->  | FH9: =IF(AND(LowestYield<>"",CT9<>""),(CT9/CT$510)*LowestYield,"") ->  | FI9: =IF(AND(LowestYield<>"",CT9<>""),(CT9/CT$510)*LowestYield,"") ->  | FJ9: =IF(AND(LowestYield<>"",CV9<>""),(CV9/CV$510)*LowestYield,"") ->  | FK9: =IF(FC9="","",FC9*(1-VLOOKUP(BondType,BondTypeTable,2))) ->  | FL9: =IF(FD9="","",FD9*(1-VLOOKUP(BondType,BondTypeTable,2))) ->  | FM9: =IF(FE9="","",FE9*(1-VLOOKUP(BondType,BondTypeTable,2))) ->  | FN9: =IF(FF9="","",FF9*(1-VLOOKUP(BondType,BondTypeTable,2))) ->  | FO9: =IF(FG9="","",FG9*(1-VLOOKUP(BondType,BondTypeTable,2))) ->  | FP9: =IF(FH9="","",FH9*(1-VLOOKUP(BondType,BondTypeTable,2))) ->  | FQ9: =IF(FI9="","",FI9*(1-VLOOKUP(BondType,BondTypeTable,2))) ->  | FR9: =IF(FJ9="","",FJ9*(1-VLOOKUP(BondType,BondTypeTable,2))) ->  | FS9: =(DAYS360(PurchaseDate,ValueDate)/360)*(Bonds*1000)*(Coupon/100) -> 1333 | FT9: =IF(AND(TotalPurchaseCost<>0,B9<>""),(MarketValue+InterestPaidOut-TotalPurchaseCost)/TotalPurchaseCost,"") -> 0.7089755213 | FU9: =IF(BL9="","",IF(CurrentYield<0,0,MDURATION(ValueDate, Maturity, Coupon/100, CurrentYield, AdjustedCouponsPerYear, DayCountMethod))) ->  | FV9: =IF(OR(BL9="",BL9<0),BJ9,IF(CurrentYield > 0.01,PRICE(ValueDate,Maturity,Coupon/100,CurrentYield-0.01,100,AdjustedCouponsPerYear,DayCountMethod),PRICE(ValueDate,Maturity,Coupon/100,0.0000001,100,AdjustedCouponsPerYear,DayCountMethod))) ->  | FW9: =IF(OR(BL9="",BL9<0),BJ9,PRICE(ValueDate,Maturity,Coupon/100,CurrentYield+0.01,100,AdjustedCouponsPerYear,DayCountMethod)) ->  | FX9: =IF(BL9="","",(PriceIf100bpFall-PriceIf100bpRise)/(2*CurrentPrice*0.01)*(1+CurrentYield)) ->  | FY9: =IF(BL9="","",PercentPortfolio*ModDuration) ->  | FZ9: =IF(BL9="","",(PriceIf100bpRise+PriceIf100bpFall-(2*CurrentPrice))/((CurrentPrice*(0.01*0.01)))) ->  | GA9: =IF(BL9="","",(BW9/TotalPortfolioValue)*FZ9) ->  | GB9: =IF(BL9="","",ModDuration*0.01-((0.5)*BondConvexity*0.01*0.01)) ->  | GC9: =IF(BL9="","",(BX9)*GB9) ->  | GD9: =IF(BL9="","",MarketValue*BondRisk) -> 
B10: =IF('Bond Input Sheet'!B14="","", 'Bond Input Sheet'!B14) -> 2 | C10: =IF('Bond Input Sheet'!C14="","NR", 'Bond Input Sheet'!C14) -> FDIC | D10: =IF('Bond Input Sheet'!D14="","NR", 'Bond Input Sheet'!D14) -> FDIC | E10: 0.05255832683 | F10: 0.05371606932 | G10: 5023.4375 | H10: 5023.4375 | I10: 1 | J10: 1 | K10: 1 | L10: 1 | M10: ='Bond Input Sheet'!E14 -> FDIC | N10: ='Bond Input Sheet'!F14 -> 166033AG5 | O10: ='Bond Input Sheet'!G14 -> US Tres | P10: ='Bond Input Sheet'!H14 -> TIPS | Q10: ='Bond Input Sheet'!I14 -> 1.2 | R10: ='Bond Input Sheet'!J14 -> 2 | S10: 2 | T10: ='Bond Input Sheet'!K14 -> 2017-02-02 | U10: 2 | V10: -4.942465753 | W10: -0.2324771002 | X10: ='Bond Input Sheet'!L14 -> 0 | Y10: =IF('Bond Input Sheet'!M14=0,"",'Bond Input Sheet'!M14) ->  | Z10: ='Bond Input Sheet'!N14 -> 2001-07-19 | AA10: ='Bond Input Sheet'!O14 -> 102-16+ | AB10: ='Bond Input Sheet'!P14 -> 5 | AC10: ='Bond Input Sheet'!Q14 -> 50 | AD10: 102.515625 | AE10: 5175.78125 | AF10: 60 | AG10: =IF(B10<>"",AB10,0) -> 5 | AH10: =IF($B10<>"",AC10,0) -> 50 | AI10: 0.0005267582121 | AJ10: 30 | AK10: 0 | AL10: 30 | AM10: 0 | AN10: 0 | AO10: 0 | AP10: 0 | AQ10: 0 | AR10: 30 | AS10: 0 | AT10: 0 | AU10: 0 | AV10: 0 | AW10: 0 | AX10: 19.5 | AY10: 0 | AZ10: 0 | BA10: 0 | BB10: 0 | BC10: 0 | BD10: 19.5 | BE10: 0 | BF10: 0 | BG10: 0 | BH10: 0 | BI10: 0.009559470957 | BJ10: ='Bond Input Sheet'!R14 -> 100-15 | BK10: 100.46875 | BR10: 4 | BV10: =IF(BX10<>0,BU10*BX10,"") ->  | BW10: 5023.4375 | BX10: 0.04703666384 | BZ10: 5023.4375 | CM10: 5023.4375 | CO10: 5023.4375 | CZ10: 0.3092595086 | DB10: 0.05289307866 | FS10: 1232.833333 | FT10: 0.2087587421
B11: =IF('Bond Input Sheet'!B15="","", 'Bond Input Sheet'!B15) -> 3 | C11: =IF('Bond Input Sheet'!C15="","NR", 'Bond Input Sheet'!C15) -> Aaa | D11: =IF('Bond Input Sheet'!D15="","NR", 'Bond Input Sheet'!D15) -> AAA | E11: 0.1590318518 | F11: 0.1625349681 | G11: 7600 | H11: 7600 | I11: 2 | J11: 2 | K11: 2 | L11: 1 | M11: ='Bond Input Sheet'!E15 -> FSA | N11: ='Bond Input Sheet'!F15 -> 212183CM7 | O11: ='Bond Input Sheet'!G15 -> Contookook Zero | P11: ='Bond Input Sheet'!H15 -> Muni | Q11: ='Bond Input Sheet'!I15 -> 0 | R11: ='Bond Input Sheet'!J15 -> 0 | S11: 1 | T11: ='Bond Input Sheet'!K15 -> 2018-12-01 | U11: 12 | V11: -3.136986301 | W11: -0.2232347099 | X11: ='Bond Input Sheet'!L15 -> 0 | Y11: =IF('Bond Input Sheet'!M15=0,"",'Bond Input Sheet'!M15) ->  | Z11: ='Bond Input Sheet'!N15 -> 2000-07-05 | AA11: ='Bond Input Sheet'!O15 -> 51.66 | AB11: ='Bond Input Sheet'!P15 -> 8 | AC11: ='Bond Input Sheet'!Q15 -> 50 | AD11: 51.66 | AE11: 4182.8 | AF11: 0 | AG11: 8 | AH11: 50 | AI11: 0.00159689476 | AJ11: 0 | AK11: 0 | AL11: 0 | AM11: 0 | AN11: 0 | AO11: 0 | AP11: 0 | AQ11: 0 | AR11: 0 | AS11: 0 | AT11: 0 | AU11: 0 | AV11: 0 | AW11: 0 | AX11: 0 | AY11: 0 | AZ11: 0 | BA11: 0 | BB11: 0 | BC11: 0 | BD11: 0 | BE11: 0 | BF11: 0 | BG11: 0 | BH11: 0 | BI11: 0.03585978262 | BJ11: ='Bond Input Sheet'!R15 -> 95 | BK11: 95 | BR11: 3 | BU11: =IF(LowestYield<>"",LowestYield-FairYTM,"") ->  | BW11: 7600 | BX11: 0.07116215643 | BZ11: 7600 | CL11: 7600 | CO11: 7600 | CY11: 0.3133058091 | DB11: 0.1600447494 | FS11: 0 | FT11: 0.8169647126
B12: =IF('Bond Input Sheet'!B16="","", 'Bond Input Sheet'!B16) -> 4 | C12: =IF('Bond Input Sheet'!C16="","NR", 'Bond Input Sheet'!C16) -> Aaa | D12: =IF('Bond Input Sheet'!D16="","NR", 'Bond Input Sheet'!D16) -> AAA | E12: 0.1988923484 | F12: 0.2032735024 | G12: 9504.9 | H12: 9504.9 | I12: 2 | J12: 2 | K12: 2 | L12: 1 | M12: ='Bond Input Sheet'!E16 -> AMBAC | N12: ='Bond Input Sheet'!F16 -> 260183NW4 | O12: ='Bond Input Sheet'!G16 -> Dover Bond | P12: ='Bond Input Sheet'!H16 -> Muni | Q12: ='Bond Input Sheet'!I16 -> 4.5 | R12: ='Bond Input Sheet'!J16 -> 2 | S12: 2 | T12: ='Bond Input Sheet'!K16 -> 2024-06-15 | U12: 6 | V12: 2.326027397 | W12: 0.207013127 | X12: ='Bond Input Sheet'!L16 -> 101 | Y12: =IF('Bond Input Sheet'!M16=0,"",'Bond Input Sheet'!M16) -> 2011-06-15 | Z12: ='Bond Input Sheet'!N16 -> 2001-04-25 | AA12: ='Bond Input Sheet'!O16 -> 97.5 | AB12: ='Bond Input Sheet'!P16 -> 9 | AC12: ='Bond Input Sheet'!Q16 -> 75 | AD12: 97.5 | AE12: 8850 | AF12: 405 | AG12: 9 | AH12: 75 | AI12: 0.004350742388 | AJ12: 202.5 | AK12: 0 | AL12: 0 | AM12: 0 | AN12: 0 | AO12: 0 | AP12: 202.5 | AQ12: 0 | AR12: 0 | AS12: 0 | AT12: 0 | AU12: 0 | AV12: 202.5 | AW12: 0 | AX12: 0 | AY12: 0 | AZ12: 0 | BA12: 0 | BB12: 202.5 | BC12: 0 | BD12: 0 | BE12: 0 | BF12: 0 | BG12: 0 | BH12: 202.5 | BI12: 0.0461762387 | BJ12: ='Bond Input Sheet'!R16 -> 105.61 | BK12: 105.61 | BL12: 0.02050049432 | BN12: 0.02050049432 | BO12: 0.00182451481 | BP12: 0.00182451481 | BQ12: 2024-06-15 | BR12: 3 | BS12: 0.006333242009 | BT12: 109.0362324 | BU12: 0.01416725231 | BV12: 0.001260865288 | BW12: 9504.9 | BX12: 0.08899857641 | BY12: 0.02050049432 | CB12: 9504.9 | CL12: 9504.9 | CO12: 9504.9 | CY12: 0.3918342612 | DD12: 1.607607675 | DN12: 0.437171085 | DQ12: 0.3708677747 | EA12: 0.004016398024 | EF12: 0.004016398024 | EK12: 0.01647837601 | EU12: 0.01647837601 | FC12: 0.003407253244 | FK12: 0.003407253244 | FS12: 8416.125 | FT12: 1.024974576 | FU12: 2.231408165 | FV12: 108.0142599 | FW12: 103.271901 | FX12: 2.291250625 | FY12: 0.1985921501 | FZ12: 6.26464438 | GA12: 0.5575444315 | GB12: 0.02200084943 | GC12: 0.001958044279 | GD12: 209.1158738
B13: =IF('Bond Input Sheet'!B17="","", 'Bond Input Sheet'!B17) -> 5 | C13: =IF('Bond Input Sheet'!C17="","NR", 'Bond Input Sheet'!C17) -> Aa2 | D13: =IF('Bond Input Sheet'!D17="","NR", 'Bond Input Sheet'!D17) -> AA- | E13: 0.2812352747 | F13: 0.3592878242 | G13: 6720 | H13: 6720 | I13: 4 | J13: 5 | K13: 5 | L13: 2 | M13: ='Bond Input Sheet'!E17 -> None | N13: ='Bond Input Sheet'!F17 -> 440200XXX | O13: ='Bond Input Sheet'!G17 -> GM | P13: ='Bond Input Sheet'!H17 -> Corp | Q13: ='Bond Input Sheet'!I17 -> 6 | R13: ='Bond Input Sheet'!J17 -> 4 | S13: 4 | T13: ='Bond Input Sheet'!K17 -> 2018-08-01 | U13: 8 | V13: -3.465753425 | W13: -0.218073273 | X13: ='Bond Input Sheet'!L17 -> 102 | Y13: =IF('Bond Input Sheet'!M17=0,"",'Bond Input Sheet'!M17) -> 2009-08-01 | Z13: ='Bond Input Sheet'!N17 -> 2000-05-17 | AA13: ='Bond Input Sheet'!O17 -> 90.18 | AB13: ='Bond Input Sheet'!P17 -> 6 | AC13: ='Bond Input Sheet'!Q17 -> 100 | AD13: 90.18 | AE13: 5510.8 | AF13: 360 | AG13: 6 | AH13: 100 | AI13: 0.00397961907 | AJ13: 90 | AK13: 0 | AL13: 90 | AM13: 0 | AN13: 0 | AO13: 90 | AP13: 0 | AQ13: 0 | AR13: 90 | AS13: 0 | AT13: 0 | AU13: 90 | AV13: 0 | AW13: 0 | AX13: 54 | AY13: 0 | AZ13: 0 | BA13: 54 | BB13: 0 | BC13: 0 | BD13: 54 | BE13: 0 | BF13: 0 | BG13: 54 | BH13: 0 | BI13: 0.06783054549 | BJ13: ='Bond Input Sheet'!R17 -> 112 | BK13: 112 | BR13: 2 | BW13: 6720 | BX13: 0.06292232779 | BZ13: 6720 | CK13: 6720 | CP13: 6720 | CX13: 3.716814159 | DB13: 0.3537831302 | FS13: 7819 | FT13: 1.638273935
B14: =IF('Bond Input Sheet'!B18="","", 'Bond Input Sheet'!B18) -> 6 | C14: =IF('Bond Input Sheet'!C18="","NR", 'Bond Input Sheet'!C18) -> A1 | D14: =IF('Bond Input Sheet'!D18="","NR", 'Bond Input Sheet'!D18) -> A+ | E14: 0.1456396958 | F14: 0.1488478129 | G14: 2320 | H14: 2320 | I14: 6 | J14: 6 | K14: 6 | L14: 3 | M14: ='Bond Input Sheet'!E18 -> None | N14: ='Bond Input Sheet'!F18 -> 562345XXX | O14: ='Bond Input Sheet'!G18 -> GE | P14: ='Bond Input Sheet'!H18 -> Corp | Q14: ='Bond Input Sheet'!I18 -> 0 | R14: ='Bond Input Sheet'!J18 -> 4 | S14: 4 | T14: ='Bond Input Sheet'!K18 -> 2025-01-01 | U14: 1 | V14: 2.863013699 | W14: 0.06219377507 | X14: ='Bond Input Sheet'!L18 -> 0 | Y14: =IF('Bond Input Sheet'!M18=0,"",'Bond Input Sheet'!M18) ->  | Z14: ='Bond Input Sheet'!N18 -> 2000-05-10 | AA14: ='Bond Input Sheet'!O18 -> 21.99 | AB14: ='Bond Input Sheet'!P18 -> 4 | AC14: ='Bond Input Sheet'!Q18 -> 50 | AD14: 21.99 | AE14: 929.6 | AF14: 0 | AG14: 4 | AH14: 50 | AI14: 0.0005904588231 | AJ14: 0 | AK14: 0 | AL14: 0 | AM14: 0 | AN14: 0 | AO14: 0 | AP14: 0 | AQ14: 0 | AR14: 0 | AS14: 0 | AT14: 0 | AU14: 0 | AV14: 0 | AW14: 0 | AX14: 0 | AY14: 0 | AZ14: 0 | BA14: 0 | BB14: 0 | BC14: 0 | BD14: 0 | BE14: 0 | BF14: 0 | BG14: 0 | BH14: 0 | BI14: 0.05966119633 | BJ14: ='Bond Input Sheet'!R18 -> 58 | BK14: 58 | BL14: 0.1921287647 | BN14: 0.1921287647 | BO14: 0.004173648621 | BP14: 0.002504189173 | BQ14: 2025-01-01 | BR14: 2 | BS14: 0.007494520548 | BT14: 97.84999211 | BU14: 0.1846342441 | BV14: 0.004010843768 | BW14: 2320 | BX14: 0.0217231846 | BY14: 0.1921287647 | CB14: 2320 | CK14: 2320 | CQ14: 2320 | CX14: 1.539823009 | DD14: 1.177176974 | DM14: 0.7108184986 | DS14: 2.769741046 | DZ14: 0.04930738208 | EE14: 0.02958442925 | EK14: 0.0376949263 | EU14: 0.02261695578 | FE14: 0.1921287647 | FM14: 0.1152772588 | FS14: 0 | FT14: 1.495697074 | FU14: 2.769741046 | FV14: 59.6308769 | FW14: 56.41745422 | FX14: 3.30242552 | FY14: 0.06016759603 | FZ14: 8.332951627 | GA14: 0.1810182464 | GB14: 0.02728076288 | GC14: 0.000592625048 | GD14: 63.29136989
B15: =IF('Bond Input Sheet'!B19="","", 'Bond Input Sheet'!B19) -> 7 | C15: =IF('Bond Input Sheet'!C19="","NR", 'Bond Input Sheet'!C19) -> NR | D15: =IF('Bond Input Sheet'!D19="","NR", 'Bond Input Sheet'!D19) -> NR | K15: 23 | L15: 8 | M15: ='Bond Input Sheet'!E19 -> FDIC | N15: ='Bond Input Sheet'!F19 -> 64465MTF2 | O15: ='Bond Input Sheet'!G19 -> US Tres | P15: ='Bond Input Sheet'!H19 -> TIPS | Q15: ='Bond Input Sheet'!I19 -> 2.3 | R15: ='Bond Input Sheet'!J19 -> 12 | S15: 4 | T15: ='Bond Input Sheet'!K19 -> 2018-08-15 | U15: 8 | V15: -3.42739726 | W15: -0.3600748678 | X15: ='Bond Input Sheet'!L19 -> 0 | Y15: =IF('Bond Input Sheet'!M19=0,"",'Bond Input Sheet'!M19) ->  | Z15: ='Bond Input Sheet'!N19 -> 2001-07-19 | AA15: ='Bond Input Sheet'!O19 -> 101-08 | AB15: ='Bond Input Sheet'!P19 -> 11 | AC15: ='Bond Input Sheet'!Q19 -> 100 | AD15: 101.25 | AE15: 11237.5 | AF15: 253 | AG15: 11 | AH15: 100 | AI15: 0.002570512162 | AJ15: 21.08333333 | AK15: 21.08333333 | AL15: 21.08333333 | AM15: 21.08333333 | AN15: 21.08333333 | AO15: 21.08333333 | AP15: 21.08333333 | AQ15: 21.08333333 | AR15: 21.08333333 | AS15: 21.08333333 | AT15: 21.08333333 | AU15: 21.08333333 | AV15: 21.08333333 | AW15: 13.70416667 | AX15: 13.70416667 | AY15: 13.70416667 | AZ15: 13.70416667 | BA15: 13.70416667 | BB15: 13.70416667 | BC15: 13.70416667 | BD15: 13.70416667 | BE15: 13.70416667 | BF15: 13.70416667 | BG15: 13.70416667 | BH15: 13.70416667 | BI15: 0.02148564592 | BJ15: ='Bond Input Sheet'!R19 -> 102 | BK15: 102 | BR15: 4 | BW15: 11220 | BX15: 0.1050578152 | BZ15: 11220 | CM15: 11220 | CV15: 11220 | CZ15: 15.8870313 | DB15: 2.717180791 | FS15: 5198.447222 | FT15: 0.4610409097
B16: =IF('Bond Input Sheet'!B20="","", 'Bond Input Sheet'!B20) -> 8 | C16: =IF('Bond Input Sheet'!C20="","NR", 'Bond Input Sheet'!C20) -> FDIC | D16: =IF('Bond Input Sheet'!D20="","NR", 'Bond Input Sheet'!D20) -> FDIC | E16: 0.1255514619 | F16: 0.1283170801 | G16: 12000 | H16: 12000 | I16: 1 | J16: 1 | K16: 1 | L16: 1 | M16: ='Bond Input Sheet'!E20 -> FDIC | N16: ='Bond Input Sheet'!F20 -> 6446815J3 | O16: ='Bond Input Sheet'!G20 -> US Tres | P16: ='Bond Input Sheet'!H20 -> Tres | Q16: ='Bond Input Sheet'!I20 -> 3 | R16: ='Bond Input Sheet'!J20 -> 12 | S16: 4 | T16: ='Bond Input Sheet'!K20 -> 2018-08-01 | U16: 8 | V16: -3.465753425 | W16: -0.389416559 | X16: ='Bond Input Sheet'!L20 -> 0 | Y16: =IF('Bond Input Sheet'!M20=0,"",'Bond Input Sheet'!M20) ->  | Z16: ='Bond Input Sheet'!N20 -> 2001-06-05 | AA16: ='Bond Input Sheet'!O20 -> 64-05 | AB16: ='Bond Input Sheet'!P20 -> 12 | AC16: ='Bond Input Sheet'!Q20 -> 25 | AD16: 64.15625 | AE16: 7723.75 | AF16: 360 | AG16: 12 | AH16: 25 | AI16: 0.005302907891 | AJ16: 30 | AK16: 30 | AL16: 30 | AM16: 30 | AN16: 30 | AO16: 30 | AP16: 30 | AQ16: 30 | AR16: 30 | AS16: 30 | AT16: 30 | AU16: 30 | AV16: 30 | AW16: 19.5 | AX16: 19.5 | AY16: 19.5 | AZ16: 19.5 | BA16: 19.5 | BB16: 19.5 | BC16: 19.5 | BD16: 19.5 | BE16: 19.5 | BF16: 19.5 | BG16: 19.5 | BH16: 19.5 | BI16: 0.06448880533 | BJ16: ='Bond Input Sheet'!R20 -> 100 | BK16: 100 | BR16: 5 | BW16: 12000 | BX16: 0.1123612996 | BZ16: 12000 | CN16: 12000 | CO16: 12000 | DA16: 1 | DB16: 0.1263511179 | FS16: 7441 | FT16: 1.517041592
B17: =IF('Bond Input Sheet'!B21="","", 'Bond Input Sheet'!B21) -> 9 | C17: =IF('Bond Input Sheet'!C21="","NR", 'Bond Input Sheet'!C21) -> Aaa | D17: =IF('Bond Input Sheet'!D21="","NR", 'Bond Input Sheet'!D21) -> AAA | E17: 0.4394301167 | F17: 0.4491097802 | G17: 21000 | H17: 21000 | I17: 2 | J17: 2 | K17: 2 | L17: 1 | M17: ='Bond Input Sheet'!E21 -> None | N17: ='Bond Input Sheet'!F21 -> 644682FM3 | O17: ='Bond Input Sheet'!G21 -> GMNA | P17: ='Bond Input Sheet'!H21 -> Agency | Q17: ='Bond Input Sheet'!I21 -> 5 | R17: ='Bond Input Sheet'!J21 -> 2 | S17: 2 | T17: ='Bond Input Sheet'!K21 -> 2017-07-01 | U17: 7 | V17: -4.534246575 | W17: -0.8915792166 | X17: ='Bond Input Sheet'!L21 -> 0 | Y17: =IF('Bond Input Sheet'!M21=0,"",'Bond Input Sheet'!M21) ->  | Z17: ='Bond Input Sheet'!N21 -> 2000-05-10 | AA17: ='Bond Input Sheet'!O21 -> 101 | AB17: ='Bond Input Sheet'!P21 -> 20 | AC17: ='Bond Input Sheet'!Q21 -> 25 | AD17: 101 | AE17: 20225 | AF17: 1000 | AG17: 20 | AH17: 25 | AI17: 0.01055445943 | AJ17: 500 | AK17: 500 | AL17: 0 | AM17: 0 | AN17: 0 | AO17: 0 | AP17: 0 | AQ17: 500 | AR17: 0 | AS17: 0 | AT17: 0 | AU17: 0 | AV17: 0 | AW17: 300 | AX17: 0 | AY17: 0 | AZ17: 0 | BA17: 0 | BB17: 0 | BC17: 300 | BD17: 0 | BE17: 0 | BF17: 0 | BG17: 0 | BH17: 0 | BI17: 0.04901690895 | BJ17: ='Bond Input Sheet'!R21 -> 105 | BK17: 105 | BR17: 1 | BW17: 21000 | BX17: 0.1966322744 | BZ17: 21000 | CJ17: 21000 | CO17: 21000 | CW17: 2 | DB17: 0.4422289127 | FS17: 21738.88889 | FT17: 1.113171268
B18: =IF('Bond Input Sheet'!B22="","", 'Bond Input Sheet'!B22) -> 10 | C18: =IF('Bond Input Sheet'!C22="","NR", 'Bond Input Sheet'!C22) -> Aa1 | D18: =IF('Bond Input Sheet'!D22="","NR", 'Bond Input Sheet'!D22) -> AA+ | E18: 0.1129963157 | F18: 0.1154853721 | G18: 3600 | H18: 3600 | I18: 3 | J18: 3 | K18: 3 | L18: 2 | M18: ='Bond Input Sheet'!E22 -> None | N18: ='Bond Input Sheet'!F22 -> 644682GU4 | O18: ='Bond Input Sheet'!G22 -> College Savings | P18: ='Bond Input Sheet'!H22 -> Muni | Q18: ='Bond Input Sheet'!I22 -> 0 | R18: ='Bond Input Sheet'!J22 -> 2 | S18: 2 | T18: ='Bond Input Sheet'!K22 -> 2018-07-01 | U18: 7 | V18: -3.547945205 | W18: -0.1195955203 | X18: ='Bond Input Sheet'!L22 -> 0 | Y18: =IF('Bond Input Sheet'!M22=0,"",'Bond Input Sheet'!M22) ->  | Z18: ='Bond Input Sheet'!N22 -> 2000-05-16 | AA18: ='Bond Input Sheet'!O22 -> 43.39 | AB18: ='Bond Input Sheet'!P22 -> 4 | AC18: ='Bond Input Sheet'!Q22 -> 25 | AD18: 43.39 | AE18: 1760.6 | AF18: 0 | AG18: 4 | AH18: 25 | AI18: 0.0008583449886 | AJ18: 0 | AK18: 0 | AL18: 0 | AM18: 0 | AN18: 0 | AO18: 0 | AP18: 0 | AQ18: 0 | AR18: 0 | AS18: 0 | AT18: 0 | AU18: 0 | AV18: 0 | AW18: 0 | AX18: 0 | AY18: 0 | AZ18: 0 | BA18: 0 | BB18: 0 | BC18: 0 | BD18: 0 | BE18: 0 | BF18: 0 | BG18: 0 | BH18: 0 | BI18: 0.04579305677 | BJ18: ='Bond Input Sheet'!R22 -> 90 | BK18: 90 | BR18: 3 | BW18: 3600 | BX18: 0.03370838989 | BZ18: 3600 | CL18: 3600 | CP18: 3600 | CY18: 0.2226120223 | DB18: 0.1137160061 | FS18: 0 | FT18: 1.044757469
B19: =IF('Bond Input Sheet'!B23="","", 'Bond Input Sheet'!B23) -> 11 | C19: =IF('Bond Input Sheet'!C23="","NR", 'Bond Input Sheet'!C23) -> Baa3 | D19: =IF('Bond Input Sheet'!D23="","NR", 'Bond Input Sheet'!D23) -> A- | E19: 2.963537632 | F19: 2.202776541 | G19: =IF(I19="","",MarketValue) -> 25750 | H19: =IF(J19="","",MarketValue) -> 25750 | I19: 11 | J19: 8 | K19: =IF(B19="","",IF(AND(I19="",J19=""),MATCH("NR",SP_RatingTable,0),ROUND(AVERAGE(I19:J19),0))) -> 10 | L19: 4 | M19: ='Bond Input Sheet'!E23 -> None | N19: ='Bond Input Sheet'!F23 -> 737050RH9 | O19: ='Bond Input Sheet'!G23 -> Portsmouth G.O. | P19: ='Bond Input Sheet'!H23 -> Muni | Q19: ='Bond Input Sheet'!I23 -> 5.1 | R19: ='Bond Input Sheet'!J23 -> 2 | S19: 2 | T19: ='Bond Input Sheet'!K23 -> 2017-06-15 | U19: 6 | V19: -4.578082192 | W19: -1.103815089 | X19: ='Bond Input Sheet'!L23 -> 0 | Y19: =IF('Bond Input Sheet'!M23=0,"",'Bond Input Sheet'!M23) ->  | Z19: ='Bond Input Sheet'!N23 -> 2001-12-19 | AA19: ='Bond Input Sheet'!O23 -> 105.09 | AB19: ='Bond Input Sheet'!P23 -> 25 | AC19: ='Bond Input Sheet'!Q23 -> 75 | AD19: =IF(ISERROR(SEARCH("-",AA19)),AA19,LEFT(AA19,SEARCH("-",AA19)-1)+(1/32)*MID(AA19,SEARCH("-",AA19)+1,2)+IF(LEN(RIGHT(AA19,LEN(AA19)-SEARCH("-",AA19)-2))=1,IF(MID(AA19,SEARCH("-",AA19)+3,1)="+",1/64, MID(AA19,SEARCH("-",AA19)+3,1)*(1/256)),0)) -> 105.09 | AE19: 26347.5 | AF19: 1275 | AG19: =IF(B19<>"",AB19,0) -> 25 | AH19: =IF($B19<>"",AC19,0) -> 75 | AI19: 0.01292917228 | AJ19: 637.5 | AK19: =IF(CouponsPerYear<>0,IF(MOD(($U19-AK$8)/(12/CouponsPerYear),1),,CouponPaymentAmount),0) -> 0 | AL19: 0 | AM19: 0 | AN19: 0 | AO19: 0 | AP19: 637.5 | AQ19: 0 | AR19: 0 | AS19: 0 | AT19: 0 | AU19: 0 | AV19: 637.5 | AW19: =IF(CouponsPerYear<>0,IF(MOD(($U19-AW$8)/(12/CouponsPerYear),1),,$AJ19*(1-VLOOKUP(BondType,BondTypeTable,2))),0) -> 0 | AX19: 0 | AY19: 0 | AZ19: 0 | BA19: 0 | BB19: 637.5 | BC19: 0 | BD19: 0 | BE19: 0 | BF19: 0 | BG19: 0 | BH19: 637.5 | BI19: 0.04609244704 | BJ19: ='Bond Input Sheet'!R23 -> 103 | BK19: 103 | BR19: 3 | BS19: =IF(OR(BL19="",YearsToMaturity>29),BN19,INDEX(MarketYieldTable,YearsToMaturity+1,BondTypeIndex)+(INDEX(MarketYieldTable,YearsToMaturity+2,BondTypeIndex)-INDEX(MarketYieldTable,YearsToMaturity+1,BondTypeIndex))*(YearsToMaturity-INT(YearsToMaturity))) ->  | BU19: =IF(LowestYield<>"",LowestYield-FairYTM,"") ->  | BV19: =IF(BX19<>0,BU19*BX19,"") ->  | BW19: 25750 | BX19: 0.2411086221 | BY19: =IF(Bonds<>0,BN19,"") ->  | BZ19: 25750 | CA19: =IF(AND(Maturity<=CA$511,Maturity>BZ$511),MarketValue,"") ->  | CE19: =IF(AND(Maturity<=CE$511,Maturity>CD$511),MarketValue,"") ->  | CJ19: =IF(BondType=CJ$8,MarketValue,"") ->  | CL19: 25750 | CO19: =IF($L19=CO$511,$BW19,"") ->  | CR19: 25750 | CY19: 5.307647754 | DB19: 2.711284405 | ED19: =IF(DY19="","",DY19*(1-VLOOKUP(BondType,BondTypeTable,2))) ->  | EE19: =IF(DZ19="","",DZ19*(1-VLOOKUP(BondType,BondTypeTable,2))) ->  | EF19: =IF(EA19="","",EA19*(1-VLOOKUP(BondType,BondTypeTable,2))) ->  | EG19: =IF(EB19="","",EB19*(1-VLOOKUP(BondType,BondTypeTable,2))) ->  | EH19: =IF(EC19="","",EC19*(1-VLOOKUP(BondType,BondTypeTable,2))) ->  | ES19: =IF(EI19="","",EI19*(1-VLOOKUP(BondType,BondTypeTable,2))) ->  | ET19: =IF(EJ19="","",EJ19*(1-VLOOKUP(BondType,BondTypeTable,2))) ->  | EU19: =IF(EK19="","",EK19*(1-VLOOKUP(BondType,BondTypeTable,2))) ->  | EV19: =IF(EL19="","",EL19*(1-VLOOKUP(BondType,BondTypeTable,2))) ->  | EW19: =IF(EM19="","",EM19*(1-VLOOKUP(BondType,BondTypeTable,2))) ->  | FK19: =IF(FC19="","",FC19*(1-VLOOKUP(BondType,BondTypeTable,2))) ->  | FL19: =IF(FD19="","",FD19*(1-VLOOKUP(BondType,BondTypeTable,2))) ->  | FM19: =IF(FE19="","",FE19*(1-VLOOKUP(BondType,BondTypeTable,2))) ->  | FN19: =IF(FF19="","",FF19*(1-VLOOKUP(BondType,BondTypeTable,2))) ->  | FO19: =IF(FG19="","",FG19*(1-VLOOKUP(BondType,BondTypeTable,2))) ->  | FP19: =IF(FH19="","",FH19*(1-VLOOKUP(BondType,BondTypeTable,2))) ->  | FQ19: =IF(FI19="","",FI19*(1-VLOOKUP(BondType,BondTypeTable,2))) ->  | FR19: =IF(FJ19="","",FJ19*(1-VLOOKUP(BondType,BondTypeTable,2))) ->  | FS19: 25666.45833 | FT19: =IF(AND(TotalPurchaseCost<>0,B19<>""),(MarketValue+InterestPaidOut-TotalPurchaseCost)/TotalPurchaseCost,"") -> 0.9514738906 | FX19: =IF(BL19="","",(PriceIf100bpFall-PriceIf100bpRise)/(2*CurrentPrice*0.01)*(1+CurrentYield)) ->  | FY19: =IF(BL19="","",PercentPortfolio*ModDuration) ->  | FZ19: =IF(BL19="","",(PriceIf100bpRise+PriceIf100bpFall-(2*CurrentPrice))/((CurrentPrice*(0.01*0.01)))) ->  | GA19: =IF(BL19="","",(BW19/TotalPortfolioValue)*FZ19) ->  | GB19: =IF(BL19="","",ModDuration*0.01-((0.5)*BondConvexity*0.01*0.01)) ->  | GC19: =IF(BL19="","",(BX19)*GB19) ->  | GD19: =IF(BL19="","",MarketValue*BondRisk) -> 
B20: =IF('Bond Input Sheet'!B24="","", 'Bond Input Sheet'!B24) ->  | C20: =IF('Bond Input Sheet'!C24="","NR", 'Bond Input Sheet'!C24) -> NR | D20: =IF('Bond Input Sheet'!D24="","NR", 'Bond Input Sheet'!D24) -> NR | L20: 8 | M20: ='Bond Input Sheet'!E24 -> 0 | N20: ='Bond Input Sheet'!F24 -> 0 | O20: ='Bond Input Sheet'!G24 -> 0 | P20: ='Bond Input Sheet'!H24 -> 0 | Q20: ='Bond Input Sheet'!I24 -> 0 | R20: ='Bond Input Sheet'!J24 -> 0 | S20: 1 | T20: ='Bond Input Sheet'!K24 -> 00:00:00 | U20: 1 | V20: -120.4273973 | W20: 0 | X20: ='Bond Input Sheet'!L24 -> 0 | Y20: =IF('Bond Input Sheet'!M24=0,"",'Bond Input Sheet'!M24) ->  | Z20: ='Bond Input Sheet'!N24 -> 00:00:00 | AA20: ='Bond Input Sheet'!O24 -> 0 | AB20: ='Bond Input Sheet'!P24 -> 0 | AC20: ='Bond Input Sheet'!Q24 -> 0 | AD20: 0 | AE20: 0 | AF20: 0 | AG20: 0 | AH20: 0 | AI20: 0 | AJ20: 0 | AK20: 0 | AL20: 0 | AM20: 0 | AN20: 0 | AO20: 0 | AP20: 0 | AQ20: 0 | AR20: 0 | AS20: 0 | AT20: 0 | AU20: 0 | AV20: 0 | AW20: 0 | AX20: 0 | AY20: 0 | AZ20: 0 | BA20: 0 | BB20: 0 | BC20: 0 | BD20: 0 | BE20: 0 | BF20: 0 | BG20: 0 | BH20: 0 | BI20: 0 | BJ20: ='Bond Input Sheet'!R24 -> 0 | BK20: 0 | BW20: 0 | BX20: 0 | BZ20: 0 | CV20: 0 | FS20: 0 | FV20: 0 | FW20: 0
B21: =IF('Bond Input Sheet'!B25="","", 'Bond Input Sheet'!B25) ->  | C21: =IF('Bond Input Sheet'!C25="","NR", 'Bond Input Sheet'!C25) -> NR | D21: =IF('Bond Input Sheet'!D25="","NR", 'Bond Input Sheet'!D25) -> NR | L21: 8 | M21: ='Bond Input Sheet'!E25 -> 0 | N21: ='Bond Input Sheet'!F25 -> 0 | O21: ='Bond Input Sheet'!G25 -> 0 | P21: ='Bond Input Sheet'!H25 -> 0 | Q21: ='Bond Input Sheet'!I25 -> 0 | R21: ='Bond Input Sheet'!J25 -> 0 | S21: 1 | T21: ='Bond Input Sheet'!K25 -> 00:00:00 | U21: 1 | V21: -120.4273973 | W21: 0 | X21: ='Bond Input Sheet'!L25 -> 0 | Y21: =IF('Bond Input Sheet'!M25=0,"",'Bond Input Sheet'!M25) ->  | Z21: ='Bond Input Sheet'!N25 -> 00:00:00 | AA21: ='Bond Input Sheet'!O25 -> 0 | AB21: ='Bond Input Sheet'!P25 -> 0 | AC21: ='Bond Input Sheet'!Q25 -> 0 | AD21: 0 | AE21: 0 | AF21: 0 | AG21: 0 | AH21: 0 | AI21: 0 | AJ21: 0 | AK21: 0 | AL21: 0 | AM21: 0 | AN21: 0 | AO21: 0 | AP21: 0 | AQ21: 0 | AR21: 0 | AS21: 0 | AT21: 0 | AU21: 0 | AV21: 0 | AW21: 0 | AX21: 0 | AY21: 0 | AZ21: 0 | BA21: 0 | BB21: 0 | BC21: 0 | BD21: 0 | BE21: 0 | BF21: 0 | BG21: 0 | BH21: 0 | BI21: 0 | BJ21: ='Bond Input Sheet'!R25 -> 0 | BK21: 0 | BW21: 0 | BX21: 0 | BZ21: 0 | CV21: 0 | FS21: 0 | FV21: 0 | FW21: 0
B22: =IF('Bond Input Sheet'!B26="","", 'Bond Input Sheet'!B26) ->  | C22: =IF('Bond Input Sheet'!C26="","NR", 'Bond Input Sheet'!C26) -> NR | D22: =IF('Bond Input Sheet'!D26="","NR", 'Bond Input Sheet'!D26) -> NR | L22: 8 | M22: ='Bond Input Sheet'!E26 -> 0 | N22: ='Bond Input Sheet'!F26 -> 0 | O22: ='Bond Input Sheet'!G26 -> 0 | P22: ='Bond Input Sheet'!H26 -> 0 | Q22: ='Bond Input Sheet'!I26 -> 0 | R22: ='Bond Input Sheet'!J26 -> 0 | S22: 1 | T22: ='Bond Input Sheet'!K26 -> 00:00:00 | U22: 1 | V22: -120.4273973 | W22: 0 | X22: ='Bond Input Sheet'!L26 -> 0 | Y22: =IF('Bond Input Sheet'!M26=0,"",'Bond Input Sheet'!M26) ->  | Z22: ='Bond Input Sheet'!N26 -> 00:00:00 | AA22: ='Bond Input Sheet'!O26 -> 0 | AB22: ='Bond Input Sheet'!P26 -> 0 | AC22: ='Bond Input Sheet'!Q26 -> 0 | AD22: 0 | AE22: 0 | AF22: 0 | AG22: 0 | AH22: 0 | AI22: 0 | AJ22: 0 | AK22: 0 | AL22: 0 | AM22: 0 | AN22: 0 | AO22: 0 | AP22: 0 | AQ22: 0 | AR22: 0 | AS22: 0 | AT22: 0 | AU22: 0 | AV22: 0 | AW22: 0 | AX22: 0 | AY22: 0 | AZ22: 0 | BA22: 0 | BB22: 0 | BC22: 0 | BD22: 0 | BE22: 0 | BF22: 0 | BG22: 0 | BH22: 0 | BI22: 0 | BJ22: ='Bond Input Sheet'!R26 -> 0 | BK22: 0 | BW22: 0 | BX22: 0 | BZ22: 0 | CV22: 0 | FS22: 0 | FV22: 0 | FW22: 0
B23: =IF('Bond Input Sheet'!B27="","", 'Bond Input Sheet'!B27) ->  | C23: =IF('Bond Input Sheet'!C27="","NR", 'Bond Input Sheet'!C27) -> NR | D23: =IF('Bond Input Sheet'!D27="","NR", 'Bond Input Sheet'!D27) -> NR | L23: 8 | M23: ='Bond Input Sheet'!E27 -> 0 | N23: ='Bond Input Sheet'!F27 -> 0 | O23: ='Bond Input Sheet'!G27 -> 0 | P23: ='Bond Input Sheet'!H27 -> 0 | Q23: ='Bond Input Sheet'!I27 -> 0 | R23: ='Bond Input Sheet'!J27 -> 0 | S23: 1 | T23: ='Bond Input Sheet'!K27 -> 00:00:00 | U23: 1 | V23: -120.4273973 | W23: 0 | X23: ='Bond Input Sheet'!L27 -> 0 | Y23: =IF('Bond Input Sheet'!M27=0,"",'Bond Input Sheet'!M27) ->  | Z23: ='Bond Input Sheet'!N27 -> 00:00:00 | AA23: ='Bond Input Sheet'!O27 -> 0 | AB23: ='Bond Input Sheet'!P27 -> 0 | AC23: ='Bond Input Sheet'!Q27 -> 0 | AD23: 0 | AE23: 0 | AF23: 0 | AG23: 0 | AH23: 0 | AI23: 0 | AJ23: 0 | AK23: 0 | AL23: 0 | AM23: 0 | AN23: 0 | AO23: 0 | AP23: 0 | AQ23: 0 | AR23: 0 | AS23: 0 | AT23: 0 | AU23: 0 | AV23: 0 | AW23: 0 | AX23: 0 | AY23: 0 | AZ23: 0 | BA23: 0 | BB23: 0 | BC23: 0 | BD23: 0 | BE23: 0 | BF23: 0 | BG23: 0 | BH23: 0 | BI23: 0 | BJ23: ='Bond Input Sheet'!R27 -> 0 | BK23: 0 | BW23: 0 | BX23: 0 | BZ23: 0 | CV23: 0 | FS23: 0 | FV23: 0 | FW23: 0
B24: =IF('Bond Input Sheet'!B28="","", 'Bond Input Sheet'!B28) ->  | C24: =IF('Bond Input Sheet'!C28="","NR", 'Bond Input Sheet'!C28) -> NR | D24: =IF('Bond Input Sheet'!D28="","NR", 'Bond Input Sheet'!D28) -> NR | L24: 8 | M24: ='Bond Input Sheet'!E28 -> 0 | N24: ='Bond Input Sheet'!F28 -> 0 | O24: ='Bond Input Sheet'!G28 -> 0 | P24: ='Bond Input Sheet'!H28 -> 0 | Q24: ='Bond Input Sheet'!I28 -> 0 | R24: ='Bond Input Sheet'!J28 -> 0 | S24: 1 | T24: ='Bond Input Sheet'!K28 -> 00:00:00 | U24: 1 | V24: -120.4273973 | W24: 0 | X24: ='Bond Input Sheet'!L28 -> 0 | Y24: =IF('Bond Input Sheet'!M28=0,"",'Bond Input Sheet'!M28) ->  | Z24: ='Bond Input Sheet'!N28 -> 00:00:00 | AA24: ='Bond Input Sheet'!O28 -> 0 | AB24: ='Bond Input Sheet'!P28 -> 0 | AC24: ='Bond Input Sheet'!Q28 -> 0 | AD24: 0 | AE24: 0 | AF24: 0 | AG24: 0 | AH24: 0 | AI24: 0 | AJ24: 0 | AK24: 0 | AL24: 0 | AM24: 0 | AN24: 0 | AO24: 0 | AP24: 0 | AQ24: 0 | AR24: 0 | AS24: 0 | AT24: 0 | AU24: 0 | AV24: 0 | AW24: 0 | AX24: 0 | AY24: 0 | AZ24: 0 | BA24: 0 | BB24: 0 | BC24: 0 | BD24: 0 | BE24: 0 | BF24: 0 | BG24: 0 | BH24: 0 | BI24: 0 | BJ24: ='Bond Input Sheet'!R28 -> 0 | BK24: 0 | BW24: 0 | BX24: 0 | BZ24: 0 | CV24: 0 | FS24: 0 | FV24: 0 | FW24: 0
B25: =IF('Bond Input Sheet'!B29="","", 'Bond Input Sheet'!B29) ->  | C25: =IF('Bond Input Sheet'!C29="","NR", 'Bond Input Sheet'!C29) -> NR | D25: =IF('Bond Input Sheet'!D29="","NR", 'Bond Input Sheet'!D29) -> NR | L25: 8 | M25: ='Bond Input Sheet'!E29 -> 0 | N25: ='Bond Input Sheet'!F29 -> 0 | O25: ='Bond Input Sheet'!G29 -> 0 | P25: ='Bond Input Sheet'!H29 -> 0 | Q25: ='Bond Input Sheet'!I29 -> 0 | R25: ='Bond Input Sheet'!J29 -> 0 | S25: 1 | T25: ='Bond Input Sheet'!K29 -> 00:00:00 | U25: 1 | V25: -120.4273973 | W25: 0 | X25: ='Bond Input Sheet'!L29 -> 0 | Y25: =IF('Bond Input Sheet'!M29=0,"",'Bond Input Sheet'!M29) ->  | Z25: ='Bond Input Sheet'!N29 -> 00:00:00 | AA25: ='Bond Input Sheet'!O29 -> 0 | AB25: ='Bond Input Sheet'!P29 -> 0 | AC25: ='Bond Input Sheet'!Q29 -> 0 | AD25: 0 | AE25: 0 | AF25: 0 | AG25: 0 | AH25: 0 | AI25: 0 | AJ25: 0 | AK25: 0 | AL25: 0 | AM25: 0 | AN25: 0 | AO25: 0 | AP25: 0 | AQ25: 0 | AR25: 0 | AS25: 0 | AT25: 0 | AU25: 0 | AV25: 0 | AW25: 0 | AX25: 0 | AY25: 0 | AZ25: 0 | BA25: 0 | BB25: 0 | BC25: 0 | BD25: 0 | BE25: 0 | BF25: 0 | BG25: 0 | BH25: 0 | BI25: 0 | BJ25: ='Bond Input Sheet'!R29 -> 0 | BK25: 0 | BU25: =IF(LowestYield<>"",LowestYield-FairYTM,"") ->  | BW25: 0 | BX25: 0 | BZ25: 0 | CV25: 0 | FS25: 0 | FV25: 0 | FW25: 0
B26: =IF('Bond Input Sheet'!B30="","", 'Bond Input Sheet'!B30) ->  | C26: =IF('Bond Input Sheet'!C30="","NR", 'Bond Input Sheet'!C30) -> NR | D26: =IF('Bond Input Sheet'!D30="","NR", 'Bond Input Sheet'!D30) -> NR | L26: 8 | M26: ='Bond Input Sheet'!E30 -> 0 | N26: ='Bond Input Sheet'!F30 -> 0 | O26: ='Bond Input Sheet'!G30 -> 0 | P26: ='Bond Input Sheet'!H30 -> 0 | Q26: ='Bond Input Sheet'!I30 -> 0 | R26: ='Bond Input Sheet'!J30 -> 0 | S26: 1 | T26: ='Bond Input Sheet'!K30 -> 00:00:00 | U26: 1 | V26: -120.4273973 | W26: 0 | X26: ='Bond Input Sheet'!L30 -> 0 | Y26: =IF('Bond Input Sheet'!M30=0,"",'Bond Input Sheet'!M30) ->  | Z26: ='Bond Input Sheet'!N30 -> 00:00:00 | AA26: ='Bond Input Sheet'!O30 -> 0 | AB26: ='Bond Input Sheet'!P30 -> 0 | AC26: ='Bond Input Sheet'!Q30 -> 0 | AD26: 0 | AE26: 0 | AF26: 0 | AG26: 0 | AH26: 0 | AI26: 0 | AJ26: 0 | AK26: 0 | AL26: 0 | AM26: 0 | AN26: 0 | AO26: 0 | AP26: 0 | AQ26: 0 | AR26: 0 | AS26: 0 | AT26: 0 | AU26: 0 | AV26: 0 | AW26: 0 | AX26: 0 | AY26: 0 | AZ26: 0 | BA26: 0 | BB26: 0 | BC26: 0 | BD26: 0 | BE26: 0 | BF26: 0 | BG26: 0 | BH26: 0 | BI26: 0 | BJ26: ='Bond Input Sheet'!R30 -> 0 | BK26: 0 | BW26: 0 | BX26: 0 | BZ26: 0 | CV26: 0 | FS26: 0 | FV26: 0 | FW26: 0
B27: =IF('Bond Input Sheet'!B31="","", 'Bond Input Sheet'!B31) ->  | C27: =IF('Bond Input Sheet'!C31="","NR", 'Bond Input Sheet'!C31) -> NR | D27: =IF('Bond Input Sheet'!D31="","NR", 'Bond Input Sheet'!D31) -> NR | L27: 8 | M27: ='Bond Input Sheet'!E31 -> 0 | N27: ='Bond Input Sheet'!F31 -> 0 | O27: ='Bond Input Sheet'!G31 -> 0 | P27: ='Bond Input Sheet'!H31 -> 0 | Q27: ='Bond Input Sheet'!I31 -> 0 | R27: ='Bond Input Sheet'!J31 -> 0 | S27: 1 | T27: ='Bond Input Sheet'!K31 -> 00:00:00 | U27: 1 | V27: -120.4273973 | W27: 0 | X27: ='Bond Input Sheet'!L31 -> 0 | Y27: =IF('Bond Input Sheet'!M31=0,"",'Bond Input Sheet'!M31) ->  | Z27: ='Bond Input Sheet'!N31 -> 00:00:00 | AA27: ='Bond Input Sheet'!O31 -> 0 | AB27: ='Bond Input Sheet'!P31 -> 0 | AC27: ='Bond Input Sheet'!Q31 -> 0 | AD27: 0 | AE27: 0 | AF27: 0 | AG27: 0 | AH27: 0 | AI27: 0 | AJ27: 0 | AK27: 0 | AL27: 0 | AM27: 0 | AN27: 0 | AO27: 0 | AP27: 0 | AQ27: 0 | AR27: 0 | AS27: 0 | AT27: 0 | AU27: 0 | AV27: 0 | AW27: 0 | AX27: 0 | AY27: 0 | AZ27: 0 | BA27: 0 | BB27: 0 | BC27: 0 | BD27: 0 | BE27: 0 | BF27: 0 | BG27: 0 | BH27: 0 | BI27: 0 | BJ27: ='Bond Input Sheet'!R31 -> 0 | BK27: 0 | BW27: 0 | BX27: 0 | BZ27: 0 | CV27: 0 | FS27: 0 | FV27: 0 | FW27: 0
B28: =IF('Bond Input Sheet'!B32="","", 'Bond Input Sheet'!B32) ->  | C28: =IF('Bond Input Sheet'!C32="","NR", 'Bond Input Sheet'!C32) -> NR | D28: =IF('Bond Input Sheet'!D32="","NR", 'Bond Input Sheet'!D32) -> NR | L28: 8 | M28: ='Bond Input Sheet'!E32 -> 0 | N28: ='Bond Input Sheet'!F32 -> 0 | O28: ='Bond Input Sheet'!G32 -> 0 | P28: ='Bond Input Sheet'!H32 -> 0 | Q28: ='Bond Input Sheet'!I32 -> 0 | R28: ='Bond Input Sheet'!J32 -> 0 | S28: 1 | T28: ='Bond Input Sheet'!K32 -> 00:00:00 | U28: 1 | V28: -120.4273973 | W28: 0 | X28: ='Bond Input Sheet'!L32 -> 0 | Y28: =IF('Bond Input Sheet'!M32=0,"",'Bond Input Sheet'!M32) ->  | Z28: ='Bond Input Sheet'!N32 -> 00:00:00 | AA28: ='Bond Input Sheet'!O32 -> 0 | AB28: ='Bond Input Sheet'!P32 -> 0 | AC28: ='Bond Input Sheet'!Q32 -> 0 | AD28: 0 | AE28: 0 | AF28: 0 | AG28: 0 | AH28: 0 | AI28: 0 | AJ28: 0 | AK28: =IF(CouponsPerYear<>0,IF(MOD(($U28-AK$8)/(12/CouponsPerYear),1),,CouponPaymentAmount),0) -> 0 | AL28: =IF(CouponsPerYear<>0,IF(MOD(($U28-AL$8)/(12/CouponsPerYear),1),,CouponPaymentAmount),0) -> 0 | AM28: =IF(CouponsPerYear<>0,IF(MOD(($U28-AM$8)/(12/CouponsPerYear),1),,CouponPaymentAmount),0) -> 0 | AN28: =IF(CouponsPerYear<>0,IF(MOD(($U28-AN$8)/(12/CouponsPerYear),1),,CouponPaymentAmount),0) -> 0 | AO28: 0 | AP28: 0 | AQ28: 0 | AR28: 0 | AS28: 0 | AT28: 0 | AU28: 0 | AV28: 0 | AW28: =IF(CouponsPerYear<>0,IF(MOD(($U28-AW$8)/(12/CouponsPerYear),1),,$AJ28*(1-VLOOKUP(BondType,BondTypeTable,2))),0) -> 0 | AX28: =IF(CouponsPerYear<>0,IF(MOD(($U28-AX$8)/(12/CouponsPerYear),1),,$AJ28*(1-VLOOKUP(BondType,BondTypeTable,2))),0) -> 0 | AY28: =IF(CouponsPerYear<>0,IF(MOD(($U28-AY$8)/(12/CouponsPerYear),1),,$AJ28*(1-VLOOKUP(BondType,BondTypeTable,2))),0) -> 0 | AZ28: =IF(CouponsPerYear<>0,IF(MOD(($U28-AZ$8)/(12/CouponsPerYear),1),,$AJ28*(1-VLOOKUP(BondType,BondTypeTable,2))),0) -> 0 | BA28: 0 | BB28: 0 | BC28: 0 | BD28: 0 | BE28: 0 | BF28: 0 | BG28: 0 | BH28: 0 | BI28: 0 | BJ28: ='Bond Input Sheet'!R32 -> 0 | BK28: 0 | BW28: 0 | BX28: 0 | BZ28: 0 | CV28: 0 | FS28: 0 | FV28: 0 | FW28: 0
B29: =IF('Bond Input Sheet'!B33="","", 'Bond Input Sheet'!B33) ->  | C29: =IF('Bond Input Sheet'!C33="","NR", 'Bond Input Sheet'!C33) -> NR | D29: =IF('Bond Input Sheet'!D33="","NR", 'Bond Input Sheet'!D33) -> NR | L29: 8 | M29: ='Bond Input Sheet'!E33 -> 0 | N29: ='Bond Input Sheet'!F33 -> 0 | O29: ='Bond Input Sheet'!G33 -> 0 | P29: ='Bond Input Sheet'!H33 -> 0 | Q29: ='Bond Input Sheet'!I33 -> 0 | R29: ='Bond Input Sheet'!J33 -> 0 | S29: 1 | T29: ='Bond Input Sheet'!K33 -> 00:00:00 | U29: 1 | V29: -120.4273973 | W29: 0 | X29: ='Bond Input Sheet'!L33 -> 0 | Y29: =IF('Bond Input Sheet'!M33=0,"",'Bond Input Sheet'!M33) ->  | Z29: ='Bond Input Sheet'!N33 -> 00:00:00 | AA29: ='Bond Input Sheet'!O33 -> 0 | AB29: ='Bond Input Sheet'!P33 -> 0 | AC29: ='Bond Input Sheet'!Q33 -> 0 | AD29: 0 | AE29: 0 | AF29: 0 | AG29: 0 | AH29: 0 | AI29: 0 | AJ29: 0 | AK29: 0 | AL29: 0 | AM29: 0 | AN29: 0 | AO29: 0 | AP29: 0 | AQ29: 0 | AR29: 0 | AS29: 0 | AT29: 0 | AU29: 0 | AV29: 0 | AW29: 0 | AX29: 0 | AY29: 0 | AZ29: 0 | BA29: 0 | BB29: 0 | BC29: 0 | BD29: 0 | BE29: 0 | BF29: 0 | BG29: 0 | BH29: 0 | BI29: 0 | BJ29: ='Bond Input Sheet'!R33 -> 0 | BK29: 0 | BW29: 0 | BX29: 0 | BZ29: 0 | CA29: =IF(AND(Maturity<=CA$511,Maturity>BZ$511),MarketValue,"") ->  | CE29: =IF(AND(Maturity<=CE$511,Maturity>CD$511),MarketValue,"") ->  | CJ29: =IF(BondType=CJ$8,MarketValue,"") ->  | CO29: =IF($L29=CO$511,$BW29,"") ->  | CV29: 0 | FS29: 0 | FV29: 0 | FW29: 0
B30: =IF('Bond Input Sheet'!B34="","", 'Bond Input Sheet'!B34) ->  | C30: =IF('Bond Input Sheet'!C34="","NR", 'Bond Input Sheet'!C34) -> NR | D30: =IF('Bond Input Sheet'!D34="","NR", 'Bond Input Sheet'!D34) -> NR | L30: 8 | M30: ='Bond Input Sheet'!E34 -> 0 | N30: ='Bond Input Sheet'!F34 -> 0 | O30: ='Bond Input Sheet'!G34 -> 0 | P30: ='Bond Input Sheet'!H34 -> 0 | Q30: ='Bond Input Sheet'!I34 -> 0 | R30: ='Bond Input Sheet'!J34 -> 0 | S30: 1 | T30: ='Bond Input Sheet'!K34 -> 00:00:00 | U30: 1 | V30: -120.4273973 | W30: 0 | X30: ='Bond Input Sheet'!L34 -> 0 | Y30: =IF('Bond Input Sheet'!M34=0,"",'Bond Input Sheet'!M34) ->  | Z30: ='Bond Input Sheet'!N34 -> 00:00:00 | AA30: ='Bond Input Sheet'!O34 -> 0 | AB30: ='Bond Input Sheet'!P34 -> 0 | AC30: ='Bond Input Sheet'!Q34 -> 0 | AD30: 0 | AE30: 0 | AF30: 0 | AG30: 0 | AH30: 0 | AI30: 0 | AJ30: 0 | AK30: 0 | AL30: 0 | AM30: 0 | AN30: 0 | AO30: 0 | AP30: 0 | AQ30: 0 | AR30: 0 | AS30: 0 | AT30: 0 | AU30: 0 | AV30: 0 | AW30: 0 | AX30: 0 | AY30: 0 | AZ30: 0 | BA30: 0 | BB30: 0 | BC30: 0 | BD30: 0 | BE30: 0 | BF30: 0 | BG30: 0 | BH30: 0 | BI30: 0 | BJ30: ='Bond Input Sheet'!R34 -> 0 | BK30: 0 | BW30: 0 | BX30: 0 | BZ30: 0 | CV30: 0 | FS30: 0 | FV30: 0 | FW30: 0
B31: =IF('Bond Input Sheet'!B35="","", 'Bond Input Sheet'!B35) ->  | C31: =IF('Bond Input Sheet'!C35="","NR", 'Bond Input Sheet'!C35) -> NR | D31: =IF('Bond Input Sheet'!D35="","NR", 'Bond Input Sheet'!D35) -> NR | L31: 8 | M31: ='Bond Input Sheet'!E35 -> 0 | N31: ='Bond Input Sheet'!F35 -> 0 | O31: ='Bond Input Sheet'!G35 -> 0 | P31: ='Bond Input Sheet'!H35 -> 0 | Q31: ='Bond Input Sheet'!I35 -> 0 | R31: ='Bond Input Sheet'!J35 -> 0 | S31: 1 | T31: ='Bond Input Sheet'!K35 -> 00:00:00 | U31: 1 | V31: -120.4273973 | W31: 0 | X31: ='Bond Input Sheet'!L35 -> 0 | Y31: =IF('Bond Input Sheet'!M35=0,"",'Bond Input Sheet'!M35) ->  | Z31: ='Bond Input Sheet'!N35 -> 00:00:00 | AA31: ='Bond Input Sheet'!O35 -> 0 | AB31: ='Bond Input Sheet'!P35 -> 0 | AC31: ='Bond Input Sheet'!Q35 -> 0 | AD31: 0 | AE31: 0 | AF31: 0 | AG31: 0 | AH31: 0 | AI31: 0 | AJ31: 0 | AK31: 0 | AL31: 0 | AM31: 0 | AN31: 0 | AO31: 0 | AP31: 0 | AQ31: 0 | AR31: 0 | AS31: 0 | AT31: 0 | AU31: 0 | AV31: 0 | AW31: 0 | AX31: 0 | AY31: 0 | AZ31: 0 | BA31: 0 | BB31: 0 | BC31: 0 | BD31: 0 | BE31: 0 | BF31: 0 | BG31: 0 | BH31: 0 | BI31: 0 | BJ31: ='Bond Input Sheet'!R35 -> 0 | BK31: 0 | BW31: 0 | BX31: 0 | BZ31: 0 | CV31: 0 | FS31: 0 | FV31: 0 | FW31: 0
B32: =IF('Bond Input Sheet'!B36="","", 'Bond Input Sheet'!B36) ->  | C32: =IF('Bond Input Sheet'!C36="","NR", 'Bond Input Sheet'!C36) -> NR | D32: =IF('Bond Input Sheet'!D36="","NR", 'Bond Input Sheet'!D36) -> NR | L32: 8 | M32: ='Bond Input Sheet'!E36 -> 0 | N32: ='Bond Input Sheet'!F36 -> 0 | O32: ='Bond Input Sheet'!G36 -> 0 | P32: ='Bond Input Sheet'!H36 -> 0 | Q32: ='Bond Input Sheet'!I36 -> 0 | R32: ='Bond Input Sheet'!J36 -> 0 | S32: 1 | T32: ='Bond Input Sheet'!K36 -> 00:00:00 | U32: 1 | V32: -120.4273973 | W32: 0 | X32: ='Bond Input Sheet'!L36 -> 0 | Y32: =IF('Bond Input Sheet'!M36=0,"",'Bond Input Sheet'!M36) ->  | Z32: ='Bond Input Sheet'!N36 -> 00:00:00 | AA32: ='Bond Input Sheet'!O36 -> 0 | AB32: ='Bond Input Sheet'!P36 -> 0 | AC32: ='Bond Input Sheet'!Q36 -> 0 | AD32: 0 | AE32: 0 | AF32: 0 | AG32: 0 | AH32: 0 | AI32: 0 | AJ32: 0 | AK32: 0 | AL32: 0 | AM32: 0 | AN32: 0 | AO32: 0 | AP32: 0 | AQ32: 0 | AR32: 0 | AS32: 0 | AT32: 0 | AU32: 0 | AV32: 0 | AW32: 0 | AX32: 0 | AY32: 0 | AZ32: 0 | BA32: 0 | BB32: 0 | BC32: 0 | BD32: 0 | BE32: 0 | BF32: 0 | BG32: 0 | BH32: 0 | BI32: 0 | BJ32: ='Bond Input Sheet'!R36 -> 0 | BK32: 0 | BW32: 0 | BX32: 0 | BZ32: 0 | CV32: 0 | FS32: 0 | FV32: 0 | FW32: 0
B33: =IF('Bond Input Sheet'!B37="","", 'Bond Input Sheet'!B37) ->  | C33: =IF('Bond Input Sheet'!C37="","NR", 'Bond Input Sheet'!C37) -> NR | D33: =IF('Bond Input Sheet'!D37="","NR", 'Bond Input Sheet'!D37) -> NR | L33: 8 | M33: ='Bond Input Sheet'!E37 -> 0 | N33: ='Bond Input Sheet'!F37 -> 0 | O33: ='Bond Input Sheet'!G37 -> 0 | P33: ='Bond Input Sheet'!H37 -> 0 | Q33: ='Bond Input Sheet'!I37 -> 0 | R33: ='Bond Input Sheet'!J37 -> 0 | S33: 1 | T33: ='Bond Input Sheet'!K37 -> 00:00:00 | U33: 1 | V33: -120.4273973 | W33: 0 | X33: ='Bond Input Sheet'!L37 -> 0 | Y33: =IF('Bond Input Sheet'!M37=0,"",'Bond Input Sheet'!M37) ->  | Z33: ='Bond Input Sheet'!N37 -> 00:00:00 | AA33: ='Bond Input Sheet'!O37 -> 0 | AB33: ='Bond Input Sheet'!P37 -> 0 | AC33: ='Bond Input Sheet'!Q37 -> 0 | AD33: =IF(ISERROR(SEARCH("-",AA33)),AA33,LEFT(AA33,SEARCH("-",AA33)-1)+(1/32)*MID(AA33,SEARCH("-",AA33)+1,2)+IF(LEN(RIGHT(AA33,LEN(AA33)-SEARCH("-",AA33)-2))=1,IF(MID(AA33,SEARCH("-",AA33)+3,1)="+",1/64, MID(AA33,SEARCH("-",AA33)+3,1)*(1/256)),0)) -> 0 | AE33: 0 | AF33: 0 | AG33: =IF(B33<>"",AB33,0) -> 0 | AH33: =IF($B33<>"",AC33,0) -> 0 | AI33: 0 | AJ33: 0 | AK33: 0 | AL33: 0 | AM33: 0 | AN33: 0 | AO33: 0 | AP33: 0 | AQ33: 0 | AR33: 0 | AS33: 0 | AT33: 0 | AU33: 0 | AV33: 0 | AW33: 0 | AX33: 0 | AY33: 0 | AZ33: 0 | BA33: 0 | BB33: 0 | BC33: 0 | BD33: 0 | BE33: 0 | BF33: 0 | BG33: 0 | BH33: 0 | BI33: 0 | BJ33: ='Bond Input Sheet'!R37 -> 0 | BK33: 0 | BS33: =IF(OR(BL33="",YearsToMaturity>29),BN33,INDEX(MarketYieldTable,YearsToMaturity+1,BondTypeIndex)+(INDEX(MarketYieldTable,YearsToMaturity+2,BondTypeIndex)-INDEX(MarketYieldTable,YearsToMaturity+1,BondTypeIndex))*(YearsToMaturity-INT(YearsToMaturity))) ->  | BU33: =IF(LowestYield<>"",LowestYield-FairYTM,"") ->  | BV33: =IF(BX33<>0,BU33*BX33,"") ->  | BW33: 0 | BX33: 0 | BY33: =IF(Bonds<>0,BN33,"") ->  | BZ33: 0 | CV33: 0 | ED33: =IF(DY33="","",DY33*(1-VLOOKUP(BondType,BondTypeTable,2))) ->  | EE33: =IF(DZ33="","",DZ33*(1-VLOOKUP(BondType,BondTypeTable,2))) ->  | EF33: =IF(EA33="","",EA33*(1-VLOOKUP(BondType,BondTypeTable,2))) ->  | EG33: =IF(EB33="","",EB33*(1-VLOOKUP(BondType,BondTypeTable,2))) ->  | EH33: =IF(EC33="","",EC33*(1-VLOOKUP(BondType,BondTypeTable,2))) ->  | ES33: =IF(EI33="","",EI33*(1-VLOOKUP(BondType,BondTypeTable,2))) ->  | ET33: =IF(EJ33="","",EJ33*(1-VLOOKUP(BondType,BondTypeTable,2))) ->  | EU33: =IF(EK33="","",EK33*(1-VLOOKUP(BondType,BondTypeTable,2))) ->  | EV33: =IF(EL33="","",EL33*(1-VLOOKUP(BondType,BondTypeTable,2))) ->  | EW33: =IF(EM33="","",EM33*(1-VLOOKUP(BondType,BondTypeTable,2))) ->  | FK33: =IF(FC33="","",FC33*(1-VLOOKUP(BondType,BondTypeTable,2))) ->  | FL33: =IF(FD33="","",FD33*(1-VLOOKUP(BondType,BondTypeTable,2))) ->  | FM33: =IF(FE33="","",FE33*(1-VLOOKUP(BondType,BondTypeTable,2))) ->  | FN33: =IF(FF33="","",FF33*(1-VLOOKUP(BondType,BondTypeTable,2))) ->  | FO33: =IF(FG33="","",FG33*(1-VLOOKUP(BondType,BondTypeTable,2))) ->  | FP33: =IF(FH33="","",FH33*(1-VLOOKUP(BondType,BondTypeTable,2))) ->  | FQ33: =IF(FI33="","",FI33*(1-VLOOKUP(BondType,BondTypeTable,2))) ->  | FR33: =IF(FJ33="","",FJ33*(1-VLOOKUP(BondType,BondTypeTable,2))) ->  | FS33: 0 | FT33: =IF(AND(TotalPurchaseCost<>0,B33<>""),(MarketValue+InterestPaidOut-TotalPurchaseCost)/TotalPurchaseCost,"") ->  | FV33: 0 | FW33: 0 | FX33: =IF(BL33="","",(PriceIf100bpFall-PriceIf100bpRise)/(2*CurrentPrice*0.01)*(1+CurrentYield)) ->  | FY33: =IF(BL33="","",PercentPortfolio*ModDuration) ->  | FZ33: =IF(BL33="","",(PriceIf100bpRise+PriceIf100bpFall-(2*CurrentPrice))/((CurrentPrice*(0.01*0.01)))) ->  | GA33: =IF(BL33="","",(BW33/TotalPortfolioValue)*FZ33) ->  | GB33: =IF(BL33="","",ModDuration*0.01-((0.5)*BondConvexity*0.01*0.01)) ->  | GC33: =IF(BL33="","",(BX33)*GB33) ->  | GD33: =IF(BL33="","",MarketValue*BondRisk) -> 
B34: =IF('Bond Input Sheet'!B38="","", 'Bond Input Sheet'!B38) ->  | C34: =IF('Bond Input Sheet'!C38="","NR", 'Bond Input Sheet'!C38) -> NR | D34: =IF('Bond Input Sheet'!D38="","NR", 'Bond Input Sheet'!D38) -> NR | L34: 8 | M34: ='Bond Input Sheet'!E38 -> 0 | N34: ='Bond Input Sheet'!F38 -> 0 | O34: ='Bond Input Sheet'!G38 -> 0 | P34: ='Bond Input Sheet'!H38 -> 0 | Q34: ='Bond Input Sheet'!I38 -> 0 | R34: ='Bond Input Sheet'!J38 -> 0 | S34: 1 | T34: ='Bond Input Sheet'!K38 -> 00:00:00 | U34: 1 | V34: -120.4273973 | W34: 0 | X34: ='Bond Input Sheet'!L38 -> 0 | Y34: =IF('Bond Input Sheet'!M38=0,"",'Bond Input Sheet'!M38) ->  | Z34: ='Bond Input Sheet'!N38 -> 00:00:00 | AA34: ='Bond Input Sheet'!O38 -> 0 | AB34: ='Bond Input Sheet'!P38 -> 0 | AC34: ='Bond Input Sheet'!Q38 -> 0 | AD34: 0 | AE34: 0 | AF34: 0 | AG34: 0 | AH34: 0 | AI34: 0 | AJ34: 0 | AK34: 0 | AL34: 0 | AM34: 0 | AN34: 0 | AO34: 0 | AP34: 0 | AQ34: 0 | AR34: 0 | AS34: 0 | AT34: 0 | AU34: 0 | AV34: 0 | AW34: 0 | AX34: 0 | AY34: 0 | AZ34: 0 | BA34: 0 | BB34: 0 | BC34: 0 | BD34: 0 | BE34: 0 | BF34: 0 | BG34: 0 | BH34: 0 | BI34: 0 | BJ34: ='Bond Input Sheet'!R38 -> 0 | BK34: 0 | BW34: 0 | BX34: 0 | BZ34: 0 | CV34: 0 | FS34: 0 | FV34: 0 | FW34: 0
B35: =IF('Bond Input Sheet'!B39="","", 'Bond Input Sheet'!B39) ->  | C35: =IF('Bond Input Sheet'!C39="","NR", 'Bond Input Sheet'!C39) -> NR | D35: =IF('Bond Input Sheet'!D39="","NR", 'Bond Input Sheet'!D39) -> NR | L35: 8 | M35: ='Bond Input Sheet'!E39 -> 0 | N35: ='Bond Input Sheet'!F39 -> 0 | O35: ='Bond Input Sheet'!G39 -> 0 | P35: ='Bond Input Sheet'!H39 -> 0 | Q35: ='Bond Input Sheet'!I39 -> 0 | R35: ='Bond Input Sheet'!J39 -> 0 | S35: 1 | T35: ='Bond Input Sheet'!K39 -> 00:00:00 | U35: 1 | V35: -120.4273973 | W35: 0 | X35: ='Bond Input Sheet'!L39 -> 0 | Y35: =IF('Bond Input Sheet'!M39=0,"",'Bond Input Sheet'!M39) ->  | Z35: ='Bond Input Sheet'!N39 -> 00:00:00 | AA35: ='Bond Input Sheet'!O39 -> 0 | AB35: ='Bond Input Sheet'!P39 -> 0 | AC35: ='Bond Input Sheet'!Q39 -> 0 | AD35: 0 | AE35: 0 | AF35: 0 | AG35: 0 | AH35: 0 | AI35: 0 | AJ35: 0 | AK35: 0 | AL35: 0 | AM35: 0 | AN35: 0 | AO35: 0 | AP35: 0 | AQ35: 0 | AR35: 0 | AS35: 0 | AT35: 0 | AU35: 0 | AV35: 0 | AW35: 0 | AX35: 0 | AY35: 0 | AZ35: 0 | BA35: 0 | BB35: 0 | BC35: 0 | BD35: 0 | BE35: 0 | BF35: 0 | BG35: 0 | BH35: 0 | BI35: 0 | BJ35: ='Bond Input Sheet'!R39 -> 0 | BK35: 0 | BW35: 0 | BX35: 0 | BZ35: 0 | CV35: 0 | FS35: 0 | FV35: 0 | FW35: 0
B36: =IF('Bond Input Sheet'!B40="","", 'Bond Input Sheet'!B40) ->  | C36: =IF('Bond Input Sheet'!C40="","NR", 'Bond Input Sheet'!C40) -> NR | D36: =IF('Bond Input Sheet'!D40="","NR", 'Bond Input Sheet'!D40) -> NR | L36: 8 | M36: ='Bond Input Sheet'!E40 -> 0 | N36: ='Bond Input Sheet'!F40 -> 0 | O36: ='Bond Input Sheet'!G40 -> 0 | P36: ='Bond Input Sheet'!H40 -> 0 | Q36: ='Bond Input Sheet'!I40 -> 0 | R36: ='Bond Input Sheet'!J40 -> 0 | S36: 1 | T36: ='Bond Input Sheet'!K40 -> 00:00:00 | U36: 1 | V36: -120.4273973 | W36: 0 | X36: ='Bond Input Sheet'!L40 -> 0 | Y36: =IF('Bond Input Sheet'!M40=0,"",'Bond Input Sheet'!M40) ->  | Z36: ='Bond Input Sheet'!N40 -> 00:00:00 | AA36: ='Bond Input Sheet'!O40 -> 0 | AB36: ='Bond Input Sheet'!P40 -> 0 | AC36: ='Bond Input Sheet'!Q40 -> 0 | AD36: 0 | AE36: 0 | AF36: 0 | AG36: 0 | AH36: 0 | AI36: 0 | AJ36: 0 | AK36: 0 | AL36: 0 | AM36: 0 | AN36: 0 | AO36: 0 | AP36: 0 | AQ36: 0 | AR36: 0 | AS36: 0 | AT36: 0 | AU36: 0 | AV36: 0 | AW36: 0 | AX36: 0 | AY36: 0 | AZ36: 0 | BA36: 0 | BB36: 0 | BC36: 0 | BD36: 0 | BE36: 0 | BF36: 0 | BG36: 0 | BH36: 0 | BI36: 0 | BJ36: ='Bond Input Sheet'!R40 -> 0 | BK36: 0 | BW36: 0 | BX36: 0 | BZ36: 0 | CV36: 0 | FS36: 0 | FV36: 0 | FW36: 0
B37: =IF('Bond Input Sheet'!B41="","", 'Bond Input Sheet'!B41) ->  | C37: =IF('Bond Input Sheet'!C41="","NR", 'Bond Input Sheet'!C41) -> NR | D37: =IF('Bond Input Sheet'!D41="","NR", 'Bond Input Sheet'!D41) -> NR | L37: 8 | M37: ='Bond Input Sheet'!E41 -> 0 | N37: ='Bond Input Sheet'!F41 -> 0 | O37: ='Bond Input Sheet'!G41 -> 0 | P37: ='Bond Input Sheet'!H41 -> 0 | Q37: ='Bond Input Sheet'!I41 -> 0 | R37: ='Bond Input Sheet'!J41 -> 0 | S37: 1 | T37: ='Bond Input Sheet'!K41 -> 00:00:00 | U37: 1 | V37: -120.4273973 | W37: 0 | X37: ='Bond Input Sheet'!L41 -> 0 | Y37: =IF('Bond Input Sheet'!M41=0,"",'Bond Input Sheet'!M41) ->  | Z37: ='Bond Input Sheet'!N41 -> 00:00:00 | AA37: ='Bond Input Sheet'!O41 -> 0 | AB37: ='Bond Input Sheet'!P41 -> 0 | AC37: ='Bond Input Sheet'!Q41 -> 0 | AD37: 0 | AE37: 0 | AF37: 0 | AG37: 0 | AH37: 0 | AI37: 0 | AJ37: 0 | AK37: 0 | AL37: 0 | AM37: 0 | AN37: 0 | AO37: 0 | AP37: 0 | AQ37: 0 | AR37: 0 | AS37: 0 | AT37: 0 | AU37: 0 | AV37: 0 | AW37: 0 | AX37: 0 | AY37: 0 | AZ37: 0 | BA37: 0 | BB37: 0 | BC37: 0 | BD37: 0 | BE37: 0 | BF37: 0 | BG37: 0 | BH37: 0 | BI37: 0 | BJ37: ='Bond Input Sheet'!R41 -> 0 | BK37: 0 | BW37: 0 | BX37: 0 | BZ37: 0 | CV37: 0 | FS37: 0 | FV37: 0 | FW37: 0
B38: =IF('Bond Input Sheet'!B42="","", 'Bond Input Sheet'!B42) ->  | C38: =IF('Bond Input Sheet'!C42="","NR", 'Bond Input Sheet'!C42) -> NR | D38: =IF('Bond Input Sheet'!D42="","NR", 'Bond Input Sheet'!D42) -> NR | L38: 8 | M38: ='Bond Input Sheet'!E42 -> 0 | N38: ='Bond Input Sheet'!F42 -> 0 | O38: ='Bond Input Sheet'!G42 -> 0 | P38: ='Bond Input Sheet'!H42 -> 0 | Q38: ='Bond Input Sheet'!I42 -> 0 | R38: ='Bond Input Sheet'!J42 -> 0 | S38: 1 | T38: ='Bond Input Sheet'!K42 -> 00:00:00 | U38: 1 | V38: -120.4273973 | W38: 0 | X38: ='Bond Input Sheet'!L42 -> 0 | Y38: =IF('Bond Input Sheet'!M42=0,"",'Bond Input Sheet'!M42) ->  | Z38: ='Bond Input Sheet'!N42 -> 00:00:00 | AA38: ='Bond Input Sheet'!O42 -> 0 | AB38: ='Bond Input Sheet'!P42 -> 0 | AC38: ='Bond Input Sheet'!Q42 -> 0 | AD38: 0 | AE38: 0 | AF38: 0 | AG38: 0 | AH38: 0 | AI38: 0 | AJ38: 0 | AK38: 0 | AL38: 0 | AM38: 0 | AN38: 0 | AO38: 0 | AP38: 0 | AQ38: 0 | AR38: 0 | AS38: 0 | AT38: 0 | AU38: 0 | AV38: 0 | AW38: 0 | AX38: 0 | AY38: 0 | AZ38: 0 | BA38: 0 | BB38: 0 | BC38: 0 | BD38: 0 | BE38: 0 | BF38: 0 | BG38: 0 | BH38: 0 | BI38: 0 | BJ38: ='Bond Input Sheet'!R42 -> 0 | BK38: 0 | BW38: 0 | BX38: 0 | BZ38: 0 | CV38: 0 | FS38: 0 | FV38: 0 | FW38: 0
B39: =IF('Bond Input Sheet'!B43="","", 'Bond Input Sheet'!B43) ->  | C39: =IF('Bond Input Sheet'!C43="","NR", 'Bond Input Sheet'!C43) -> NR | D39: =IF('Bond Input Sheet'!D43="","NR", 'Bond Input Sheet'!D43) -> NR | L39: 8 | M39: ='Bond Input Sheet'!E43 -> 0 | N39: ='Bond Input Sheet'!F43 -> 0 | O39: ='Bond Input Sheet'!G43 -> 0 | P39: ='Bond Input Sheet'!H43 -> 0 | Q39: ='Bond Input Sheet'!I43 -> 0 | R39: ='Bond Input Sheet'!J43 -> 0 | S39: 1 | T39: ='Bond Input Sheet'!K43 -> 00:00:00 | U39: 1 | V39: -120.4273973 | W39: 0 | X39: ='Bond Input Sheet'!L43 -> 0 | Y39: =IF('Bond Input Sheet'!M43=0,"",'Bond Input Sheet'!M43) ->  | Z39: ='Bond Input Sheet'!N43 -> 00:00:00 | AA39: ='Bond Input Sheet'!O43 -> 0 | AB39: ='Bond Input Sheet'!P43 -> 0 | AC39: ='Bond Input Sheet'!Q43 -> 0 | AD39: 0 | AE39: 0 | AF39: 0 | AG39: 0 | AH39: 0 | AI39: 0 | AJ39: 0 | AK39: =IF(CouponsPerYear<>0,IF(MOD(($U39-AK$8)/(12/CouponsPerYear),1),,CouponPaymentAmount),0) -> 0 | AL39: 0 | AM39: 0 | AN39: 0 | AO39: 0 | AP39: 0 | AQ39: 0 | AR39: 0 | AS39: 0 | AT39: 0 | AU39: 0 | AV39: 0 | AW39: =IF(CouponsPerYear<>0,IF(MOD(($U39-AW$8)/(12/CouponsPerYear),1),,$AJ39*(1-VLOOKUP(BondType,BondTypeTable,2))),0) -> 0 | AX39: 0 | AY39: 0 | AZ39: 0 | BA39: 0 | BB39: 0 | BC39: 0 | BD39: 0 | BE39: 0 | BF39: 0 | BG39: 0 | BH39: 0 | BI39: 0 | BJ39: ='Bond Input Sheet'!R43 -> 0 | BK39: 0 | BW39: 0 | BX39: 0 | BZ39: 0 | CA39: =IF(AND(Maturity<=CA$511,Maturity>BZ$511),MarketValue,"") ->  | CE39: =IF(AND(Maturity<=CE$511,Maturity>CD$511),MarketValue,"") ->  | CJ39: =IF(BondType=CJ$8,MarketValue,"") ->  | CO39: =IF($L39=CO$511,$BW39,"") ->  | CV39: 0 | FS39: 0 | FV39: 0 | FW39: 0
B40: =IF('Bond Input Sheet'!B44="","", 'Bond Input Sheet'!B44) ->  | C40: =IF('Bond Input Sheet'!C44="","NR", 'Bond Input Sheet'!C44) -> NR | D40: =IF('Bond Input Sheet'!D44="","NR", 'Bond Input Sheet'!D44) -> NR | L40: 8 | M40: ='Bond Input Sheet'!E44 -> 0 | N40: ='Bond Input Sheet'!F44 -> 0 | O40: ='Bond Input Sheet'!G44 -> 0 | P40: ='Bond Input Sheet'!H44 -> 0 | Q40: ='Bond Input Sheet'!I44 -> 0 | R40: ='Bond Input Sheet'!J44 -> 0 | S40: 1 | T40: ='Bond Input Sheet'!K44 -> 00:00:00 | U40: 1 | V40: -120.4273973 | W40: 0 | X40: ='Bond Input Sheet'!L44 -> 0 | Y40: =IF('Bond Input Sheet'!M44=0,"",'Bond Input Sheet'!M44) ->  | Z40: ='Bond Input Sheet'!N44 -> 00:00:00 | AA40: ='Bond Input Sheet'!O44 -> 0 | AB40: ='Bond Input Sheet'!P44 -> 0 | AC40: ='Bond Input Sheet'!Q44 -> 0 | AD40: 0 | AE40: 0 | AF40: 0 | AG40: 0 | AH40: 0 | AI40: 0 | AJ40: 0 | AK40: =IF(CouponsPerYear<>0,IF(MOD(($U40-AK$8)/(12/CouponsPerYear),1),,CouponPaymentAmount),0) -> 0 | AL40: 0 | AM40: 0 | AN40: 0 | AO40: 0 | AP40: 0 | AQ40: 0 | AR40: 0 | AS40: 0 | AT40: 0 | AU40: 0 | AV40: 0 | AW40: =IF(CouponsPerYear<>0,IF(MOD(($U40-AW$8)/(12/CouponsPerYear),1),,$AJ40*(1-VLOOKUP(BondType,BondTypeTable,2))),0) -> 0 | AX40: 0 | AY40: 0 | AZ40: 0 | BA40: 0 | BB40: 0 | BC40: 0 | BD40: 0 | BE40: 0 | BF40: 0 | BG40: 0 | BH40: 0 | BI40: 0 | BJ40: ='Bond Input Sheet'!R44 -> 0 | BK40: 0 | BW40: 0 | BX40: 0 | BZ40: 0 | CV40: 0 | FS40: 0 | FV40: 0 | FW40: 0
B41: =IF('Bond Input Sheet'!B45="","", 'Bond Input Sheet'!B45) ->  | C41: =IF('Bond Input Sheet'!C45="","NR", 'Bond Input Sheet'!C45) -> NR | D41: =IF('Bond Input Sheet'!D45="","NR", 'Bond Input Sheet'!D45) -> NR | L41: 8 | M41: ='Bond Input Sheet'!E45 -> 0 | N41: ='Bond Input Sheet'!F45 -> 0 | O41: ='Bond Input Sheet'!G45 -> 0 | P41: ='Bond Input Sheet'!H45 -> 0 | Q41: ='Bond Input Sheet'!I45 -> 0 | R41: ='Bond Input Sheet'!J45 -> 0 | S41: 1 | T41: ='Bond Input Sheet'!K45 -> 00:00:00 | U41: 1 | V41: -120.4273973 | W41: 0 | X41: ='Bond Input Sheet'!L45 -> 0 | Y41: =IF('Bond Input Sheet'!M45=0,"",'Bond Input Sheet'!M45) ->  | Z41: ='Bond Input Sheet'!N45 -> 00:00:00 | AA41: ='Bond Input Sheet'!O45 -> 0 | AB41: ='Bond Input Sheet'!P45 -> 0 | AC41: ='Bond Input Sheet'!Q45 -> 0 | AD41: 0 | AE41: 0 | AF41: 0 | AG41: 0 | AH41: 0 | AI41: 0 | AJ41: 0 | AK41: 0 | AL41: 0 | AM41: 0 | AN41: 0 | AO41: 0 | AP41: 0 | AQ41: 0 | AR41: 0 | AS41: 0 | AT41: 0 | AU41: 0 | AV41: 0 | AW41: 0 | AX41: 0 | AY41: 0 | AZ41: 0 | BA41: 0 | BB41: 0 | BC41: 0 | BD41: 0 | BE41: 0 | BF41: 0 | BG41: 0 | BH41: 0 | BI41: 0 | BJ41: ='Bond Input Sheet'!R45 -> 0 | BK41: 0 | BW41: 0 | BX41: 0 | BZ41: 0 | CV41: 0 | FS41: 0 | FV41: 0 | FW41: 0
B42: =IF('Bond Input Sheet'!B46="","", 'Bond Input Sheet'!B46) ->  | C42: =IF('Bond Input Sheet'!C46="","NR", 'Bond Input Sheet'!C46) -> NR | D42: =IF('Bond Input Sheet'!D46="","NR", 'Bond Input Sheet'!D46) -> NR | L42: 8 | M42: ='Bond Input Sheet'!E46 -> 0 | N42: ='Bond Input Sheet'!F46 -> 0 | O42: ='Bond Input Sheet'!G46 -> 0 | P42: ='Bond Input Sheet'!H46 -> 0 | Q42: ='Bond Input Sheet'!I46 -> 0 | R42: ='Bond Input Sheet'!J46 -> 0 | S42: 1 | T42: ='Bond Input Sheet'!K46 -> 00:00:00 | U42: 1 | V42: -120.4273973 | W42: 0 | X42: ='Bond Input Sheet'!L46 -> 0 | Y42: =IF('Bond Input Sheet'!M46=0,"",'Bond Input Sheet'!M46) ->  | Z42: ='Bond Input Sheet'!N46 -> 00:00:00 | AA42: ='Bond Input Sheet'!O46 -> 0 | AB42: ='Bond Input Sheet'!P46 -> 0 | AC42: ='Bond Input Sheet'!Q46 -> 0 | AD42: 0 | AE42: 0 | AF42: 0 | AG42: 0 | AH42: 0 | AI42: 0 | AJ42: 0 | AK42: 0 | AL42: 0 | AM42: 0 | AN42: 0 | AO42: 0 | AP42: 0 | AQ42: 0 | AR42: 0 | AS42: 0 | AT42: 0 | AU42: 0 | AV42: 0 | AW42: 0 | AX42: 0 | AY42: 0 | AZ42: 0 | BA42: 0 | BB42: 0 | BC42: 0 | BD42: 0 | BE42: 0 | BF42: 0 | BG42: 0 | BH42: 0 | BI42: 0 | BJ42: ='Bond Input Sheet'!R46 -> 0 | BK42: 0 | BW42: 0 | BX42: 0 | BZ42: 0 | CV42: 0 | FS42: 0 | FV42: 0 | FW42: 0
B43: =IF('Bond Input Sheet'!B47="","", 'Bond Input Sheet'!B47) ->  | C43: =IF('Bond Input Sheet'!C47="","NR", 'Bond Input Sheet'!C47) -> NR | D43: =IF('Bond Input Sheet'!D47="","NR", 'Bond Input Sheet'!D47) -> NR | L43: 8 | M43: ='Bond Input Sheet'!E47 -> 0 | N43: ='Bond Input Sheet'!F47 -> 0 | O43: ='Bond Input Sheet'!G47 -> 0 | P43: ='Bond Input Sheet'!H47 -> 0 | Q43: ='Bond Input Sheet'!I47 -> 0 | R43: ='Bond Input Sheet'!J47 -> 0 | S43: 1 | T43: ='Bond Input Sheet'!K47 -> 00:00:00 | U43: 1 | V43: -120.4273973 | W43: 0 | X43: ='Bond Input Sheet'!L47 -> 0 | Y43: =IF('Bond Input Sheet'!M47=0,"",'Bond Input Sheet'!M47) ->  | Z43: ='Bond Input Sheet'!N47 -> 00:00:00 | AA43: ='Bond Input Sheet'!O47 -> 0 | AB43: ='Bond Input Sheet'!P47 -> 0 | AC43: ='Bond Input Sheet'!Q47 -> 0 | AD43: 0 | AE43: 0 | AF43: 0 | AG43: 0 | AH43: 0 | AI43: 0 | AJ43: 0 | AK43: 0 | AL43: 0 | AM43: 0 | AN43: 0 | AO43: 0 | AP43: 0 | AQ43: 0 | AR43: 0 | AS43: 0 | AT43: 0 | AU43: 0 | AV43: 0 | AW43: 0 | AX43: 0 | AY43: 0 | AZ43: 0 | BA43: 0 | BB43: 0 | BC43: 0 | BD43: 0 | BE43: 0 | BF43: 0 | BG43: 0 | BH43: 0 | BI43: 0 | BJ43: ='Bond Input Sheet'!R47 -> 0 | BK43: 0 | BW43: 0 | BX43: 0 | BZ43: 0 | CV43: 0 | FS43: 0 | FV43: 0 | FW43: 0
B44: =IF('Bond Input Sheet'!B48="","", 'Bond Input Sheet'!B48) ->  | C44: =IF('Bond Input Sheet'!C48="","NR", 'Bond Input Sheet'!C48) -> NR | D44: =IF('Bond Input Sheet'!D48="","NR", 'Bond Input Sheet'!D48) -> NR | L44: 8 | M44: ='Bond Input Sheet'!E48 -> 0 | N44: ='Bond Input Sheet'!F48 -> 0 | O44: ='Bond Input Sheet'!G48 -> 0 | P44: ='Bond Input Sheet'!H48 -> 0 | Q44: ='Bond Input Sheet'!I48 -> 0 | R44: ='Bond Input Sheet'!J48 -> 0 | S44: 1 | T44: ='Bond Input Sheet'!K48 -> 00:00:00 | U44: 1 | V44: -120.4273973 | W44: 0 | X44: ='Bond Input Sheet'!L48 -> 0 | Y44: =IF('Bond Input Sheet'!M48=0,"",'Bond Input Sheet'!M48) ->  | Z44: ='Bond Input Sheet'!N48 -> 00:00:00 | AA44: ='Bond Input Sheet'!O48 -> 0 | AB44: ='Bond Input Sheet'!P48 -> 0 | AC44: ='Bond Input Sheet'!Q48 -> 0 | AD44: 0 | AE44: 0 | AF44: 0 | AG44: 0 | AH44: 0 | AI44: 0 | AJ44: 0 | AK44: 0 | AL44: 0 | AM44: 0 | AN44: 0 | AO44: 0 | AP44: 0 | AQ44: 0 | AR44: 0 | AS44: 0 | AT44: 0 | AU44: 0 | AV44: 0 | AW44: 0 | AX44: 0 | AY44: 0 | AZ44: 0 | BA44: 0 | BB44: 0 | BC44: 0 | BD44: 0 | BE44: 0 | BF44: 0 | BG44: 0 | BH44: 0 | BI44: 0 | BJ44: ='Bond Input Sheet'!R48 -> 0 | BK44: 0 | BW44: 0 | BX44: 0 | BZ44: 0 | CV44: 0 | FS44: 0 | FV44: 0 | FW44: 0
B45: =IF('Bond Input Sheet'!B49="","", 'Bond Input Sheet'!B49) ->  | C45: =IF('Bond Input Sheet'!C49="","NR", 'Bond Input Sheet'!C49) -> NR | D45: =IF('Bond Input Sheet'!D49="","NR", 'Bond Input Sheet'!D49) -> NR | L45: 8 | M45: ='Bond Input Sheet'!E49 -> 0 | N45: ='Bond Input Sheet'!F49 -> 0 | O45: ='Bond Input Sheet'!G49 -> 0 | P45: ='Bond Input Sheet'!H49 -> 0 | Q45: ='Bond Input Sheet'!I49 -> 0 | R45: ='Bond Input Sheet'!J49 -> 0 | S45: 1 | T45: ='Bond Input Sheet'!K49 -> 00:00:00 | U45: 1 | V45: -120.4273973 | W45: 0 | X45: ='Bond Input Sheet'!L49 -> 0 | Y45: =IF('Bond Input Sheet'!M49=0,"",'Bond Input Sheet'!M49) ->  | Z45: ='Bond Input Sheet'!N49 -> 00:00:00 | AA45: ='Bond Input Sheet'!O49 -> 0 | AB45: ='Bond Input Sheet'!P49 -> 0 | AC45: ='Bond Input Sheet'!Q49 -> 0 | AD45: 0 | AE45: 0 | AF45: 0 | AG45: 0 | AH45: 0 | AI45: 0 | AJ45: 0 | AK45: 0 | AL45: 0 | AM45: 0 | AN45: 0 | AO45: 0 | AP45: 0 | AQ45: 0 | AR45: 0 | AS45: 0 | AT45: 0 | AU45: 0 | AV45: 0 | AW45: 0 | AX45: 0 | AY45: 0 | AZ45: 0 | BA45: 0 | BB45: 0 | BC45: 0 | BD45: 0 | BE45: 0 | BF45: 0 | BG45: 0 | BH45: 0 | BI45: 0 | BJ45: ='Bond Input Sheet'!R49 -> 0 | BK45: 0 | BW45: 0 | BX45: 0 | BZ45: 0 | CV45: 0 | FS45: 0 | FV45: 0 | FW45: 0
B46: =IF('Bond Input Sheet'!B50="","", 'Bond Input Sheet'!B50) ->  | C46: =IF('Bond Input Sheet'!C50="","NR", 'Bond Input Sheet'!C50) -> NR | D46: =IF('Bond Input Sheet'!D50="","NR", 'Bond Input Sheet'!D50) -> NR | L46: 8 | M46: ='Bond Input Sheet'!E50 -> 0 | N46: ='Bond Input Sheet'!F50 -> 0 | O46: ='Bond Input Sheet'!G50 -> 0 | P46: ='Bond Input Sheet'!H50 -> 0 | Q46: ='Bond Input Sheet'!I50 -> 0 | R46: ='Bond Input Sheet'!J50 -> 0 | S46: 1 | T46: ='Bond Input Sheet'!K50 -> 00:00:00 | U46: 1 | V46: -120.4273973 | W46: 0 | X46: ='Bond Input Sheet'!L50 -> 0 | Y46: =IF('Bond Input Sheet'!M50=0,"",'Bond Input Sheet'!M50) ->  | Z46: ='Bond Input Sheet'!N50 -> 00:00:00 | AA46: ='Bond Input Sheet'!O50 -> 0 | AB46: ='Bond Input Sheet'!P50 -> 0 | AC46: ='Bond Input Sheet'!Q50 -> 0 | AD46: 0 | AE46: 0 | AF46: 0 | AG46: 0 | AH46: 0 | AI46: 0 | AJ46: 0 | AK46: 0 | AL46: 0 | AM46: 0 | AN46: 0 | AO46: 0 | AP46: 0 | AQ46: 0 | AR46: 0 | AS46: 0 | AT46: 0 | AU46: 0 | AV46: 0 | AW46: 0 | AX46: 0 | AY46: 0 | AZ46: 0 | BA46: 0 | BB46: 0 | BC46: 0 | BD46: 0 | BE46: 0 | BF46: 0 | BG46: 0 | BH46: 0 | BI46: 0 | BJ46: ='Bond Input Sheet'!R50 -> 0 | BK46: 0 | BW46: 0 | BX46: 0 | BZ46: 0 | CV46: 0 | FS46: 0 | FV46: 0 | FW46: 0
B47: =IF('Bond Input Sheet'!B51="","", 'Bond Input Sheet'!B51) ->  | C47: =IF('Bond Input Sheet'!C51="","NR", 'Bond Input Sheet'!C51) -> NR | D47: =IF('Bond Input Sheet'!D51="","NR", 'Bond Input Sheet'!D51) -> NR | L47: 8 | M47: ='Bond Input Sheet'!E51 -> 0 | N47: ='Bond Input Sheet'!F51 -> 0 | O47: ='Bond Input Sheet'!G51 -> 0 | P47: ='Bond Input Sheet'!H51 -> 0 | Q47: ='Bond Input Sheet'!I51 -> 0 | R47: ='Bond Input Sheet'!J51 -> 0 | S47: 1 | T47: ='Bond Input Sheet'!K51 -> 00:00:00 | U47: 1 | V47: -120.4273973 | W47: 0 | X47: ='Bond Input Sheet'!L51 -> 0 | Y47: =IF('Bond Input Sheet'!M51=0,"",'Bond Input Sheet'!M51) ->  | Z47: ='Bond Input Sheet'!N51 -> 00:00:00 | AA47: ='Bond Input Sheet'!O51 -> 0 | AB47: ='Bond Input Sheet'!P51 -> 0 | AC47: ='Bond Input Sheet'!Q51 -> 0 | AD47: =IF(ISERROR(SEARCH("-",AA47)),AA47,LEFT(AA47,SEARCH("-",AA47)-1)+(1/32)*MID(AA47,SEARCH("-",AA47)+1,2)+IF(LEN(RIGHT(AA47,LEN(AA47)-SEARCH("-",AA47)-2))=1,IF(MID(AA47,SEARCH("-",AA47)+3,1)="+",1/64, MID(AA47,SEARCH("-",AA47)+3,1)*(1/256)),0)) -> 0 | AE47: 0 | AF47: 0 | AG47: =IF(B47<>"",AB47,0) -> 0 | AH47: =IF($B47<>"",AC47,0) -> 0 | AI47: 0 | AJ47: 0 | AK47: 0 | AL47: 0 | AM47: 0 | AN47: 0 | AO47: 0 | AP47: 0 | AQ47: 0 | AR47: 0 | AS47: 0 | AT47: 0 | AU47: 0 | AV47: 0 | AW47: 0 | AX47: 0 | AY47: 0 | AZ47: 0 | BA47: 0 | BB47: 0 | BC47: 0 | BD47: 0 | BE47: 0 | BF47: 0 | BG47: 0 | BH47: 0 | BI47: 0 | BJ47: ='Bond Input Sheet'!R51 -> 0 | BK47: 0 | BS47: =IF(OR(BL47="",YearsToMaturity>29),BN47,INDEX(MarketYieldTable,YearsToMaturity+1,BondTypeIndex)+(INDEX(MarketYieldTable,YearsToMaturity+2,BondTypeIndex)-INDEX(MarketYieldTable,YearsToMaturity+1,BondTypeIndex))*(YearsToMaturity-INT(YearsToMaturity))) ->  | BU47: =IF(LowestYield<>"",LowestYield-FairYTM,"") ->  | BV47: =IF(BX47<>0,BU47*BX47,"") ->  | BW47: 0 | BX47: 0 | BY47: =IF(Bonds<>0,BN47,"") ->  | BZ47: 0 | CV47: 0 | ED47: =IF(DY47="","",DY47*(1-VLOOKUP(BondType,BondTypeTable,2))) ->  | EE47: =IF(DZ47="","",DZ47*(1-VLOOKUP(BondType,BondTypeTable,2))) ->  | EF47: =IF(EA47="","",EA47*(1-VLOOKUP(BondType,BondTypeTable,2))) ->  | EG47: =IF(EB47="","",EB47*(1-VLOOKUP(BondType,BondTypeTable,2))) ->  | EH47: =IF(EC47="","",EC47*(1-VLOOKUP(BondType,BondTypeTable,2))) ->  | ES47: =IF(EI47="","",EI47*(1-VLOOKUP(BondType,BondTypeTable,2))) ->  | ET47: =IF(EJ47="","",EJ47*(1-VLOOKUP(BondType,BondTypeTable,2))) ->  | EU47: =IF(EK47="","",EK47*(1-VLOOKUP(BondType,BondTypeTable,2))) ->  | EV47: =IF(EL47="","",EL47*(1-VLOOKUP(BondType,BondTypeTable,2))) ->  | EW47: =IF(EM47="","",EM47*(1-VLOOKUP(BondType,BondTypeTable,2))) ->  | FK47: =IF(FC47="","",FC47*(1-VLOOKUP(BondType,BondTypeTable,2))) ->  | FL47: =IF(FD47="","",FD47*(1-VLOOKUP(BondType,BondTypeTable,2))) ->  | FM47: =IF(FE47="","",FE47*(1-VLOOKUP(BondType,BondTypeTable,2))) ->  | FN47: =IF(FF47="","",FF47*(1-VLOOKUP(BondType,BondTypeTable,2))) ->  | FO47: =IF(FG47="","",FG47*(1-VLOOKUP(BondType,BondTypeTable,2))) ->  | FP47: =IF(FH47="","",FH47*(1-VLOOKUP(BondType,BondTypeTable,2))) ->  | FQ47: =IF(FI47="","",FI47*(1-VLOOKUP(BondType,BondTypeTable,2))) ->  | FR47: =IF(FJ47="","",FJ47*(1-VLOOKUP(BondType,BondTypeTable,2))) ->  | FS47: 0 | FT47: =IF(AND(TotalPurchaseCost<>0,B47<>""),(MarketValue+InterestPaidOut-TotalPurchaseCost)/TotalPurchaseCost,"") ->  | FV47: 0 | FW47: 0 | FX47: =IF(BL47="","",(PriceIf100bpFall-PriceIf100bpRise)/(2*CurrentPrice*0.01)*(1+CurrentYield)) ->  | FY47: =IF(BL47="","",PercentPortfolio*ModDuration) ->  | FZ47: =IF(BL47="","",(PriceIf100bpRise+PriceIf100bpFall-(2*CurrentPrice))/((CurrentPrice*(0.01*0.01)))) ->  | GA47: =IF(BL47="","",(BW47/TotalPortfolioValue)*FZ47) ->  | GB47: =IF(BL47="","",ModDuration*0.01-((0.5)*BondConvexity*0.01*0.01)) ->  | GC47: =IF(BL47="","",(BX47)*GB47) ->  | GD47: =IF(BL47="","",MarketValue*BondRisk) -> 
B48: =IF('Bond Input Sheet'!B52="","", 'Bond Input Sheet'!B52) ->  | C48: =IF('Bond Input Sheet'!C52="","NR", 'Bond Input Sheet'!C52) -> NR | D48: =IF('Bond Input Sheet'!D52="","NR", 'Bond Input Sheet'!D52) -> NR | L48: 8 | M48: ='Bond Input Sheet'!E52 -> 0 | N48: ='Bond Input Sheet'!F52 -> 0 | O48: ='Bond Input Sheet'!G52 -> 0 | P48: ='Bond Input Sheet'!H52 -> 0 | Q48: ='Bond Input Sheet'!I52 -> 0 | R48: ='Bond Input Sheet'!J52 -> 0 | S48: 1 | T48: ='Bond Input Sheet'!K52 -> 00:00:00 | U48: 1 | V48: -120.4273973 | W48: 0 | X48: ='Bond Input Sheet'!L52 -> 0 | Y48: =IF('Bond Input Sheet'!M52=0,"",'Bond Input Sheet'!M52) ->  | Z48: ='Bond Input Sheet'!N52 -> 00:00:00 | AA48: ='Bond Input Sheet'!O52 -> 0 | AB48: ='Bond Input Sheet'!P52 -> 0 | AC48: ='Bond Input Sheet'!Q52 -> 0 | AD48: 0 | AE48: 0 | AF48: 0 | AG48: 0 | AH48: 0 | AI48: 0 | AJ48: 0 | AK48: 0 | AL48: 0 | AM48: 0 | AN48: 0 | AO48: 0 | AP48: 0 | AQ48: 0 | AR48: 0 | AS48: 0 | AT48: 0 | AU48: 0 | AV48: 0 | AW48: 0 | AX48: 0 | AY48: 0 | AZ48: 0 | BA48: 0 | BB48: 0 | BC48: 0 | BD48: 0 | BE48: 0 | BF48: 0 | BG48: 0 | BH48: 0 | BI48: 0 | BJ48: ='Bond Input Sheet'!R52 -> 0 | BK48: 0 | BW48: 0 | BX48: 0 | BZ48: 0 | CV48: 0 | FS48: 0 | FV48: 0 | FW48: 0
B49: =IF('Bond Input Sheet'!B53="","", 'Bond Input Sheet'!B53) ->  | C49: =IF('Bond Input Sheet'!C53="","NR", 'Bond Input Sheet'!C53) -> NR | D49: =IF('Bond Input Sheet'!D53="","NR", 'Bond Input Sheet'!D53) -> NR | L49: 8 | M49: ='Bond Input Sheet'!E53 -> 0 | N49: ='Bond Input Sheet'!F53 -> 0 | O49: ='Bond Input Sheet'!G53 -> 0 | P49: ='Bond Input Sheet'!H53 -> 0 | Q49: ='Bond Input Sheet'!I53 -> 0 | R49: ='Bond Input Sheet'!J53 -> 0 | S49: 1 | T49: ='Bond Input Sheet'!K53 -> 00:00:00 | U49: 1 | V49: -120.4273973 | W49: 0 | X49: ='Bond Input Sheet'!L53 -> 0 | Y49: =IF('Bond Input Sheet'!M53=0,"",'Bond Input Sheet'!M53) ->  | Z49: ='Bond Input Sheet'!N53 -> 00:00:00 | AA49: ='Bond Input Sheet'!O53 -> 0 | AB49: ='Bond Input Sheet'!P53 -> 0 | AC49: ='Bond Input Sheet'!Q53 -> 0 | AD49: 0 | AE49: 0 | AF49: 0 | AG49: 0 | AH49: 0 | AI49: 0 | AJ49: 0 | AK49: 0 | AL49: 0 | AM49: 0 | AN49: 0 | AO49: 0 | AP49: 0 | AQ49: 0 | AR49: 0 | AS49: 0 | AT49: 0 | AU49: 0 | AV49: 0 | AW49: 0 | AX49: 0 | AY49: 0 | AZ49: 0 | BA49: 0 | BB49: 0 | BC49: 0 | BD49: 0 | BE49: 0 | BF49: 0 | BG49: 0 | BH49: 0 | BI49: 0 | BJ49: ='Bond Input Sheet'!R53 -> 0 | BK49: 0 | BW49: 0 | BX49: 0 | BZ49: 0 | CA49: =IF(AND(Maturity<=CA$511,Maturity>BZ$511),MarketValue,"") ->  | CE49: =IF(AND(Maturity<=CE$511,Maturity>CD$511),MarketValue,"") ->  | CJ49: =IF(BondType=CJ$8,MarketValue,"") ->  | CO49: =IF($L49=CO$511,$BW49,"") ->  | CV49: 0 | FS49: 0 | FV49: 0 | FW49: 0
B50: =IF('Bond Input Sheet'!B54="","", 'Bond Input Sheet'!B54) ->  | C50: =IF('Bond Input Sheet'!C54="","NR", 'Bond Input Sheet'!C54) -> NR | D50: =IF('Bond Input Sheet'!D54="","NR", 'Bond Input Sheet'!D54) -> NR | L50: 8 | M50: ='Bond Input Sheet'!E54 -> 0 | N50: ='Bond Input Sheet'!F54 -> 0 | O50: ='Bond Input Sheet'!G54 -> 0 | P50: ='Bond Input Sheet'!H54 -> 0 | Q50: ='Bond Input Sheet'!I54 -> 0 | R50: ='Bond Input Sheet'!J54 -> 0 | S50: 1 | T50: ='Bond Input Sheet'!K54 -> 00:00:00 | U50: 1 | V50: -120.4273973 | W50: 0 | X50: ='Bond Input Sheet'!L54 -> 0 | Y50: =IF('Bond Input Sheet'!M54=0,"",'Bond Input Sheet'!M54) ->  | Z50: ='Bond Input Sheet'!N54 -> 00:00:00 | AA50: ='Bond Input Sheet'!O54 -> 0 | AB50: ='Bond Input Sheet'!P54 -> 0 | AC50: ='Bond Input Sheet'!Q54 -> 0 | AD50: 0 | AE50: 0 | AF50: 0 | AG50: 0 | AH50: 0 | AI50: 0 | AJ50: 0 | AK50: 0 | AL50: 0 | AM50: 0 | AN50: 0 | AO50: 0 | AP50: 0 | AQ50: 0 | AR50: 0 | AS50: 0 | AT50: 0 | AU50: 0 | AV50: 0 | AW50: 0 | AX50: 0 | AY50: 0 | AZ50: 0 | BA50: 0 | BB50: 0 | BC50: 0 | BD50: 0 | BE50: 0 | BF50: 0 | BG50: 0 | BH50: 0 | BI50: 0 | BJ50: ='Bond Input Sheet'!R54 -> 0 | BK50: 0 | BW50: 0 | BX50: 0 | BZ50: 0 | CV50: 0 | FS50: 0 | FV50: 0 | FW50: 0
B51: =IF('Bond Input Sheet'!B55="","", 'Bond Input Sheet'!B55) ->  | C51: =IF('Bond Input Sheet'!C55="","NR", 'Bond Input Sheet'!C55) -> NR | D51: =IF('Bond Input Sheet'!D55="","NR", 'Bond Input Sheet'!D55) -> NR | L51: 8 | M51: ='Bond Input Sheet'!E55 -> 0 | N51: ='Bond Input Sheet'!F55 -> 0 | O51: ='Bond Input Sheet'!G55 -> 0 | P51: ='Bond Input Sheet'!H55 -> 0 | Q51: ='Bond Input Sheet'!I55 -> 0 | R51: ='Bond Input Sheet'!J55 -> 0 | S51: 1 | T51: ='Bond Input Sheet'!K55 -> 00:00:00 | U51: 1 | V51: -120.4273973 | W51: 0 | X51: ='Bond Input Sheet'!L55 -> 0 | Y51: =IF('Bond Input Sheet'!M55=0,"",'Bond Input Sheet'!M55) ->  | Z51: ='Bond Input Sheet'!N55 -> 00:00:00 | AA51: ='Bond Input Sheet'!O55 -> 0 | AB51: ='Bond Input Sheet'!P55 -> 0 | AC51: ='Bond Input Sheet'!Q55 -> 0 | AD51: 0 | AE51: 0 | AF51: 0 | AG51: 0 | AH51: 0 | AI51: 0 | AJ51: 0 | AK51: 0 | AL51: 0 | AM51: 0 | AN51: 0 | AO51: 0 | AP51: 0 | AQ51: 0 | AR51: 0 | AS51: 0 | AT51: 0 | AU51: 0 | AV51: 0 | AW51: 0 | AX51: 0 | AY51: 0 | AZ51: 0 | BA51: 0 | BB51: 0 | BC51: 0 | BD51: 0 | BE51: 0 | BF51: 0 | BG51: 0 | BH51: 0 | BI51: 0 | BJ51: ='Bond Input Sheet'!R55 -> 0 | BK51: 0 | BW51: 0 | BX51: 0 | BZ51: 0 | CV51: 0 | FS51: 0 | FV51: 0 | FW51: 0
B52: =IF('Bond Input Sheet'!B56="","", 'Bond Input Sheet'!B56) ->  | C52: =IF('Bond Input Sheet'!C56="","NR", 'Bond Input Sheet'!C56) -> NR | D52: =IF('Bond Input Sheet'!D56="","NR", 'Bond Input Sheet'!D56) -> NR | L52: 8 | M52: ='Bond Input Sheet'!E56 -> 0 | N52: ='Bond Input Sheet'!F56 -> 0 | O52: ='Bond Input Sheet'!G56 -> 0 | P52: ='Bond Input Sheet'!H56 -> 0 | Q52: ='Bond Input Sheet'!I56 -> 0 | R52: ='Bond Input Sheet'!J56 -> 0 | S52: 1 | T52: ='Bond Input Sheet'!K56 -> 00:00:00 | U52: 1 | V52: -120.4273973 | W52: 0 | X52: ='Bond Input Sheet'!L56 -> 0 | Y52: =IF('Bond Input Sheet'!M56=0,"",'Bond Input Sheet'!M56) ->  | Z52: ='Bond Input Sheet'!N56 -> 00:00:00 | AA52: ='Bond Input Sheet'!O56 -> 0 | AB52: ='Bond Input Sheet'!P56 -> 0 | AC52: ='Bond Input Sheet'!Q56 -> 0 | AD52: 0 | AE52: 0 | AF52: 0 | AG52: 0 | AH52: 0 | AI52: 0 | AJ52: 0 | AK52: 0 | AL52: 0 | AM52: 0 | AN52: 0 | AO52: 0 | AP52: 0 | AQ52: 0 | AR52: 0 | AS52: 0 | AT52: 0 | AU52: 0 | AV52: 0 | AW52: 0 | AX52: 0 | AY52: 0 | AZ52: 0 | BA52: 0 | BB52: 0 | BC52: 0 | BD52: 0 | BE52: 0 | BF52: 0 | BG52: 0 | BH52: 0 | BI52: 0 | BJ52: ='Bond Input Sheet'!R56 -> 0 | BK52: 0 | BW52: 0 | BX52: 0 | BZ52: 0 | CV52: 0 | FS52: 0 | FV52: 0 | FW52: 0
B53: =IF('Bond Input Sheet'!B57="","", 'Bond Input Sheet'!B57) ->  | C53: =IF('Bond Input Sheet'!C57="","NR", 'Bond Input Sheet'!C57) -> NR | D53: =IF('Bond Input Sheet'!D57="","NR", 'Bond Input Sheet'!D57) -> NR | L53: 8 | M53: ='Bond Input Sheet'!E57 -> 0 | N53: ='Bond Input Sheet'!F57 -> 0 | O53: ='Bond Input Sheet'!G57 -> 0 | P53: ='Bond Input Sheet'!H57 -> 0 | Q53: ='Bond Input Sheet'!I57 -> 0 | R53: ='Bond Input Sheet'!J57 -> 0 | S53: 1 | T53: ='Bond Input Sheet'!K57 -> 00:00:00 | U53: 1 | V53: -120.4273973 | W53: 0 | X53: ='Bond Input Sheet'!L57 -> 0 | Y53: =IF('Bond Input Sheet'!M57=0,"",'Bond Input Sheet'!M57) ->  | Z53: ='Bond Input Sheet'!N57 -> 00:00:00 | AA53: ='Bond Input Sheet'!O57 -> 0 | AB53: ='Bond Input Sheet'!P57 -> 0 | AC53: ='Bond Input Sheet'!Q57 -> 0 | AD53: 0 | AE53: 0 | AF53: 0 | AG53: 0 | AH53: 0 | AI53: 0 | AJ53: 0 | AK53: 0 | AL53: 0 | AM53: 0 | AN53: 0 | AO53: 0 | AP53: 0 | AQ53: 0 | AR53: 0 | AS53: 0 | AT53: 0 | AU53: 0 | AV53: 0 | AW53: 0 | AX53: 0 | AY53: 0 | AZ53: 0 | BA53: 0 | BB53: 0 | BC53: 0 | BD53: 0 | BE53: 0 | BF53: 0 | BG53: 0 | BH53: 0 | BI53: 0 | BJ53: ='Bond Input Sheet'!R57 -> 0 | BK53: 0 | BU53: =IF(LowestYield<>"",LowestYield-FairYTM,"") ->  | BW53: 0 | BX53: 0 | BZ53: 0 | CV53: 0 | FS53: 0 | FV53: 0 | FW53: 0
B54: =IF('Bond Input Sheet'!B58="","", 'Bond Input Sheet'!B58) ->  | C54: =IF('Bond Input Sheet'!C58="","NR", 'Bond Input Sheet'!C58) -> NR | D54: =IF('Bond Input Sheet'!D58="","NR", 'Bond Input Sheet'!D58) -> NR | L54: 8 | M54: ='Bond Input Sheet'!E58 -> 0 | N54: ='Bond Input Sheet'!F58 -> 0 | O54: ='Bond Input Sheet'!G58 -> 0 | P54: ='Bond Input Sheet'!H58 -> 0 | Q54: ='Bond Input Sheet'!I58 -> 0 | R54: ='Bond Input Sheet'!J58 -> 0 | S54: 1 | T54: ='Bond Input Sheet'!K58 -> 00:00:00 | U54: 1 | V54: -120.4273973 | W54: 0 | X54: ='Bond Input Sheet'!L58 -> 0 | Y54: =IF('Bond Input Sheet'!M58=0,"",'Bond Input Sheet'!M58) ->  | Z54: ='Bond Input Sheet'!N58 -> 00:00:00 | AA54: ='Bond Input Sheet'!O58 -> 0 | AB54: ='Bond Input Sheet'!P58 -> 0 | AC54: ='Bond Input Sheet'!Q58 -> 0 | AD54: 0 | AE54: 0 | AF54: 0 | AG54: 0 | AH54: 0 | AI54: 0 | AJ54: 0 | AK54: 0 | AL54: 0 | AM54: 0 | AN54: 0 | AO54: 0 | AP54: 0 | AQ54: 0 | AR54: 0 | AS54: 0 | AT54: 0 | AU54: 0 | AV54: 0 | AW54: 0 | AX54: 0 | AY54: 0 | AZ54: 0 | BA54: 0 | BB54: 0 | BC54: 0 | BD54: 0 | BE54: 0 | BF54: 0 | BG54: 0 | BH54: 0 | BI54: 0 | BJ54: ='Bond Input Sheet'!R58 -> 0 | BK54: 0 | BW54: 0 | BX54: 0 | BZ54: 0 | CV54: 0 | FS54: 0 | FV54: 0 | FW54: 0
B55: =IF('Bond Input Sheet'!B59="","", 'Bond Input Sheet'!B59) ->  | C55: =IF('Bond Input Sheet'!C59="","NR", 'Bond Input Sheet'!C59) -> NR | D55: =IF('Bond Input Sheet'!D59="","NR", 'Bond Input Sheet'!D59) -> NR | L55: 8 | M55: ='Bond Input Sheet'!E59 -> 0 | N55: ='Bond Input Sheet'!F59 -> 0 | O55: ='Bond Input Sheet'!G59 -> 0 | P55: ='Bond Input Sheet'!H59 -> 0 | Q55: ='Bond Input Sheet'!I59 -> 0 | R55: ='Bond Input Sheet'!J59 -> 0 | S55: 1 | T55: ='Bond Input Sheet'!K59 -> 00:00:00 | U55: 1 | V55: -120.4273973 | W55: 0 | X55: ='Bond Input Sheet'!L59 -> 0 | Y55: =IF('Bond Input Sheet'!M59=0,"",'Bond Input Sheet'!M59) ->  | Z55: ='Bond Input Sheet'!N59 -> 00:00:00 | AA55: ='Bond Input Sheet'!O59 -> 0 | AB55: ='Bond Input Sheet'!P59 -> 0 | AC55: ='Bond Input Sheet'!Q59 -> 0 | AD55: 0 | AE55: 0 | AF55: 0 | AG55: 0 | AH55: 0 | AI55: 0 | AJ55: 0 | AK55: 0 | AL55: 0 | AM55: 0 | AN55: 0 | AO55: 0 | AP55: 0 | AQ55: 0 | AR55: 0 | AS55: 0 | AT55: 0 | AU55: 0 | AV55: 0 | AW55: 0 | AX55: 0 | AY55: 0 | AZ55: 0 | BA55: 0 | BB55: 0 | BC55: 0 | BD55: 0 | BE55: 0 | BF55: 0 | BG55: 0 | BH55: 0 | BI55: 0 | BJ55: ='Bond Input Sheet'!R59 -> 0 | BK55: 0 | BW55: 0 | BX55: 0 | BZ55: 0 | CV55: 0 | FS55: 0 | FV55: 0 | FW55: 0
B56: =IF('Bond Input Sheet'!B60="","", 'Bond Input Sheet'!B60) ->  | C56: =IF('Bond Input Sheet'!C60="","NR", 'Bond Input Sheet'!C60) -> NR | D56: =IF('Bond Input Sheet'!D60="","NR", 'Bond Input Sheet'!D60) -> NR | L56: 8 | M56: ='Bond Input Sheet'!E60 -> 0 | N56: ='Bond Input Sheet'!F60 -> 0 | O56: ='Bond Input Sheet'!G60 -> 0 | P56: ='Bond Input Sheet'!H60 -> 0 | Q56: ='Bond Input Sheet'!I60 -> 0 | R56: ='Bond Input Sheet'!J60 -> 0 | S56: 1 | T56: ='Bond Input Sheet'!K60 -> 00:00:00 | U56: 1 | V56: -120.4273973 | W56: 0 | X56: ='Bond Input Sheet'!L60 -> 0 | Y56: =IF('Bond Input Sheet'!M60=0,"",'Bond Input Sheet'!M60) ->  | Z56: ='Bond Input Sheet'!N60 -> 00:00:00 | AA56: ='Bond Input Sheet'!O60 -> 0 | AB56: ='Bond Input Sheet'!P60 -> 0 | AC56: ='Bond Input Sheet'!Q60 -> 0 | AD56: 0 | AE56: 0 | AF56: 0 | AG56: 0 | AH56: 0 | AI56: 0 | AJ56: 0 | AK56: 0 | AL56: 0 | AM56: 0 | AN56: 0 | AO56: 0 | AP56: 0 | AQ56: 0 | AR56: 0 | AS56: 0 | AT56: 0 | AU56: 0 | AV56: 0 | AW56: 0 | AX56: 0 | AY56: 0 | AZ56: 0 | BA56: 0 | BB56: 0 | BC56: 0 | BD56: 0 | BE56: 0 | BF56: 0 | BG56: 0 | BH56: 0 | BI56: 0 | BJ56: ='Bond Input Sheet'!R60 -> 0 | BK56: 0 | BW56: 0 | BX56: 0 | BZ56: 0 | CV56: 0 | FS56: 0 | FV56: 0 | FW56: 0
B57: =IF('Bond Input Sheet'!B61="","", 'Bond Input Sheet'!B61) ->  | C57: =IF('Bond Input Sheet'!C61="","NR", 'Bond Input Sheet'!C61) -> NR | D57: =IF('Bond Input Sheet'!D61="","NR", 'Bond Input Sheet'!D61) -> NR | L57: 8 | M57: ='Bond Input Sheet'!E61 -> 0 | N57: ='Bond Input Sheet'!F61 -> 0 | O57: ='Bond Input Sheet'!G61 -> 0 | P57: ='Bond Input Sheet'!H61 -> 0 | Q57: ='Bond Input Sheet'!I61 -> 0 | R57: ='Bond Input Sheet'!J61 -> 0 | S57: 1 | T57: ='Bond Input Sheet'!K61 -> 00:00:00 | U57: 1 | V57: -120.4273973 | W57: 0 | X57: ='Bond Input Sheet'!L61 -> 0 | Y57: =IF('Bond Input Sheet'!M61=0,"",'Bond Input Sheet'!M61) ->  | Z57: ='Bond Input Sheet'!N61 -> 00:00:00 | AA57: ='Bond Input Sheet'!O61 -> 0 | AB57: ='Bond Input Sheet'!P61 -> 0 | AC57: ='Bond Input Sheet'!Q61 -> 0 | AD57: 0 | AE57: 0 | AF57: 0 | AG57: 0 | AH57: 0 | AI57: 0 | AJ57: 0 | AK57: 0 | AL57: 0 | AM57: 0 | AN57: 0 | AO57: 0 | AP57: 0 | AQ57: 0 | AR57: 0 | AS57: 0 | AT57: 0 | AU57: 0 | AV57: 0 | AW57: 0 | AX57: 0 | AY57: 0 | AZ57: 0 | BA57: 0 | BB57: 0 | BC57: 0 | BD57: 0 | BE57: 0 | BF57: 0 | BG57: 0 | BH57: 0 | BI57: 0 | BJ57: ='Bond Input Sheet'!R61 -> 0 | BK57: 0 | BW57: 0 | BX57: 0 | BZ57: 0 | CV57: 0 | FS57: 0 | FV57: 0 | FW57: 0
B58: =IF('Bond Input Sheet'!B62="","", 'Bond Input Sheet'!B62) ->  | C58: =IF('Bond Input Sheet'!C62="","NR", 'Bond Input Sheet'!C62) -> NR | D58: =IF('Bond Input Sheet'!D62="","NR", 'Bond Input Sheet'!D62) -> NR | L58: 8 | M58: ='Bond Input Sheet'!E62 -> 0 | N58: ='Bond Input Sheet'!F62 -> 0 | O58: ='Bond Input Sheet'!G62 -> 0 | P58: ='Bond Input Sheet'!H62 -> 0 | Q58: ='Bond Input Sheet'!I62 -> 0 | R58: ='Bond Input Sheet'!J62 -> 0 | S58: 1 | T58: ='Bond Input Sheet'!K62 -> 00:00:00 | U58: 1 | V58: -120.4273973 | W58: 0 | X58: ='Bond Input Sheet'!L62 -> 0 | Y58: =IF('Bond Input Sheet'!M62=0,"",'Bond Input Sheet'!M62) ->  | Z58: ='Bond Input Sheet'!N62 -> 00:00:00 | AA58: ='Bond Input Sheet'!O62 -> 0 | AB58: ='Bond Input Sheet'!P62 -> 0 | AC58: ='Bond Input Sheet'!Q62 -> 0 | AD58: 0 | AE58: 0 | AF58: 0 | AG58: 0 | AH58: 0 | AI58: 0 | AJ58: 0 | AK58: 0 | AL58: 0 | AM58: 0 | AN58: 0 | AO58: 0 | AP58: 0 | AQ58: 0 | AR58: 0 | AS58: 0 | AT58: 0 | AU58: 0 | AV58: 0 | AW58: 0 | AX58: 0 | AY58: 0 | AZ58: 0 | BA58: 0 | BB58: 0 | BC58: 0 | BD58: 0 | BE58: 0 | BF58: 0 | BG58: 0 | BH58: 0 | BI58: 0 | BJ58: ='Bond Input Sheet'!R62 -> 0 | BK58: 0 | BW58: 0 | BX58: 0 | BZ58: 0 | CJ58: =IF(BondType=CJ$8,MarketValue,"") ->  | CV58: 0 | FS58: 0 | FV58: 0 | FW58: 0
B59: =IF('Bond Input Sheet'!B63="","", 'Bond Input Sheet'!B63) ->  | C59: =IF('Bond Input Sheet'!C63="","NR", 'Bond Input Sheet'!C63) -> NR | D59: =IF('Bond Input Sheet'!D63="","NR", 'Bond Input Sheet'!D63) -> NR | L59: 8 | M59: ='Bond Input Sheet'!E63 -> 0 | N59: ='Bond Input Sheet'!F63 -> 0 | O59: ='Bond Input Sheet'!G63 -> 0 | P59: ='Bond Input Sheet'!H63 -> 0 | Q59: ='Bond Input Sheet'!I63 -> 0 | R59: ='Bond Input Sheet'!J63 -> 0 | S59: 1 | T59: ='Bond Input Sheet'!K63 -> 00:00:00 | U59: 1 | V59: -120.4273973 | W59: 0 | X59: ='Bond Input Sheet'!L63 -> 0 | Y59: =IF('Bond Input Sheet'!M63=0,"",'Bond Input Sheet'!M63) ->  | Z59: ='Bond Input Sheet'!N63 -> 00:00:00 | AA59: ='Bond Input Sheet'!O63 -> 0 | AB59: ='Bond Input Sheet'!P63 -> 0 | AC59: ='Bond Input Sheet'!Q63 -> 0 | AD59: 0 | AE59: 0 | AF59: 0 | AG59: 0 | AH59: 0 | AI59: 0 | AJ59: 0 | AK59: 0 | AL59: 0 | AM59: 0 | AN59: 0 | AO59: 0 | AP59: 0 | AQ59: 0 | AR59: 0 | AS59: 0 | AT59: 0 | AU59: 0 | AV59: 0 | AW59: 0 | AX59: 0 | AY59: 0 | AZ59: 0 | BA59: 0 | BB59: 0 | BC59: 0 | BD59: 0 | BE59: 0 | BF59: 0 | BG59: 0 | BH59: 0 | BI59: 0 | BJ59: ='Bond Input Sheet'!R63 -> 0 | BK59: 0 | BW59: 0 | BX59: 0 | BZ59: 0 | CA59: =IF(AND(Maturity<=CA$511,Maturity>BZ$511),MarketValue,"") ->  | CE59: =IF(AND(Maturity<=CE$511,Maturity>CD$511),MarketValue,"") ->  | CO59: =IF($L59=CO$511,$BW59,"") ->  | CV59: 0 | FS59: 0 | FV59: 0 | FW59: 0
B60: =IF('Bond Input Sheet'!B64="","", 'Bond Input Sheet'!B64) ->  | C60: =IF('Bond Input Sheet'!C64="","NR", 'Bond Input Sheet'!C64) -> NR | D60: =IF('Bond Input Sheet'!D64="","NR", 'Bond Input Sheet'!D64) -> NR | L60: 8 | M60: ='Bond Input Sheet'!E64 -> 0 | N60: ='Bond Input Sheet'!F64 -> 0 | O60: ='Bond Input Sheet'!G64 -> 0 | P60: ='Bond Input Sheet'!H64 -> 0 | Q60: ='Bond Input Sheet'!I64 -> 0 | R60: ='Bond Input Sheet'!J64 -> 0 | S60: 1 | T60: ='Bond Input Sheet'!K64 -> 00:00:00 | U60: 1 | V60: -120.4273973 | W60: 0 | X60: ='Bond Input Sheet'!L64 -> 0 | Y60: =IF('Bond Input Sheet'!M64=0,"",'Bond Input Sheet'!M64) ->  | Z60: ='Bond Input Sheet'!N64 -> 00:00:00 | AA60: ='Bond Input Sheet'!O64 -> 0 | AB60: ='Bond Input Sheet'!P64 -> 0 | AC60: ='Bond Input Sheet'!Q64 -> 0 | AD60: 0 | AE60: 0 | AF60: 0 | AG60: 0 | AH60: 0 | AI60: 0 | AJ60: 0 | AK60: 0 | AL60: 0 | AM60: 0 | AN60: =IF(CouponsPerYear<>0,IF(MOD(($U60-AN$8)/(12/CouponsPerYear),1),,CouponPaymentAmount),0) -> 0 | AO60: 0 | AP60: 0 | AQ60: 0 | AR60: 0 | AS60: 0 | AT60: 0 | AU60: 0 | AV60: 0 | AW60: 0 | AX60: 0 | AY60: 0 | AZ60: =IF(CouponsPerYear<>0,IF(MOD(($U60-AZ$8)/(12/CouponsPerYear),1),,$AJ60*(1-VLOOKUP(BondType,BondTypeTable,2))),0) -> 0 | BA60: 0 | BB60: 0 | BC60: 0 | BD60: 0 | BE60: 0 | BF60: 0 | BG60: 0 | BH60: 0 | BI60: 0 | BJ60: ='Bond Input Sheet'!R64 -> 0 | BK60: 0 | BW60: 0 | BX60: 0 | BZ60: 0 | CV60: 0 | FS60: 0 | FV60: 0 | FW60: 0
B61: =IF('Bond Input Sheet'!B65="","", 'Bond Input Sheet'!B65) ->  | C61: =IF('Bond Input Sheet'!C65="","NR", 'Bond Input Sheet'!C65) -> NR | D61: =IF('Bond Input Sheet'!D65="","NR", 'Bond Input Sheet'!D65) -> NR | L61: 8 | M61: ='Bond Input Sheet'!E65 -> 0 | N61: ='Bond Input Sheet'!F65 -> 0 | O61: ='Bond Input Sheet'!G65 -> 0 | P61: ='Bond Input Sheet'!H65 -> 0 | Q61: ='Bond Input Sheet'!I65 -> 0 | R61: ='Bond Input Sheet'!J65 -> 0 | S61: 1 | T61: ='Bond Input Sheet'!K65 -> 00:00:00 | U61: 1 | V61: -120.4273973 | W61: 0 | X61: ='Bond Input Sheet'!L65 -> 0 | Y61: =IF('Bond Input Sheet'!M65=0,"",'Bond Input Sheet'!M65) ->  | Z61: ='Bond Input Sheet'!N65 -> 00:00:00 | AA61: ='Bond Input Sheet'!O65 -> 0 | AB61: ='Bond Input Sheet'!P65 -> 0 | AC61: ='Bond Input Sheet'!Q65 -> 0 | AD61: 0 | AE61: 0 | AF61: 0 | AG61: 0 | AH61: 0 | AI61: 0 | AJ61: 0 | AK61: =IF(CouponsPerYear<>0,IF(MOD(($U61-AK$8)/(12/CouponsPerYear),1),,CouponPaymentAmount),0) -> 0 | AL61: 0 | AM61: 0 | AN61: 0 | AO61: 0 | AP61: 0 | AQ61: 0 | AR61: 0 | AS61: 0 | AT61: 0 | AU61: 0 | AV61: 0 | AW61: =IF(CouponsPerYear<>0,IF(MOD(($U61-AW$8)/(12/CouponsPerYear),1),,$AJ61*(1-VLOOKUP(BondType,BondTypeTable,2))),0) -> 0 | AX61: 0 | AY61: 0 | AZ61: 0 | BA61: 0 | BB61: 0 | BC61: 0 | BD61: 0 | BE61: 0 | BF61: 0 | BG61: 0 | BH61: 0 | BI61: 0 | BJ61: ='Bond Input Sheet'!R65 -> 0 | BK61: 0 | BU61: =IF(LowestYield<>"",LowestYield-FairYTM,"") ->  | BW61: 0 | BX61: 0 | BZ61: 0 | CV61: 0 | FS61: 0 | FV61: 0 | FW61: 0
B62: =IF('Bond Input Sheet'!B66="","", 'Bond Input Sheet'!B66) ->  | C62: =IF('Bond Input Sheet'!C66="","NR", 'Bond Input Sheet'!C66) -> NR | D62: =IF('Bond Input Sheet'!D66="","NR", 'Bond Input Sheet'!D66) -> NR | L62: 8 | M62: ='Bond Input Sheet'!E66 -> 0 | N62: ='Bond Input Sheet'!F66 -> 0 | O62: ='Bond Input Sheet'!G66 -> 0 | P62: ='Bond Input Sheet'!H66 -> 0 | Q62: ='Bond Input Sheet'!I66 -> 0 | R62: ='Bond Input Sheet'!J66 -> 0 | S62: 1 | T62: ='Bond Input Sheet'!K66 -> 00:00:00 | U62: 1 | V62: -120.4273973 | W62: 0 | X62: ='Bond Input Sheet'!L66 -> 0 | Y62: =IF('Bond Input Sheet'!M66=0,"",'Bond Input Sheet'!M66) ->  | Z62: ='Bond Input Sheet'!N66 -> 00:00:00 | AA62: ='Bond Input Sheet'!O66 -> 0 | AB62: ='Bond Input Sheet'!P66 -> 0 | AC62: ='Bond Input Sheet'!Q66 -> 0 | AD62: 0 | AE62: 0 | AF62: 0 | AG62: 0 | AH62: 0 | AI62: 0 | AJ62: 0 | AK62: 0 | AL62: 0 | AM62: 0 | AN62: 0 | AO62: 0 | AP62: 0 | AQ62: 0 | AR62: 0 | AS62: 0 | AT62: 0 | AU62: 0 | AV62: 0 | AW62: 0 | AX62: 0 | AY62: 0 | AZ62: 0 | BA62: 0 | BB62: 0 | BC62: 0 | BD62: 0 | BE62: 0 | BF62: 0 | BG62: 0 | BH62: 0 | BI62: 0 | BJ62: ='Bond Input Sheet'!R66 -> 0 | BK62: 0 | BW62: 0 | BX62: 0 | BZ62: 0 | CV62: 0 | FS62: 0 | FV62: 0 | FW62: 0
B63: =IF('Bond Input Sheet'!B67="","", 'Bond Input Sheet'!B67) ->  | C63: =IF('Bond Input Sheet'!C67="","NR", 'Bond Input Sheet'!C67) -> NR | D63: =IF('Bond Input Sheet'!D67="","NR", 'Bond Input Sheet'!D67) -> NR | L63: 8 | M63: ='Bond Input Sheet'!E67 -> 0 | N63: ='Bond Input Sheet'!F67 -> 0 | O63: ='Bond Input Sheet'!G67 -> 0 | P63: ='Bond Input Sheet'!H67 -> 0 | Q63: ='Bond Input Sheet'!I67 -> 0 | R63: ='Bond Input Sheet'!J67 -> 0 | S63: 1 | T63: ='Bond Input Sheet'!K67 -> 00:00:00 | U63: 1 | V63: -120.4273973 | W63: 0 | X63: ='Bond Input Sheet'!L67 -> 0 | Y63: =IF('Bond Input Sheet'!M67=0,"",'Bond Input Sheet'!M67) ->  | Z63: ='Bond Input Sheet'!N67 -> 00:00:00 | AA63: ='Bond Input Sheet'!O67 -> 0 | AB63: ='Bond Input Sheet'!P67 -> 0 | AC63: ='Bond Input Sheet'!Q67 -> 0 | AD63: 0 | AE63: 0 | AF63: 0 | AG63: 0 | AH63: 0 | AI63: 0 | AJ63: 0 | AK63: 0 | AL63: 0 | AM63: 0 | AN63: 0 | AO63: 0 | AP63: 0 | AQ63: 0 | AR63: 0 | AS63: 0 | AT63: 0 | AU63: 0 | AV63: 0 | AW63: 0 | AX63: 0 | AY63: 0 | AZ63: 0 | BA63: 0 | BB63: 0 | BC63: 0 | BD63: 0 | BE63: 0 | BF63: 0 | BG63: 0 | BH63: 0 | BI63: 0 | BJ63: ='Bond Input Sheet'!R67 -> 0 | BK63: 0 | BW63: 0 | BX63: 0 | BZ63: 0 | CV63: 0 | FS63: 0 | FV63: 0 | FW63: 0
B64: =IF('Bond Input Sheet'!B68="","", 'Bond Input Sheet'!B68) ->  | C64: =IF('Bond Input Sheet'!C68="","NR", 'Bond Input Sheet'!C68) -> NR | D64: =IF('Bond Input Sheet'!D68="","NR", 'Bond Input Sheet'!D68) -> NR | L64: 8 | M64: ='Bond Input Sheet'!E68 -> 0 | N64: ='Bond Input Sheet'!F68 -> 0 | O64: ='Bond Input Sheet'!G68 -> 0 | P64: ='Bond Input Sheet'!H68 -> 0 | Q64: ='Bond Input Sheet'!I68 -> 0 | R64: ='Bond Input Sheet'!J68 -> 0 | S64: 1 | T64: ='Bond Input Sheet'!K68 -> 00:00:00 | U64: 1 | V64: -120.4273973 | W64: 0 | X64: ='Bond Input Sheet'!L68 -> 0 | Y64: =IF('Bond Input Sheet'!M68=0,"",'Bond Input Sheet'!M68) ->  | Z64: ='Bond Input Sheet'!N68 -> 00:00:00 | AA64: ='Bond Input Sheet'!O68 -> 0 | AB64: ='Bond Input Sheet'!P68 -> 0 | AC64: ='Bond Input Sheet'!Q68 -> 0 | AD64: 0 | AE64: 0 | AF64: 0 | AG64: 0 | AH64: 0 | AI64: 0 | AJ64: 0 | AK64: 0 | AL64: 0 | AM64: 0 | AN64: 0 | AO64: 0 | AP64: 0 | AQ64: 0 | AR64: 0 | AS64: 0 | AT64: 0 | AU64: 0 | AV64: 0 | AW64: 0 | AX64: 0 | AY64: 0 | AZ64: 0 | BA64: 0 | BB64: 0 | BC64: 0 | BD64: 0 | BE64: 0 | BF64: 0 | BG64: 0 | BH64: 0 | BI64: 0 | BJ64: ='Bond Input Sheet'!R68 -> 0 | BK64: 0 | BW64: 0 | BX64: 0 | BZ64: 0 | CV64: 0 | FS64: 0 | FV64: 0 | FW64: 0
B65: =IF('Bond Input Sheet'!B69="","", 'Bond Input Sheet'!B69) ->  | C65: =IF('Bond Input Sheet'!C69="","NR", 'Bond Input Sheet'!C69) -> NR | D65: =IF('Bond Input Sheet'!D69="","NR", 'Bond Input Sheet'!D69) -> NR | L65: 8 | M65: ='Bond Input Sheet'!E69 -> 0 | N65: ='Bond Input Sheet'!F69 -> 0 | O65: ='Bond Input Sheet'!G69 -> 0 | P65: ='Bond Input Sheet'!H69 -> 0 | Q65: ='Bond Input Sheet'!I69 -> 0 | R65: ='Bond Input Sheet'!J69 -> 0 | S65: 1 | T65: ='Bond Input Sheet'!K69 -> 00:00:00 | U65: 1 | V65: -120.4273973 | W65: 0 | X65: ='Bond Input Sheet'!L69 -> 0 | Y65: =IF('Bond Input Sheet'!M69=0,"",'Bond Input Sheet'!M69) ->  | Z65: ='Bond Input Sheet'!N69 -> 00:00:00 | AA65: ='Bond Input Sheet'!O69 -> 0 | AB65: ='Bond Input Sheet'!P69 -> 0 | AC65: ='Bond Input Sheet'!Q69 -> 0 | AD65: 0 | AE65: 0 | AF65: 0 | AG65: 0 | AH65: 0 | AI65: 0 | AJ65: 0 | AK65: 0 | AL65: 0 | AM65: 0 | AN65: 0 | AO65: 0 | AP65: 0 | AQ65: 0 | AR65: 0 | AS65: 0 | AT65: 0 | AU65: 0 | AV65: 0 | AW65: 0 | AX65: 0 | AY65: 0 | AZ65: 0 | BA65: 0 | BB65: 0 | BC65: 0 | BD65: 0 | BE65: 0 | BF65: 0 | BG65: 0 | BH65: 0 | BI65: 0 | BJ65: ='Bond Input Sheet'!R69 -> 0 | BK65: 0 | BW65: 0 | BX65: 0 | BZ65: 0 | CV65: 0 | FS65: 0 | FV65: 0 | FW65: 0
B66: =IF('Bond Input Sheet'!B70="","", 'Bond Input Sheet'!B70) ->  | C66: =IF('Bond Input Sheet'!C70="","NR", 'Bond Input Sheet'!C70) -> NR | D66: =IF('Bond Input Sheet'!D70="","NR", 'Bond Input Sheet'!D70) -> NR | L66: 8 | M66: ='Bond Input Sheet'!E70 -> 0 | N66: ='Bond Input Sheet'!F70 -> 0 | O66: ='Bond Input Sheet'!G70 -> 0 | P66: ='Bond Input Sheet'!H70 -> 0 | Q66: ='Bond Input Sheet'!I70 -> 0 | R66: ='Bond Input Sheet'!J70 -> 0 | S66: 1 | T66: ='Bond Input Sheet'!K70 -> 00:00:00 | U66: 1 | V66: -120.4273973 | W66: 0 | X66: ='Bond Input Sheet'!L70 -> 0 | Y66: =IF('Bond Input Sheet'!M70=0,"",'Bond Input Sheet'!M70) ->  | Z66: ='Bond Input Sheet'!N70 -> 00:00:00 | AA66: ='Bond Input Sheet'!O70 -> 0 | AB66: ='Bond Input Sheet'!P70 -> 0 | AC66: ='Bond Input Sheet'!Q70 -> 0 | AD66: 0 | AE66: 0 | AF66: 0 | AG66: 0 | AH66: 0 | AI66: 0 | AJ66: 0 | AK66: 0 | AL66: 0 | AM66: 0 | AN66: 0 | AO66: 0 | AP66: 0 | AQ66: 0 | AR66: 0 | AS66: 0 | AT66: 0 | AU66: 0 | AV66: 0 | AW66: 0 | AX66: 0 | AY66: 0 | AZ66: 0 | BA66: 0 | BB66: 0 | BC66: 0 | BD66: 0 | BE66: 0 | BF66: 0 | BG66: 0 | BH66: 0 | BI66: 0 | BJ66: ='Bond Input Sheet'!R70 -> 0 | BK66: 0 | BW66: 0 | BX66: 0 | BZ66: 0 | CV66: 0 | FS66: 0 | FV66: 0 | FW66: 0
B67: =IF('Bond Input Sheet'!B71="","", 'Bond Input Sheet'!B71) ->  | C67: =IF('Bond Input Sheet'!C71="","NR", 'Bond Input Sheet'!C71) -> NR | D67: =IF('Bond Input Sheet'!D71="","NR", 'Bond Input Sheet'!D71) -> NR | L67: 8 | M67: ='Bond Input Sheet'!E71 -> 0 | N67: ='Bond Input Sheet'!F71 -> 0 | O67: ='Bond Input Sheet'!G71 -> 0 | P67: ='Bond Input Sheet'!H71 -> 0 | Q67: ='Bond Input Sheet'!I71 -> 0 | R67: ='Bond Input Sheet'!J71 -> 0 | S67: 1 | T67: ='Bond Input Sheet'!K71 -> 00:00:00 | U67: 1 | V67: -120.4273973 | W67: 0 | X67: ='Bond Input Sheet'!L71 -> 0 | Y67: =IF('Bond Input Sheet'!M71=0,"",'Bond Input Sheet'!M71) ->  | Z67: ='Bond Input Sheet'!N71 -> 00:00:00 | AA67: ='Bond Input Sheet'!O71 -> 0 | AB67: ='Bond Input Sheet'!P71 -> 0 | AC67: ='Bond Input Sheet'!Q71 -> 0 | AD67: 0 | AE67: 0 | AF67: 0 | AG67: 0 | AH67: 0 | AI67: 0 | AJ67: 0 | AK67: 0 | AL67: 0 | AM67: 0 | AN67: 0 | AO67: 0 | AP67: 0 | AQ67: 0 | AR67: 0 | AS67: 0 | AT67: 0 | AU67: 0 | AV67: 0 | AW67: 0 | AX67: 0 | AY67: 0 | AZ67: 0 | BA67: 0 | BB67: 0 | BC67: 0 | BD67: 0 | BE67: 0 | BF67: 0 | BG67: 0 | BH67: 0 | BI67: 0 | BJ67: ='Bond Input Sheet'!R71 -> 0 | BK67: 0 | BW67: 0 | BX67: 0 | BZ67: 0 | CV67: 0 | FS67: 0 | FV67: 0 | FW67: 0
B68: =IF('Bond Input Sheet'!B72="","", 'Bond Input Sheet'!B72) ->  | C68: =IF('Bond Input Sheet'!C72="","NR", 'Bond Input Sheet'!C72) -> NR | D68: =IF('Bond Input Sheet'!D72="","NR", 'Bond Input Sheet'!D72) -> NR | L68: 8 | M68: ='Bond Input Sheet'!E72 -> 0 | N68: ='Bond Input Sheet'!F72 -> 0 | O68: ='Bond Input Sheet'!G72 -> 0 | P68: ='Bond Input Sheet'!H72 -> 0 | Q68: ='Bond Input Sheet'!I72 -> 0 | R68: ='Bond Input Sheet'!J72 -> 0 | S68: 1 | T68: ='Bond Input Sheet'!K72 -> 00:00:00 | U68: 1 | V68: -120.4273973 | W68: 0 | X68: ='Bond Input Sheet'!L72 -> 0 | Y68: =IF('Bond Input Sheet'!M72=0,"",'Bond Input Sheet'!M72) ->  | Z68: ='Bond Input Sheet'!N72 -> 00:00:00 | AA68: ='Bond Input Sheet'!O72 -> 0 | AB68: ='Bond Input Sheet'!P72 -> 0 | AC68: ='Bond Input Sheet'!Q72 -> 0 | AD68: 0 | AE68: 0 | AF68: 0 | AG68: 0 | AH68: 0 | AI68: 0 | AJ68: 0 | AK68: 0 | AL68: 0 | AM68: 0 | AN68: 0 | AO68: 0 | AP68: 0 | AQ68: 0 | AR68: 0 | AS68: 0 | AT68: 0 | AU68: 0 | AV68: 0 | AW68: 0 | AX68: 0 | AY68: 0 | AZ68: 0 | BA68: 0 | BB68: 0 | BC68: 0 | BD68: 0 | BE68: 0 | BF68: 0 | BG68: 0 | BH68: 0 | BI68: 0 | BJ68: ='Bond Input Sheet'!R72 -> 0 | BK68: 0 | BW68: 0 | BX68: 0 | BZ68: 0 | CV68: 0 | FS68: 0 | FV68: 0 | FW68: 0
B69: =IF('Bond Input Sheet'!B73="","", 'Bond Input Sheet'!B73) ->  | C69: =IF('Bond Input Sheet'!C73="","NR", 'Bond Input Sheet'!C73) -> NR | D69: =IF('Bond Input Sheet'!D73="","NR", 'Bond Input Sheet'!D73) -> NR | L69: 8 | M69: ='Bond Input Sheet'!E73 -> 0 | N69: ='Bond Input Sheet'!F73 -> 0 | O69: ='Bond Input Sheet'!G73 -> 0 | P69: ='Bond Input Sheet'!H73 -> 0 | Q69: ='Bond Input Sheet'!I73 -> 0 | R69: ='Bond Input Sheet'!J73 -> 0 | S69: 1 | T69: ='Bond Input Sheet'!K73 -> 00:00:00 | U69: 1 | V69: -120.4273973 | W69: 0 | X69: ='Bond Input Sheet'!L73 -> 0 | Y69: =IF('Bond Input Sheet'!M73=0,"",'Bond Input Sheet'!M73) ->  | Z69: ='Bond Input Sheet'!N73 -> 00:00:00 | AA69: ='Bond Input Sheet'!O73 -> 0 | AB69: ='Bond Input Sheet'!P73 -> 0 | AC69: ='Bond Input Sheet'!Q73 -> 0 | AD69: 0 | AE69: 0 | AF69: 0 | AG69: 0 | AH69: 0 | AI69: 0 | AJ69: 0 | AK69: 0 | AL69: 0 | AM69: 0 | AN69: 0 | AO69: 0 | AP69: 0 | AQ69: 0 | AR69: 0 | AS69: 0 | AT69: 0 | AU69: 0 | AV69: 0 | AW69: 0 | AX69: 0 | AY69: 0 | AZ69: 0 | BA69: 0 | BB69: 0 | BC69: 0 | BD69: 0 | BE69: 0 | BF69: 0 | BG69: 0 | BH69: 0 | BI69: 0 | BJ69: ='Bond Input Sheet'!R73 -> 0 | BK69: 0 | BW69: 0 | BX69: 0 | BZ69: 0 | CA69: =IF(AND(Maturity<=CA$511,Maturity>BZ$511),MarketValue,"") ->  | CE69: =IF(AND(Maturity<=CE$511,Maturity>CD$511),MarketValue,"") ->  | CO69: =IF($L69=CO$511,$BW69,"") ->  | CV69: 0 | FS69: 0 | FV69: 0 | FW69: 0
B70: =IF('Bond Input Sheet'!B74="","", 'Bond Input Sheet'!B74) ->  | C70: =IF('Bond Input Sheet'!C74="","NR", 'Bond Input Sheet'!C74) -> NR | D70: =IF('Bond Input Sheet'!D74="","NR", 'Bond Input Sheet'!D74) -> NR | L70: 8 | M70: ='Bond Input Sheet'!E74 -> 0 | N70: ='Bond Input Sheet'!F74 -> 0 | O70: ='Bond Input Sheet'!G74 -> 0 | P70: ='Bond Input Sheet'!H74 -> 0 | Q70: ='Bond Input Sheet'!I74 -> 0 | R70: ='Bond Input Sheet'!J74 -> 0 | S70: 1 | T70: ='Bond Input Sheet'!K74 -> 00:00:00 | U70: 1 | V70: -120.4273973 | W70: 0 | X70: ='Bond Input Sheet'!L74 -> 0 | Y70: =IF('Bond Input Sheet'!M74=0,"",'Bond Input Sheet'!M74) ->  | Z70: ='Bond Input Sheet'!N74 -> 00:00:00 | AA70: ='Bond Input Sheet'!O74 -> 0 | AB70: ='Bond Input Sheet'!P74 -> 0 | AC70: ='Bond Input Sheet'!Q74 -> 0 | AD70: 0 | AE70: 0 | AF70: 0 | AG70: 0 | AH70: 0 | AI70: 0 | AJ70: 0 | AK70: 0 | AL70: 0 | AM70: 0 | AN70: 0 | AO70: 0 | AP70: 0 | AQ70: 0 | AR70: 0 | AS70: 0 | AT70: 0 | AU70: 0 | AV70: 0 | AW70: 0 | AX70: 0 | AY70: 0 | AZ70: 0 | BA70: 0 | BB70: 0 | BC70: 0 | BD70: 0 | BE70: 0 | BF70: 0 | BG70: 0 | BH70: 0 | BI70: 0 | BJ70: ='Bond Input Sheet'!R74 -> 0 | BK70: 0 | BW70: 0 | BX70: 0 | BZ70: 0 | CV70: 0 | FS70: 0 | FV70: 0 | FW70: 0
B71: =IF('Bond Input Sheet'!B75="","", 'Bond Input Sheet'!B75) ->  | C71: =IF('Bond Input Sheet'!C75="","NR", 'Bond Input Sheet'!C75) -> NR | D71: =IF('Bond Input Sheet'!D75="","NR", 'Bond Input Sheet'!D75) -> NR | L71: 8 | M71: ='Bond Input Sheet'!E75 -> 0 | N71: ='Bond Input Sheet'!F75 -> 0 | O71: ='Bond Input Sheet'!G75 -> 0 | P71: ='Bond Input Sheet'!H75 -> 0 | Q71: ='Bond Input Sheet'!I75 -> 0 | R71: ='Bond Input Sheet'!J75 -> 0 | S71: 1 | T71: ='Bond Input Sheet'!K75 -> 00:00:00 | U71: 1 | V71: -120.4273973 | W71: 0 | X71: ='Bond Input Sheet'!L75 -> 0 | Y71: =IF('Bond Input Sheet'!M75=0,"",'Bond Input Sheet'!M75) ->  | Z71: ='Bond Input Sheet'!N75 -> 00:00:00 | AA71: ='Bond Input Sheet'!O75 -> 0 | AB71: ='Bond Input Sheet'!P75 -> 0 | AC71: ='Bond Input Sheet'!Q75 -> 0 | AD71: 0 | AE71: 0 | AF71: 0 | AG71: 0 | AH71: 0 | AI71: 0 | AJ71: 0 | AK71: 0 | AL71: 0 | AM71: 0 | AN71: 0 | AO71: 0 | AP71: 0 | AQ71: 0 | AR71: 0 | AS71: 0 | AT71: 0 | AU71: 0 | AV71: 0 | AW71: 0 | AX71: 0 | AY71: 0 | AZ71: 0 | BA71: 0 | BB71: 0 | BC71: 0 | BD71: 0 | BE71: 0 | BF71: 0 | BG71: 0 | BH71: 0 | BI71: 0 | BJ71: ='Bond Input Sheet'!R75 -> 0 | BK71: 0 | BW71: 0 | BX71: 0 | BZ71: 0 | CV71: 0 | FS71: 0 | FV71: 0 | FW71: 0
B72: =IF('Bond Input Sheet'!B76="","", 'Bond Input Sheet'!B76) ->  | C72: =IF('Bond Input Sheet'!C76="","NR", 'Bond Input Sheet'!C76) -> NR | D72: =IF('Bond Input Sheet'!D76="","NR", 'Bond Input Sheet'!D76) -> NR | L72: 8 | M72: ='Bond Input Sheet'!E76 -> 0 | N72: ='Bond Input Sheet'!F76 -> 0 | O72: ='Bond Input Sheet'!G76 -> 0 | P72: ='Bond Input Sheet'!H76 -> 0 | Q72: ='Bond Input Sheet'!I76 -> 0 | R72: ='Bond Input Sheet'!J76 -> 0 | S72: 1 | T72: ='Bond Input Sheet'!K76 -> 00:00:00 | U72: 1 | V72: -120.4273973 | W72: 0 | X72: ='Bond Input Sheet'!L76 -> 0 | Y72: =IF('Bond Input Sheet'!M76=0,"",'Bond Input Sheet'!M76) ->  | Z72: ='Bond Input Sheet'!N76 -> 00:00:00 | AA72: ='Bond Input Sheet'!O76 -> 0 | AB72: ='Bond Input Sheet'!P76 -> 0 | AC72: ='Bond Input Sheet'!Q76 -> 0 | AD72: 0 | AE72: 0 | AF72: 0 | AG72: 0 | AH72: 0 | AI72: 0 | AJ72: 0 | AK72: 0 | AL72: 0 | AM72: 0 | AN72: 0 | AO72: 0 | AP72: 0 | AQ72: 0 | AR72: 0 | AS72: 0 | AT72: 0 | AU72: 0 | AV72: 0 | AW72: 0 | AX72: 0 | AY72: 0 | AZ72: 0 | BA72: 0 | BB72: 0 | BC72: 0 | BD72: 0 | BE72: 0 | BF72: 0 | BG72: 0 | BH72: 0 | BI72: 0 | BJ72: ='Bond Input Sheet'!R76 -> 0 | BK72: 0 | BW72: 0 | BX72: 0 | BZ72: 0 | CV72: 0 | FS72: 0 | FV72: 0 | FW72: 0
B73: =IF('Bond Input Sheet'!B77="","", 'Bond Input Sheet'!B77) ->  | C73: =IF('Bond Input Sheet'!C77="","NR", 'Bond Input Sheet'!C77) -> NR | D73: =IF('Bond Input Sheet'!D77="","NR", 'Bond Input Sheet'!D77) -> NR | E73: =IF(AND(MoodyRating<>"NR",$G$510<>0),($G73/$G$510)*MATCH(MoodyRating,MoodyRatingTable,0),"") ->  | F73: =IF(AND(SP_Rating<>"NR", $H$510<>0),($H73/$H$510)*MATCH(SP_Rating,SP_RatingTable,0),"") ->  | I73: =IF(MoodyRating<>"NR",MATCH(MoodyRating,MoodyRatingTable,0),"") ->  | J73: =IF(SP_Rating<>"NR",MATCH(SP_Rating,SP_RatingTable,0),"") ->  | L73: =IF(K73<>"",VLOOKUP(K73,NumberToRatingTable,4,1),8) -> 8 | M73: ='Bond Input Sheet'!E77 -> 0 | N73: ='Bond Input Sheet'!F77 -> 0 | O73: ='Bond Input Sheet'!G77 -> 0 | P73: ='Bond Input Sheet'!H77 -> 0 | Q73: ='Bond Input Sheet'!I77 -> 0 | R73: ='Bond Input Sheet'!J77 -> 0 | S73: =IF(CouponsPerYear=0,1,IF(CouponsPerYear=12,4,CouponsPerYear)) -> 1 | T73: ='Bond Input Sheet'!K77 -> 00:00:00 | U73: =MONTH(Maturity) -> 1 | V73: =IF(Maturity<>"",DAYS360(ValueDate,Maturity)/365,"") -> -120.4273973 | W73: =YearsToMaturity*PercentPortfolio -> 0 | X73: ='Bond Input Sheet'!L77 -> 0 | Y73: =IF('Bond Input Sheet'!M77=0,"",'Bond Input Sheet'!M77) ->  | Z73: ='Bond Input Sheet'!N77 -> 00:00:00 | AA73: ='Bond Input Sheet'!O77 -> 0 | AB73: ='Bond Input Sheet'!P77 -> 0 | AC73: ='Bond Input Sheet'!Q77 -> 0 | AD73: 0 | AE73: =Bonds*(10*PurchasePrice)+Commission -> 0 | AF73: =(Bonds*1000)*(Coupon/100) -> 0 | AG73: 0 | AH73: 0 | AI73: =PurchaseYTM*(TotalPurchaseCost/OriginalPortfolioValue) -> 0 | AJ73: =IF(CouponsPerYear=0,0,AnnualCouponAmount/CouponsPerYear) -> 0 | AK73: 0 | AL73: 0 | AM73: 0 | AN73: 0 | AO73: 0 | AP73: 0 | AQ73: 0 | AR73: 0 | AS73: 0 | AT73: 0 | AU73: 0 | AV73: 0 | AW73: 0 | AX73: 0 | AY73: 0 | AZ73: 0 | BA73: 0 | BB73: 0 | BC73: 0 | BD73: 0 | BE73: 0 | BF73: 0 | BG73: 0 | BH73: 0 | BI73: =IF(Bonds<>0,YIELD(SettlementDate,Maturity,Coupon/100,PurchasePrice+(Commission/10)/Bonds,100,AdjustedCouponsPerYear, DayCountMethod),0) -> 0 | BJ73: ='Bond Input Sheet'!R77 -> 0 | BK73: =IF(ISERROR(SEARCH("-",BJ73)),BJ73,LEFT(BJ73,SEARCH("-",BJ73)-1)+(1/32)*MID(BJ73,SEARCH("-",BJ73)+1,2)+IF(LEN(RIGHT(BJ73,LEN(BJ73)-SEARCH("-",BJ73)-2))=1,IF(MID(BJ73,SEARCH("-",BJ73)+3,1)="+",1/64, MID(BJ73,SEARCH("-",BJ73)+3,1)*(1/256)),0)) -> 0 | BL73: =IF(B73<>"",YIELD( ValueDate,Maturity,Coupon/100,CurrentPrice,100,AdjustedCouponsPerYear,DayCountMethod),"") ->  | BM73: =IF(AND(CallPrice<>0,Y73>TODAY()),YIELD(ValueDate,CallDate,Coupon/100,CurrentPrice,CallPrice,AdjustedCouponsPerYear,DayCountMethod),"") ->  | BN73: =IF(CallYield<>0,IF(CurrentYield<CallYield,CurrentYield,CallYield),CurrentYield) ->  | BO73: =IF(LowestYield<>"",PercentPortfolio*LowestYield,"") ->  | BP73: =IF(LowestYield<>"",PercentPortfolio*LowestYield*(1-VLOOKUP(BondType,BondTypeTable,2)),"") ->  | BQ73: =IF(CallYield<>0,IF(CurrentYield<CallYield,Maturity,CallDate),Maturity) ->  | BR73: =IF(B73="","",MATCH(BondType, BondTypeList)) ->  | BT73: =IF(BL73="","",PRICE(ValueDate,Maturity,Coupon/100,FairYTM,100,AdjustedCouponsPerYear,DayCountMethod)) ->  | BW73: =(CurrentPrice*10)* Bonds -> 0 | BX73: =MarketValue/TotalPortfolioValue -> 0 | BZ73: =IF(Maturity<=BZ$511,MarketValue,"") -> 0 | CJ73: =IF(BondType=CJ$8,MarketValue,"") ->  | CV73: 0 | CW73: =IF(CJ73<>"",AverageCreditQuality*(CJ73/CJ$510),"") ->  | CX73: =IF(CK73<>"",AverageCreditQuality*(CK73/CK$510),"") ->  | CY73: =IF(CL73<>"",AverageCreditQuality*(CL73/CL$510),"") ->  | CZ73: =IF(CM73<>"",AverageCreditQuality*(CM73/CM$510),"") ->  | DA73: =IF(CN73<>"",AverageCreditQuality*(CN73/CN$510),"") ->  | DB73: =IF(B73="","",IF(BZ73<>"",AverageCreditQuality*(BZ73/BZ$510),"")) ->  | DC73: =IF(CA73<>"",AverageCreditQuality*(CA73/CA$510),"") ->  | DD73: =IF(CB73<>"",AverageCreditQuality*(CB73/CB$510),"") ->  | DE73: =IF(CC73<>"",AverageCreditQuality*(CC73/CC$510),"") ->  | DF73: =IF(CD73<>"",AverageCreditQuality*(CD73/CD$510),"") ->  | DG73: =IF(CE73<>"",AverageCreditQuality*(CE73/CE$510),"") ->  | DH73: =IF(CF73<>"",AverageCreditQuality*(CF73/CF$510),"") ->  | DI73: =IF(CG73<>"",AverageCreditQuality*(CG73/CG$510),"") ->  | DJ73: =IF(CH73<>"",AverageCreditQuality*(CH73/CH$510),"") ->  | DK73: =IF(CI73<>"",AverageCreditQuality*(CI73/CI$510),"") ->  | DL73: =IF(CJ73<>"",ModDuration*(CJ73/CJ$510),"") ->  | DM73: =IF(CK73<>"",ModDuration*(CK73/CK$510),"") ->  | DN73: =IF(CL73<>"",ModDuration*(CL73/CL$510),"") ->  | DO73: =IF(CM73<>"",ModDuration*(CM73/CM$510),"") ->  | DP73: =IF(CN73<>"",ModDuration*(CN73/CN$510),"") ->  | DQ73: =IF(CO73<>"",ModDuration*(CO73/CO$510),"") ->  | DR73: =IF(CP73<>"",ModDuration*(CP73/CP$510),"") ->  | DS73: =IF(CQ73<>"",ModDuration*(CQ73/CQ$510),"") ->  | DT73: =IF(CR73<>"",ModDuration*(CR73/CR$510),"") ->  | DU73: =IF(CS73<>"",ModDuration*(CS73/CS$510),"") ->  | DV73: =IF(CT73<>"",ModDuration*(CT73/CT$510),"") ->  | DW73: =IF(CU73<>"",ModDuration*(CU73/CU$510),"") ->  | DX73: =IF(B73="","",IF(CV73<>"",ModDuration*(CV73/CV$510),"")) ->  | DY73: =IF(AND(LowestYield<>"",CJ73<>""),(CJ73/CJ$510)*LowestYield,"") ->  | DZ73: =IF(AND(LowestYield<>"",CK73<>""),(CK73/CK$510)*LowestYield,"") ->  | EA73: =IF(AND(LowestYield<>"",CL73<>""),(CL73/CL$510)*LowestYield,"") ->  | EB73: =IF(AND(LowestYield<>"",CM73<>""),(CM73/CM$510)*LowestYield,"") ->  | EC73: =IF(AND(LowestYield<>"",CN73<>""),(CN73/CN$510)*LowestYield,"") ->  | EI73: =IF(AND(LowestYield<>"",BZ73<>""),(BZ73/BZ$510)*LowestYield,"") ->  | EJ73: =IF(AND(LowestYield<>"",CA73<>""),(CA73/CA$510)*LowestYield,"") ->  | EK73: =IF(AND(LowestYield<>"",CB73<>""),(CB73/CB$510)*LowestYield,"") ->  | EL73: =IF(AND(LowestYield<>"",CC73<>""),(CC73/CC$510)*LowestYield,"") ->  | EM73: =IF(AND(LowestYield<>"",CD73<>""),(CD73/CD$510)*LowestYield,"") ->  | EN73: =IF(AND(LowestYield<>"",CE73<>""),(CE73/CE$510)*LowestYield,"") ->  | EO73: =IF(AND(LowestYield<>"",CF73<>""),(CF73/CF$510)*LowestYield,"") ->  | EP73: =IF(AND(LowestYield<>"",CG73<>""),(CG73/CG$510)*LowestYield,"") ->  | EQ73: =IF(AND(LowestYield<>"",CH73<>""),(CH73/CH$510)*LowestYield,"") ->  | ER73: =IF(AND(LowestYield<>"",CI73<>""),(CI73/CI$510)*LowestYield,"") ->  | EX73: =IF(EN73="","",EN73*(1-VLOOKUP(BondType,BondTypeTable,2))) ->  | EY73: =IF(EO73="","",EO73*(1-VLOOKUP(BondType,BondTypeTable,2))) ->  | EZ73: =IF(EP73="","",EP73*(1-VLOOKUP(BondType,BondTypeTable,2))) ->  | FA73: =IF(EQ73="","",EQ73*(1-VLOOKUP(BondType,BondTypeTable,2))) ->  | FB73: =IF(ER73="","",ER73*(1-VLOOKUP(BondType,BondTypeTable,2))) ->  | FC73: =IF(AND(LowestYield<>"",CO73<>""),(CO73/CO$510)*LowestYield,"") ->  | FD73: =IF(AND(LowestYield<>"",CP73<>""),(CP73/CP$510)*LowestYield,"") ->  | FE73: =IF(AND(LowestYield<>"",CQ73<>""),(CQ73/CQ$510)*LowestYield,"") ->  | FF73: =IF(AND(LowestYield<>"",CR73<>""),(CR73/CR$510)*LowestYield,"") ->  | FG73: =IF(AND(LowestYield<>"",CS73<>""),(CS73/CS$510)*LowestYield,"") ->  | FH73: =IF(AND(LowestYield<>"",CT73<>""),(CT73/CT$510)*LowestYield,"") ->  | FI73: =IF(AND(LowestYield<>"",CT73<>""),(CT73/CT$510)*LowestYield,"") ->  | FJ73: =IF(AND(LowestYield<>"",CV73<>""),(CV73/CV$510)*LowestYield,"") ->  | FS73: =(DAYS360(PurchaseDate,ValueDate)/360)*(Bonds*1000)*(Coupon/100) -> 0 | FU73: =IF(BL73="","",IF(CurrentYield<0,0,MDURATION(ValueDate, Maturity, Coupon/100, CurrentYield, AdjustedCouponsPerYear, DayCountMethod))) ->  | FV73: =IF(OR(BL73="",BL73<0),BJ73,IF(CurrentYield > 0.01,PRICE(ValueDate,Maturity,Coupon/100,CurrentYield-0.01,100,AdjustedCouponsPerYear,DayCountMethod),PRICE(ValueDate,Maturity,Coupon/100,0.0000001,100,AdjustedCouponsPerYear,DayCountMethod))) -> 0 | FW73: =IF(OR(BL73="",BL73<0),BJ73,PRICE(ValueDate,Maturity,Coupon/100,CurrentYield+0.01,100,AdjustedCouponsPerYear,DayCountMethod)) -> 0
B74: =IF('Bond Input Sheet'!B78="","", 'Bond Input Sheet'!B78) ->  | C74: =IF('Bond Input Sheet'!C78="","NR", 'Bond Input Sheet'!C78) -> NR | D74: =IF('Bond Input Sheet'!D78="","NR", 'Bond Input Sheet'!D78) -> NR | L74: 8 | M74: ='Bond Input Sheet'!E78 -> 0 | N74: ='Bond Input Sheet'!F78 -> 0 | O74: ='Bond Input Sheet'!G78 -> 0 | P74: ='Bond Input Sheet'!H78 -> 0 | Q74: ='Bond Input Sheet'!I78 -> 0 | R74: ='Bond Input Sheet'!J78 -> 0 | S74: 1 | T74: ='Bond Input Sheet'!K78 -> 00:00:00 | U74: 1 | V74: -120.4273973 | W74: 0 | X74: ='Bond Input Sheet'!L78 -> 0 | Y74: =IF('Bond Input Sheet'!M78=0,"",'Bond Input Sheet'!M78) ->  | Z74: ='Bond Input Sheet'!N78 -> 00:00:00 | AA74: ='Bond Input Sheet'!O78 -> 0 | AB74: ='Bond Input Sheet'!P78 -> 0 | AC74: ='Bond Input Sheet'!Q78 -> 0 | AD74: 0 | AE74: 0 | AF74: 0 | AG74: 0 | AH74: 0 | AI74: 0 | AJ74: 0 | AK74: 0 | AL74: 0 | AM74: 0 | AN74: 0 | AO74: 0 | AP74: 0 | AQ74: 0 | AR74: 0 | AS74: 0 | AT74: 0 | AU74: 0 | AV74: 0 | AW74: 0 | AX74: 0 | AY74: 0 | AZ74: 0 | BA74: 0 | BB74: 0 | BC74: 0 | BD74: 0 | BE74: 0 | BF74: 0 | BG74: 0 | BH74: 0 | BI74: 0 | BJ74: ='Bond Input Sheet'!R78 -> 0 | BK74: 0 | BW74: 0 | BX74: 0 | BZ74: 0 | CV74: 0 | FS74: 0 | FV74: 0 | FW74: 0
B75: =IF('Bond Input Sheet'!B79="","", 'Bond Input Sheet'!B79) ->  | C75: =IF('Bond Input Sheet'!C79="","NR", 'Bond Input Sheet'!C79) -> NR | D75: =IF('Bond Input Sheet'!D79="","NR", 'Bond Input Sheet'!D79) -> NR | L75: 8 | M75: ='Bond Input Sheet'!E79 -> 0 | N75: ='Bond Input Sheet'!F79 -> 0 | O75: ='Bond Input Sheet'!G79 -> 0 | P75: ='Bond Input Sheet'!H79 -> 0 | Q75: ='Bond Input Sheet'!I79 -> 0 | R75: ='Bond Input Sheet'!J79 -> 0 | S75: 1 | T75: ='Bond Input Sheet'!K79 -> 00:00:00 | U75: 1 | V75: -120.4273973 | W75: 0 | X75: ='Bond Input Sheet'!L79 -> 0 | Y75: =IF('Bond Input Sheet'!M79=0,"",'Bond Input Sheet'!M79) ->  | Z75: ='Bond Input Sheet'!N79 -> 00:00:00 | AA75: ='Bond Input Sheet'!O79 -> 0 | AB75: ='Bond Input Sheet'!P79 -> 0 | AC75: ='Bond Input Sheet'!Q79 -> 0 | AD75: 0 | AE75: 0 | AF75: 0 | AG75: 0 | AH75: 0 | AI75: 0 | AJ75: 0 | AK75: 0 | AL75: 0 | AM75: 0 | AN75: 0 | AO75: 0 | AP75: 0 | AQ75: 0 | AR75: 0 | AS75: 0 | AT75: 0 | AU75: 0 | AV75: 0 | AW75: 0 | AX75: 0 | AY75: 0 | AZ75: 0 | BA75: 0 | BB75: 0 | BC75: 0 | BD75: 0 | BE75: 0 | BF75: 0 | BG75: 0 | BH75: 0 | BI75: 0 | BJ75: ='Bond Input Sheet'!R79 -> 0 | BK75: 0 | BU75: =IF(LowestYield<>"",LowestYield-FairYTM,"") ->  | BW75: 0 | BX75: 0 | BZ75: 0 | CV75: 0 | FS75: 0 | FV75: 0 | FW75: 0
B76: =IF('Bond Input Sheet'!B80="","", 'Bond Input Sheet'!B80) ->  | C76: =IF('Bond Input Sheet'!C80="","NR", 'Bond Input Sheet'!C80) -> NR | D76: =IF('Bond Input Sheet'!D80="","NR", 'Bond Input Sheet'!D80) -> NR | L76: 8 | M76: ='Bond Input Sheet'!E80 -> 0 | N76: ='Bond Input Sheet'!F80 -> 0 | O76: ='Bond Input Sheet'!G80 -> 0 | P76: ='Bond Input Sheet'!H80 -> 0 | Q76: ='Bond Input Sheet'!I80 -> 0 | R76: ='Bond Input Sheet'!J80 -> 0 | S76: 1 | T76: ='Bond Input Sheet'!K80 -> 00:00:00 | U76: 1 | V76: -120.4273973 | W76: 0 | X76: ='Bond Input Sheet'!L80 -> 0 | Y76: =IF('Bond Input Sheet'!M80=0,"",'Bond Input Sheet'!M80) ->  | Z76: ='Bond Input Sheet'!N80 -> 00:00:00 | AA76: ='Bond Input Sheet'!O80 -> 0 | AB76: ='Bond Input Sheet'!P80 -> 0 | AC76: ='Bond Input Sheet'!Q80 -> 0 | AD76: 0 | AE76: 0 | AF76: 0 | AG76: 0 | AH76: 0 | AI76: 0 | AJ76: 0 | AK76: =IF(CouponsPerYear<>0,IF(MOD(($U76-AK$8)/(12/CouponsPerYear),1),,CouponPaymentAmount),0) -> 0 | AL76: 0 | AM76: 0 | AN76: 0 | AO76: 0 | AP76: 0 | AQ76: 0 | AR76: 0 | AS76: 0 | AT76: 0 | AU76: 0 | AV76: 0 | AW76: =IF(CouponsPerYear<>0,IF(MOD(($U76-AW$8)/(12/CouponsPerYear),1),,$AJ76*(1-VLOOKUP(BondType,BondTypeTable,2))),0) -> 0 | AX76: 0 | AY76: 0 | AZ76: 0 | BA76: 0 | BB76: 0 | BC76: 0 | BD76: 0 | BE76: 0 | BF76: 0 | BG76: 0 | BH76: 0 | BI76: 0 | BJ76: ='Bond Input Sheet'!R80 -> 0 | BK76: 0 | BW76: 0 | BX76: 0 | BZ76: 0 | CV76: 0 | FS76: 0 | FV76: 0 | FW76: 0
B77: =IF('Bond Input Sheet'!B81="","", 'Bond Input Sheet'!B81) ->  | C77: =IF('Bond Input Sheet'!C81="","NR", 'Bond Input Sheet'!C81) -> NR | D77: =IF('Bond Input Sheet'!D81="","NR", 'Bond Input Sheet'!D81) -> NR | L77: 8 | M77: ='Bond Input Sheet'!E81 -> 0 | N77: ='Bond Input Sheet'!F81 -> 0 | O77: ='Bond Input Sheet'!G81 -> 0 | P77: ='Bond Input Sheet'!H81 -> 0 | Q77: ='Bond Input Sheet'!I81 -> 0 | R77: ='Bond Input Sheet'!J81 -> 0 | S77: 1 | T77: ='Bond Input Sheet'!K81 -> 00:00:00 | U77: 1 | V77: -120.4273973 | W77: 0 | X77: ='Bond Input Sheet'!L81 -> 0 | Y77: =IF('Bond Input Sheet'!M81=0,"",'Bond Input Sheet'!M81) ->  | Z77: ='Bond Input Sheet'!N81 -> 00:00:00 | AA77: ='Bond Input Sheet'!O81 -> 0 | AB77: ='Bond Input Sheet'!P81 -> 0 | AC77: ='Bond Input Sheet'!Q81 -> 0 | AD77: 0 | AE77: 0 | AF77: 0 | AG77: 0 | AH77: 0 | AI77: 0 | AJ77: 0 | AK77: 0 | AL77: 0 | AM77: 0 | AN77: 0 | AO77: 0 | AP77: 0 | AQ77: 0 | AR77: 0 | AS77: 0 | AT77: 0 | AU77: 0 | AV77: 0 | AW77: 0 | AX77: 0 | AY77: 0 | AZ77: 0 | BA77: 0 | BB77: 0 | BC77: 0 | BD77: 0 | BE77: 0 | BF77: 0 | BG77: 0 | BH77: 0 | BI77: 0 | BJ77: ='Bond Input Sheet'!R81 -> 0 | BK77: 0 | BW77: 0 | BX77: 0 | BZ77: 0 | CV77: 0 | FS77: 0 | FV77: 0 | FW77: 0
B78: =IF('Bond Input Sheet'!B82="","", 'Bond Input Sheet'!B82) ->  | C78: =IF('Bond Input Sheet'!C82="","NR", 'Bond Input Sheet'!C82) -> NR | D78: =IF('Bond Input Sheet'!D82="","NR", 'Bond Input Sheet'!D82) -> NR | L78: 8 | M78: ='Bond Input Sheet'!E82 -> 0 | N78: ='Bond Input Sheet'!F82 -> 0 | O78: ='Bond Input Sheet'!G82 -> 0 | P78: ='Bond Input Sheet'!H82 -> 0 | Q78: ='Bond Input Sheet'!I82 -> 0 | R78: ='Bond Input Sheet'!J82 -> 0 | S78: 1 | T78: ='Bond Input Sheet'!K82 -> 00:00:00 | U78: 1 | V78: -120.4273973 | W78: 0 | X78: ='Bond Input Sheet'!L82 -> 0 | Y78: =IF('Bond Input Sheet'!M82=0,"",'Bond Input Sheet'!M82) ->  | Z78: ='Bond Input Sheet'!N82 -> 00:00:00 | AA78: ='Bond Input Sheet'!O82 -> 0 | AB78: ='Bond Input Sheet'!P82 -> 0 | AC78: ='Bond Input Sheet'!Q82 -> 0 | AD78: 0 | AE78: 0 | AF78: 0 | AG78: 0 | AH78: 0 | AI78: 0 | AJ78: 0 | AK78: 0 | AL78: 0 | AM78: 0 | AN78: 0 | AO78: 0 | AP78: 0 | AQ78: 0 | AR78: 0 | AS78: 0 | AT78: 0 | AU78: 0 | AV78: 0 | AW78: 0 | AX78: 0 | AY78: 0 | AZ78: 0 | BA78: 0 | BB78: 0 | BC78: 0 | BD78: 0 | BE78: 0 | BF78: 0 | BG78: 0 | BH78: 0 | BI78: 0 | BJ78: ='Bond Input Sheet'!R82 -> 0 | BK78: 0 | BW78: 0 | BX78: 0 | BZ78: 0 | CV78: 0 | FS78: 0 | FV78: 0 | FW78: 0
B79: =IF('Bond Input Sheet'!B83="","", 'Bond Input Sheet'!B83) ->  | C79: =IF('Bond Input Sheet'!C83="","NR", 'Bond Input Sheet'!C83) -> NR | D79: =IF('Bond Input Sheet'!D83="","NR", 'Bond Input Sheet'!D83) -> NR | L79: 8 | M79: ='Bond Input Sheet'!E83 -> 0 | N79: ='Bond Input Sheet'!F83 -> 0 | O79: ='Bond Input Sheet'!G83 -> 0 | P79: ='Bond Input Sheet'!H83 -> 0 | Q79: ='Bond Input Sheet'!I83 -> 0 | R79: ='Bond Input Sheet'!J83 -> 0 | S79: 1 | T79: ='Bond Input Sheet'!K83 -> 00:00:00 | U79: 1 | V79: -120.4273973 | W79: 0 | X79: ='Bond Input Sheet'!L83 -> 0 | Y79: =IF('Bond Input Sheet'!M83=0,"",'Bond Input Sheet'!M83) ->  | Z79: ='Bond Input Sheet'!N83 -> 00:00:00 | AA79: ='Bond Input Sheet'!O83 -> 0 | AB79: ='Bond Input Sheet'!P83 -> 0 | AC79: ='Bond Input Sheet'!Q83 -> 0 | AD79: 0 | AE79: 0 | AF79: 0 | AG79: 0 | AH79: 0 | AI79: 0 | AJ79: 0 | AK79: 0 | AL79: 0 | AM79: 0 | AN79: 0 | AO79: 0 | AP79: 0 | AQ79: 0 | AR79: 0 | AS79: 0 | AT79: 0 | AU79: 0 | AV79: 0 | AW79: 0 | AX79: 0 | AY79: 0 | AZ79: 0 | BA79: 0 | BB79: 0 | BC79: 0 | BD79: 0 | BE79: 0 | BF79: 0 | BG79: 0 | BH79: 0 | BI79: 0 | BJ79: ='Bond Input Sheet'!R83 -> 0 | BK79: 0 | BW79: 0 | BX79: 0 | BZ79: 0 | CA79: =IF(AND(Maturity<=CA$511,Maturity>BZ$511),MarketValue,"") ->  | CE79: =IF(AND(Maturity<=CE$511,Maturity>CD$511),MarketValue,"") ->  | CO79: =IF($L79=CO$511,$BW79,"") ->  | CV79: 0 | FS79: 0 | FV79: 0 | FW79: 0
B80: =IF('Bond Input Sheet'!B84="","", 'Bond Input Sheet'!B84) ->  | C80: =IF('Bond Input Sheet'!C84="","NR", 'Bond Input Sheet'!C84) -> NR | D80: =IF('Bond Input Sheet'!D84="","NR", 'Bond Input Sheet'!D84) -> NR | L80: 8 | M80: ='Bond Input Sheet'!E84 -> 0 | N80: ='Bond Input Sheet'!F84 -> 0 | O80: ='Bond Input Sheet'!G84 -> 0 | P80: ='Bond Input Sheet'!H84 -> 0 | Q80: ='Bond Input Sheet'!I84 -> 0 | R80: ='Bond Input Sheet'!J84 -> 0 | S80: 1 | T80: ='Bond Input Sheet'!K84 -> 00:00:00 | U80: 1 | V80: -120.4273973 | W80: 0 | X80: ='Bond Input Sheet'!L84 -> 0 | Y80: =IF('Bond Input Sheet'!M84=0,"",'Bond Input Sheet'!M84) ->  | Z80: ='Bond Input Sheet'!N84 -> 00:00:00 | AA80: ='Bond Input Sheet'!O84 -> 0 | AB80: ='Bond Input Sheet'!P84 -> 0 | AC80: ='Bond Input Sheet'!Q84 -> 0 | AD80: 0 | AE80: 0 | AF80: 0 | AG80: 0 | AH80: 0 | AI80: 0 | AJ80: 0 | AK80: 0 | AL80: 0 | AM80: 0 | AN80: 0 | AO80: 0 | AP80: 0 | AQ80: 0 | AR80: 0 | AS80: 0 | AT80: 0 | AU80: 0 | AV80: 0 | AW80: 0 | AX80: 0 | AY80: 0 | AZ80: 0 | BA80: 0 | BB80: 0 | BC80: 0 | BD80: 0 | BE80: 0 | BF80: 0 | BG80: 0 | BH80: 0 | BI80: 0 | BJ80: ='Bond Input Sheet'!R84 -> 0 | BK80: 0 | BW80: 0 | BX80: 0 | BZ80: 0 | CV80: 0 | FS80: 0 | FV80: 0 | FW80: 0
B81: =IF('Bond Input Sheet'!B85="","", 'Bond Input Sheet'!B85) ->  | C81: =IF('Bond Input Sheet'!C85="","NR", 'Bond Input Sheet'!C85) -> NR | D81: =IF('Bond Input Sheet'!D85="","NR", 'Bond Input Sheet'!D85) -> NR | L81: 8 | M81: ='Bond Input Sheet'!E85 -> 0 | N81: ='Bond Input Sheet'!F85 -> 0 | O81: ='Bond Input Sheet'!G85 -> 0 | P81: ='Bond Input Sheet'!H85 -> 0 | Q81: ='Bond Input Sheet'!I85 -> 0 | R81: ='Bond Input Sheet'!J85 -> 0 | S81: 1 | T81: ='Bond Input Sheet'!K85 -> 00:00:00 | U81: 1 | V81: -120.4273973 | W81: 0 | X81: ='Bond Input Sheet'!L85 -> 0 | Y81: =IF('Bond Input Sheet'!M85=0,"",'Bond Input Sheet'!M85) ->  | Z81: ='Bond Input Sheet'!N85 -> 00:00:00 | AA81: ='Bond Input Sheet'!O85 -> 0 | AB81: ='Bond Input Sheet'!P85 -> 0 | AC81: ='Bond Input Sheet'!Q85 -> 0 | AD81: 0 | AE81: 0 | AF81: 0 | AG81: 0 | AH81: 0 | AI81: 0 | AJ81: 0 | AK81: 0 | AL81: 0 | AM81: 0 | AN81: 0 | AO81: 0 | AP81: 0 | AQ81: 0 | AR81: 0 | AS81: 0 | AT81: 0 | AU81: 0 | AV81: 0 | AW81: 0 | AX81: 0 | AY81: 0 | AZ81: 0 | BA81: 0 | BB81: 0 | BC81: 0 | BD81: 0 | BE81: 0 | BF81: 0 | BG81: 0 | BH81: 0 | BI81: 0 | BJ81: ='Bond Input Sheet'!R85 -> 0 | BK81: 0 | BU81: =IF(LowestYield<>"",LowestYield-FairYTM,"") ->  | BW81: 0 | BX81: 0 | BZ81: 0 | CV81: 0 | FS81: 0 | FV81: 0 | FW81: 0
B82: =IF('Bond Input Sheet'!B86="","", 'Bond Input Sheet'!B86) ->  | C82: =IF('Bond Input Sheet'!C86="","NR", 'Bond Input Sheet'!C86) -> NR | D82: =IF('Bond Input Sheet'!D86="","NR", 'Bond Input Sheet'!D86) -> NR | L82: 8 | M82: ='Bond Input Sheet'!E86 -> 0 | N82: ='Bond Input Sheet'!F86 -> 0 | O82: ='Bond Input Sheet'!G86 -> 0 | P82: ='Bond Input Sheet'!H86 -> 0 | Q82: ='Bond Input Sheet'!I86 -> 0 | R82: ='Bond Input Sheet'!J86 -> 0 | S82: 1 | T82: ='Bond Input Sheet'!K86 -> 00:00:00 | U82: 1 | V82: -120.4273973 | W82: 0 | X82: ='Bond Input Sheet'!L86 -> 0 | Y82: =IF('Bond Input Sheet'!M86=0,"",'Bond Input Sheet'!M86) ->  | Z82: ='Bond Input Sheet'!N86 -> 00:00:00 | AA82: ='Bond Input Sheet'!O86 -> 0 | AB82: ='Bond Input Sheet'!P86 -> 0 | AC82: ='Bond Input Sheet'!Q86 -> 0 | AD82: 0 | AE82: 0 | AF82: 0 | AG82: 0 | AH82: 0 | AI82: 0 | AJ82: 0 | AK82: 0 | AL82: 0 | AM82: 0 | AN82: 0 | AO82: 0 | AP82: 0 | AQ82: 0 | AR82: 0 | AS82: 0 | AT82: 0 | AU82: 0 | AV82: 0 | AW82: 0 | AX82: 0 | AY82: 0 | AZ82: 0 | BA82: 0 | BB82: 0 | BC82: 0 | BD82: 0 | BE82: 0 | BF82: 0 | BG82: 0 | BH82: 0 | BI82: 0 | BJ82: ='Bond Input Sheet'!R86 -> 0 | BK82: 0 | BW82: 0 | BX82: 0 | BZ82: 0 | CV82: 0 | FS82: 0 | FV82: 0 | FW82: 0
B83: =IF('Bond Input Sheet'!B87="","", 'Bond Input Sheet'!B87) ->  | C83: =IF('Bond Input Sheet'!C87="","NR", 'Bond Input Sheet'!C87) -> NR | D83: =IF('Bond Input Sheet'!D87="","NR", 'Bond Input Sheet'!D87) -> NR | G83: =IF(I83="","",MarketValue) ->  | H83: =IF(J83="","",MarketValue) ->  | K83: =IF(B83="","",IF(AND(I83="",J83=""),MATCH("NR",SP_RatingTable,0),ROUND(AVERAGE(I83:J83),0))) ->  | L83: 8 | M83: ='Bond Input Sheet'!E87 -> 0 | N83: ='Bond Input Sheet'!F87 -> 0 | O83: ='Bond Input Sheet'!G87 -> 0 | P83: ='Bond Input Sheet'!H87 -> 0 | Q83: ='Bond Input Sheet'!I87 -> 0 | R83: ='Bond Input Sheet'!J87 -> 0 | S83: 1 | T83: ='Bond Input Sheet'!K87 -> 00:00:00 | U83: 1 | V83: -120.4273973 | W83: 0 | X83: ='Bond Input Sheet'!L87 -> 0 | Y83: =IF('Bond Input Sheet'!M87=0,"",'Bond Input Sheet'!M87) ->  | Z83: ='Bond Input Sheet'!N87 -> 00:00:00 | AA83: ='Bond Input Sheet'!O87 -> 0 | AB83: ='Bond Input Sheet'!P87 -> 0 | AC83: ='Bond Input Sheet'!Q87 -> 0 | AD83: 0 | AE83: 0 | AF83: 0 | AG83: 0 | AH83: 0 | AI83: 0 | AJ83: 0 | AK83: 0 | AL83: 0 | AM83: 0 | AN83: 0 | AO83: 0 | AP83: 0 | AQ83: 0 | AR83: 0 | AS83: 0 | AT83: 0 | AU83: 0 | AV83: 0 | AW83: 0 | AX83: 0 | AY83: 0 | AZ83: 0 | BA83: 0 | BB83: 0 | BC83: 0 | BD83: 0 | BE83: 0 | BF83: 0 | BG83: 0 | BH83: 0 | BI83: 0 | BJ83: ='Bond Input Sheet'!R87 -> 0 | BK83: 0 | BW83: 0 | BX83: 0 | BZ83: 0 | CV83: 0 | FS83: 0 | FV83: 0 | FW83: 0
B84: =IF('Bond Input Sheet'!B88="","", 'Bond Input Sheet'!B88) ->  | C84: =IF('Bond Input Sheet'!C88="","NR", 'Bond Input Sheet'!C88) -> NR | D84: =IF('Bond Input Sheet'!D88="","NR", 'Bond Input Sheet'!D88) -> NR | L84: 8 | M84: ='Bond Input Sheet'!E88 -> 0 | N84: ='Bond Input Sheet'!F88 -> 0 | O84: ='Bond Input Sheet'!G88 -> 0 | P84: ='Bond Input Sheet'!H88 -> 0 | Q84: ='Bond Input Sheet'!I88 -> 0 | R84: ='Bond Input Sheet'!J88 -> 0 | S84: 1 | T84: ='Bond Input Sheet'!K88 -> 00:00:00 | U84: 1 | V84: -120.4273973 | W84: 0 | X84: ='Bond Input Sheet'!L88 -> 0 | Y84: =IF('Bond Input Sheet'!M88=0,"",'Bond Input Sheet'!M88) ->  | Z84: ='Bond Input Sheet'!N88 -> 00:00:00 | AA84: ='Bond Input Sheet'!O88 -> 0 | AB84: ='Bond Input Sheet'!P88 -> 0 | AC84: ='Bond Input Sheet'!Q88 -> 0 | AD84: 0 | AE84: 0 | AF84: 0 | AG84: 0 | AH84: 0 | AI84: 0 | AJ84: 0 | AK84: 0 | AL84: 0 | AM84: 0 | AN84: 0 | AO84: 0 | AP84: 0 | AQ84: 0 | AR84: 0 | AS84: 0 | AT84: 0 | AU84: 0 | AV84: 0 | AW84: 0 | AX84: 0 | AY84: 0 | AZ84: 0 | BA84: 0 | BB84: 0 | BC84: 0 | BD84: 0 | BE84: 0 | BF84: 0 | BG84: 0 | BH84: 0 | BI84: 0 | BJ84: ='Bond Input Sheet'!R88 -> 0 | BK84: 0 | BW84: 0 | BX84: 0 | BZ84: 0 | CV84: 0 | FS84: 0 | FV84: 0 | FW84: 0
B85: =IF('Bond Input Sheet'!B89="","", 'Bond Input Sheet'!B89) ->  | C85: =IF('Bond Input Sheet'!C89="","NR", 'Bond Input Sheet'!C89) -> NR | D85: =IF('Bond Input Sheet'!D89="","NR", 'Bond Input Sheet'!D89) -> NR | L85: 8 | M85: ='Bond Input Sheet'!E89 -> 0 | N85: ='Bond Input Sheet'!F89 -> 0 | O85: ='Bond Input Sheet'!G89 -> 0 | P85: ='Bond Input Sheet'!H89 -> 0 | Q85: ='Bond Input Sheet'!I89 -> 0 | R85: ='Bond Input Sheet'!J89 -> 0 | S85: 1 | T85: ='Bond Input Sheet'!K89 -> 00:00:00 | U85: 1 | V85: -120.4273973 | W85: 0 | X85: ='Bond Input Sheet'!L89 -> 0 | Y85: =IF('Bond Input Sheet'!M89=0,"",'Bond Input Sheet'!M89) ->  | Z85: ='Bond Input Sheet'!N89 -> 00:00:00 | AA85: ='Bond Input Sheet'!O89 -> 0 | AB85: ='Bond Input Sheet'!P89 -> 0 | AC85: ='Bond Input Sheet'!Q89 -> 0 | AD85: 0 | AE85: 0 | AF85: 0 | AG85: 0 | AH85: 0 | AI85: 0 | AJ85: 0 | AK85: 0 | AL85: 0 | AM85: 0 | AN85: 0 | AO85: 0 | AP85: 0 | AQ85: 0 | AR85: 0 | AS85: 0 | AT85: 0 | AU85: 0 | AV85: 0 | AW85: 0 | AX85: 0 | AY85: 0 | AZ85: 0 | BA85: 0 | BB85: 0 | BC85: 0 | BD85: 0 | BE85: 0 | BF85: 0 | BG85: 0 | BH85: 0 | BI85: 0 | BJ85: ='Bond Input Sheet'!R89 -> 0 | BK85: 0 | BW85: 0 | BX85: 0 | BZ85: 0 | CV85: 0 | FS85: 0 | FV85: 0 | FW85: 0
B86: =IF('Bond Input Sheet'!B90="","", 'Bond Input Sheet'!B90) ->  | C86: =IF('Bond Input Sheet'!C90="","NR", 'Bond Input Sheet'!C90) -> NR | D86: =IF('Bond Input Sheet'!D90="","NR", 'Bond Input Sheet'!D90) -> NR | L86: 8 | M86: ='Bond Input Sheet'!E90 -> 0 | N86: ='Bond Input Sheet'!F90 -> 0 | O86: ='Bond Input Sheet'!G90 -> 0 | P86: ='Bond Input Sheet'!H90 -> 0 | Q86: ='Bond Input Sheet'!I90 -> 0 | R86: ='Bond Input Sheet'!J90 -> 0 | S86: 1 | T86: ='Bond Input Sheet'!K90 -> 00:00:00 | U86: 1 | V86: -120.4273973 | W86: 0 | X86: ='Bond Input Sheet'!L90 -> 0 | Y86: =IF('Bond Input Sheet'!M90=0,"",'Bond Input Sheet'!M90) ->  | Z86: ='Bond Input Sheet'!N90 -> 00:00:00 | AA86: ='Bond Input Sheet'!O90 -> 0 | AB86: ='Bond Input Sheet'!P90 -> 0 | AC86: ='Bond Input Sheet'!Q90 -> 0 | AD86: 0 | AE86: 0 | AF86: 0 | AG86: 0 | AH86: 0 | AI86: 0 | AJ86: 0 | AK86: 0 | AL86: 0 | AM86: 0 | AN86: 0 | AO86: 0 | AP86: 0 | AQ86: 0 | AR86: 0 | AS86: 0 | AT86: 0 | AU86: 0 | AV86: 0 | AW86: 0 | AX86: 0 | AY86: 0 | AZ86: 0 | BA86: 0 | BB86: 0 | BC86: 0 | BD86: 0 | BE86: 0 | BF86: 0 | BG86: 0 | BH86: 0 | BI86: 0 | BJ86: ='Bond Input Sheet'!R90 -> 0 | BK86: 0 | BW86: 0 | BX86: 0 | BZ86: 0 | CV86: 0 | FS86: 0 | FV86: 0 | FW86: 0
B87: =IF('Bond Input Sheet'!B91="","", 'Bond Input Sheet'!B91) ->  | C87: =IF('Bond Input Sheet'!C91="","NR", 'Bond Input Sheet'!C91) -> NR | D87: =IF('Bond Input Sheet'!D91="","NR", 'Bond Input Sheet'!D91) -> NR | L87: 8 | M87: ='Bond Input Sheet'!E91 -> 0 | N87: ='Bond Input Sheet'!F91 -> 0 | O87: ='Bond Input Sheet'!G91 -> 0 | P87: ='Bond Input Sheet'!H91 -> 0 | Q87: ='Bond Input Sheet'!I91 -> 0 | R87: ='Bond Input Sheet'!J91 -> 0 | S87: 1 | T87: ='Bond Input Sheet'!K91 -> 00:00:00 | U87: 1 | V87: -120.4273973 | W87: 0 | X87: ='Bond Input Sheet'!L91 -> 0 | Y87: =IF('Bond Input Sheet'!M91=0,"",'Bond Input Sheet'!M91) ->  | Z87: ='Bond Input Sheet'!N91 -> 00:00:00 | AA87: ='Bond Input Sheet'!O91 -> 0 | AB87: ='Bond Input Sheet'!P91 -> 0 | AC87: ='Bond Input Sheet'!Q91 -> 0 | AD87: 0 | AE87: 0 | AF87: 0 | AG87: 0 | AH87: 0 | AI87: 0 | AJ87: 0 | AK87: 0 | AL87: 0 | AM87: 0 | AN87: 0 | AO87: 0 | AP87: 0 | AQ87: 0 | AR87: 0 | AS87: 0 | AT87: 0 | AU87: 0 | AV87: 0 | AW87: 0 | AX87: 0 | AY87: 0 | AZ87: 0 | BA87: 0 | BB87: 0 | BC87: 0 | BD87: 0 | BE87: 0 | BF87: 0 | BG87: 0 | BH87: 0 | BI87: 0 | BJ87: ='Bond Input Sheet'!R91 -> 0 | BK87: 0 | BW87: 0 | BX87: 0 | BZ87: 0 | CV87: 0 | FS87: 0 | FV87: 0 | FW87: 0
B88: =IF('Bond Input Sheet'!B92="","", 'Bond Input Sheet'!B92) ->  | C88: =IF('Bond Input Sheet'!C92="","NR", 'Bond Input Sheet'!C92) -> NR | D88: =IF('Bond Input Sheet'!D92="","NR", 'Bond Input Sheet'!D92) -> NR | L88: 8 | M88: ='Bond Input Sheet'!E92 -> 0 | N88: ='Bond Input Sheet'!F92 -> 0 | O88: ='Bond Input Sheet'!G92 -> 0 | P88: ='Bond Input Sheet'!H92 -> 0 | Q88: ='Bond Input Sheet'!I92 -> 0 | R88: ='Bond Input Sheet'!J92 -> 0 | S88: 1 | T88: ='Bond Input Sheet'!K92 -> 00:00:00 | U88: 1 | V88: -120.4273973 | W88: 0 | X88: ='Bond Input Sheet'!L92 -> 0 | Y88: =IF('Bond Input Sheet'!M92=0,"",'Bond Input Sheet'!M92) ->  | Z88: ='Bond Input Sheet'!N92 -> 00:00:00 | AA88: ='Bond Input Sheet'!O92 -> 0 | AB88: ='Bond Input Sheet'!P92 -> 0 | AC88: ='Bond Input Sheet'!Q92 -> 0 | AD88: 0 | AE88: 0 | AF88: 0 | AG88: 0 | AH88: 0 | AI88: 0 | AJ88: 0 | AK88: 0 | AL88: 0 | AM88: 0 | AN88: 0 | AO88: 0 | AP88: 0 | AQ88: 0 | AR88: 0 | AS88: 0 | AT88: 0 | AU88: 0 | AV88: 0 | AW88: 0 | AX88: 0 | AY88: 0 | AZ88: 0 | BA88: 0 | BB88: 0 | BC88: 0 | BD88: 0 | BE88: 0 | BF88: 0 | BG88: 0 | BH88: 0 | BI88: 0 | BJ88: ='Bond Input Sheet'!R92 -> 0 | BK88: 0 | BW88: 0 | BX88: 0 | BZ88: 0 | CV88: 0 | FS88: 0 | FV88: 0 | FW88: 0
B89: =IF('Bond Input Sheet'!B93="","", 'Bond Input Sheet'!B93) ->  | C89: =IF('Bond Input Sheet'!C93="","NR", 'Bond Input Sheet'!C93) -> NR | D89: =IF('Bond Input Sheet'!D93="","NR", 'Bond Input Sheet'!D93) -> NR | L89: 8 | M89: ='Bond Input Sheet'!E93 -> 0 | N89: ='Bond Input Sheet'!F93 -> 0 | O89: ='Bond Input Sheet'!G93 -> 0 | P89: ='Bond Input Sheet'!H93 -> 0 | Q89: ='Bond Input Sheet'!I93 -> 0 | R89: ='Bond Input Sheet'!J93 -> 0 | S89: 1 | T89: ='Bond Input Sheet'!K93 -> 00:00:00 | U89: 1 | V89: -120.4273973 | W89: 0 | X89: ='Bond Input Sheet'!L93 -> 0 | Y89: =IF('Bond Input Sheet'!M93=0,"",'Bond Input Sheet'!M93) ->  | Z89: ='Bond Input Sheet'!N93 -> 00:00:00 | AA89: ='Bond Input Sheet'!O93 -> 0 | AB89: ='Bond Input Sheet'!P93 -> 0 | AC89: ='Bond Input Sheet'!Q93 -> 0 | AD89: 0 | AE89: 0 | AF89: 0 | AG89: 0 | AH89: 0 | AI89: 0 | AJ89: 0 | AK89: 0 | AL89: 0 | AM89: 0 | AN89: 0 | AO89: 0 | AP89: 0 | AQ89: 0 | AR89: 0 | AS89: 0 | AT89: 0 | AU89: 0 | AV89: 0 | AW89: 0 | AX89: 0 | AY89: 0 | AZ89: 0 | BA89: 0 | BB89: 0 | BC89: 0 | BD89: 0 | BE89: 0 | BF89: 0 | BG89: 0 | BH89: 0 | BI89: 0 | BJ89: ='Bond Input Sheet'!R93 -> 0 | BK89: 0 | BU89: =IF(LowestYield<>"",LowestYield-FairYTM,"") ->  | BW89: 0 | BX89: 0 | BZ89: 0 | CA89: =IF(AND(Maturity<=CA$511,Maturity>BZ$511),MarketValue,"") ->  | CE89: =IF(AND(Maturity<=CE$511,Maturity>CD$511),MarketValue,"") ->  | CO89: =IF($L89=CO$511,$BW89,"") ->  | CV89: 0 | FS89: 0 | FV89: 0 | FW89: 0
B90: =IF('Bond Input Sheet'!B94="","", 'Bond Input Sheet'!B94) ->  | C90: =IF('Bond Input Sheet'!C94="","NR", 'Bond Input Sheet'!C94) -> NR | D90: =IF('Bond Input Sheet'!D94="","NR", 'Bond Input Sheet'!D94) -> NR | L90: 8 | M90: ='Bond Input Sheet'!E94 -> 0 | N90: ='Bond Input Sheet'!F94 -> 0 | O90: ='Bond Input Sheet'!G94 -> 0 | P90: ='Bond Input Sheet'!H94 -> 0 | Q90: ='Bond Input Sheet'!I94 -> 0 | R90: ='Bond Input Sheet'!J94 -> 0 | S90: 1 | T90: ='Bond Input Sheet'!K94 -> 00:00:00 | U90: 1 | V90: -120.4273973 | W90: 0 | X90: ='Bond Input Sheet'!L94 -> 0 | Y90: =IF('Bond Input Sheet'!M94=0,"",'Bond Input Sheet'!M94) ->  | Z90: ='Bond Input Sheet'!N94 -> 00:00:00 | AA90: ='Bond Input Sheet'!O94 -> 0 | AB90: ='Bond Input Sheet'!P94 -> 0 | AC90: ='Bond Input Sheet'!Q94 -> 0 | AD90: 0 | AE90: 0 | AF90: 0 | AG90: 0 | AH90: 0 | AI90: 0 | AJ90: 0 | AK90: 0 | AL90: 0 | AM90: 0 | AN90: 0 | AO90: 0 | AP90: 0 | AQ90: 0 | AR90: 0 | AS90: 0 | AT90: 0 | AU90: 0 | AV90: 0 | AW90: 0 | AX90: 0 | AY90: 0 | AZ90: 0 | BA90: 0 | BB90: 0 | BC90: 0 | BD90: 0 | BE90: 0 | BF90: 0 | BG90: 0 | BH90: 0 | BI90: 0 | BJ90: ='Bond Input Sheet'!R94 -> 0 | BK90: 0 | BW90: 0 | BX90: 0 | BZ90: 0 | CV90: 0 | FS90: 0 | FV90: 0 | FW90: 0
B91: =IF('Bond Input Sheet'!B95="","", 'Bond Input Sheet'!B95) ->  | C91: =IF('Bond Input Sheet'!C95="","NR", 'Bond Input Sheet'!C95) -> NR | D91: =IF('Bond Input Sheet'!D95="","NR", 'Bond Input Sheet'!D95) -> NR | L91: 8 | M91: ='Bond Input Sheet'!E95 -> 0 | N91: ='Bond Input Sheet'!F95 -> 0 | O91: ='Bond Input Sheet'!G95 -> 0 | P91: ='Bond Input Sheet'!H95 -> 0 | Q91: ='Bond Input Sheet'!I95 -> 0 | R91: ='Bond Input Sheet'!J95 -> 0 | S91: 1 | T91: ='Bond Input Sheet'!K95 -> 00:00:00 | U91: 1 | V91: -120.4273973 | W91: 0 | X91: ='Bond Input Sheet'!L95 -> 0 | Y91: =IF('Bond Input Sheet'!M95=0,"",'Bond Input Sheet'!M95) ->  | Z91: ='Bond Input Sheet'!N95 -> 00:00:00 | AA91: ='Bond Input Sheet'!O95 -> 0 | AB91: ='Bond Input Sheet'!P95 -> 0 | AC91: ='Bond Input Sheet'!Q95 -> 0 | AD91: 0 | AE91: 0 | AF91: 0 | AG91: 0 | AH91: 0 | AI91: 0 | AJ91: 0 | AK91: 0 | AL91: 0 | AM91: 0 | AN91: 0 | AO91: 0 | AP91: 0 | AQ91: 0 | AR91: 0 | AS91: 0 | AT91: 0 | AU91: 0 | AV91: 0 | AW91: 0 | AX91: 0 | AY91: 0 | AZ91: 0 | BA91: 0 | BB91: 0 | BC91: 0 | BD91: 0 | BE91: 0 | BF91: 0 | BG91: 0 | BH91: 0 | BI91: 0 | BJ91: ='Bond Input Sheet'!R95 -> 0 | BK91: 0 | BW91: 0 | BX91: 0 | BZ91: 0 | CV91: 0 | FS91: 0 | FV91: 0 | FW91: 0
B92: =IF('Bond Input Sheet'!B96="","", 'Bond Input Sheet'!B96) ->  | C92: =IF('Bond Input Sheet'!C96="","NR", 'Bond Input Sheet'!C96) -> NR | D92: =IF('Bond Input Sheet'!D96="","NR", 'Bond Input Sheet'!D96) -> NR | L92: 8 | M92: ='Bond Input Sheet'!E96 -> 0 | N92: ='Bond Input Sheet'!F96 -> 0 | O92: ='Bond Input Sheet'!G96 -> 0 | P92: ='Bond Input Sheet'!H96 -> 0 | Q92: ='Bond Input Sheet'!I96 -> 0 | R92: ='Bond Input Sheet'!J96 -> 0 | S92: 1 | T92: ='Bond Input Sheet'!K96 -> 00:00:00 | U92: 1 | V92: -120.4273973 | W92: 0 | X92: ='Bond Input Sheet'!L96 -> 0 | Y92: =IF('Bond Input Sheet'!M96=0,"",'Bond Input Sheet'!M96) ->  | Z92: ='Bond Input Sheet'!N96 -> 00:00:00 | AA92: ='Bond Input Sheet'!O96 -> 0 | AB92: ='Bond Input Sheet'!P96 -> 0 | AC92: ='Bond Input Sheet'!Q96 -> 0 | AD92: 0 | AE92: 0 | AF92: 0 | AG92: 0 | AH92: 0 | AI92: 0 | AJ92: 0 | AK92: 0 | AL92: 0 | AM92: 0 | AN92: 0 | AO92: 0 | AP92: 0 | AQ92: 0 | AR92: 0 | AS92: 0 | AT92: 0 | AU92: 0 | AV92: 0 | AW92: 0 | AX92: 0 | AY92: 0 | AZ92: 0 | BA92: 0 | BB92: 0 | BC92: 0 | BD92: 0 | BE92: 0 | BF92: 0 | BG92: 0 | BH92: 0 | BI92: 0 | BJ92: ='Bond Input Sheet'!R96 -> 0 | BK92: 0 | BW92: 0 | BX92: 0 | BZ92: 0 | CV92: 0 | FS92: 0 | FV92: 0 | FW92: 0
B93: =IF('Bond Input Sheet'!B97="","", 'Bond Input Sheet'!B97) ->  | C93: =IF('Bond Input Sheet'!C97="","NR", 'Bond Input Sheet'!C97) -> NR | D93: =IF('Bond Input Sheet'!D97="","NR", 'Bond Input Sheet'!D97) -> NR | L93: 8 | M93: ='Bond Input Sheet'!E97 -> 0 | N93: ='Bond Input Sheet'!F97 -> 0 | O93: ='Bond Input Sheet'!G97 -> 0 | P93: ='Bond Input Sheet'!H97 -> 0 | Q93: ='Bond Input Sheet'!I97 -> 0 | R93: ='Bond Input Sheet'!J97 -> 0 | S93: 1 | T93: ='Bond Input Sheet'!K97 -> 00:00:00 | U93: 1 | V93: -120.4273973 | W93: 0 | X93: ='Bond Input Sheet'!L97 -> 0 | Y93: =IF('Bond Input Sheet'!M97=0,"",'Bond Input Sheet'!M97) ->  | Z93: ='Bond Input Sheet'!N97 -> 00:00:00 | AA93: ='Bond Input Sheet'!O97 -> 0 | AB93: ='Bond Input Sheet'!P97 -> 0 | AC93: ='Bond Input Sheet'!Q97 -> 0 | AD93: 0 | AE93: 0 | AF93: 0 | AG93: 0 | AH93: 0 | AI93: 0 | AJ93: 0 | AK93: 0 | AL93: 0 | AM93: 0 | AN93: 0 | AO93: 0 | AP93: 0 | AQ93: 0 | AR93: 0 | AS93: 0 | AT93: 0 | AU93: 0 | AV93: 0 | AW93: 0 | AX93: 0 | AY93: 0 | AZ93: 0 | BA93: 0 | BB93: 0 | BC93: 0 | BD93: 0 | BE93: 0 | BF93: 0 | BG93: 0 | BH93: 0 | BI93: 0 | BJ93: ='Bond Input Sheet'!R97 -> 0 | BK93: 0 | BW93: 0 | BX93: 0 | BZ93: 0 | CV93: 0 | FS93: 0 | FV93: 0 | FW93: 0
B94: =IF('Bond Input Sheet'!B98="","", 'Bond Input Sheet'!B98) ->  | C94: =IF('Bond Input Sheet'!C98="","NR", 'Bond Input Sheet'!C98) -> NR | D94: =IF('Bond Input Sheet'!D98="","NR", 'Bond Input Sheet'!D98) -> NR | L94: 8 | M94: ='Bond Input Sheet'!E98 -> 0 | N94: ='Bond Input Sheet'!F98 -> 0 | O94: ='Bond Input Sheet'!G98 -> 0 | P94: ='Bond Input Sheet'!H98 -> 0 | Q94: ='Bond Input Sheet'!I98 -> 0 | R94: ='Bond Input Sheet'!J98 -> 0 | S94: 1 | T94: ='Bond Input Sheet'!K98 -> 00:00:00 | U94: 1 | V94: -120.4273973 | W94: 0 | X94: ='Bond Input Sheet'!L98 -> 0 | Y94: =IF('Bond Input Sheet'!M98=0,"",'Bond Input Sheet'!M98) ->  | Z94: ='Bond Input Sheet'!N98 -> 00:00:00 | AA94: ='Bond Input Sheet'!O98 -> 0 | AB94: ='Bond Input Sheet'!P98 -> 0 | AC94: ='Bond Input Sheet'!Q98 -> 0 | AD94: 0 | AE94: 0 | AF94: 0 | AG94: 0 | AH94: 0 | AI94: 0 | AJ94: 0 | AK94: 0 | AL94: 0 | AM94: 0 | AN94: 0 | AO94: 0 | AP94: 0 | AQ94: 0 | AR94: 0 | AS94: 0 | AT94: 0 | AU94: 0 | AV94: 0 | AW94: 0 | AX94: 0 | AY94: 0 | AZ94: 0 | BA94: 0 | BB94: 0 | BC94: 0 | BD94: 0 | BE94: 0 | BF94: 0 | BG94: 0 | BH94: 0 | BI94: 0 | BJ94: ='Bond Input Sheet'!R98 -> 0 | BK94: 0 | BW94: 0 | BX94: 0 | BZ94: 0 | CV94: 0 | FS94: 0 | FV94: 0 | FW94: 0
B95: =IF('Bond Input Sheet'!B99="","", 'Bond Input Sheet'!B99) ->  | C95: =IF('Bond Input Sheet'!C99="","NR", 'Bond Input Sheet'!C99) -> NR | D95: =IF('Bond Input Sheet'!D99="","NR", 'Bond Input Sheet'!D99) -> NR | L95: 8 | M95: ='Bond Input Sheet'!E99 -> 0 | N95: ='Bond Input Sheet'!F99 -> 0 | O95: ='Bond Input Sheet'!G99 -> 0 | P95: ='Bond Input Sheet'!H99 -> 0 | Q95: ='Bond Input Sheet'!I99 -> 0 | R95: ='Bond Input Sheet'!J99 -> 0 | S95: 1 | T95: ='Bond Input Sheet'!K99 -> 00:00:00 | U95: 1 | V95: -120.4273973 | W95: 0 | X95: ='Bond Input Sheet'!L99 -> 0 | Y95: =IF('Bond Input Sheet'!M99=0,"",'Bond Input Sheet'!M99) ->  | Z95: ='Bond Input Sheet'!N99 -> 00:00:00 | AA95: ='Bond Input Sheet'!O99 -> 0 | AB95: ='Bond Input Sheet'!P99 -> 0 | AC95: ='Bond Input Sheet'!Q99 -> 0 | AD95: 0 | AE95: 0 | AF95: 0 | AG95: 0 | AH95: 0 | AI95: 0 | AJ95: 0 | AK95: 0 | AL95: 0 | AM95: 0 | AN95: 0 | AO95: 0 | AP95: 0 | AQ95: 0 | AR95: 0 | AS95: 0 | AT95: 0 | AU95: 0 | AV95: 0 | AW95: 0 | AX95: 0 | AY95: 0 | AZ95: 0 | BA95: 0 | BB95: 0 | BC95: 0 | BD95: 0 | BE95: 0 | BF95: 0 | BG95: 0 | BH95: 0 | BI95: 0 | BJ95: ='Bond Input Sheet'!R99 -> 0 | BK95: 0 | BW95: 0 | BX95: 0 | BZ95: 0 | CV95: 0 | FS95: 0 | FV95: 0 | FW95: 0
B96: =IF('Bond Input Sheet'!B100="","", 'Bond Input Sheet'!B100) ->  | C96: =IF('Bond Input Sheet'!C100="","NR", 'Bond Input Sheet'!C100) -> NR | D96: =IF('Bond Input Sheet'!D100="","NR", 'Bond Input Sheet'!D100) -> NR | L96: 8 | M96: ='Bond Input Sheet'!E100 -> 0 | N96: ='Bond Input Sheet'!F100 -> 0 | O96: ='Bond Input Sheet'!G100 -> 0 | P96: ='Bond Input Sheet'!H100 -> 0 | Q96: ='Bond Input Sheet'!I100 -> 0 | R96: ='Bond Input Sheet'!J100 -> 0 | S96: 1 | T96: ='Bond Input Sheet'!K100 -> 00:00:00 | U96: 1 | V96: -120.4273973 | W96: 0 | X96: ='Bond Input Sheet'!L100 -> 0 | Y96: =IF('Bond Input Sheet'!M100=0,"",'Bond Input Sheet'!M100) ->  | Z96: ='Bond Input Sheet'!N100 -> 00:00:00 | AA96: ='Bond Input Sheet'!O100 -> 0 | AB96: ='Bond Input Sheet'!P100 -> 0 | AC96: ='Bond Input Sheet'!Q100 -> 0 | AD96: 0 | AE96: 0 | AF96: 0 | AG96: 0 | AH96: 0 | AI96: 0 | AJ96: 0 | AK96: 0 | AL96: 0 | AM96: 0 | AN96: =IF(CouponsPerYear<>0,IF(MOD(($U96-AN$8)/(12/CouponsPerYear),1),,CouponPaymentAmount),0) -> 0 | AO96: 0 | AP96: 0 | AQ96: 0 | AR96: 0 | AS96: 0 | AT96: 0 | AU96: 0 | AV96: 0 | AW96: 0 | AX96: 0 | AY96: 0 | AZ96: =IF(CouponsPerYear<>0,IF(MOD(($U96-AZ$8)/(12/CouponsPerYear),1),,$AJ96*(1-VLOOKUP(BondType,BondTypeTable,2))),0) -> 0 | BA96: 0 | BB96: 0 | BC96: 0 | BD96: 0 | BE96: 0 | BF96: 0 | BG96: 0 | BH96: 0 | BI96: 0 | BJ96: ='Bond Input Sheet'!R100 -> 0 | BK96: 0 | BW96: 0 | BX96: 0 | BZ96: 0 | CV96: 0 | FS96: 0 | FV96: 0 | FW96: 0
B97: =IF('Bond Input Sheet'!B101="","", 'Bond Input Sheet'!B101) ->  | C97: =IF('Bond Input Sheet'!C101="","NR", 'Bond Input Sheet'!C101) -> NR | D97: =IF('Bond Input Sheet'!D101="","NR", 'Bond Input Sheet'!D101) -> NR | L97: 8 | M97: ='Bond Input Sheet'!E101 -> 0 | N97: ='Bond Input Sheet'!F101 -> 0 | O97: ='Bond Input Sheet'!G101 -> 0 | P97: ='Bond Input Sheet'!H101 -> 0 | Q97: ='Bond Input Sheet'!I101 -> 0 | R97: ='Bond Input Sheet'!J101 -> 0 | S97: 1 | T97: ='Bond Input Sheet'!K101 -> 00:00:00 | U97: 1 | V97: -120.4273973 | W97: 0 | X97: ='Bond Input Sheet'!L101 -> 0 | Y97: =IF('Bond Input Sheet'!M101=0,"",'Bond Input Sheet'!M101) ->  | Z97: ='Bond Input Sheet'!N101 -> 00:00:00 | AA97: ='Bond Input Sheet'!O101 -> 0 | AB97: ='Bond Input Sheet'!P101 -> 0 | AC97: ='Bond Input Sheet'!Q101 -> 0 | AD97: 0 | AE97: 0 | AF97: 0 | AG97: 0 | AH97: 0 | AI97: 0 | AJ97: 0 | AK97: 0 | AL97: 0 | AM97: 0 | AN97: 0 | AO97: 0 | AP97: 0 | AQ97: 0 | AR97: 0 | AS97: 0 | AT97: 0 | AU97: 0 | AV97: 0 | AW97: 0 | AX97: 0 | AY97: 0 | AZ97: 0 | BA97: 0 | BB97: 0 | BC97: 0 | BD97: 0 | BE97: 0 | BF97: 0 | BG97: 0 | BH97: 0 | BI97: 0 | BJ97: ='Bond Input Sheet'!R101 -> 0 | BK97: 0 | BW97: 0 | BX97: 0 | BZ97: 0 | CV97: 0 | FS97: 0 | FV97: 0 | FW97: 0
B98: =IF('Bond Input Sheet'!B102="","", 'Bond Input Sheet'!B102) ->  | C98: =IF('Bond Input Sheet'!C102="","NR", 'Bond Input Sheet'!C102) -> NR | D98: =IF('Bond Input Sheet'!D102="","NR", 'Bond Input Sheet'!D102) -> NR | L98: 8 | M98: ='Bond Input Sheet'!E102 -> 0 | N98: ='Bond Input Sheet'!F102 -> 0 | O98: ='Bond Input Sheet'!G102 -> 0 | P98: ='Bond Input Sheet'!H102 -> 0 | Q98: ='Bond Input Sheet'!I102 -> 0 | R98: ='Bond Input Sheet'!J102 -> 0 | S98: 1 | T98: ='Bond Input Sheet'!K102 -> 00:00:00 | U98: 1 | V98: -120.4273973 | W98: 0 | X98: ='Bond Input Sheet'!L102 -> 0 | Y98: =IF('Bond Input Sheet'!M102=0,"",'Bond Input Sheet'!M102) ->  | Z98: ='Bond Input Sheet'!N102 -> 00:00:00 | AA98: ='Bond Input Sheet'!O102 -> 0 | AB98: ='Bond Input Sheet'!P102 -> 0 | AC98: ='Bond Input Sheet'!Q102 -> 0 | AD98: 0 | AE98: 0 | AF98: 0 | AG98: 0 | AH98: 0 | AI98: 0 | AJ98: 0 | AK98: 0 | AL98: 0 | AM98: 0 | AN98: 0 | AO98: 0 | AP98: 0 | AQ98: 0 | AR98: 0 | AS98: 0 | AT98: 0 | AU98: 0 | AV98: 0 | AW98: 0 | AX98: 0 | AY98: 0 | AZ98: 0 | BA98: 0 | BB98: 0 | BC98: 0 | BD98: 0 | BE98: 0 | BF98: 0 | BG98: 0 | BH98: 0 | BI98: 0 | BJ98: ='Bond Input Sheet'!R102 -> 0 | BK98: 0 | BW98: 0 | BX98: 0 | BZ98: 0 | CV98: 0 | FS98: 0 | FV98: 0 | FW98: 0
B99: =IF('Bond Input Sheet'!B103="","", 'Bond Input Sheet'!B103) ->  | C99: =IF('Bond Input Sheet'!C103="","NR", 'Bond Input Sheet'!C103) -> NR | D99: =IF('Bond Input Sheet'!D103="","NR", 'Bond Input Sheet'!D103) -> NR | L99: 8 | M99: ='Bond Input Sheet'!E103 -> 0 | N99: ='Bond Input Sheet'!F103 -> 0 | O99: ='Bond Input Sheet'!G103 -> 0 | P99: ='Bond Input Sheet'!H103 -> 0 | Q99: ='Bond Input Sheet'!I103 -> 0 | R99: ='Bond Input Sheet'!J103 -> 0 | S99: 1 | T99: ='Bond Input Sheet'!K103 -> 00:00:00 | U99: 1 | V99: -120.4273973 | W99: 0 | X99: ='Bond Input Sheet'!L103 -> 0 | Y99: =IF('Bond Input Sheet'!M103=0,"",'Bond Input Sheet'!M103) ->  | Z99: ='Bond Input Sheet'!N103 -> 00:00:00 | AA99: ='Bond Input Sheet'!O103 -> 0 | AB99: ='Bond Input Sheet'!P103 -> 0 | AC99: ='Bond Input Sheet'!Q103 -> 0 | AD99: 0 | AE99: 0 | AF99: 0 | AG99: 0 | AH99: 0 | AI99: 0 | AJ99: 0 | AK99: 0 | AL99: 0 | AM99: 0 | AN99: 0 | AO99: 0 | AP99: 0 | AQ99: 0 | AR99: 0 | AS99: 0 | AT99: 0 | AU99: 0 | AV99: 0 | AW99: 0 | AX99: 0 | AY99: 0 | AZ99: 0 | BA99: 0 | BB99: 0 | BC99: 0 | BD99: 0 | BE99: 0 | BF99: 0 | BG99: 0 | BH99: 0 | BI99: 0 | BJ99: ='Bond Input Sheet'!R103 -> 0 | BK99: 0 | BW99: 0 | BX99: 0 | BZ99: 0 | CA99: =IF(AND(Maturity<=CA$511,Maturity>BZ$511),MarketValue,"") ->  | CE99: =IF(AND(Maturity<=CE$511,Maturity>CD$511),MarketValue,"") ->  | CO99: =IF($L99=CO$511,$BW99,"") ->  | CV99: 0 | FS99: 0 | FV99: 0 | FW99: 0
B100: =IF('Bond Input Sheet'!B104="","", 'Bond Input Sheet'!B104) ->  | C100: =IF('Bond Input Sheet'!C104="","NR", 'Bond Input Sheet'!C104) -> NR | D100: =IF('Bond Input Sheet'!D104="","NR", 'Bond Input Sheet'!D104) -> NR | L100: 8 | M100: ='Bond Input Sheet'!E104 -> 0 | N100: ='Bond Input Sheet'!F104 -> 0 | O100: ='Bond Input Sheet'!G104 -> 0 | P100: ='Bond Input Sheet'!H104 -> 0 | Q100: ='Bond Input Sheet'!I104 -> 0 | R100: ='Bond Input Sheet'!J104 -> 0 | S100: 1 | T100: ='Bond Input Sheet'!K104 -> 00:00:00 | U100: 1 | V100: -120.4273973 | W100: 0 | X100: ='Bond Input Sheet'!L104 -> 0 | Y100: =IF('Bond Input Sheet'!M104=0,"",'Bond Input Sheet'!M104) ->  | Z100: ='Bond Input Sheet'!N104 -> 00:00:00 | AA100: ='Bond Input Sheet'!O104 -> 0 | AB100: ='Bond Input Sheet'!P104 -> 0 | AC100: ='Bond Input Sheet'!Q104 -> 0 | AD100: 0 | AE100: 0 | AF100: 0 | AG100: 0 | AH100: 0 | AI100: 0 | AJ100: 0 | AK100: 0 | AL100: 0 | AM100: 0 | AN100: 0 | AO100: 0 | AP100: 0 | AQ100: 0 | AR100: 0 | AS100: 0 | AT100: 0 | AU100: 0 | AV100: 0 | AW100: 0 | AX100: 0 | AY100: 0 | AZ100: 0 | BA100: 0 | BB100: 0 | BC100: 0 | BD100: 0 | BE100: 0 | BF100: 0 | BG100: 0 | BH100: 0 | BI100: 0 | BJ100: ='Bond Input Sheet'!R104 -> 0 | BK100: 0 | BW100: 0 | BX100: 0 | BZ100: 0 | CV100: 0 | FS100: 0 | FV100: 0 | FW100: 0
B101: =IF('Bond Input Sheet'!B105="","", 'Bond Input Sheet'!B105) ->  | C101: =IF('Bond Input Sheet'!C105="","NR", 'Bond Input Sheet'!C105) -> NR | D101: =IF('Bond Input Sheet'!D105="","NR", 'Bond Input Sheet'!D105) -> NR | L101: 8 | M101: ='Bond Input Sheet'!E105 -> 0 | N101: ='Bond Input Sheet'!F105 -> 0 | O101: ='Bond Input Sheet'!G105 -> 0 | P101: ='Bond Input Sheet'!H105 -> 0 | Q101: ='Bond Input Sheet'!I105 -> 0 | R101: ='Bond Input Sheet'!J105 -> 0 | S101: 1 | T101: ='Bond Input Sheet'!K105 -> 00:00:00 | U101: 1 | V101: -120.4273973 | W101: 0 | X101: ='Bond Input Sheet'!L105 -> 0 | Y101: =IF('Bond Input Sheet'!M105=0,"",'Bond Input Sheet'!M105) ->  | Z101: ='Bond Input Sheet'!N105 -> 00:00:00 | AA101: ='Bond Input Sheet'!O105 -> 0 | AB101: ='Bond Input Sheet'!P105 -> 0 | AC101: ='Bond Input Sheet'!Q105 -> 0 | AD101: 0 | AE101: 0 | AF101: 0 | AG101: 0 | AH101: 0 | AI101: 0 | AJ101: 0 | AK101: 0 | AL101: 0 | AM101: 0 | AN101: 0 | AO101: 0 | AP101: 0 | AQ101: 0 | AR101: 0 | AS101: 0 | AT101: 0 | AU101: 0 | AV101: 0 | AW101: 0 | AX101: 0 | AY101: 0 | AZ101: 0 | BA101: 0 | BB101: 0 | BC101: 0 | BD101: 0 | BE101: 0 | BF101: 0 | BG101: 0 | BH101: 0 | BI101: 0 | BJ101: ='Bond Input Sheet'!R105 -> 0 | BK101: 0 | BW101: 0 | BX101: 0 | BZ101: 0 | CV101: 0 | FS101: 0 | FV101: 0 | FW101: 0
B102: =IF('Bond Input Sheet'!B106="","", 'Bond Input Sheet'!B106) ->  | C102: =IF('Bond Input Sheet'!C106="","NR", 'Bond Input Sheet'!C106) -> NR | D102: =IF('Bond Input Sheet'!D106="","NR", 'Bond Input Sheet'!D106) -> NR | L102: 8 | M102: ='Bond Input Sheet'!E106 -> 0 | N102: ='Bond Input Sheet'!F106 -> 0 | O102: ='Bond Input Sheet'!G106 -> 0 | P102: ='Bond Input Sheet'!H106 -> 0 | Q102: ='Bond Input Sheet'!I106 -> 0 | R102: ='Bond Input Sheet'!J106 -> 0 | S102: 1 | T102: ='Bond Input Sheet'!K106 -> 00:00:00 | U102: 1 | V102: -120.4273973 | W102: 0 | X102: ='Bond Input Sheet'!L106 -> 0 | Y102: =IF('Bond Input Sheet'!M106=0,"",'Bond Input Sheet'!M106) ->  | Z102: ='Bond Input Sheet'!N106 -> 00:00:00 | AA102: ='Bond Input Sheet'!O106 -> 0 | AB102: ='Bond Input Sheet'!P106 -> 0 | AC102: ='Bond Input Sheet'!Q106 -> 0 | AD102: 0 | AE102: 0 | AF102: 0 | AG102: 0 | AH102: 0 | AI102: 0 | AJ102: 0 | AK102: 0 | AL102: 0 | AM102: 0 | AN102: 0 | AO102: 0 | AP102: 0 | AQ102: 0 | AR102: 0 | AS102: 0 | AT102: 0 | AU102: 0 | AV102: 0 | AW102: 0 | AX102: 0 | AY102: 0 | AZ102: 0 | BA102: 0 | BB102: 0 | BC102: 0 | BD102: 0 | BE102: 0 | BF102: 0 | BG102: 0 | BH102: 0 | BI102: 0 | BJ102: ='Bond Input Sheet'!R106 -> 0 | BK102: 0 | BW102: 0 | BX102: 0 | BZ102: 0 | CV102: 0 | FS102: 0 | FV102: 0 | FW102: 0
B103: =IF('Bond Input Sheet'!B107="","", 'Bond Input Sheet'!B107) ->  | C103: =IF('Bond Input Sheet'!C107="","NR", 'Bond Input Sheet'!C107) -> NR | D103: =IF('Bond Input Sheet'!D107="","NR", 'Bond Input Sheet'!D107) -> NR | L103: 8 | M103: ='Bond Input Sheet'!E107 -> 0 | N103: ='Bond Input Sheet'!F107 -> 0 | O103: ='Bond Input Sheet'!G107 -> 0 | P103: ='Bond Input Sheet'!H107 -> 0 | Q103: ='Bond Input Sheet'!I107 -> 0 | R103: ='Bond Input Sheet'!J107 -> 0 | S103: 1 | T103: ='Bond Input Sheet'!K107 -> 00:00:00 | U103: 1 | V103: -120.4273973 | W103: 0 | X103: ='Bond Input Sheet'!L107 -> 0 | Y103: =IF('Bond Input Sheet'!M107=0,"",'Bond Input Sheet'!M107) ->  | Z103: ='Bond Input Sheet'!N107 -> 00:00:00 | AA103: ='Bond Input Sheet'!O107 -> 0 | AB103: ='Bond Input Sheet'!P107 -> 0 | AC103: ='Bond Input Sheet'!Q107 -> 0 | AD103: =IF(ISERROR(SEARCH("-",AA103)),AA103,LEFT(AA103,SEARCH("-",AA103)-1)+(1/32)*MID(AA103,SEARCH("-",AA103)+1,2)+IF(LEN(RIGHT(AA103,LEN(AA103)-SEARCH("-",AA103)-2))=1,IF(MID(AA103,SEARCH("-",AA103)+3,1)="+",1/64, MID(AA103,SEARCH("-",AA103)+3,1)*(1/256)),0)) -> 0 | AE103: 0 | AF103: 0 | AG103: =IF(B103<>"",AB103,0) -> 0 | AH103: =IF($B103<>"",AC103,0) -> 0 | AI103: 0 | AJ103: 0 | AK103: 0 | AL103: 0 | AM103: 0 | AN103: 0 | AO103: 0 | AP103: 0 | AQ103: 0 | AR103: 0 | AS103: 0 | AT103: 0 | AU103: 0 | AV103: 0 | AW103: 0 | AX103: 0 | AY103: 0 | AZ103: 0 | BA103: 0 | BB103: 0 | BC103: 0 | BD103: 0 | BE103: 0 | BF103: 0 | BG103: 0 | BH103: 0 | BI103: 0 | BJ103: ='Bond Input Sheet'!R107 -> 0 | BK103: 0 | BS103: =IF(OR(BL103="",YearsToMaturity>29),BN103,INDEX(MarketYieldTable,YearsToMaturity+1,BondTypeIndex)+(INDEX(MarketYieldTable,YearsToMaturity+2,BondTypeIndex)-INDEX(MarketYieldTable,YearsToMaturity+1,BondTypeIndex))*(YearsToMaturity-INT(YearsToMaturity))) ->  | BU103: =IF(LowestYield<>"",LowestYield-FairYTM,"") ->  | BV103: =IF(BX103<>0,BU103*BX103,"") ->  | BW103: 0 | BX103: 0 | BY103: =IF(Bonds<>0,BN103,"") ->  | BZ103: 0 | CV103: 0 | ED103: =IF(DY103="","",DY103*(1-VLOOKUP(BondType,BondTypeTable,2))) ->  | EE103: =IF(DZ103="","",DZ103*(1-VLOOKUP(BondType,BondTypeTable,2))) ->  | EF103: =IF(EA103="","",EA103*(1-VLOOKUP(BondType,BondTypeTable,2))) ->  | EG103: =IF(EB103="","",EB103*(1-VLOOKUP(BondType,BondTypeTable,2))) ->  | EH103: =IF(EC103="","",EC103*(1-VLOOKUP(BondType,BondTypeTable,2))) ->  | ES103: =IF(EI103="","",EI103*(1-VLOOKUP(BondType,BondTypeTable,2))) ->  | ET103: =IF(EJ103="","",EJ103*(1-VLOOKUP(BondType,BondTypeTable,2))) ->  | EU103: =IF(EK103="","",EK103*(1-VLOOKUP(BondType,BondTypeTable,2))) ->  | EV103: =IF(EL103="","",EL103*(1-VLOOKUP(BondType,BondTypeTable,2))) ->  | EW103: =IF(EM103="","",EM103*(1-VLOOKUP(BondType,BondTypeTable,2))) ->  | FK103: =IF(FC103="","",FC103*(1-VLOOKUP(BondType,BondTypeTable,2))) ->  | FL103: =IF(FD103="","",FD103*(1-VLOOKUP(BondType,BondTypeTable,2))) ->  | FM103: =IF(FE103="","",FE103*(1-VLOOKUP(BondType,BondTypeTable,2))) ->  | FN103: =IF(FF103="","",FF103*(1-VLOOKUP(BondType,BondTypeTable,2))) ->  | FO103: =IF(FG103="","",FG103*(1-VLOOKUP(BondType,BondTypeTable,2))) ->  | FP103: =IF(FH103="","",FH103*(1-VLOOKUP(BondType,BondTypeTable,2))) ->  | FQ103: =IF(FI103="","",FI103*(1-VLOOKUP(BondType,BondTypeTable,2))) ->  | FR103: =IF(FJ103="","",FJ103*(1-VLOOKUP(BondType,BondTypeTable,2))) ->  | FS103: 0 | FT103: =IF(AND(TotalPurchaseCost<>0,B103<>""),(MarketValue+InterestPaidOut-TotalPurchaseCost)/TotalPurchaseCost,"") ->  | FV103: 0 | FW103: 0 | FX103: =IF(BL103="","",(PriceIf100bpFall-PriceIf100bpRise)/(2*CurrentPrice*0.01)*(1+CurrentYield)) ->  | FY103: =IF(BL103="","",PercentPortfolio*ModDuration) ->  | FZ103: =IF(BL103="","",(PriceIf100bpRise+PriceIf100bpFall-(2*CurrentPrice))/((CurrentPrice*(0.01*0.01)))) ->  | GA103: =IF(BL103="","",(BW103/TotalPortfolioValue)*FZ103) ->  | GB103: =IF(BL103="","",ModDuration*0.01-((0.5)*BondConvexity*0.01*0.01)) ->  | GC103: =IF(BL103="","",(BX103)*GB103) ->  | GD103: =IF(BL103="","",MarketValue*BondRisk) -> 
B104: =IF('Bond Input Sheet'!B108="","", 'Bond Input Sheet'!B108) ->  | C104: =IF('Bond Input Sheet'!C108="","NR", 'Bond Input Sheet'!C108) -> NR | D104: =IF('Bond Input Sheet'!D108="","NR", 'Bond Input Sheet'!D108) -> NR | L104: 8 | M104: ='Bond Input Sheet'!E108 -> 0 | N104: ='Bond Input Sheet'!F108 -> 0 | O104: ='Bond Input Sheet'!G108 -> 0 | P104: ='Bond Input Sheet'!H108 -> 0 | Q104: ='Bond Input Sheet'!I108 -> 0 | R104: ='Bond Input Sheet'!J108 -> 0 | S104: 1 | T104: ='Bond Input Sheet'!K108 -> 00:00:00 | U104: 1 | V104: -120.4273973 | W104: 0 | X104: ='Bond Input Sheet'!L108 -> 0 | Y104: =IF('Bond Input Sheet'!M108=0,"",'Bond Input Sheet'!M108) ->  | Z104: ='Bond Input Sheet'!N108 -> 00:00:00 | AA104: ='Bond Input Sheet'!O108 -> 0 | AB104: ='Bond Input Sheet'!P108 -> 0 | AC104: ='Bond Input Sheet'!Q108 -> 0 | AD104: 0 | AE104: 0 | AF104: 0 | AG104: 0 | AH104: 0 | AI104: 0 | AJ104: 0 | AK104: 0 | AL104: 0 | AM104: 0 | AN104: 0 | AO104: 0 | AP104: 0 | AQ104: 0 | AR104: 0 | AS104: 0 | AT104: 0 | AU104: 0 | AV104: 0 | AW104: 0 | AX104: 0 | AY104: 0 | AZ104: 0 | BA104: 0 | BB104: 0 | BC104: 0 | BD104: 0 | BE104: 0 | BF104: 0 | BG104: 0 | BH104: 0 | BI104: 0 | BJ104: ='Bond Input Sheet'!R108 -> 0 | BK104: 0 | BW104: 0 | BX104: 0 | BZ104: 0 | CV104: 0 | FS104: 0 | FV104: 0 | FW104: 0
B105: =IF('Bond Input Sheet'!B109="","", 'Bond Input Sheet'!B109) ->  | C105: =IF('Bond Input Sheet'!C109="","NR", 'Bond Input Sheet'!C109) -> NR | D105: =IF('Bond Input Sheet'!D109="","NR", 'Bond Input Sheet'!D109) -> NR | L105: 8 | M105: ='Bond Input Sheet'!E109 -> 0 | N105: ='Bond Input Sheet'!F109 -> 0 | O105: ='Bond Input Sheet'!G109 -> 0 | P105: ='Bond Input Sheet'!H109 -> 0 | Q105: ='Bond Input Sheet'!I109 -> 0 | R105: ='Bond Input Sheet'!J109 -> 0 | S105: 1 | T105: ='Bond Input Sheet'!K109 -> 00:00:00 | U105: 1 | V105: -120.4273973 | W105: 0 | X105: ='Bond Input Sheet'!L109 -> 0 | Y105: =IF('Bond Input Sheet'!M109=0,"",'Bond Input Sheet'!M109) ->  | Z105: ='Bond Input Sheet'!N109 -> 00:00:00 | AA105: ='Bond Input Sheet'!O109 -> 0 | AB105: ='Bond Input Sheet'!P109 -> 0 | AC105: ='Bond Input Sheet'!Q109 -> 0 | AD105: 0 | AE105: 0 | AF105: 0 | AG105: 0 | AH105: 0 | AI105: 0 | AJ105: 0 | AK105: 0 | AL105: 0 | AM105: 0 | AN105: 0 | AO105: 0 | AP105: 0 | AQ105: 0 | AR105: 0 | AS105: 0 | AT105: 0 | AU105: 0 | AV105: 0 | AW105: 0 | AX105: 0 | AY105: 0 | AZ105: 0 | BA105: 0 | BB105: 0 | BC105: 0 | BD105: 0 | BE105: 0 | BF105: 0 | BG105: 0 | BH105: 0 | BI105: 0 | BJ105: ='Bond Input Sheet'!R109 -> 0 | BK105: 0 | BW105: 0 | BX105: 0 | BZ105: 0 | CV105: 0 | FS105: 0 | FV105: 0 | FW105: 0
B106: =IF('Bond Input Sheet'!B110="","", 'Bond Input Sheet'!B110) ->  | C106: =IF('Bond Input Sheet'!C110="","NR", 'Bond Input Sheet'!C110) -> NR | D106: =IF('Bond Input Sheet'!D110="","NR", 'Bond Input Sheet'!D110) -> NR | L106: 8 | M106: ='Bond Input Sheet'!E110 -> 0 | N106: ='Bond Input Sheet'!F110 -> 0 | O106: ='Bond Input Sheet'!G110 -> 0 | P106: ='Bond Input Sheet'!H110 -> 0 | Q106: ='Bond Input Sheet'!I110 -> 0 | R106: ='Bond Input Sheet'!J110 -> 0 | S106: 1 | T106: ='Bond Input Sheet'!K110 -> 00:00:00 | U106: 1 | V106: -120.4273973 | W106: 0 | X106: ='Bond Input Sheet'!L110 -> 0 | Y106: =IF('Bond Input Sheet'!M110=0,"",'Bond Input Sheet'!M110) ->  | Z106: ='Bond Input Sheet'!N110 -> 00:00:00 | AA106: ='Bond Input Sheet'!O110 -> 0 | AB106: ='Bond Input Sheet'!P110 -> 0 | AC106: ='Bond Input Sheet'!Q110 -> 0 | AD106: 0 | AE106: 0 | AF106: 0 | AG106: 0 | AH106: 0 | AI106: 0 | AJ106: 0 | AK106: 0 | AL106: 0 | AM106: 0 | AN106: 0 | AO106: 0 | AP106: 0 | AQ106: 0 | AR106: 0 | AS106: 0 | AT106: 0 | AU106: 0 | AV106: 0 | AW106: 0 | AX106: 0 | AY106: 0 | AZ106: 0 | BA106: 0 | BB106: 0 | BC106: 0 | BD106: 0 | BE106: 0 | BF106: 0 | BG106: 0 | BH106: 0 | BI106: 0 | BJ106: ='Bond Input Sheet'!R110 -> 0 | BK106: 0 | BW106: 0 | BX106: 0 | BZ106: 0 | CV106: 0 | FS106: 0 | FV106: 0 | FW106: 0
B107: =IF('Bond Input Sheet'!B111="","", 'Bond Input Sheet'!B111) ->  | C107: =IF('Bond Input Sheet'!C111="","NR", 'Bond Input Sheet'!C111) -> NR | D107: =IF('Bond Input Sheet'!D111="","NR", 'Bond Input Sheet'!D111) -> NR | L107: 8 | M107: ='Bond Input Sheet'!E111 -> 0 | N107: ='Bond Input Sheet'!F111 -> 0 | O107: ='Bond Input Sheet'!G111 -> 0 | P107: ='Bond Input Sheet'!H111 -> 0 | Q107: ='Bond Input Sheet'!I111 -> 0 | R107: ='Bond Input Sheet'!J111 -> 0 | S107: 1 | T107: ='Bond Input Sheet'!K111 -> 00:00:00 | U107: 1 | V107: -120.4273973 | W107: 0 | X107: ='Bond Input Sheet'!L111 -> 0 | Y107: =IF('Bond Input Sheet'!M111=0,"",'Bond Input Sheet'!M111) ->  | Z107: ='Bond Input Sheet'!N111 -> 00:00:00 | AA107: ='Bond Input Sheet'!O111 -> 0 | AB107: ='Bond Input Sheet'!P111 -> 0 | AC107: ='Bond Input Sheet'!Q111 -> 0 | AD107: 0 | AE107: 0 | AF107: 0 | AG107: 0 | AH107: 0 | AI107: 0 | AJ107: 0 | AK107: 0 | AL107: 0 | AM107: 0 | AN107: 0 | AO107: 0 | AP107: 0 | AQ107: 0 | AR107: 0 | AS107: 0 | AT107: 0 | AU107: 0 | AV107: 0 | AW107: 0 | AX107: 0 | AY107: 0 | AZ107: 0 | BA107: 0 | BB107: 0 | BC107: 0 | BD107: 0 | BE107: 0 | BF107: 0 | BG107: 0 | BH107: 0 | BI107: 0 | BJ107: ='Bond Input Sheet'!R111 -> 0 | BK107: 0 | BW107: 0 | BX107: 0 | BZ107: 0 | CV107: 0 | FS107: 0 | FV107: 0 | FW107: 0
B108: =IF('Bond Input Sheet'!B112="","", 'Bond Input Sheet'!B112) ->  | C108: =IF('Bond Input Sheet'!C112="","NR", 'Bond Input Sheet'!C112) -> NR | D108: =IF('Bond Input Sheet'!D112="","NR", 'Bond Input Sheet'!D112) -> NR | L108: 8 | M108: ='Bond Input Sheet'!E112 -> 0 | N108: ='Bond Input Sheet'!F112 -> 0 | O108: ='Bond Input Sheet'!G112 -> 0 | P108: ='Bond Input Sheet'!H112 -> 0 | Q108: ='Bond Input Sheet'!I112 -> 0 | R108: ='Bond Input Sheet'!J112 -> 0 | S108: 1 | T108: ='Bond Input Sheet'!K112 -> 00:00:00 | U108: 1 | V108: -120.4273973 | W108: 0 | X108: ='Bond Input Sheet'!L112 -> 0 | Y108: =IF('Bond Input Sheet'!M112=0,"",'Bond Input Sheet'!M112) ->  | Z108: ='Bond Input Sheet'!N112 -> 00:00:00 | AA108: ='Bond Input Sheet'!O112 -> 0 | AB108: ='Bond Input Sheet'!P112 -> 0 | AC108: ='Bond Input Sheet'!Q112 -> 0 | AD108: 0 | AE108: 0 | AF108: 0 | AG108: 0 | AH108: 0 | AI108: 0 | AJ108: 0 | AK108: 0 | AL108: 0 | AM108: 0 | AN108: 0 | AO108: 0 | AP108: 0 | AQ108: 0 | AR108: 0 | AS108: 0 | AT108: 0 | AU108: 0 | AV108: 0 | AW108: 0 | AX108: 0 | AY108: 0 | AZ108: 0 | BA108: 0 | BB108: 0 | BC108: 0 | BD108: 0 | BE108: 0 | BF108: 0 | BG108: 0 | BH108: 0 | BI108: 0 | BJ108: ='Bond Input Sheet'!R112 -> 0 | BK108: 0 | BW108: 0 | BX108: 0 | BZ108: 0 | CV108: 0 | FS108: 0 | FV108: 0 | FW108: 0
B109: =IF('Bond Input Sheet'!B113="","", 'Bond Input Sheet'!B113) ->  | C109: =IF('Bond Input Sheet'!C113="","NR", 'Bond Input Sheet'!C113) -> NR | D109: =IF('Bond Input Sheet'!D113="","NR", 'Bond Input Sheet'!D113) -> NR | L109: 8 | M109: ='Bond Input Sheet'!E113 -> 0 | N109: ='Bond Input Sheet'!F113 -> 0 | O109: ='Bond Input Sheet'!G113 -> 0 | P109: ='Bond Input Sheet'!H113 -> 0 | Q109: ='Bond Input Sheet'!I113 -> 0 | R109: ='Bond Input Sheet'!J113 -> 0 | S109: 1 | T109: ='Bond Input Sheet'!K113 -> 00:00:00 | U109: 1 | V109: -120.4273973 | W109: 0 | X109: ='Bond Input Sheet'!L113 -> 0 | Y109: =IF('Bond Input Sheet'!M113=0,"",'Bond Input Sheet'!M113) ->  | Z109: ='Bond Input Sheet'!N113 -> 00:00:00 | AA109: ='Bond Input Sheet'!O113 -> 0 | AB109: ='Bond Input Sheet'!P113 -> 0 | AC109: ='Bond Input Sheet'!Q113 -> 0 | AD109: 0 | AE109: 0 | AF109: 0 | AG109: 0 | AH109: 0 | AI109: 0 | AJ109: 0 | AK109: 0 | AL109: 0 | AM109: 0 | AN109: 0 | AO109: 0 | AP109: 0 | AQ109: 0 | AR109: 0 | AS109: 0 | AT109: 0 | AU109: 0 | AV109: 0 | AW109: 0 | AX109: 0 | AY109: 0 | AZ109: 0 | BA109: 0 | BB109: 0 | BC109: 0 | BD109: 0 | BE109: 0 | BF109: 0 | BG109: 0 | BH109: 0 | BI109: 0 | BJ109: ='Bond Input Sheet'!R113 -> 0 | BK109: 0 | BU109: =IF(LowestYield<>"",LowestYield-FairYTM,"") ->  | BW109: 0 | BX109: 0 | BZ109: 0 | CA109: =IF(AND(Maturity<=CA$511,Maturity>BZ$511),MarketValue,"") ->  | CE109: =IF(AND(Maturity<=CE$511,Maturity>CD$511),MarketValue,"") ->  | CO109: =IF($L109=CO$511,$BW109,"") ->  | CV109: 0 | FS109: 0 | FV109: 0 | FW109: 0
B110: =IF('Bond Input Sheet'!B114="","", 'Bond Input Sheet'!B114) ->  | C110: =IF('Bond Input Sheet'!C114="","NR", 'Bond Input Sheet'!C114) -> NR | D110: =IF('Bond Input Sheet'!D114="","NR", 'Bond Input Sheet'!D114) -> NR | L110: 8 | M110: ='Bond Input Sheet'!E114 -> 0 | N110: ='Bond Input Sheet'!F114 -> 0 | O110: ='Bond Input Sheet'!G114 -> 0 | P110: ='Bond Input Sheet'!H114 -> 0 | Q110: ='Bond Input Sheet'!I114 -> 0 | R110: ='Bond Input Sheet'!J114 -> 0 | S110: 1 | T110: ='Bond Input Sheet'!K114 -> 00:00:00 | U110: 1 | V110: -120.4273973 | W110: 0 | X110: ='Bond Input Sheet'!L114 -> 0 | Y110: =IF('Bond Input Sheet'!M114=0,"",'Bond Input Sheet'!M114) ->  | Z110: ='Bond Input Sheet'!N114 -> 00:00:00 | AA110: ='Bond Input Sheet'!O114 -> 0 | AB110: ='Bond Input Sheet'!P114 -> 0 | AC110: ='Bond Input Sheet'!Q114 -> 0 | AD110: 0 | AE110: 0 | AF110: 0 | AG110: 0 | AH110: 0 | AI110: 0 | AJ110: 0 | AK110: 0 | AL110: 0 | AM110: 0 | AN110: 0 | AO110: 0 | AP110: 0 | AQ110: 0 | AR110: 0 | AS110: 0 | AT110: 0 | AU110: 0 | AV110: 0 | AW110: 0 | AX110: 0 | AY110: 0 | AZ110: 0 | BA110: 0 | BB110: 0 | BC110: 0 | BD110: 0 | BE110: 0 | BF110: 0 | BG110: 0 | BH110: 0 | BI110: 0 | BJ110: ='Bond Input Sheet'!R114 -> 0 | BK110: 0 | BW110: 0 | BX110: 0 | BZ110: 0 | CV110: 0 | FS110: 0 | FV110: 0 | FW110: 0
B111: =IF('Bond Input Sheet'!B115="","", 'Bond Input Sheet'!B115) ->  | C111: =IF('Bond Input Sheet'!C115="","NR", 'Bond Input Sheet'!C115) -> NR | D111: =IF('Bond Input Sheet'!D115="","NR", 'Bond Input Sheet'!D115) -> NR | L111: 8 | M111: ='Bond Input Sheet'!E115 -> 0 | N111: ='Bond Input Sheet'!F115 -> 0 | O111: ='Bond Input Sheet'!G115 -> 0 | P111: ='Bond Input Sheet'!H115 -> 0 | Q111: ='Bond Input Sheet'!I115 -> 0 | R111: ='Bond Input Sheet'!J115 -> 0 | S111: 1 | T111: ='Bond Input Sheet'!K115 -> 00:00:00 | U111: 1 | V111: -120.4273973 | W111: 0 | X111: ='Bond Input Sheet'!L115 -> 0 | Y111: =IF('Bond Input Sheet'!M115=0,"",'Bond Input Sheet'!M115) ->  | Z111: ='Bond Input Sheet'!N115 -> 00:00:00 | AA111: ='Bond Input Sheet'!O115 -> 0 | AB111: ='Bond Input Sheet'!P115 -> 0 | AC111: ='Bond Input Sheet'!Q115 -> 0 | AD111: 0 | AE111: 0 | AF111: 0 | AG111: 0 | AH111: 0 | AI111: 0 | AJ111: 0 | AK111: 0 | AL111: 0 | AM111: 0 | AN111: 0 | AO111: 0 | AP111: 0 | AQ111: 0 | AR111: 0 | AS111: 0 | AT111: 0 | AU111: 0 | AV111: 0 | AW111: 0 | AX111: 0 | AY111: 0 | AZ111: 0 | BA111: 0 | BB111: 0 | BC111: 0 | BD111: 0 | BE111: 0 | BF111: 0 | BG111: 0 | BH111: 0 | BI111: 0 | BJ111: ='Bond Input Sheet'!R115 -> 0 | BK111: 0 | BW111: 0 | BX111: 0 | BZ111: 0 | CV111: 0 | FS111: 0 | FV111: 0 | FW111: 0
B112: =IF('Bond Input Sheet'!B116="","", 'Bond Input Sheet'!B116) ->  | C112: =IF('Bond Input Sheet'!C116="","NR", 'Bond Input Sheet'!C116) -> NR | D112: =IF('Bond Input Sheet'!D116="","NR", 'Bond Input Sheet'!D116) -> NR | L112: 8 | M112: ='Bond Input Sheet'!E116 -> 0 | N112: ='Bond Input Sheet'!F116 -> 0 | O112: ='Bond Input Sheet'!G116 -> 0 | P112: ='Bond Input Sheet'!H116 -> 0 | Q112: ='Bond Input Sheet'!I116 -> 0 | R112: ='Bond Input Sheet'!J116 -> 0 | S112: 1 | T112: ='Bond Input Sheet'!K116 -> 00:00:00 | U112: 1 | V112: -120.4273973 | W112: 0 | X112: ='Bond Input Sheet'!L116 -> 0 | Y112: =IF('Bond Input Sheet'!M116=0,"",'Bond Input Sheet'!M116) ->  | Z112: ='Bond Input Sheet'!N116 -> 00:00:00 | AA112: ='Bond Input Sheet'!O116 -> 0 | AB112: ='Bond Input Sheet'!P116 -> 0 | AC112: ='Bond Input Sheet'!Q116 -> 0 | AD112: 0 | AE112: 0 | AF112: 0 | AG112: 0 | AH112: 0 | AI112: 0 | AJ112: 0 | AK112: 0 | AL112: 0 | AM112: 0 | AN112: 0 | AO112: 0 | AP112: 0 | AQ112: 0 | AR112: 0 | AS112: 0 | AT112: 0 | AU112: 0 | AV112: 0 | AW112: 0 | AX112: 0 | AY112: 0 | AZ112: 0 | BA112: 0 | BB112: 0 | BC112: 0 | BD112: 0 | BE112: 0 | BF112: 0 | BG112: 0 | BH112: 0 | BI112: 0 | BJ112: ='Bond Input Sheet'!R116 -> 0 | BK112: 0 | BW112: 0 | BX112: 0 | BZ112: 0 | CV112: 0 | FS112: 0 | FV112: 0 | FW112: 0
B113: =IF('Bond Input Sheet'!B117="","", 'Bond Input Sheet'!B117) ->  | C113: =IF('Bond Input Sheet'!C117="","NR", 'Bond Input Sheet'!C117) -> NR | D113: =IF('Bond Input Sheet'!D117="","NR", 'Bond Input Sheet'!D117) -> NR | L113: 8 | M113: ='Bond Input Sheet'!E117 -> 0 | N113: ='Bond Input Sheet'!F117 -> 0 | O113: ='Bond Input Sheet'!G117 -> 0 | P113: ='Bond Input Sheet'!H117 -> 0 | Q113: ='Bond Input Sheet'!I117 -> 0 | R113: ='Bond Input Sheet'!J117 -> 0 | S113: 1 | T113: ='Bond Input Sheet'!K117 -> 00:00:00 | U113: 1 | V113: -120.4273973 | W113: 0 | X113: ='Bond Input Sheet'!L117 -> 0 | Y113: =IF('Bond Input Sheet'!M117=0,"",'Bond Input Sheet'!M117) ->  | Z113: ='Bond Input Sheet'!N117 -> 00:00:00 | AA113: ='Bond Input Sheet'!O117 -> 0 | AB113: ='Bond Input Sheet'!P117 -> 0 | AC113: ='Bond Input Sheet'!Q117 -> 0 | AD113: 0 | AE113: 0 | AF113: 0 | AG113: 0 | AH113: 0 | AI113: 0 | AJ113: 0 | AK113: 0 | AL113: 0 | AM113: 0 | AN113: 0 | AO113: 0 | AP113: 0 | AQ113: 0 | AR113: 0 | AS113: 0 | AT113: 0 | AU113: 0 | AV113: 0 | AW113: 0 | AX113: 0 | AY113: 0 | AZ113: 0 | BA113: 0 | BB113: 0 | BC113: 0 | BD113: 0 | BE113: 0 | BF113: 0 | BG113: 0 | BH113: 0 | BI113: 0 | BJ113: ='Bond Input Sheet'!R117 -> 0 | BK113: 0 | BW113: 0 | BX113: 0 | BZ113: 0 | CV113: 0 | FS113: 0 | FV113: 0 | FW113: 0
B114: =IF('Bond Input Sheet'!B118="","", 'Bond Input Sheet'!B118) ->  | C114: =IF('Bond Input Sheet'!C118="","NR", 'Bond Input Sheet'!C118) -> NR | D114: =IF('Bond Input Sheet'!D118="","NR", 'Bond Input Sheet'!D118) -> NR | L114: 8 | M114: ='Bond Input Sheet'!E118 -> 0 | N114: ='Bond Input Sheet'!F118 -> 0 | O114: ='Bond Input Sheet'!G118 -> 0 | P114: ='Bond Input Sheet'!H118 -> 0 | Q114: ='Bond Input Sheet'!I118 -> 0 | R114: ='Bond Input Sheet'!J118 -> 0 | S114: 1 | T114: ='Bond Input Sheet'!K118 -> 00:00:00 | U114: 1 | V114: -120.4273973 | W114: 0 | X114: ='Bond Input Sheet'!L118 -> 0 | Y114: =IF('Bond Input Sheet'!M118=0,"",'Bond Input Sheet'!M118) ->  | Z114: ='Bond Input Sheet'!N118 -> 00:00:00 | AA114: ='Bond Input Sheet'!O118 -> 0 | AB114: ='Bond Input Sheet'!P118 -> 0 | AC114: ='Bond Input Sheet'!Q118 -> 0 | AD114: 0 | AE114: 0 | AF114: 0 | AG114: 0 | AH114: 0 | AI114: 0 | AJ114: 0 | AK114: 0 | AL114: 0 | AM114: 0 | AN114: 0 | AO114: 0 | AP114: 0 | AQ114: 0 | AR114: 0 | AS114: 0 | AT114: 0 | AU114: 0 | AV114: 0 | AW114: 0 | AX114: 0 | AY114: 0 | AZ114: 0 | BA114: 0 | BB114: 0 | BC114: 0 | BD114: 0 | BE114: 0 | BF114: 0 | BG114: 0 | BH114: 0 | BI114: 0 | BJ114: ='Bond Input Sheet'!R118 -> 0 | BK114: 0 | BW114: 0 | BX114: 0 | BZ114: 0 | CV114: 0 | FS114: 0 | FV114: 0 | FW114: 0
B115: =IF('Bond Input Sheet'!B119="","", 'Bond Input Sheet'!B119) ->  | C115: =IF('Bond Input Sheet'!C119="","NR", 'Bond Input Sheet'!C119) -> NR | D115: =IF('Bond Input Sheet'!D119="","NR", 'Bond Input Sheet'!D119) -> NR | L115: 8 | M115: ='Bond Input Sheet'!E119 -> 0 | N115: ='Bond Input Sheet'!F119 -> 0 | O115: ='Bond Input Sheet'!G119 -> 0 | P115: ='Bond Input Sheet'!H119 -> 0 | Q115: ='Bond Input Sheet'!I119 -> 0 | R115: ='Bond Input Sheet'!J119 -> 0 | S115: 1 | T115: ='Bond Input Sheet'!K119 -> 00:00:00 | U115: 1 | V115: -120.4273973 | W115: 0 | X115: ='Bond Input Sheet'!L119 -> 0 | Y115: =IF('Bond Input Sheet'!M119=0,"",'Bond Input Sheet'!M119) ->  | Z115: ='Bond Input Sheet'!N119 -> 00:00:00 | AA115: ='Bond Input Sheet'!O119 -> 0 | AB115: ='Bond Input Sheet'!P119 -> 0 | AC115: ='Bond Input Sheet'!Q119 -> 0 | AD115: 0 | AE115: 0 | AF115: 0 | AG115: 0 | AH115: 0 | AI115: 0 | AJ115: 0 | AK115: 0 | AL115: 0 | AM115: 0 | AN115: 0 | AO115: 0 | AP115: 0 | AQ115: 0 | AR115: 0 | AS115: 0 | AT115: 0 | AU115: 0 | AV115: 0 | AW115: 0 | AX115: 0 | AY115: 0 | AZ115: 0 | BA115: 0 | BB115: 0 | BC115: 0 | BD115: 0 | BE115: 0 | BF115: 0 | BG115: 0 | BH115: 0 | BI115: 0 | BJ115: ='Bond Input Sheet'!R119 -> 0 | BK115: 0 | BW115: 0 | BX115: 0 | BZ115: 0 | CV115: 0 | FS115: 0 | FV115: 0 | FW115: 0
B116: =IF('Bond Input Sheet'!B120="","", 'Bond Input Sheet'!B120) ->  | C116: =IF('Bond Input Sheet'!C120="","NR", 'Bond Input Sheet'!C120) -> NR | D116: =IF('Bond Input Sheet'!D120="","NR", 'Bond Input Sheet'!D120) -> NR | L116: 8 | M116: ='Bond Input Sheet'!E120 -> 0 | N116: ='Bond Input Sheet'!F120 -> 0 | O116: ='Bond Input Sheet'!G120 -> 0 | P116: ='Bond Input Sheet'!H120 -> 0 | Q116: ='Bond Input Sheet'!I120 -> 0 | R116: ='Bond Input Sheet'!J120 -> 0 | S116: 1 | T116: ='Bond Input Sheet'!K120 -> 00:00:00 | U116: 1 | V116: -120.4273973 | W116: 0 | X116: ='Bond Input Sheet'!L120 -> 0 | Y116: =IF('Bond Input Sheet'!M120=0,"",'Bond Input Sheet'!M120) ->  | Z116: ='Bond Input Sheet'!N120 -> 00:00:00 | AA116: ='Bond Input Sheet'!O120 -> 0 | AB116: ='Bond Input Sheet'!P120 -> 0 | AC116: ='Bond Input Sheet'!Q120 -> 0 | AD116: 0 | AE116: 0 | AF116: 0 | AG116: 0 | AH116: 0 | AI116: 0 | AJ116: 0 | AK116: 0 | AL116: 0 | AM116: 0 | AN116: 0 | AO116: 0 | AP116: 0 | AQ116: 0 | AR116: 0 | AS116: 0 | AT116: 0 | AU116: 0 | AV116: 0 | AW116: 0 | AX116: 0 | AY116: 0 | AZ116: 0 | BA116: 0 | BB116: 0 | BC116: 0 | BD116: 0 | BE116: 0 | BF116: 0 | BG116: 0 | BH116: 0 | BI116: 0 | BJ116: ='Bond Input Sheet'!R120 -> 0 | BK116: 0 | BW116: 0 | BX116: 0 | BZ116: 0 | CV116: 0 | FS116: 0 | FV116: 0 | FW116: 0
B117: =IF('Bond Input Sheet'!B121="","", 'Bond Input Sheet'!B121) ->  | C117: =IF('Bond Input Sheet'!C121="","NR", 'Bond Input Sheet'!C121) -> NR | D117: =IF('Bond Input Sheet'!D121="","NR", 'Bond Input Sheet'!D121) -> NR | L117: 8 | M117: ='Bond Input Sheet'!E121 -> 0 | N117: ='Bond Input Sheet'!F121 -> 0 | O117: ='Bond Input Sheet'!G121 -> 0 | P117: ='Bond Input Sheet'!H121 -> 0 | Q117: ='Bond Input Sheet'!I121 -> 0 | R117: ='Bond Input Sheet'!J121 -> 0 | S117: 1 | T117: ='Bond Input Sheet'!K121 -> 00:00:00 | U117: 1 | V117: -120.4273973 | W117: 0 | X117: ='Bond Input Sheet'!L121 -> 0 | Y117: =IF('Bond Input Sheet'!M121=0,"",'Bond Input Sheet'!M121) ->  | Z117: ='Bond Input Sheet'!N121 -> 00:00:00 | AA117: ='Bond Input Sheet'!O121 -> 0 | AB117: ='Bond Input Sheet'!P121 -> 0 | AC117: ='Bond Input Sheet'!Q121 -> 0 | AD117: 0 | AE117: 0 | AF117: 0 | AG117: 0 | AH117: 0 | AI117: 0 | AJ117: 0 | AK117: 0 | AL117: 0 | AM117: 0 | AN117: 0 | AO117: 0 | AP117: 0 | AQ117: =IF(CouponsPerYear<>0,IF(MOD(($U117-AQ$8)/(12/CouponsPerYear),1),,CouponPaymentAmount),0) -> 0 | AR117: 0 | AS117: 0 | AT117: 0 | AU117: 0 | AV117: 0 | AW117: 0 | AX117: 0 | AY117: 0 | AZ117: 0 | BA117: 0 | BB117: 0 | BC117: =IF(CouponsPerYear<>0,IF(MOD(($U117-BC$8)/(12/CouponsPerYear),1),,$AJ117*(1-VLOOKUP(BondType,BondTypeTable,2))),0) -> 0 | BD117: 0 | BE117: 0 | BF117: 0 | BG117: 0 | BH117: 0 | BI117: 0 | BJ117: ='Bond Input Sheet'!R121 -> 0 | BK117: 0 | BU117: =IF(LowestYield<>"",LowestYield-FairYTM,"") ->  | BW117: 0 | BX117: 0 | BZ117: 0 | CV117: 0 | FS117: 0 | FV117: 0 | FW117: 0
B118: =IF('Bond Input Sheet'!B122="","", 'Bond Input Sheet'!B122) ->  | C118: =IF('Bond Input Sheet'!C122="","NR", 'Bond Input Sheet'!C122) -> NR | D118: =IF('Bond Input Sheet'!D122="","NR", 'Bond Input Sheet'!D122) -> NR | L118: 8 | M118: ='Bond Input Sheet'!E122 -> 0 | N118: ='Bond Input Sheet'!F122 -> 0 | O118: ='Bond Input Sheet'!G122 -> 0 | P118: ='Bond Input Sheet'!H122 -> 0 | Q118: ='Bond Input Sheet'!I122 -> 0 | R118: ='Bond Input Sheet'!J122 -> 0 | S118: 1 | T118: ='Bond Input Sheet'!K122 -> 00:00:00 | U118: 1 | V118: -120.4273973 | W118: 0 | X118: ='Bond Input Sheet'!L122 -> 0 | Y118: =IF('Bond Input Sheet'!M122=0,"",'Bond Input Sheet'!M122) ->  | Z118: ='Bond Input Sheet'!N122 -> 00:00:00 | AA118: ='Bond Input Sheet'!O122 -> 0 | AB118: ='Bond Input Sheet'!P122 -> 0 | AC118: ='Bond Input Sheet'!Q122 -> 0 | AD118: 0 | AE118: 0 | AF118: 0 | AG118: 0 | AH118: 0 | AI118: 0 | AJ118: 0 | AK118: =IF(CouponsPerYear<>0,IF(MOD(($U118-AK$8)/(12/CouponsPerYear),1),,CouponPaymentAmount),0) -> 0 | AL118: 0 | AM118: 0 | AN118: 0 | AO118: 0 | AP118: 0 | AQ118: 0 | AR118: 0 | AS118: 0 | AT118: 0 | AU118: 0 | AV118: 0 | AW118: =IF(CouponsPerYear<>0,IF(MOD(($U118-AW$8)/(12/CouponsPerYear),1),,$AJ118*(1-VLOOKUP(BondType,BondTypeTable,2))),0) -> 0 | AX118: 0 | AY118: 0 | AZ118: 0 | BA118: 0 | BB118: 0 | BC118: 0 | BD118: 0 | BE118: 0 | BF118: 0 | BG118: 0 | BH118: 0 | BI118: 0 | BJ118: ='Bond Input Sheet'!R122 -> 0 | BK118: 0 | BW118: 0 | BX118: 0 | BZ118: 0 | CV118: 0 | FS118: 0 | FV118: 0 | FW118: 0
B119: =IF('Bond Input Sheet'!B123="","", 'Bond Input Sheet'!B123) ->  | C119: =IF('Bond Input Sheet'!C123="","NR", 'Bond Input Sheet'!C123) -> NR | D119: =IF('Bond Input Sheet'!D123="","NR", 'Bond Input Sheet'!D123) -> NR | L119: 8 | M119: ='Bond Input Sheet'!E123 -> 0 | N119: ='Bond Input Sheet'!F123 -> 0 | O119: ='Bond Input Sheet'!G123 -> 0 | P119: ='Bond Input Sheet'!H123 -> 0 | Q119: ='Bond Input Sheet'!I123 -> 0 | R119: ='Bond Input Sheet'!J123 -> 0 | S119: 1 | T119: ='Bond Input Sheet'!K123 -> 00:00:00 | U119: 1 | V119: -120.4273973 | W119: 0 | X119: ='Bond Input Sheet'!L123 -> 0 | Y119: =IF('Bond Input Sheet'!M123=0,"",'Bond Input Sheet'!M123) ->  | Z119: ='Bond Input Sheet'!N123 -> 00:00:00 | AA119: ='Bond Input Sheet'!O123 -> 0 | AB119: ='Bond Input Sheet'!P123 -> 0 | AC119: ='Bond Input Sheet'!Q123 -> 0 | AD119: 0 | AE119: 0 | AF119: 0 | AG119: 0 | AH119: 0 | AI119: 0 | AJ119: 0 | AK119: 0 | AL119: 0 | AM119: 0 | AN119: 0 | AO119: 0 | AP119: 0 | AQ119: 0 | AR119: 0 | AS119: 0 | AT119: 0 | AU119: 0 | AV119: 0 | AW119: 0 | AX119: 0 | AY119: 0 | AZ119: 0 | BA119: 0 | BB119: 0 | BC119: 0 | BD119: 0 | BE119: 0 | BF119: 0 | BG119: 0 | BH119: 0 | BI119: 0 | BJ119: ='Bond Input Sheet'!R123 -> 0 | BK119: 0 | BW119: 0 | BX119: 0 | BZ119: 0 | CA119: =IF(AND(Maturity<=CA$511,Maturity>BZ$511),MarketValue,"") ->  | CE119: =IF(AND(Maturity<=CE$511,Maturity>CD$511),MarketValue,"") ->  | CO119: =IF($L119=CO$511,$BW119,"") ->  | CV119: 0 | FS119: 0 | FV119: 0 | FW119: 0
B120: =IF('Bond Input Sheet'!B124="","", 'Bond Input Sheet'!B124) ->  | C120: =IF('Bond Input Sheet'!C124="","NR", 'Bond Input Sheet'!C124) -> NR | D120: =IF('Bond Input Sheet'!D124="","NR", 'Bond Input Sheet'!D124) -> NR | L120: 8 | M120: ='Bond Input Sheet'!E124 -> 0 | N120: ='Bond Input Sheet'!F124 -> 0 | O120: ='Bond Input Sheet'!G124 -> 0 | P120: ='Bond Input Sheet'!H124 -> 0 | Q120: ='Bond Input Sheet'!I124 -> 0 | R120: ='Bond Input Sheet'!J124 -> 0 | S120: 1 | T120: ='Bond Input Sheet'!K124 -> 00:00:00 | U120: 1 | V120: -120.4273973 | W120: 0 | X120: ='Bond Input Sheet'!L124 -> 0 | Y120: =IF('Bond Input Sheet'!M124=0,"",'Bond Input Sheet'!M124) ->  | Z120: ='Bond Input Sheet'!N124 -> 00:00:00 | AA120: ='Bond Input Sheet'!O124 -> 0 | AB120: ='Bond Input Sheet'!P124 -> 0 | AC120: ='Bond Input Sheet'!Q124 -> 0 | AD120: 0 | AE120: 0 | AF120: 0 | AG120: 0 | AH120: 0 | AI120: 0 | AJ120: 0 | AK120: 0 | AL120: 0 | AM120: 0 | AN120: 0 | AO120: 0 | AP120: 0 | AQ120: 0 | AR120: 0 | AS120: 0 | AT120: 0 | AU120: 0 | AV120: 0 | AW120: 0 | AX120: 0 | AY120: 0 | AZ120: 0 | BA120: 0 | BB120: 0 | BC120: 0 | BD120: 0 | BE120: 0 | BF120: 0 | BG120: 0 | BH120: 0 | BI120: 0 | BJ120: ='Bond Input Sheet'!R124 -> 0 | BK120: 0 | BW120: 0 | BX120: 0 | BZ120: 0 | CV120: 0 | FS120: 0 | FV120: 0 | FW120: 0
B121: =IF('Bond Input Sheet'!B125="","", 'Bond Input Sheet'!B125) ->  | C121: =IF('Bond Input Sheet'!C125="","NR", 'Bond Input Sheet'!C125) -> NR | D121: =IF('Bond Input Sheet'!D125="","NR", 'Bond Input Sheet'!D125) -> NR | L121: 8 | M121: ='Bond Input Sheet'!E125 -> 0 | N121: ='Bond Input Sheet'!F125 -> 0 | O121: ='Bond Input Sheet'!G125 -> 0 | P121: ='Bond Input Sheet'!H125 -> 0 | Q121: ='Bond Input Sheet'!I125 -> 0 | R121: ='Bond Input Sheet'!J125 -> 0 | S121: 1 | T121: ='Bond Input Sheet'!K125 -> 00:00:00 | U121: 1 | V121: -120.4273973 | W121: 0 | X121: ='Bond Input Sheet'!L125 -> 0 | Y121: =IF('Bond Input Sheet'!M125=0,"",'Bond Input Sheet'!M125) ->  | Z121: ='Bond Input Sheet'!N125 -> 00:00:00 | AA121: ='Bond Input Sheet'!O125 -> 0 | AB121: ='Bond Input Sheet'!P125 -> 0 | AC121: ='Bond Input Sheet'!Q125 -> 0 | AD121: 0 | AE121: 0 | AF121: 0 | AG121: 0 | AH121: 0 | AI121: 0 | AJ121: 0 | AK121: 0 | AL121: 0 | AM121: 0 | AN121: 0 | AO121: 0 | AP121: 0 | AQ121: 0 | AR121: 0 | AS121: 0 | AT121: 0 | AU121: 0 | AV121: 0 | AW121: 0 | AX121: 0 | AY121: 0 | AZ121: 0 | BA121: 0 | BB121: 0 | BC121: 0 | BD121: 0 | BE121: 0 | BF121: 0 | BG121: 0 | BH121: 0 | BI121: 0 | BJ121: ='Bond Input Sheet'!R125 -> 0 | BK121: 0 | BW121: 0 | BX121: 0 | BZ121: 0 | CV121: 0 | FS121: 0 | FV121: 0 | FW121: 0
B122: =IF('Bond Input Sheet'!B126="","", 'Bond Input Sheet'!B126) ->  | C122: =IF('Bond Input Sheet'!C126="","NR", 'Bond Input Sheet'!C126) -> NR | D122: =IF('Bond Input Sheet'!D126="","NR", 'Bond Input Sheet'!D126) -> NR | L122: 8 | M122: ='Bond Input Sheet'!E126 -> 0 | N122: ='Bond Input Sheet'!F126 -> 0 | O122: ='Bond Input Sheet'!G126 -> 0 | P122: ='Bond Input Sheet'!H126 -> 0 | Q122: ='Bond Input Sheet'!I126 -> 0 | R122: ='Bond Input Sheet'!J126 -> 0 | S122: 1 | T122: ='Bond Input Sheet'!K126 -> 00:00:00 | U122: 1 | V122: -120.4273973 | W122: 0 | X122: ='Bond Input Sheet'!L126 -> 0 | Y122: =IF('Bond Input Sheet'!M126=0,"",'Bond Input Sheet'!M126) ->  | Z122: ='Bond Input Sheet'!N126 -> 00:00:00 | AA122: ='Bond Input Sheet'!O126 -> 0 | AB122: ='Bond Input Sheet'!P126 -> 0 | AC122: ='Bond Input Sheet'!Q126 -> 0 | AD122: 0 | AE122: 0 | AF122: 0 | AG122: 0 | AH122: 0 | AI122: 0 | AJ122: 0 | AK122: 0 | AL122: 0 | AM122: 0 | AN122: 0 | AO122: 0 | AP122: 0 | AQ122: 0 | AR122: 0 | AS122: 0 | AT122: 0 | AU122: 0 | AV122: 0 | AW122: 0 | AX122: 0 | AY122: 0 | AZ122: 0 | BA122: 0 | BB122: 0 | BC122: 0 | BD122: 0 | BE122: 0 | BF122: 0 | BG122: 0 | BH122: 0 | BI122: 0 | BJ122: ='Bond Input Sheet'!R126 -> 0 | BK122: 0 | BW122: 0 | BX122: 0 | BZ122: 0 | CV122: 0 | FS122: 0 | FV122: 0 | FW122: 0
B123: =IF('Bond Input Sheet'!B127="","", 'Bond Input Sheet'!B127) ->  | C123: =IF('Bond Input Sheet'!C127="","NR", 'Bond Input Sheet'!C127) -> NR | D123: =IF('Bond Input Sheet'!D127="","NR", 'Bond Input Sheet'!D127) -> NR | L123: 8 | M123: ='Bond Input Sheet'!E127 -> 0 | N123: ='Bond Input Sheet'!F127 -> 0 | O123: ='Bond Input Sheet'!G127 -> 0 | P123: ='Bond Input Sheet'!H127 -> 0 | Q123: ='Bond Input Sheet'!I127 -> 0 | R123: ='Bond Input Sheet'!J127 -> 0 | S123: 1 | T123: ='Bond Input Sheet'!K127 -> 00:00:00 | U123: 1 | V123: -120.4273973 | W123: 0 | X123: ='Bond Input Sheet'!L127 -> 0 | Y123: =IF('Bond Input Sheet'!M127=0,"",'Bond Input Sheet'!M127) ->  | Z123: ='Bond Input Sheet'!N127 -> 00:00:00 | AA123: ='Bond Input Sheet'!O127 -> 0 | AB123: ='Bond Input Sheet'!P127 -> 0 | AC123: ='Bond Input Sheet'!Q127 -> 0 | AD123: 0 | AE123: 0 | AF123: 0 | AG123: 0 | AH123: 0 | AI123: 0 | AJ123: 0 | AK123: 0 | AL123: 0 | AM123: 0 | AN123: 0 | AO123: 0 | AP123: 0 | AQ123: 0 | AR123: 0 | AS123: 0 | AT123: 0 | AU123: 0 | AV123: 0 | AW123: 0 | AX123: 0 | AY123: 0 | AZ123: 0 | BA123: 0 | BB123: 0 | BC123: 0 | BD123: 0 | BE123: 0 | BF123: 0 | BG123: 0 | BH123: 0 | BI123: 0 | BJ123: ='Bond Input Sheet'!R127 -> 0 | BK123: 0 | BW123: 0 | BX123: 0 | BZ123: 0 | CJ123: =IF(BondType=CJ$8,MarketValue,"") ->  | CV123: 0 | FS123: 0 | FV123: 0 | FW123: 0
B124: =IF('Bond Input Sheet'!B128="","", 'Bond Input Sheet'!B128) ->  | C124: =IF('Bond Input Sheet'!C128="","NR", 'Bond Input Sheet'!C128) -> NR | D124: =IF('Bond Input Sheet'!D128="","NR", 'Bond Input Sheet'!D128) -> NR | L124: 8 | M124: ='Bond Input Sheet'!E128 -> 0 | N124: ='Bond Input Sheet'!F128 -> 0 | O124: ='Bond Input Sheet'!G128 -> 0 | P124: ='Bond Input Sheet'!H128 -> 0 | Q124: ='Bond Input Sheet'!I128 -> 0 | R124: ='Bond Input Sheet'!J128 -> 0 | S124: 1 | T124: ='Bond Input Sheet'!K128 -> 00:00:00 | U124: 1 | V124: -120.4273973 | W124: 0 | X124: ='Bond Input Sheet'!L128 -> 0 | Y124: =IF('Bond Input Sheet'!M128=0,"",'Bond Input Sheet'!M128) ->  | Z124: ='Bond Input Sheet'!N128 -> 00:00:00 | AA124: ='Bond Input Sheet'!O128 -> 0 | AB124: ='Bond Input Sheet'!P128 -> 0 | AC124: ='Bond Input Sheet'!Q128 -> 0 | AD124: 0 | AE124: 0 | AF124: 0 | AG124: 0 | AH124: 0 | AI124: 0 | AJ124: 0 | AK124: 0 | AL124: 0 | AM124: 0 | AN124: 0 | AO124: 0 | AP124: 0 | AQ124: 0 | AR124: 0 | AS124: 0 | AT124: 0 | AU124: 0 | AV124: 0 | AW124: 0 | AX124: 0 | AY124: 0 | AZ124: 0 | BA124: 0 | BB124: 0 | BC124: 0 | BD124: 0 | BE124: 0 | BF124: 0 | BG124: 0 | BH124: 0 | BI124: 0 | BJ124: ='Bond Input Sheet'!R128 -> 0 | BK124: 0 | BW124: 0 | BX124: 0 | BZ124: 0 | CV124: 0 | FS124: 0 | FV124: 0 | FW124: 0
B125: =IF('Bond Input Sheet'!B129="","", 'Bond Input Sheet'!B129) ->  | C125: =IF('Bond Input Sheet'!C129="","NR", 'Bond Input Sheet'!C129) -> NR | D125: =IF('Bond Input Sheet'!D129="","NR", 'Bond Input Sheet'!D129) -> NR | L125: 8 | M125: ='Bond Input Sheet'!E129 -> 0 | N125: ='Bond Input Sheet'!F129 -> 0 | O125: ='Bond Input Sheet'!G129 -> 0 | P125: ='Bond Input Sheet'!H129 -> 0 | Q125: ='Bond Input Sheet'!I129 -> 0 | R125: ='Bond Input Sheet'!J129 -> 0 | S125: 1 | T125: ='Bond Input Sheet'!K129 -> 00:00:00 | U125: 1 | V125: -120.4273973 | W125: 0 | X125: ='Bond Input Sheet'!L129 -> 0 | Y125: =IF('Bond Input Sheet'!M129=0,"",'Bond Input Sheet'!M129) ->  | Z125: ='Bond Input Sheet'!N129 -> 00:00:00 | AA125: ='Bond Input Sheet'!O129 -> 0 | AB125: ='Bond Input Sheet'!P129 -> 0 | AC125: ='Bond Input Sheet'!Q129 -> 0 | AD125: 0 | AE125: 0 | AF125: 0 | AG125: 0 | AH125: 0 | AI125: 0 | AJ125: 0 | AK125: 0 | AL125: 0 | AM125: 0 | AN125: 0 | AO125: 0 | AP125: 0 | AQ125: 0 | AR125: 0 | AS125: 0 | AT125: 0 | AU125: 0 | AV125: 0 | AW125: 0 | AX125: 0 | AY125: 0 | AZ125: 0 | BA125: 0 | BB125: 0 | BC125: 0 | BD125: 0 | BE125: 0 | BF125: 0 | BG125: 0 | BH125: 0 | BI125: 0 | BJ125: ='Bond Input Sheet'!R129 -> 0 | BK125: 0 | BW125: 0 | BX125: 0 | BZ125: 0 | CV125: 0 | FS125: 0 | FV125: 0 | FW125: 0
B126: =IF('Bond Input Sheet'!B130="","", 'Bond Input Sheet'!B130) ->  | C126: =IF('Bond Input Sheet'!C130="","NR", 'Bond Input Sheet'!C130) -> NR | D126: =IF('Bond Input Sheet'!D130="","NR", 'Bond Input Sheet'!D130) -> NR | L126: 8 | M126: ='Bond Input Sheet'!E130 -> 0 | N126: ='Bond Input Sheet'!F130 -> 0 | O126: ='Bond Input Sheet'!G130 -> 0 | P126: ='Bond Input Sheet'!H130 -> 0 | Q126: ='Bond Input Sheet'!I130 -> 0 | R126: ='Bond Input Sheet'!J130 -> 0 | S126: 1 | T126: ='Bond Input Sheet'!K130 -> 00:00:00 | U126: 1 | V126: -120.4273973 | W126: 0 | X126: ='Bond Input Sheet'!L130 -> 0 | Y126: =IF('Bond Input Sheet'!M130=0,"",'Bond Input Sheet'!M130) ->  | Z126: ='Bond Input Sheet'!N130 -> 00:00:00 | AA126: ='Bond Input Sheet'!O130 -> 0 | AB126: ='Bond Input Sheet'!P130 -> 0 | AC126: ='Bond Input Sheet'!Q130 -> 0 | AD126: 0 | AE126: 0 | AF126: 0 | AG126: 0 | AH126: 0 | AI126: 0 | AJ126: 0 | AK126: 0 | AL126: 0 | AM126: 0 | AN126: 0 | AO126: 0 | AP126: 0 | AQ126: 0 | AR126: 0 | AS126: 0 | AT126: 0 | AU126: 0 | AV126: 0 | AW126: 0 | AX126: 0 | AY126: 0 | AZ126: 0 | BA126: 0 | BB126: 0 | BC126: 0 | BD126: 0 | BE126: 0 | BF126: 0 | BG126: 0 | BH126: 0 | BI126: 0 | BJ126: ='Bond Input Sheet'!R130 -> 0 | BK126: 0 | BW126: 0 | BX126: 0 | BZ126: 0 | CV126: 0 | FS126: 0 | FV126: 0 | FW126: 0
B127: =IF('Bond Input Sheet'!B131="","", 'Bond Input Sheet'!B131) ->  | C127: =IF('Bond Input Sheet'!C131="","NR", 'Bond Input Sheet'!C131) -> NR | D127: =IF('Bond Input Sheet'!D131="","NR", 'Bond Input Sheet'!D131) -> NR | L127: 8 | M127: ='Bond Input Sheet'!E131 -> 0 | N127: ='Bond Input Sheet'!F131 -> 0 | O127: ='Bond Input Sheet'!G131 -> 0 | P127: ='Bond Input Sheet'!H131 -> 0 | Q127: ='Bond Input Sheet'!I131 -> 0 | R127: ='Bond Input Sheet'!J131 -> 0 | S127: 1 | T127: ='Bond Input Sheet'!K131 -> 00:00:00 | U127: 1 | V127: -120.4273973 | W127: 0 | X127: ='Bond Input Sheet'!L131 -> 0 | Y127: =IF('Bond Input Sheet'!M131=0,"",'Bond Input Sheet'!M131) ->  | Z127: ='Bond Input Sheet'!N131 -> 00:00:00 | AA127: ='Bond Input Sheet'!O131 -> 0 | AB127: ='Bond Input Sheet'!P131 -> 0 | AC127: ='Bond Input Sheet'!Q131 -> 0 | AD127: 0 | AE127: 0 | AF127: 0 | AG127: 0 | AH127: 0 | AI127: 0 | AJ127: 0 | AK127: 0 | AL127: 0 | AM127: 0 | AN127: 0 | AO127: 0 | AP127: 0 | AQ127: 0 | AR127: 0 | AS127: 0 | AT127: 0 | AU127: 0 | AV127: 0 | AW127: 0 | AX127: 0 | AY127: 0 | AZ127: 0 | BA127: 0 | BB127: 0 | BC127: 0 | BD127: 0 | BE127: 0 | BF127: 0 | BG127: 0 | BH127: 0 | BI127: 0 | BJ127: ='Bond Input Sheet'!R131 -> 0 | BK127: 0 | BW127: 0 | BX127: 0 | BZ127: 0 | CV127: 0 | FS127: 0 | FV127: 0 | FW127: 0
B128: =IF('Bond Input Sheet'!B132="","", 'Bond Input Sheet'!B132) ->  | C128: =IF('Bond Input Sheet'!C132="","NR", 'Bond Input Sheet'!C132) -> NR | D128: =IF('Bond Input Sheet'!D132="","NR", 'Bond Input Sheet'!D132) -> NR | L128: 8 | M128: ='Bond Input Sheet'!E132 -> 0 | N128: ='Bond Input Sheet'!F132 -> 0 | O128: ='Bond Input Sheet'!G132 -> 0 | P128: ='Bond Input Sheet'!H132 -> 0 | Q128: ='Bond Input Sheet'!I132 -> 0 | R128: ='Bond Input Sheet'!J132 -> 0 | S128: 1 | T128: ='Bond Input Sheet'!K132 -> 00:00:00 | U128: 1 | V128: -120.4273973 | W128: 0 | X128: ='Bond Input Sheet'!L132 -> 0 | Y128: =IF('Bond Input Sheet'!M132=0,"",'Bond Input Sheet'!M132) ->  | Z128: ='Bond Input Sheet'!N132 -> 00:00:00 | AA128: ='Bond Input Sheet'!O132 -> 0 | AB128: ='Bond Input Sheet'!P132 -> 0 | AC128: ='Bond Input Sheet'!Q132 -> 0 | AD128: 0 | AE128: 0 | AF128: 0 | AG128: 0 | AH128: 0 | AI128: 0 | AJ128: 0 | AK128: 0 | AL128: 0 | AM128: 0 | AN128: 0 | AO128: 0 | AP128: 0 | AQ128: 0 | AR128: 0 | AS128: 0 | AT128: 0 | AU128: 0 | AV128: 0 | AW128: 0 | AX128: 0 | AY128: 0 | AZ128: 0 | BA128: 0 | BB128: 0 | BC128: 0 | BD128: 0 | BE128: 0 | BF128: 0 | BG128: 0 | BH128: 0 | BI128: 0 | BJ128: ='Bond Input Sheet'!R132 -> 0 | BK128: 0 | BW128: 0 | BX128: 0 | BZ128: 0 | CV128: 0 | FS128: 0 | FV128: 0 | FW128: 0
B129: =IF('Bond Input Sheet'!B133="","", 'Bond Input Sheet'!B133) ->  | C129: =IF('Bond Input Sheet'!C133="","NR", 'Bond Input Sheet'!C133) -> NR | D129: =IF('Bond Input Sheet'!D133="","NR", 'Bond Input Sheet'!D133) -> NR | L129: 8 | M129: ='Bond Input Sheet'!E133 -> 0 | N129: ='Bond Input Sheet'!F133 -> 0 | O129: ='Bond Input Sheet'!G133 -> 0 | P129: ='Bond Input Sheet'!H133 -> 0 | Q129: ='Bond Input Sheet'!I133 -> 0 | R129: ='Bond Input Sheet'!J133 -> 0 | S129: 1 | T129: ='Bond Input Sheet'!K133 -> 00:00:00 | U129: 1 | V129: -120.4273973 | W129: 0 | X129: ='Bond Input Sheet'!L133 -> 0 | Y129: =IF('Bond Input Sheet'!M133=0,"",'Bond Input Sheet'!M133) ->  | Z129: ='Bond Input Sheet'!N133 -> 00:00:00 | AA129: ='Bond Input Sheet'!O133 -> 0 | AB129: ='Bond Input Sheet'!P133 -> 0 | AC129: ='Bond Input Sheet'!Q133 -> 0 | AD129: 0 | AE129: 0 | AF129: 0 | AG129: 0 | AH129: 0 | AI129: 0 | AJ129: 0 | AK129: 0 | AL129: 0 | AM129: 0 | AN129: 0 | AO129: 0 | AP129: 0 | AQ129: 0 | AR129: 0 | AS129: 0 | AT129: 0 | AU129: 0 | AV129: 0 | AW129: 0 | AX129: 0 | AY129: 0 | AZ129: 0 | BA129: 0 | BB129: 0 | BC129: 0 | BD129: 0 | BE129: 0 | BF129: 0 | BG129: 0 | BH129: 0 | BI129: 0 | BJ129: ='Bond Input Sheet'!R133 -> 0 | BK129: 0 | BW129: 0 | BX129: 0 | BZ129: 0 | CA129: =IF(AND(Maturity<=CA$511,Maturity>BZ$511),MarketValue,"") ->  | CE129: =IF(AND(Maturity<=CE$511,Maturity>CD$511),MarketValue,"") ->  | CO129: =IF($L129=CO$511,$BW129,"") ->  | CV129: 0 | FS129: 0 | FV129: 0 | FW129: 0
B130: =IF('Bond Input Sheet'!B134="","", 'Bond Input Sheet'!B134) ->  | C130: =IF('Bond Input Sheet'!C134="","NR", 'Bond Input Sheet'!C134) -> NR | D130: =IF('Bond Input Sheet'!D134="","NR", 'Bond Input Sheet'!D134) -> NR | L130: 8 | M130: ='Bond Input Sheet'!E134 -> 0 | N130: ='Bond Input Sheet'!F134 -> 0 | O130: ='Bond Input Sheet'!G134 -> 0 | P130: ='Bond Input Sheet'!H134 -> 0 | Q130: ='Bond Input Sheet'!I134 -> 0 | R130: ='Bond Input Sheet'!J134 -> 0 | S130: 1 | T130: ='Bond Input Sheet'!K134 -> 00:00:00 | U130: 1 | V130: -120.4273973 | W130: 0 | X130: ='Bond Input Sheet'!L134 -> 0 | Y130: =IF('Bond Input Sheet'!M134=0,"",'Bond Input Sheet'!M134) ->  | Z130: ='Bond Input Sheet'!N134 -> 00:00:00 | AA130: ='Bond Input Sheet'!O134 -> 0 | AB130: ='Bond Input Sheet'!P134 -> 0 | AC130: ='Bond Input Sheet'!Q134 -> 0 | AD130: 0 | AE130: 0 | AF130: 0 | AG130: 0 | AH130: 0 | AI130: 0 | AJ130: 0 | AK130: 0 | AL130: 0 | AM130: 0 | AN130: 0 | AO130: 0 | AP130: 0 | AQ130: 0 | AR130: 0 | AS130: 0 | AT130: 0 | AU130: 0 | AV130: 0 | AW130: 0 | AX130: 0 | AY130: 0 | AZ130: 0 | BA130: 0 | BB130: 0 | BC130: 0 | BD130: 0 | BE130: 0 | BF130: 0 | BG130: 0 | BH130: 0 | BI130: 0 | BJ130: ='Bond Input Sheet'!R134 -> 0 | BK130: 0 | BW130: 0 | BX130: 0 | BZ130: 0 | CV130: 0 | FS130: 0 | FV130: 0 | FW130: 0
B131: =IF('Bond Input Sheet'!B135="","", 'Bond Input Sheet'!B135) ->  | C131: =IF('Bond Input Sheet'!C135="","NR", 'Bond Input Sheet'!C135) -> NR | D131: =IF('Bond Input Sheet'!D135="","NR", 'Bond Input Sheet'!D135) -> NR | L131: 8 | M131: ='Bond Input Sheet'!E135 -> 0 | N131: ='Bond Input Sheet'!F135 -> 0 | O131: ='Bond Input Sheet'!G135 -> 0 | P131: ='Bond Input Sheet'!H135 -> 0 | Q131: ='Bond Input Sheet'!I135 -> 0 | R131: ='Bond Input Sheet'!J135 -> 0 | S131: 1 | T131: ='Bond Input Sheet'!K135 -> 00:00:00 | U131: 1 | V131: -120.4273973 | W131: 0 | X131: ='Bond Input Sheet'!L135 -> 0 | Y131: =IF('Bond Input Sheet'!M135=0,"",'Bond Input Sheet'!M135) ->  | Z131: ='Bond Input Sheet'!N135 -> 00:00:00 | AA131: ='Bond Input Sheet'!O135 -> 0 | AB131: ='Bond Input Sheet'!P135 -> 0 | AC131: ='Bond Input Sheet'!Q135 -> 0 | AD131: 0 | AE131: 0 | AF131: 0 | AG131: 0 | AH131: 0 | AI131: 0 | AJ131: 0 | AK131: 0 | AL131: 0 | AM131: 0 | AN131: 0 | AO131: 0 | AP131: 0 | AQ131: 0 | AR131: 0 | AS131: 0 | AT131: 0 | AU131: 0 | AV131: 0 | AW131: 0 | AX131: 0 | AY131: 0 | AZ131: 0 | BA131: 0 | BB131: 0 | BC131: 0 | BD131: 0 | BE131: 0 | BF131: 0 | BG131: 0 | BH131: 0 | BI131: 0 | BJ131: ='Bond Input Sheet'!R135 -> 0 | BK131: 0 | BU131: =IF(LowestYield<>"",LowestYield-FairYTM,"") ->  | BW131: 0 | BX131: 0 | BZ131: 0 | CV131: 0 | FS131: 0 | FV131: 0 | FW131: 0
B132: =IF('Bond Input Sheet'!B136="","", 'Bond Input Sheet'!B136) ->  | C132: =IF('Bond Input Sheet'!C136="","NR", 'Bond Input Sheet'!C136) -> NR | D132: =IF('Bond Input Sheet'!D136="","NR", 'Bond Input Sheet'!D136) -> NR | L132: 8 | M132: ='Bond Input Sheet'!E136 -> 0 | N132: ='Bond Input Sheet'!F136 -> 0 | O132: ='Bond Input Sheet'!G136 -> 0 | P132: ='Bond Input Sheet'!H136 -> 0 | Q132: ='Bond Input Sheet'!I136 -> 0 | R132: ='Bond Input Sheet'!J136 -> 0 | S132: 1 | T132: ='Bond Input Sheet'!K136 -> 00:00:00 | U132: 1 | V132: -120.4273973 | W132: 0 | X132: ='Bond Input Sheet'!L136 -> 0 | Y132: =IF('Bond Input Sheet'!M136=0,"",'Bond Input Sheet'!M136) ->  | Z132: ='Bond Input Sheet'!N136 -> 00:00:00 | AA132: ='Bond Input Sheet'!O136 -> 0 | AB132: ='Bond Input Sheet'!P136 -> 0 | AC132: ='Bond Input Sheet'!Q136 -> 0 | AD132: 0 | AE132: 0 | AF132: 0 | AG132: 0 | AH132: 0 | AI132: 0 | AJ132: 0 | AK132: 0 | AL132: 0 | AM132: 0 | AN132: 0 | AO132: 0 | AP132: 0 | AQ132: 0 | AR132: 0 | AS132: 0 | AT132: 0 | AU132: 0 | AV132: 0 | AW132: 0 | AX132: 0 | AY132: 0 | AZ132: 0 | BA132: 0 | BB132: 0 | BC132: 0 | BD132: 0 | BE132: 0 | BF132: 0 | BG132: 0 | BH132: 0 | BI132: 0 | BJ132: ='Bond Input Sheet'!R136 -> 0 | BK132: 0 | BW132: 0 | BX132: 0 | BZ132: 0 | CV132: 0 | FS132: 0 | FV132: 0 | FW132: 0
B133: =IF('Bond Input Sheet'!B137="","", 'Bond Input Sheet'!B137) ->  | C133: =IF('Bond Input Sheet'!C137="","NR", 'Bond Input Sheet'!C137) -> NR | D133: =IF('Bond Input Sheet'!D137="","NR", 'Bond Input Sheet'!D137) -> NR | L133: 8 | M133: ='Bond Input Sheet'!E137 -> 0 | N133: ='Bond Input Sheet'!F137 -> 0 | O133: ='Bond Input Sheet'!G137 -> 0 | P133: ='Bond Input Sheet'!H137 -> 0 | Q133: ='Bond Input Sheet'!I137 -> 0 | R133: ='Bond Input Sheet'!J137 -> 0 | S133: 1 | T133: ='Bond Input Sheet'!K137 -> 00:00:00 | U133: 1 | V133: -120.4273973 | W133: 0 | X133: ='Bond Input Sheet'!L137 -> 0 | Y133: =IF('Bond Input Sheet'!M137=0,"",'Bond Input Sheet'!M137) ->  | Z133: ='Bond Input Sheet'!N137 -> 00:00:00 | AA133: ='Bond Input Sheet'!O137 -> 0 | AB133: ='Bond Input Sheet'!P137 -> 0 | AC133: ='Bond Input Sheet'!Q137 -> 0 | AD133: 0 | AE133: 0 | AF133: 0 | AG133: 0 | AH133: 0 | AI133: 0 | AJ133: 0 | AK133: =IF(CouponsPerYear<>0,IF(MOD(($U133-AK$8)/(12/CouponsPerYear),1),,CouponPaymentAmount),0) -> 0 | AL133: 0 | AM133: 0 | AN133: 0 | AO133: 0 | AP133: 0 | AQ133: 0 | AR133: 0 | AS133: 0 | AT133: 0 | AU133: 0 | AV133: 0 | AW133: =IF(CouponsPerYear<>0,IF(MOD(($U133-AW$8)/(12/CouponsPerYear),1),,$AJ133*(1-VLOOKUP(BondType,BondTypeTable,2))),0) -> 0 | AX133: 0 | AY133: 0 | AZ133: 0 | BA133: 0 | BB133: 0 | BC133: 0 | BD133: 0 | BE133: 0 | BF133: 0 | BG133: 0 | BH133: 0 | BI133: 0 | BJ133: ='Bond Input Sheet'!R137 -> 0 | BK133: 0 | BW133: 0 | BX133: 0 | BZ133: 0 | CV133: 0 | FS133: 0 | FV133: 0 | FW133: 0
B134: =IF('Bond Input Sheet'!B138="","", 'Bond Input Sheet'!B138) ->  | C134: =IF('Bond Input Sheet'!C138="","NR", 'Bond Input Sheet'!C138) -> NR | D134: =IF('Bond Input Sheet'!D138="","NR", 'Bond Input Sheet'!D138) -> NR | L134: 8 | M134: ='Bond Input Sheet'!E138 -> 0 | N134: ='Bond Input Sheet'!F138 -> 0 | O134: ='Bond Input Sheet'!G138 -> 0 | P134: ='Bond Input Sheet'!H138 -> 0 | Q134: ='Bond Input Sheet'!I138 -> 0 | R134: ='Bond Input Sheet'!J138 -> 0 | S134: 1 | T134: ='Bond Input Sheet'!K138 -> 00:00:00 | U134: 1 | V134: -120.4273973 | W134: 0 | X134: ='Bond Input Sheet'!L138 -> 0 | Y134: =IF('Bond Input Sheet'!M138=0,"",'Bond Input Sheet'!M138) ->  | Z134: ='Bond Input Sheet'!N138 -> 00:00:00 | AA134: ='Bond Input Sheet'!O138 -> 0 | AB134: ='Bond Input Sheet'!P138 -> 0 | AC134: ='Bond Input Sheet'!Q138 -> 0 | AD134: 0 | AE134: 0 | AF134: 0 | AG134: 0 | AH134: 0 | AI134: 0 | AJ134: 0 | AK134: 0 | AL134: 0 | AM134: 0 | AN134: 0 | AO134: 0 | AP134: 0 | AQ134: 0 | AR134: 0 | AS134: 0 | AT134: 0 | AU134: 0 | AV134: 0 | AW134: 0 | AX134: 0 | AY134: 0 | AZ134: 0 | BA134: 0 | BB134: 0 | BC134: 0 | BD134: 0 | BE134: 0 | BF134: 0 | BG134: 0 | BH134: 0 | BI134: 0 | BJ134: ='Bond Input Sheet'!R138 -> 0 | BK134: 0 | BW134: 0 | BX134: 0 | BZ134: 0 | CV134: 0 | FS134: 0 | FV134: 0 | FW134: 0
B135: =IF('Bond Input Sheet'!B139="","", 'Bond Input Sheet'!B139) ->  | C135: =IF('Bond Input Sheet'!C139="","NR", 'Bond Input Sheet'!C139) -> NR | D135: =IF('Bond Input Sheet'!D139="","NR", 'Bond Input Sheet'!D139) -> NR | L135: 8 | M135: ='Bond Input Sheet'!E139 -> 0 | N135: ='Bond Input Sheet'!F139 -> 0 | O135: ='Bond Input Sheet'!G139 -> 0 | P135: ='Bond Input Sheet'!H139 -> 0 | Q135: ='Bond Input Sheet'!I139 -> 0 | R135: ='Bond Input Sheet'!J139 -> 0 | S135: 1 | T135: ='Bond Input Sheet'!K139 -> 00:00:00 | U135: 1 | V135: -120.4273973 | W135: 0 | X135: ='Bond Input Sheet'!L139 -> 0 | Y135: =IF('Bond Input Sheet'!M139=0,"",'Bond Input Sheet'!M139) ->  | Z135: ='Bond Input Sheet'!N139 -> 00:00:00 | AA135: ='Bond Input Sheet'!O139 -> 0 | AB135: ='Bond Input Sheet'!P139 -> 0 | AC135: ='Bond Input Sheet'!Q139 -> 0 | AD135: 0 | AE135: 0 | AF135: 0 | AG135: 0 | AH135: 0 | AI135: 0 | AJ135: 0 | AK135: 0 | AL135: 0 | AM135: 0 | AN135: 0 | AO135: 0 | AP135: 0 | AQ135: 0 | AR135: 0 | AS135: 0 | AT135: 0 | AU135: 0 | AV135: 0 | AW135: 0 | AX135: 0 | AY135: 0 | AZ135: 0 | BA135: 0 | BB135: 0 | BC135: 0 | BD135: 0 | BE135: 0 | BF135: 0 | BG135: 0 | BH135: 0 | BI135: 0 | BJ135: ='Bond Input Sheet'!R139 -> 0 | BK135: 0 | BW135: 0 | BX135: 0 | BZ135: 0 | CV135: 0 | FS135: 0 | FV135: 0 | FW135: 0
B136: =IF('Bond Input Sheet'!B140="","", 'Bond Input Sheet'!B140) ->  | C136: =IF('Bond Input Sheet'!C140="","NR", 'Bond Input Sheet'!C140) -> NR | D136: =IF('Bond Input Sheet'!D140="","NR", 'Bond Input Sheet'!D140) -> NR | L136: 8 | M136: ='Bond Input Sheet'!E140 -> 0 | N136: ='Bond Input Sheet'!F140 -> 0 | O136: ='Bond Input Sheet'!G140 -> 0 | P136: ='Bond Input Sheet'!H140 -> 0 | Q136: ='Bond Input Sheet'!I140 -> 0 | R136: ='Bond Input Sheet'!J140 -> 0 | S136: 1 | T136: ='Bond Input Sheet'!K140 -> 00:00:00 | U136: 1 | V136: -120.4273973 | W136: 0 | X136: ='Bond Input Sheet'!L140 -> 0 | Y136: =IF('Bond Input Sheet'!M140=0,"",'Bond Input Sheet'!M140) ->  | Z136: ='Bond Input Sheet'!N140 -> 00:00:00 | AA136: ='Bond Input Sheet'!O140 -> 0 | AB136: ='Bond Input Sheet'!P140 -> 0 | AC136: ='Bond Input Sheet'!Q140 -> 0 | AD136: 0 | AE136: 0 | AF136: 0 | AG136: 0 | AH136: 0 | AI136: 0 | AJ136: 0 | AK136: 0 | AL136: 0 | AM136: 0 | AN136: 0 | AO136: 0 | AP136: 0 | AQ136: 0 | AR136: 0 | AS136: 0 | AT136: 0 | AU136: 0 | AV136: 0 | AW136: 0 | AX136: 0 | AY136: 0 | AZ136: 0 | BA136: 0 | BB136: 0 | BC136: 0 | BD136: 0 | BE136: 0 | BF136: 0 | BG136: 0 | BH136: 0 | BI136: 0 | BJ136: ='Bond Input Sheet'!R140 -> 0 | BK136: 0 | BW136: 0 | BX136: 0 | BZ136: 0 | CV136: 0 | FS136: 0 | FV136: 0 | FW136: 0
B137: =IF('Bond Input Sheet'!B141="","", 'Bond Input Sheet'!B141) ->  | C137: =IF('Bond Input Sheet'!C141="","NR", 'Bond Input Sheet'!C141) -> NR | D137: =IF('Bond Input Sheet'!D141="","NR", 'Bond Input Sheet'!D141) -> NR | E137: =IF(AND(MoodyRating<>"NR",$G$510<>0),($G137/$G$510)*MATCH(MoodyRating,MoodyRatingTable,0),"") ->  | F137: =IF(AND(SP_Rating<>"NR", $H$510<>0),($H137/$H$510)*MATCH(SP_Rating,SP_RatingTable,0),"") ->  | I137: =IF(MoodyRating<>"NR",MATCH(MoodyRating,MoodyRatingTable,0),"") ->  | J137: =IF(SP_Rating<>"NR",MATCH(SP_Rating,SP_RatingTable,0),"") ->  | L137: =IF(K137<>"",VLOOKUP(K137,NumberToRatingTable,4,1),8) -> 8 | M137: ='Bond Input Sheet'!E141 -> 0 | N137: ='Bond Input Sheet'!F141 -> 0 | O137: ='Bond Input Sheet'!G141 -> 0 | P137: ='Bond Input Sheet'!H141 -> 0 | Q137: ='Bond Input Sheet'!I141 -> 0 | R137: ='Bond Input Sheet'!J141 -> 0 | S137: =IF(CouponsPerYear=0,1,IF(CouponsPerYear=12,4,CouponsPerYear)) -> 1 | T137: ='Bond Input Sheet'!K141 -> 00:00:00 | U137: =MONTH(Maturity) -> 1 | V137: =IF(Maturity<>"",DAYS360(ValueDate,Maturity)/365,"") -> -120.4273973 | W137: =YearsToMaturity*PercentPortfolio -> 0 | X137: ='Bond Input Sheet'!L141 -> 0 | Y137: =IF('Bond Input Sheet'!M141=0,"",'Bond Input Sheet'!M141) ->  | Z137: ='Bond Input Sheet'!N141 -> 00:00:00 | AA137: ='Bond Input Sheet'!O141 -> 0 | AB137: ='Bond Input Sheet'!P141 -> 0 | AC137: ='Bond Input Sheet'!Q141 -> 0 | AD137: 0 | AE137: =Bonds*(10*PurchasePrice)+Commission -> 0 | AF137: =(Bonds*1000)*(Coupon/100) -> 0 | AG137: 0 | AH137: 0 | AI137: =PurchaseYTM*(TotalPurchaseCost/OriginalPortfolioValue) -> 0 | AJ137: =IF(CouponsPerYear=0,0,AnnualCouponAmount/CouponsPerYear) -> 0 | AK137: 0 | AL137: 0 | AM137: 0 | AN137: 0 | AO137: 0 | AP137: 0 | AQ137: 0 | AR137: 0 | AS137: 0 | AT137: 0 | AU137: 0 | AV137: 0 | AW137: 0 | AX137: 0 | AY137: 0 | AZ137: 0 | BA137: 0 | BB137: 0 | BC137: 0 | BD137: 0 | BE137: 0 | BF137: 0 | BG137: 0 | BH137: 0 | BI137: =IF(Bonds<>0,YIELD(SettlementDate,Maturity,Coupon/100,PurchasePrice+(Commission/10)/Bonds,100,AdjustedCouponsPerYear, DayCountMethod),0) -> 0 | BJ137: ='Bond Input Sheet'!R141 -> 0 | BK137: =IF(ISERROR(SEARCH("-",BJ137)),BJ137,LEFT(BJ137,SEARCH("-",BJ137)-1)+(1/32)*MID(BJ137,SEARCH("-",BJ137)+1,2)+IF(LEN(RIGHT(BJ137,LEN(BJ137)-SEARCH("-",BJ137)-2))=1,IF(MID(BJ137,SEARCH("-",BJ137)+3,1)="+",1/64, MID(BJ137,SEARCH("-",BJ137)+3,1)*(1/256)),0)) -> 0 | BL137: =IF(B137<>"",YIELD( ValueDate,Maturity,Coupon/100,CurrentPrice,100,AdjustedCouponsPerYear,DayCountMethod),"") ->  | BM137: =IF(AND(CallPrice<>0,Y137>TODAY()),YIELD(ValueDate,CallDate,Coupon/100,CurrentPrice,CallPrice,AdjustedCouponsPerYear,DayCountMethod),"") ->  | BN137: =IF(CallYield<>0,IF(CurrentYield<CallYield,CurrentYield,CallYield),CurrentYield) ->  | BO137: =IF(LowestYield<>"",PercentPortfolio*LowestYield,"") ->  | BP137: =IF(LowestYield<>"",PercentPortfolio*LowestYield*(1-VLOOKUP(BondType,BondTypeTable,2)),"") ->  | BQ137: =IF(CallYield<>0,IF(CurrentYield<CallYield,Maturity,CallDate),Maturity) ->  | BR137: =IF(B137="","",MATCH(BondType, BondTypeList)) ->  | BT137: =IF(BL137="","",PRICE(ValueDate,Maturity,Coupon/100,FairYTM,100,AdjustedCouponsPerYear,DayCountMethod)) ->  | BU137: =IF(LowestYield<>"",LowestYield-FairYTM,"") ->  | BW137: =(CurrentPrice*10)* Bonds -> 0 | BX137: =MarketValue/TotalPortfolioValue -> 0 | BZ137: =IF(Maturity<=BZ$511,MarketValue,"") -> 0 | CV137: 0 | CW137: =IF(CJ137<>"",AverageCreditQuality*(CJ137/CJ$510),"") ->  | CX137: =IF(CK137<>"",AverageCreditQuality*(CK137/CK$510),"") ->  | CY137: =IF(CL137<>"",AverageCreditQuality*(CL137/CL$510),"") ->  | CZ137: =IF(CM137<>"",AverageCreditQuality*(CM137/CM$510),"") ->  | DA137: =IF(CN137<>"",AverageCreditQuality*(CN137/CN$510),"") ->  | DB137: =IF(B137="","",IF(BZ137<>"",AverageCreditQuality*(BZ137/BZ$510),"")) ->  | DC137: =IF(CA137<>"",AverageCreditQuality*(CA137/CA$510),"") ->  | DD137: =IF(CB137<>"",AverageCreditQuality*(CB137/CB$510),"") ->  | DE137: =IF(CC137<>"",AverageCreditQuality*(CC137/CC$510),"") ->  | DF137: =IF(CD137<>"",AverageCreditQuality*(CD137/CD$510),"") ->  | DG137: =IF(CE137<>"",AverageCreditQuality*(CE137/CE$510),"") ->  | DH137: =IF(CF137<>"",AverageCreditQuality*(CF137/CF$510),"") ->  | DI137: =IF(CG137<>"",AverageCreditQuality*(CG137/CG$510),"") ->  | DJ137: =IF(CH137<>"",AverageCreditQuality*(CH137/CH$510),"") ->  | DK137: =IF(CI137<>"",AverageCreditQuality*(CI137/CI$510),"") ->  | DL137: =IF(CJ137<>"",ModDuration*(CJ137/CJ$510),"") ->  | DM137: =IF(CK137<>"",ModDuration*(CK137/CK$510),"") ->  | DN137: =IF(CL137<>"",ModDuration*(CL137/CL$510),"") ->  | DO137: =IF(CM137<>"",ModDuration*(CM137/CM$510),"") ->  | DP137: =IF(CN137<>"",ModDuration*(CN137/CN$510),"") ->  | DQ137: =IF(CO137<>"",ModDuration*(CO137/CO$510),"") ->  | DR137: =IF(CP137<>"",ModDuration*(CP137/CP$510),"") ->  | DS137: =IF(CQ137<>"",ModDuration*(CQ137/CQ$510),"") ->  | DT137: =IF(CR137<>"",ModDuration*(CR137/CR$510),"") ->  | DU137: =IF(CS137<>"",ModDuration*(CS137/CS$510),"") ->  | DV137: =IF(CT137<>"",ModDuration*(CT137/CT$510),"") ->  | DW137: =IF(CU137<>"",ModDuration*(CU137/CU$510),"") ->  | DX137: =IF(B137="","",IF(CV137<>"",ModDuration*(CV137/CV$510),"")) ->  | DY137: =IF(AND(LowestYield<>"",CJ137<>""),(CJ137/CJ$510)*LowestYield,"") ->  | DZ137: =IF(AND(LowestYield<>"",CK137<>""),(CK137/CK$510)*LowestYield,"") ->  | EA137: =IF(AND(LowestYield<>"",CL137<>""),(CL137/CL$510)*LowestYield,"") ->  | EB137: =IF(AND(LowestYield<>"",CM137<>""),(CM137/CM$510)*LowestYield,"") ->  | EC137: =IF(AND(LowestYield<>"",CN137<>""),(CN137/CN$510)*LowestYield,"") ->  | EI137: =IF(AND(LowestYield<>"",BZ137<>""),(BZ137/BZ$510)*LowestYield,"") ->  | EJ137: =IF(AND(LowestYield<>"",CA137<>""),(CA137/CA$510)*LowestYield,"") ->  | EK137: =IF(AND(LowestYield<>"",CB137<>""),(CB137/CB$510)*LowestYield,"") ->  | EL137: =IF(AND(LowestYield<>"",CC137<>""),(CC137/CC$510)*LowestYield,"") ->  | EM137: =IF(AND(LowestYield<>"",CD137<>""),(CD137/CD$510)*LowestYield,"") ->  | EN137: =IF(AND(LowestYield<>"",CE137<>""),(CE137/CE$510)*LowestYield,"") ->  | EO137: =IF(AND(LowestYield<>"",CF137<>""),(CF137/CF$510)*LowestYield,"") ->  | EP137: =IF(AND(LowestYield<>"",CG137<>""),(CG137/CG$510)*LowestYield,"") ->  | EQ137: =IF(AND(LowestYield<>"",CH137<>""),(CH137/CH$510)*LowestYield,"") ->  | ER137: =IF(AND(LowestYield<>"",CI137<>""),(CI137/CI$510)*LowestYield,"") ->  | EX137: =IF(EN137="","",EN137*(1-VLOOKUP(BondType,BondTypeTable,2))) ->  | EY137: =IF(EO137="","",EO137*(1-VLOOKUP(BondType,BondTypeTable,2))) ->  | EZ137: =IF(EP137="","",EP137*(1-VLOOKUP(BondType,BondTypeTable,2))) ->  | FA137: =IF(EQ137="","",EQ137*(1-VLOOKUP(BondType,BondTypeTable,2))) ->  | FB137: =IF(ER137="","",ER137*(1-VLOOKUP(BondType,BondTypeTable,2))) ->  | FC137: =IF(AND(LowestYield<>"",CO137<>""),(CO137/CO$510)*LowestYield,"") ->  | FD137: =IF(AND(LowestYield<>"",CP137<>""),(CP137/CP$510)*LowestYield,"") ->  | FE137: =IF(AND(LowestYield<>"",CQ137<>""),(CQ137/CQ$510)*LowestYield,"") ->  | FF137: =IF(AND(LowestYield<>"",CR137<>""),(CR137/CR$510)*LowestYield,"") ->  | FG137: =IF(AND(LowestYield<>"",CS137<>""),(CS137/CS$510)*LowestYield,"") ->  | FH137: =IF(AND(LowestYield<>"",CT137<>""),(CT137/CT$510)*LowestYield,"") ->  | FI137: =IF(AND(LowestYield<>"",CT137<>""),(CT137/CT$510)*LowestYield,"") ->  | FJ137: =IF(AND(LowestYield<>"",CV137<>""),(CV137/CV$510)*LowestYield,"") ->  | FS137: =(DAYS360(PurchaseDate,ValueDate)/360)*(Bonds*1000)*(Coupon/100) -> 0 | FU137: =IF(BL137="","",IF(CurrentYield<0,0,MDURATION(ValueDate, Maturity, Coupon/100, CurrentYield, AdjustedCouponsPerYear, DayCountMethod))) ->  | FV137: =IF(OR(BL137="",BL137<0),BJ137,IF(CurrentYield > 0.01,PRICE(ValueDate,Maturity,Coupon/100,CurrentYield-0.01,100,AdjustedCouponsPerYear,DayCountMethod),PRICE(ValueDate,Maturity,Coupon/100,0.0000001,100,AdjustedCouponsPerYear,DayCountMethod))) -> 0 | FW137: =IF(OR(BL137="",BL137<0),BJ137,PRICE(ValueDate,Maturity,Coupon/100,CurrentYield+0.01,100,AdjustedCouponsPerYear,DayCountMethod)) -> 0
B138: =IF('Bond Input Sheet'!B142="","", 'Bond Input Sheet'!B142) ->  | C138: =IF('Bond Input Sheet'!C142="","NR", 'Bond Input Sheet'!C142) -> NR | D138: =IF('Bond Input Sheet'!D142="","NR", 'Bond Input Sheet'!D142) -> NR | L138: 8 | M138: ='Bond Input Sheet'!E142 -> 0 | N138: ='Bond Input Sheet'!F142 -> 0 | O138: ='Bond Input Sheet'!G142 -> 0 | P138: ='Bond Input Sheet'!H142 -> 0 | Q138: ='Bond Input Sheet'!I142 -> 0 | R138: ='Bond Input Sheet'!J142 -> 0 | S138: 1 | T138: ='Bond Input Sheet'!K142 -> 00:00:00 | U138: 1 | V138: -120.4273973 | W138: 0 | X138: ='Bond Input Sheet'!L142 -> 0 | Y138: =IF('Bond Input Sheet'!M142=0,"",'Bond Input Sheet'!M142) ->  | Z138: ='Bond Input Sheet'!N142 -> 00:00:00 | AA138: ='Bond Input Sheet'!O142 -> 0 | AB138: ='Bond Input Sheet'!P142 -> 0 | AC138: ='Bond Input Sheet'!Q142 -> 0 | AD138: 0 | AE138: 0 | AF138: 0 | AG138: 0 | AH138: 0 | AI138: 0 | AJ138: 0 | AK138: 0 | AL138: 0 | AM138: 0 | AN138: 0 | AO138: 0 | AP138: 0 | AQ138: 0 | AR138: 0 | AS138: 0 | AT138: 0 | AU138: 0 | AV138: 0 | AW138: 0 | AX138: 0 | AY138: 0 | AZ138: 0 | BA138: 0 | BB138: 0 | BC138: 0 | BD138: 0 | BE138: 0 | BF138: 0 | BG138: 0 | BH138: 0 | BI138: 0 | BJ138: ='Bond Input Sheet'!R142 -> 0 | BK138: 0 | BW138: 0 | BX138: 0 | BZ138: 0 | CJ138: =IF(BondType=CJ$8,MarketValue,"") ->  | CV138: 0 | FS138: 0 | FV138: 0 | FW138: 0
B139: =IF('Bond Input Sheet'!B143="","", 'Bond Input Sheet'!B143) ->  | C139: =IF('Bond Input Sheet'!C143="","NR", 'Bond Input Sheet'!C143) -> NR | D139: =IF('Bond Input Sheet'!D143="","NR", 'Bond Input Sheet'!D143) -> NR | L139: 8 | M139: ='Bond Input Sheet'!E143 -> 0 | N139: ='Bond Input Sheet'!F143 -> 0 | O139: ='Bond Input Sheet'!G143 -> 0 | P139: ='Bond Input Sheet'!H143 -> 0 | Q139: ='Bond Input Sheet'!I143 -> 0 | R139: ='Bond Input Sheet'!J143 -> 0 | S139: 1 | T139: ='Bond Input Sheet'!K143 -> 00:00:00 | U139: 1 | V139: -120.4273973 | W139: 0 | X139: ='Bond Input Sheet'!L143 -> 0 | Y139: =IF('Bond Input Sheet'!M143=0,"",'Bond Input Sheet'!M143) ->  | Z139: ='Bond Input Sheet'!N143 -> 00:00:00 | AA139: ='Bond Input Sheet'!O143 -> 0 | AB139: ='Bond Input Sheet'!P143 -> 0 | AC139: ='Bond Input Sheet'!Q143 -> 0 | AD139: 0 | AE139: 0 | AF139: 0 | AG139: 0 | AH139: 0 | AI139: 0 | AJ139: 0 | AK139: 0 | AL139: 0 | AM139: 0 | AN139: 0 | AO139: 0 | AP139: 0 | AQ139: 0 | AR139: 0 | AS139: 0 | AT139: 0 | AU139: 0 | AV139: 0 | AW139: 0 | AX139: 0 | AY139: 0 | AZ139: 0 | BA139: 0 | BB139: 0 | BC139: 0 | BD139: 0 | BE139: 0 | BF139: 0 | BG139: 0 | BH139: 0 | BI139: 0 | BJ139: ='Bond Input Sheet'!R143 -> 0 | BK139: 0 | BW139: 0 | BX139: 0 | BZ139: 0 | CA139: =IF(AND(Maturity<=CA$511,Maturity>BZ$511),MarketValue,"") ->  | CE139: =IF(AND(Maturity<=CE$511,Maturity>CD$511),MarketValue,"") ->  | CO139: =IF($L139=CO$511,$BW139,"") ->  | CV139: 0 | FS139: 0 | FV139: 0 | FW139: 0
B140: =IF('Bond Input Sheet'!B144="","", 'Bond Input Sheet'!B144) ->  | C140: =IF('Bond Input Sheet'!C144="","NR", 'Bond Input Sheet'!C144) -> NR | D140: =IF('Bond Input Sheet'!D144="","NR", 'Bond Input Sheet'!D144) -> NR | L140: 8 | M140: ='Bond Input Sheet'!E144 -> 0 | N140: ='Bond Input Sheet'!F144 -> 0 | O140: ='Bond Input Sheet'!G144 -> 0 | P140: ='Bond Input Sheet'!H144 -> 0 | Q140: ='Bond Input Sheet'!I144 -> 0 | R140: ='Bond Input Sheet'!J144 -> 0 | S140: 1 | T140: ='Bond Input Sheet'!K144 -> 00:00:00 | U140: 1 | V140: -120.4273973 | W140: 0 | X140: ='Bond Input Sheet'!L144 -> 0 | Y140: =IF('Bond Input Sheet'!M144=0,"",'Bond Input Sheet'!M144) ->  | Z140: ='Bond Input Sheet'!N144 -> 00:00:00 | AA140: ='Bond Input Sheet'!O144 -> 0 | AB140: ='Bond Input Sheet'!P144 -> 0 | AC140: ='Bond Input Sheet'!Q144 -> 0 | AD140: 0 | AE140: 0 | AF140: 0 | AG140: 0 | AH140: 0 | AI140: 0 | AJ140: 0 | AK140: 0 | AL140: 0 | AM140: 0 | AN140: 0 | AO140: 0 | AP140: 0 | AQ140: 0 | AR140: 0 | AS140: 0 | AT140: 0 | AU140: 0 | AV140: 0 | AW140: 0 | AX140: 0 | AY140: 0 | AZ140: 0 | BA140: 0 | BB140: 0 | BC140: 0 | BD140: 0 | BE140: 0 | BF140: 0 | BG140: 0 | BH140: 0 | BI140: 0 | BJ140: ='Bond Input Sheet'!R144 -> 0 | BK140: 0 | BW140: 0 | BX140: 0 | BZ140: 0 | CV140: 0 | FS140: 0 | FV140: 0 | FW140: 0
B141: =IF('Bond Input Sheet'!B145="","", 'Bond Input Sheet'!B145) ->  | C141: =IF('Bond Input Sheet'!C145="","NR", 'Bond Input Sheet'!C145) -> NR | D141: =IF('Bond Input Sheet'!D145="","NR", 'Bond Input Sheet'!D145) -> NR | L141: 8 | M141: ='Bond Input Sheet'!E145 -> 0 | N141: ='Bond Input Sheet'!F145 -> 0 | O141: ='Bond Input Sheet'!G145 -> 0 | P141: ='Bond Input Sheet'!H145 -> 0 | Q141: ='Bond Input Sheet'!I145 -> 0 | R141: ='Bond Input Sheet'!J145 -> 0 | S141: 1 | T141: ='Bond Input Sheet'!K145 -> 00:00:00 | U141: 1 | V141: -120.4273973 | W141: 0 | X141: ='Bond Input Sheet'!L145 -> 0 | Y141: =IF('Bond Input Sheet'!M145=0,"",'Bond Input Sheet'!M145) ->  | Z141: ='Bond Input Sheet'!N145 -> 00:00:00 | AA141: ='Bond Input Sheet'!O145 -> 0 | AB141: ='Bond Input Sheet'!P145 -> 0 | AC141: ='Bond Input Sheet'!Q145 -> 0 | AD141: 0 | AE141: 0 | AF141: 0 | AG141: 0 | AH141: 0 | AI141: 0 | AJ141: 0 | AK141: 0 | AL141: 0 | AM141: 0 | AN141: 0 | AO141: 0 | AP141: 0 | AQ141: 0 | AR141: 0 | AS141: 0 | AT141: 0 | AU141: 0 | AV141: 0 | AW141: 0 | AX141: 0 | AY141: 0 | AZ141: 0 | BA141: 0 | BB141: 0 | BC141: 0 | BD141: 0 | BE141: 0 | BF141: 0 | BG141: 0 | BH141: 0 | BI141: 0 | BJ141: ='Bond Input Sheet'!R145 -> 0 | BK141: 0 | BW141: 0 | BX141: 0 | BZ141: 0 | CV141: 0 | FS141: 0 | FV141: 0 | FW141: 0
B142: =IF('Bond Input Sheet'!B146="","", 'Bond Input Sheet'!B146) ->  | C142: =IF('Bond Input Sheet'!C146="","NR", 'Bond Input Sheet'!C146) -> NR | D142: =IF('Bond Input Sheet'!D146="","NR", 'Bond Input Sheet'!D146) -> NR | L142: 8 | M142: ='Bond Input Sheet'!E146 -> 0 | N142: ='Bond Input Sheet'!F146 -> 0 | O142: ='Bond Input Sheet'!G146 -> 0 | P142: ='Bond Input Sheet'!H146 -> 0 | Q142: ='Bond Input Sheet'!I146 -> 0 | R142: ='Bond Input Sheet'!J146 -> 0 | S142: 1 | T142: ='Bond Input Sheet'!K146 -> 00:00:00 | U142: 1 | V142: -120.4273973 | W142: 0 | X142: ='Bond Input Sheet'!L146 -> 0 | Y142: =IF('Bond Input Sheet'!M146=0,"",'Bond Input Sheet'!M146) ->  | Z142: ='Bond Input Sheet'!N146 -> 00:00:00 | AA142: ='Bond Input Sheet'!O146 -> 0 | AB142: ='Bond Input Sheet'!P146 -> 0 | AC142: ='Bond Input Sheet'!Q146 -> 0 | AD142: 0 | AE142: 0 | AF142: 0 | AG142: 0 | AH142: 0 | AI142: 0 | AJ142: 0 | AK142: 0 | AL142: 0 | AM142: 0 | AN142: 0 | AO142: 0 | AP142: 0 | AQ142: 0 | AR142: 0 | AS142: 0 | AT142: 0 | AU142: 0 | AV142: 0 | AW142: 0 | AX142: 0 | AY142: 0 | AZ142: 0 | BA142: 0 | BB142: 0 | BC142: 0 | BD142: 0 | BE142: 0 | BF142: 0 | BG142: 0 | BH142: 0 | BI142: 0 | BJ142: ='Bond Input Sheet'!R146 -> 0 | BK142: 0 | BW142: 0 | BX142: 0 | BZ142: 0 | CV142: 0 | FS142: 0 | FV142: 0 | FW142: 0
B143: =IF('Bond Input Sheet'!B147="","", 'Bond Input Sheet'!B147) ->  | C143: =IF('Bond Input Sheet'!C147="","NR", 'Bond Input Sheet'!C147) -> NR | D143: =IF('Bond Input Sheet'!D147="","NR", 'Bond Input Sheet'!D147) -> NR | L143: 8 | M143: ='Bond Input Sheet'!E147 -> 0 | N143: ='Bond Input Sheet'!F147 -> 0 | O143: ='Bond Input Sheet'!G147 -> 0 | P143: ='Bond Input Sheet'!H147 -> 0 | Q143: ='Bond Input Sheet'!I147 -> 0 | R143: ='Bond Input Sheet'!J147 -> 0 | S143: 1 | T143: ='Bond Input Sheet'!K147 -> 00:00:00 | U143: 1 | V143: -120.4273973 | W143: 0 | X143: ='Bond Input Sheet'!L147 -> 0 | Y143: =IF('Bond Input Sheet'!M147=0,"",'Bond Input Sheet'!M147) ->  | Z143: ='Bond Input Sheet'!N147 -> 00:00:00 | AA143: ='Bond Input Sheet'!O147 -> 0 | AB143: ='Bond Input Sheet'!P147 -> 0 | AC143: ='Bond Input Sheet'!Q147 -> 0 | AD143: 0 | AE143: 0 | AF143: 0 | AG143: 0 | AH143: 0 | AI143: 0 | AJ143: 0 | AK143: 0 | AL143: 0 | AM143: 0 | AN143: 0 | AO143: 0 | AP143: 0 | AQ143: 0 | AR143: 0 | AS143: 0 | AT143: 0 | AU143: 0 | AV143: 0 | AW143: 0 | AX143: 0 | AY143: 0 | AZ143: 0 | BA143: 0 | BB143: 0 | BC143: 0 | BD143: 0 | BE143: 0 | BF143: 0 | BG143: 0 | BH143: 0 | BI143: 0 | BJ143: ='Bond Input Sheet'!R147 -> 0 | BK143: 0 | BW143: 0 | BX143: 0 | BZ143: 0 | CV143: 0 | FS143: 0 | FV143: 0 | FW143: 0
B144: =IF('Bond Input Sheet'!B148="","", 'Bond Input Sheet'!B148) ->  | C144: =IF('Bond Input Sheet'!C148="","NR", 'Bond Input Sheet'!C148) -> NR | D144: =IF('Bond Input Sheet'!D148="","NR", 'Bond Input Sheet'!D148) -> NR | L144: 8 | M144: ='Bond Input Sheet'!E148 -> 0 | N144: ='Bond Input Sheet'!F148 -> 0 | O144: ='Bond Input Sheet'!G148 -> 0 | P144: ='Bond Input Sheet'!H148 -> 0 | Q144: ='Bond Input Sheet'!I148 -> 0 | R144: ='Bond Input Sheet'!J148 -> 0 | S144: 1 | T144: ='Bond Input Sheet'!K148 -> 00:00:00 | U144: 1 | V144: -120.4273973 | W144: 0 | X144: ='Bond Input Sheet'!L148 -> 0 | Y144: =IF('Bond Input Sheet'!M148=0,"",'Bond Input Sheet'!M148) ->  | Z144: ='Bond Input Sheet'!N148 -> 00:00:00 | AA144: ='Bond Input Sheet'!O148 -> 0 | AB144: ='Bond Input Sheet'!P148 -> 0 | AC144: ='Bond Input Sheet'!Q148 -> 0 | AD144: 0 | AE144: 0 | AF144: 0 | AG144: 0 | AH144: 0 | AI144: 0 | AJ144: 0 | AK144: 0 | AL144: 0 | AM144: 0 | AN144: 0 | AO144: 0 | AP144: 0 | AQ144: 0 | AR144: 0 | AS144: 0 | AT144: 0 | AU144: 0 | AV144: 0 | AW144: 0 | AX144: 0 | AY144: 0 | AZ144: 0 | BA144: 0 | BB144: 0 | BC144: 0 | BD144: 0 | BE144: 0 | BF144: 0 | BG144: 0 | BH144: 0 | BI144: 0 | BJ144: ='Bond Input Sheet'!R148 -> 0 | BK144: 0 | BW144: 0 | BX144: 0 | BZ144: 0 | CV144: 0 | FS144: 0 | FV144: 0 | FW144: 0
B145: =IF('Bond Input Sheet'!B149="","", 'Bond Input Sheet'!B149) ->  | C145: =IF('Bond Input Sheet'!C149="","NR", 'Bond Input Sheet'!C149) -> NR | D145: =IF('Bond Input Sheet'!D149="","NR", 'Bond Input Sheet'!D149) -> NR | L145: 8 | M145: ='Bond Input Sheet'!E149 -> 0 | N145: ='Bond Input Sheet'!F149 -> 0 | O145: ='Bond Input Sheet'!G149 -> 0 | P145: ='Bond Input Sheet'!H149 -> 0 | Q145: ='Bond Input Sheet'!I149 -> 0 | R145: ='Bond Input Sheet'!J149 -> 0 | S145: 1 | T145: ='Bond Input Sheet'!K149 -> 00:00:00 | U145: 1 | V145: -120.4273973 | W145: 0 | X145: ='Bond Input Sheet'!L149 -> 0 | Y145: =IF('Bond Input Sheet'!M149=0,"",'Bond Input Sheet'!M149) ->  | Z145: ='Bond Input Sheet'!N149 -> 00:00:00 | AA145: ='Bond Input Sheet'!O149 -> 0 | AB145: ='Bond Input Sheet'!P149 -> 0 | AC145: ='Bond Input Sheet'!Q149 -> 0 | AD145: 0 | AE145: 0 | AF145: 0 | AG145: 0 | AH145: 0 | AI145: 0 | AJ145: 0 | AK145: 0 | AL145: 0 | AM145: 0 | AN145: 0 | AO145: 0 | AP145: 0 | AQ145: 0 | AR145: 0 | AS145: 0 | AT145: 0 | AU145: 0 | AV145: 0 | AW145: 0 | AX145: 0 | AY145: 0 | AZ145: 0 | BA145: 0 | BB145: 0 | BC145: 0 | BD145: 0 | BE145: 0 | BF145: 0 | BG145: 0 | BH145: 0 | BI145: 0 | BJ145: ='Bond Input Sheet'!R149 -> 0 | BK145: 0 | BU145: =IF(LowestYield<>"",LowestYield-FairYTM,"") ->  | BW145: 0 | BX145: 0 | BZ145: 0 | CV145: 0 | FS145: 0 | FV145: 0 | FW145: 0
B146: =IF('Bond Input Sheet'!B150="","", 'Bond Input Sheet'!B150) ->  | C146: =IF('Bond Input Sheet'!C150="","NR", 'Bond Input Sheet'!C150) -> NR | D146: =IF('Bond Input Sheet'!D150="","NR", 'Bond Input Sheet'!D150) -> NR | L146: 8 | M146: ='Bond Input Sheet'!E150 -> 0 | N146: ='Bond Input Sheet'!F150 -> 0 | O146: ='Bond Input Sheet'!G150 -> 0 | P146: ='Bond Input Sheet'!H150 -> 0 | Q146: ='Bond Input Sheet'!I150 -> 0 | R146: ='Bond Input Sheet'!J150 -> 0 | S146: 1 | T146: ='Bond Input Sheet'!K150 -> 00:00:00 | U146: 1 | V146: -120.4273973 | W146: 0 | X146: ='Bond Input Sheet'!L150 -> 0 | Y146: =IF('Bond Input Sheet'!M150=0,"",'Bond Input Sheet'!M150) ->  | Z146: ='Bond Input Sheet'!N150 -> 00:00:00 | AA146: ='Bond Input Sheet'!O150 -> 0 | AB146: ='Bond Input Sheet'!P150 -> 0 | AC146: ='Bond Input Sheet'!Q150 -> 0 | AD146: 0 | AE146: 0 | AF146: 0 | AG146: 0 | AH146: 0 | AI146: 0 | AJ146: 0 | AK146: 0 | AL146: 0 | AM146: 0 | AN146: 0 | AO146: 0 | AP146: 0 | AQ146: 0 | AR146: 0 | AS146: 0 | AT146: 0 | AU146: 0 | AV146: 0 | AW146: 0 | AX146: 0 | AY146: 0 | AZ146: 0 | BA146: 0 | BB146: 0 | BC146: 0 | BD146: 0 | BE146: 0 | BF146: 0 | BG146: 0 | BH146: 0 | BI146: 0 | BJ146: ='Bond Input Sheet'!R150 -> 0 | BK146: 0 | BW146: 0 | BX146: 0 | BZ146: 0 | CV146: 0 | FS146: 0 | FV146: 0 | FW146: 0
B147: =IF('Bond Input Sheet'!B151="","", 'Bond Input Sheet'!B151) ->  | C147: =IF('Bond Input Sheet'!C151="","NR", 'Bond Input Sheet'!C151) -> NR | D147: =IF('Bond Input Sheet'!D151="","NR", 'Bond Input Sheet'!D151) -> NR | G147: =IF(I147="","",MarketValue) ->  | H147: =IF(J147="","",MarketValue) ->  | K147: =IF(B147="","",IF(AND(I147="",J147=""),MATCH("NR",SP_RatingTable,0),ROUND(AVERAGE(I147:J147),0))) ->  | L147: 8 | M147: ='Bond Input Sheet'!E151 -> 0 | N147: ='Bond Input Sheet'!F151 -> 0 | O147: ='Bond Input Sheet'!G151 -> 0 | P147: ='Bond Input Sheet'!H151 -> 0 | Q147: ='Bond Input Sheet'!I151 -> 0 | R147: ='Bond Input Sheet'!J151 -> 0 | S147: 1 | T147: ='Bond Input Sheet'!K151 -> 00:00:00 | U147: 1 | V147: -120.4273973 | W147: 0 | X147: ='Bond Input Sheet'!L151 -> 0 | Y147: =IF('Bond Input Sheet'!M151=0,"",'Bond Input Sheet'!M151) ->  | Z147: ='Bond Input Sheet'!N151 -> 00:00:00 | AA147: ='Bond Input Sheet'!O151 -> 0 | AB147: ='Bond Input Sheet'!P151 -> 0 | AC147: ='Bond Input Sheet'!Q151 -> 0 | AD147: 0 | AE147: 0 | AF147: 0 | AG147: 0 | AH147: 0 | AI147: 0 | AJ147: 0 | AK147: 0 | AL147: 0 | AM147: 0 | AN147: 0 | AO147: 0 | AP147: 0 | AQ147: 0 | AR147: 0 | AS147: 0 | AT147: 0 | AU147: 0 | AV147: 0 | AW147: 0 | AX147: 0 | AY147: 0 | AZ147: 0 | BA147: 0 | BB147: 0 | BC147: 0 | BD147: 0 | BE147: 0 | BF147: 0 | BG147: 0 | BH147: 0 | BI147: 0 | BJ147: ='Bond Input Sheet'!R151 -> 0 | BK147: 0 | BW147: 0 | BX147: 0 | BZ147: 0 | CV147: 0 | FS147: 0 | FV147: 0 | FW147: 0
B148: =IF('Bond Input Sheet'!B152="","", 'Bond Input Sheet'!B152) ->  | C148: =IF('Bond Input Sheet'!C152="","NR", 'Bond Input Sheet'!C152) -> NR | D148: =IF('Bond Input Sheet'!D152="","NR", 'Bond Input Sheet'!D152) -> NR | L148: 8 | M148: ='Bond Input Sheet'!E152 -> 0 | N148: ='Bond Input Sheet'!F152 -> 0 | O148: ='Bond Input Sheet'!G152 -> 0 | P148: ='Bond Input Sheet'!H152 -> 0 | Q148: ='Bond Input Sheet'!I152 -> 0 | R148: ='Bond Input Sheet'!J152 -> 0 | S148: 1 | T148: ='Bond Input Sheet'!K152 -> 00:00:00 | U148: 1 | V148: -120.4273973 | W148: 0 | X148: ='Bond Input Sheet'!L152 -> 0 | Y148: =IF('Bond Input Sheet'!M152=0,"",'Bond Input Sheet'!M152) ->  | Z148: ='Bond Input Sheet'!N152 -> 00:00:00 | AA148: ='Bond Input Sheet'!O152 -> 0 | AB148: ='Bond Input Sheet'!P152 -> 0 | AC148: ='Bond Input Sheet'!Q152 -> 0 | AD148: 0 | AE148: 0 | AF148: 0 | AG148: 0 | AH148: 0 | AI148: 0 | AJ148: 0 | AK148: 0 | AL148: 0 | AM148: 0 | AN148: 0 | AO148: 0 | AP148: 0 | AQ148: 0 | AR148: 0 | AS148: 0 | AT148: 0 | AU148: 0 | AV148: 0 | AW148: 0 | AX148: 0 | AY148: 0 | AZ148: 0 | BA148: 0 | BB148: 0 | BC148: 0 | BD148: 0 | BE148: 0 | BF148: 0 | BG148: 0 | BH148: 0 | BI148: 0 | BJ148: ='Bond Input Sheet'!R152 -> 0 | BK148: 0 | BW148: 0 | BX148: 0 | BZ148: 0 | CV148: 0 | FS148: 0 | FV148: 0 | FW148: 0
B149: =IF('Bond Input Sheet'!B153="","", 'Bond Input Sheet'!B153) ->  | C149: =IF('Bond Input Sheet'!C153="","NR", 'Bond Input Sheet'!C153) -> NR | D149: =IF('Bond Input Sheet'!D153="","NR", 'Bond Input Sheet'!D153) -> NR | L149: 8 | M149: ='Bond Input Sheet'!E153 -> 0 | N149: ='Bond Input Sheet'!F153 -> 0 | O149: ='Bond Input Sheet'!G153 -> 0 | P149: ='Bond Input Sheet'!H153 -> 0 | Q149: ='Bond Input Sheet'!I153 -> 0 | R149: ='Bond Input Sheet'!J153 -> 0 | S149: 1 | T149: ='Bond Input Sheet'!K153 -> 00:00:00 | U149: 1 | V149: -120.4273973 | W149: 0 | X149: ='Bond Input Sheet'!L153 -> 0 | Y149: =IF('Bond Input Sheet'!M153=0,"",'Bond Input Sheet'!M153) ->  | Z149: ='Bond Input Sheet'!N153 -> 00:00:00 | AA149: ='Bond Input Sheet'!O153 -> 0 | AB149: ='Bond Input Sheet'!P153 -> 0 | AC149: ='Bond Input Sheet'!Q153 -> 0 | AD149: 0 | AE149: 0 | AF149: 0 | AG149: 0 | AH149: 0 | AI149: 0 | AJ149: 0 | AK149: 0 | AL149: 0 | AM149: 0 | AN149: 0 | AO149: 0 | AP149: 0 | AQ149: 0 | AR149: 0 | AS149: 0 | AT149: 0 | AU149: 0 | AV149: 0 | AW149: 0 | AX149: 0 | AY149: 0 | AZ149: 0 | BA149: 0 | BB149: 0 | BC149: 0 | BD149: 0 | BE149: 0 | BF149: 0 | BG149: 0 | BH149: 0 | BI149: 0 | BJ149: ='Bond Input Sheet'!R153 -> 0 | BK149: 0 | BW149: 0 | BX149: 0 | BZ149: 0 | CA149: =IF(AND(Maturity<=CA$511,Maturity>BZ$511),MarketValue,"") ->  | CE149: =IF(AND(Maturity<=CE$511,Maturity>CD$511),MarketValue,"") ->  | CO149: =IF($L149=CO$511,$BW149,"") ->  | CV149: 0 | FS149: 0 | FV149: 0 | FW149: 0
B150: =IF('Bond Input Sheet'!B154="","", 'Bond Input Sheet'!B154) ->  | C150: =IF('Bond Input Sheet'!C154="","NR", 'Bond Input Sheet'!C154) -> NR | D150: =IF('Bond Input Sheet'!D154="","NR", 'Bond Input Sheet'!D154) -> NR | L150: 8 | M150: ='Bond Input Sheet'!E154 -> 0 | N150: ='Bond Input Sheet'!F154 -> 0 | O150: ='Bond Input Sheet'!G154 -> 0 | P150: ='Bond Input Sheet'!H154 -> 0 | Q150: ='Bond Input Sheet'!I154 -> 0 | R150: ='Bond Input Sheet'!J154 -> 0 | S150: 1 | T150: ='Bond Input Sheet'!K154 -> 00:00:00 | U150: 1 | V150: -120.4273973 | W150: 0 | X150: ='Bond Input Sheet'!L154 -> 0 | Y150: =IF('Bond Input Sheet'!M154=0,"",'Bond Input Sheet'!M154) ->  | Z150: ='Bond Input Sheet'!N154 -> 00:00:00 | AA150: ='Bond Input Sheet'!O154 -> 0 | AB150: ='Bond Input Sheet'!P154 -> 0 | AC150: ='Bond Input Sheet'!Q154 -> 0 | AD150: 0 | AE150: 0 | AF150: 0 | AG150: 0 | AH150: 0 | AI150: 0 | AJ150: 0 | AK150: 0 | AL150: 0 | AM150: 0 | AN150: 0 | AO150: 0 | AP150: 0 | AQ150: 0 | AR150: 0 | AS150: 0 | AT150: 0 | AU150: 0 | AV150: 0 | AW150: 0 | AX150: 0 | AY150: 0 | AZ150: 0 | BA150: 0 | BB150: 0 | BC150: 0 | BD150: 0 | BE150: 0 | BF150: 0 | BG150: 0 | BH150: 0 | BI150: 0 | BJ150: ='Bond Input Sheet'!R154 -> 0 | BK150: 0 | BW150: 0 | BX150: 0 | BZ150: 0 | CV150: 0 | FS150: 0 | FV150: 0 | FW150: 0
B151: =IF('Bond Input Sheet'!B155="","", 'Bond Input Sheet'!B155) ->  | C151: =IF('Bond Input Sheet'!C155="","NR", 'Bond Input Sheet'!C155) -> NR | D151: =IF('Bond Input Sheet'!D155="","NR", 'Bond Input Sheet'!D155) -> NR | L151: 8 | M151: ='Bond Input Sheet'!E155 -> 0 | N151: ='Bond Input Sheet'!F155 -> 0 | O151: ='Bond Input Sheet'!G155 -> 0 | P151: ='Bond Input Sheet'!H155 -> 0 | Q151: ='Bond Input Sheet'!I155 -> 0 | R151: ='Bond Input Sheet'!J155 -> 0 | S151: 1 | T151: ='Bond Input Sheet'!K155 -> 00:00:00 | U151: 1 | V151: -120.4273973 | W151: 0 | X151: ='Bond Input Sheet'!L155 -> 0 | Y151: =IF('Bond Input Sheet'!M155=0,"",'Bond Input Sheet'!M155) ->  | Z151: ='Bond Input Sheet'!N155 -> 00:00:00 | AA151: ='Bond Input Sheet'!O155 -> 0 | AB151: ='Bond Input Sheet'!P155 -> 0 | AC151: ='Bond Input Sheet'!Q155 -> 0 | AD151: 0 | AE151: 0 | AF151: 0 | AG151: 0 | AH151: 0 | AI151: 0 | AJ151: 0 | AK151: 0 | AL151: 0 | AM151: 0 | AN151: 0 | AO151: 0 | AP151: 0 | AQ151: 0 | AR151: 0 | AS151: 0 | AT151: 0 | AU151: 0 | AV151: 0 | AW151: 0 | AX151: 0 | AY151: 0 | AZ151: 0 | BA151: 0 | BB151: 0 | BC151: 0 | BD151: 0 | BE151: 0 | BF151: 0 | BG151: 0 | BH151: 0 | BI151: 0 | BJ151: ='Bond Input Sheet'!R155 -> 0 | BK151: 0 | BW151: 0 | BX151: 0 | BZ151: 0 | CV151: 0 | FS151: 0 | FV151: 0 | FW151: 0
B152: =IF('Bond Input Sheet'!B156="","", 'Bond Input Sheet'!B156) ->  | C152: =IF('Bond Input Sheet'!C156="","NR", 'Bond Input Sheet'!C156) -> NR | D152: =IF('Bond Input Sheet'!D156="","NR", 'Bond Input Sheet'!D156) -> NR | L152: 8 | M152: ='Bond Input Sheet'!E156 -> 0 | N152: ='Bond Input Sheet'!F156 -> 0 | O152: ='Bond Input Sheet'!G156 -> 0 | P152: ='Bond Input Sheet'!H156 -> 0 | Q152: ='Bond Input Sheet'!I156 -> 0 | R152: ='Bond Input Sheet'!J156 -> 0 | S152: 1 | T152: ='Bond Input Sheet'!K156 -> 00:00:00 | U152: 1 | V152: -120.4273973 | W152: 0 | X152: ='Bond Input Sheet'!L156 -> 0 | Y152: =IF('Bond Input Sheet'!M156=0,"",'Bond Input Sheet'!M156) ->  | Z152: ='Bond Input Sheet'!N156 -> 00:00:00 | AA152: ='Bond Input Sheet'!O156 -> 0 | AB152: ='Bond Input Sheet'!P156 -> 0 | AC152: ='Bond Input Sheet'!Q156 -> 0 | AD152: 0 | AE152: 0 | AF152: 0 | AG152: 0 | AH152: 0 | AI152: 0 | AJ152: 0 | AK152: 0 | AL152: 0 | AM152: 0 | AN152: 0 | AO152: 0 | AP152: 0 | AQ152: 0 | AR152: 0 | AS152: 0 | AT152: 0 | AU152: 0 | AV152: 0 | AW152: 0 | AX152: 0 | AY152: 0 | AZ152: 0 | BA152: 0 | BB152: 0 | BC152: 0 | BD152: 0 | BE152: 0 | BF152: 0 | BG152: 0 | BH152: 0 | BI152: 0 | BJ152: ='Bond Input Sheet'!R156 -> 0 | BK152: 0 | BW152: 0 | BX152: 0 | BZ152: 0 | CV152: 0 | FS152: 0 | FV152: 0 | FW152: 0
B153: =IF('Bond Input Sheet'!B157="","", 'Bond Input Sheet'!B157) ->  | C153: =IF('Bond Input Sheet'!C157="","NR", 'Bond Input Sheet'!C157) -> NR | D153: =IF('Bond Input Sheet'!D157="","NR", 'Bond Input Sheet'!D157) -> NR | L153: 8 | M153: ='Bond Input Sheet'!E157 -> 0 | N153: ='Bond Input Sheet'!F157 -> 0 | O153: ='Bond Input Sheet'!G157 -> 0 | P153: ='Bond Input Sheet'!H157 -> 0 | Q153: ='Bond Input Sheet'!I157 -> 0 | R153: ='Bond Input Sheet'!J157 -> 0 | S153: 1 | T153: ='Bond Input Sheet'!K157 -> 00:00:00 | U153: 1 | V153: -120.4273973 | W153: 0 | X153: ='Bond Input Sheet'!L157 -> 0 | Y153: =IF('Bond Input Sheet'!M157=0,"",'Bond Input Sheet'!M157) ->  | Z153: ='Bond Input Sheet'!N157 -> 00:00:00 | AA153: ='Bond Input Sheet'!O157 -> 0 | AB153: ='Bond Input Sheet'!P157 -> 0 | AC153: ='Bond Input Sheet'!Q157 -> 0 | AD153: 0 | AE153: 0 | AF153: 0 | AG153: 0 | AH153: 0 | AI153: 0 | AJ153: 0 | AK153: 0 | AL153: 0 | AM153: 0 | AN153: =IF(CouponsPerYear<>0,IF(MOD(($U153-AN$8)/(12/CouponsPerYear),1),,CouponPaymentAmount),0) -> 0 | AO153: 0 | AP153: 0 | AQ153: 0 | AR153: 0 | AS153: 0 | AT153: 0 | AU153: 0 | AV153: 0 | AW153: 0 | AX153: 0 | AY153: 0 | AZ153: =IF(CouponsPerYear<>0,IF(MOD(($U153-AZ$8)/(12/CouponsPerYear),1),,$AJ153*(1-VLOOKUP(BondType,BondTypeTable,2))),0) -> 0 | BA153: 0 | BB153: 0 | BC153: 0 | BD153: 0 | BE153: 0 | BF153: 0 | BG153: 0 | BH153: 0 | BI153: 0 | BJ153: ='Bond Input Sheet'!R157 -> 0 | BK153: 0 | BW153: 0 | BX153: 0 | BZ153: 0 | CV153: 0 | FS153: 0 | FV153: 0 | FW153: 0
B154: =IF('Bond Input Sheet'!B158="","", 'Bond Input Sheet'!B158) ->  | C154: =IF('Bond Input Sheet'!C158="","NR", 'Bond Input Sheet'!C158) -> NR | D154: =IF('Bond Input Sheet'!D158="","NR", 'Bond Input Sheet'!D158) -> NR | L154: 8 | M154: ='Bond Input Sheet'!E158 -> 0 | N154: ='Bond Input Sheet'!F158 -> 0 | O154: ='Bond Input Sheet'!G158 -> 0 | P154: ='Bond Input Sheet'!H158 -> 0 | Q154: ='Bond Input Sheet'!I158 -> 0 | R154: ='Bond Input Sheet'!J158 -> 0 | S154: 1 | T154: ='Bond Input Sheet'!K158 -> 00:00:00 | U154: 1 | V154: -120.4273973 | W154: 0 | X154: ='Bond Input Sheet'!L158 -> 0 | Y154: =IF('Bond Input Sheet'!M158=0,"",'Bond Input Sheet'!M158) ->  | Z154: ='Bond Input Sheet'!N158 -> 00:00:00 | AA154: ='Bond Input Sheet'!O158 -> 0 | AB154: ='Bond Input Sheet'!P158 -> 0 | AC154: ='Bond Input Sheet'!Q158 -> 0 | AD154: 0 | AE154: 0 | AF154: 0 | AG154: 0 | AH154: 0 | AI154: 0 | AJ154: 0 | AK154: 0 | AL154: 0 | AM154: 0 | AN154: 0 | AO154: 0 | AP154: 0 | AQ154: 0 | AR154: 0 | AS154: 0 | AT154: 0 | AU154: 0 | AV154: 0 | AW154: 0 | AX154: 0 | AY154: 0 | AZ154: 0 | BA154: 0 | BB154: 0 | BC154: 0 | BD154: 0 | BE154: 0 | BF154: 0 | BG154: 0 | BH154: 0 | BI154: 0 | BJ154: ='Bond Input Sheet'!R158 -> 0 | BK154: 0 | BW154: 0 | BX154: 0 | BZ154: 0 | CV154: 0 | FS154: 0 | FV154: 0 | FW154: 0
B155: =IF('Bond Input Sheet'!B159="","", 'Bond Input Sheet'!B159) ->  | C155: =IF('Bond Input Sheet'!C159="","NR", 'Bond Input Sheet'!C159) -> NR | D155: =IF('Bond Input Sheet'!D159="","NR", 'Bond Input Sheet'!D159) -> NR | L155: 8 | M155: ='Bond Input Sheet'!E159 -> 0 | N155: ='Bond Input Sheet'!F159 -> 0 | O155: ='Bond Input Sheet'!G159 -> 0 | P155: ='Bond Input Sheet'!H159 -> 0 | Q155: ='Bond Input Sheet'!I159 -> 0 | R155: ='Bond Input Sheet'!J159 -> 0 | S155: 1 | T155: ='Bond Input Sheet'!K159 -> 00:00:00 | U155: 1 | V155: -120.4273973 | W155: 0 | X155: ='Bond Input Sheet'!L159 -> 0 | Y155: =IF('Bond Input Sheet'!M159=0,"",'Bond Input Sheet'!M159) ->  | Z155: ='Bond Input Sheet'!N159 -> 00:00:00 | AA155: ='Bond Input Sheet'!O159 -> 0 | AB155: ='Bond Input Sheet'!P159 -> 0 | AC155: ='Bond Input Sheet'!Q159 -> 0 | AD155: 0 | AE155: 0 | AF155: 0 | AG155: 0 | AH155: 0 | AI155: 0 | AJ155: 0 | AK155: 0 | AL155: 0 | AM155: 0 | AN155: 0 | AO155: 0 | AP155: 0 | AQ155: 0 | AR155: 0 | AS155: 0 | AT155: 0 | AU155: 0 | AV155: 0 | AW155: 0 | AX155: 0 | AY155: 0 | AZ155: 0 | BA155: 0 | BB155: 0 | BC155: 0 | BD155: 0 | BE155: 0 | BF155: 0 | BG155: 0 | BH155: 0 | BI155: 0 | BJ155: ='Bond Input Sheet'!R159 -> 0 | BK155: 0 | BW155: 0 | BX155: 0 | BZ155: 0 | CV155: 0 | FS155: 0 | FV155: 0 | FW155: 0
B156: =IF('Bond Input Sheet'!B160="","", 'Bond Input Sheet'!B160) ->  | C156: =IF('Bond Input Sheet'!C160="","NR", 'Bond Input Sheet'!C160) -> NR | D156: =IF('Bond Input Sheet'!D160="","NR", 'Bond Input Sheet'!D160) -> NR | L156: 8 | M156: ='Bond Input Sheet'!E160 -> 0 | N156: ='Bond Input Sheet'!F160 -> 0 | O156: ='Bond Input Sheet'!G160 -> 0 | P156: ='Bond Input Sheet'!H160 -> 0 | Q156: ='Bond Input Sheet'!I160 -> 0 | R156: ='Bond Input Sheet'!J160 -> 0 | S156: 1 | T156: ='Bond Input Sheet'!K160 -> 00:00:00 | U156: 1 | V156: -120.4273973 | W156: 0 | X156: ='Bond Input Sheet'!L160 -> 0 | Y156: =IF('Bond Input Sheet'!M160=0,"",'Bond Input Sheet'!M160) ->  | Z156: ='Bond Input Sheet'!N160 -> 00:00:00 | AA156: ='Bond Input Sheet'!O160 -> 0 | AB156: ='Bond Input Sheet'!P160 -> 0 | AC156: ='Bond Input Sheet'!Q160 -> 0 | AD156: 0 | AE156: 0 | AF156: 0 | AG156: 0 | AH156: 0 | AI156: 0 | AJ156: 0 | AK156: 0 | AL156: 0 | AM156: 0 | AN156: 0 | AO156: 0 | AP156: 0 | AQ156: 0 | AR156: 0 | AS156: 0 | AT156: 0 | AU156: 0 | AV156: 0 | AW156: 0 | AX156: 0 | AY156: 0 | AZ156: 0 | BA156: 0 | BB156: 0 | BC156: 0 | BD156: 0 | BE156: 0 | BF156: 0 | BG156: 0 | BH156: 0 | BI156: 0 | BJ156: ='Bond Input Sheet'!R160 -> 0 | BK156: 0 | BW156: 0 | BX156: 0 | BZ156: 0 | CV156: 0 | FS156: 0 | FV156: 0 | FW156: 0
B157: =IF('Bond Input Sheet'!B161="","", 'Bond Input Sheet'!B161) ->  | C157: =IF('Bond Input Sheet'!C161="","NR", 'Bond Input Sheet'!C161) -> NR | D157: =IF('Bond Input Sheet'!D161="","NR", 'Bond Input Sheet'!D161) -> NR | L157: 8 | M157: ='Bond Input Sheet'!E161 -> 0 | N157: ='Bond Input Sheet'!F161 -> 0 | O157: ='Bond Input Sheet'!G161 -> 0 | P157: ='Bond Input Sheet'!H161 -> 0 | Q157: ='Bond Input Sheet'!I161 -> 0 | R157: ='Bond Input Sheet'!J161 -> 0 | S157: 1 | T157: ='Bond Input Sheet'!K161 -> 00:00:00 | U157: 1 | V157: -120.4273973 | W157: 0 | X157: ='Bond Input Sheet'!L161 -> 0 | Y157: =IF('Bond Input Sheet'!M161=0,"",'Bond Input Sheet'!M161) ->  | Z157: ='Bond Input Sheet'!N161 -> 00:00:00 | AA157: ='Bond Input Sheet'!O161 -> 0 | AB157: ='Bond Input Sheet'!P161 -> 0 | AC157: ='Bond Input Sheet'!Q161 -> 0 | AD157: 0 | AE157: 0 | AF157: 0 | AG157: 0 | AH157: 0 | AI157: 0 | AJ157: 0 | AK157: 0 | AL157: 0 | AM157: 0 | AN157: 0 | AO157: 0 | AP157: 0 | AQ157: 0 | AR157: 0 | AS157: 0 | AT157: 0 | AU157: 0 | AV157: 0 | AW157: 0 | AX157: 0 | AY157: 0 | AZ157: 0 | BA157: 0 | BB157: 0 | BC157: 0 | BD157: 0 | BE157: 0 | BF157: 0 | BG157: 0 | BH157: 0 | BI157: 0 | BJ157: ='Bond Input Sheet'!R161 -> 0 | BK157: 0 | BW157: 0 | BX157: 0 | BZ157: 0 | CV157: 0 | FS157: 0 | FV157: 0 | FW157: 0
B158: =IF('Bond Input Sheet'!B162="","", 'Bond Input Sheet'!B162) ->  | C158: =IF('Bond Input Sheet'!C162="","NR", 'Bond Input Sheet'!C162) -> NR | D158: =IF('Bond Input Sheet'!D162="","NR", 'Bond Input Sheet'!D162) -> NR | L158: 8 | M158: ='Bond Input Sheet'!E162 -> 0 | N158: ='Bond Input Sheet'!F162 -> 0 | O158: ='Bond Input Sheet'!G162 -> 0 | P158: ='Bond Input Sheet'!H162 -> 0 | Q158: ='Bond Input Sheet'!I162 -> 0 | R158: ='Bond Input Sheet'!J162 -> 0 | S158: 1 | T158: ='Bond Input Sheet'!K162 -> 00:00:00 | U158: 1 | V158: -120.4273973 | W158: 0 | X158: ='Bond Input Sheet'!L162 -> 0 | Y158: =IF('Bond Input Sheet'!M162=0,"",'Bond Input Sheet'!M162) ->  | Z158: ='Bond Input Sheet'!N162 -> 00:00:00 | AA158: ='Bond Input Sheet'!O162 -> 0 | AB158: ='Bond Input Sheet'!P162 -> 0 | AC158: ='Bond Input Sheet'!Q162 -> 0 | AD158: 0 | AE158: 0 | AF158: 0 | AG158: 0 | AH158: 0 | AI158: 0 | AJ158: 0 | AK158: 0 | AL158: 0 | AM158: 0 | AN158: 0 | AO158: 0 | AP158: 0 | AQ158: 0 | AR158: 0 | AS158: 0 | AT158: 0 | AU158: 0 | AV158: 0 | AW158: 0 | AX158: 0 | AY158: 0 | AZ158: 0 | BA158: 0 | BB158: 0 | BC158: 0 | BD158: 0 | BE158: 0 | BF158: 0 | BG158: 0 | BH158: 0 | BI158: 0 | BJ158: ='Bond Input Sheet'!R162 -> 0 | BK158: 0 | BW158: 0 | BX158: 0 | BZ158: 0 | CV158: 0 | FS158: 0 | FV158: 0 | FW158: 0
B159: =IF('Bond Input Sheet'!B163="","", 'Bond Input Sheet'!B163) ->  | C159: =IF('Bond Input Sheet'!C163="","NR", 'Bond Input Sheet'!C163) -> NR | D159: =IF('Bond Input Sheet'!D163="","NR", 'Bond Input Sheet'!D163) -> NR | L159: 8 | M159: ='Bond Input Sheet'!E163 -> 0 | N159: ='Bond Input Sheet'!F163 -> 0 | O159: ='Bond Input Sheet'!G163 -> 0 | P159: ='Bond Input Sheet'!H163 -> 0 | Q159: ='Bond Input Sheet'!I163 -> 0 | R159: ='Bond Input Sheet'!J163 -> 0 | S159: 1 | T159: ='Bond Input Sheet'!K163 -> 00:00:00 | U159: 1 | V159: -120.4273973 | W159: 0 | X159: ='Bond Input Sheet'!L163 -> 0 | Y159: =IF('Bond Input Sheet'!M163=0,"",'Bond Input Sheet'!M163) ->  | Z159: ='Bond Input Sheet'!N163 -> 00:00:00 | AA159: ='Bond Input Sheet'!O163 -> 0 | AB159: ='Bond Input Sheet'!P163 -> 0 | AC159: ='Bond Input Sheet'!Q163 -> 0 | AD159: 0 | AE159: 0 | AF159: 0 | AG159: 0 | AH159: 0 | AI159: 0 | AJ159: 0 | AK159: 0 | AL159: 0 | AM159: 0 | AN159: 0 | AO159: 0 | AP159: 0 | AQ159: 0 | AR159: 0 | AS159: 0 | AT159: 0 | AU159: 0 | AV159: 0 | AW159: 0 | AX159: 0 | AY159: 0 | AZ159: 0 | BA159: 0 | BB159: 0 | BC159: 0 | BD159: 0 | BE159: 0 | BF159: 0 | BG159: 0 | BH159: 0 | BI159: 0 | BJ159: ='Bond Input Sheet'!R163 -> 0 | BK159: 0 | BU159: =IF(LowestYield<>"",LowestYield-FairYTM,"") ->  | BW159: 0 | BX159: 0 | BZ159: 0 | CA159: =IF(AND(Maturity<=CA$511,Maturity>BZ$511),MarketValue,"") ->  | CE159: =IF(AND(Maturity<=CE$511,Maturity>CD$511),MarketValue,"") ->  | CO159: =IF($L159=CO$511,$BW159,"") ->  | CV159: 0 | FS159: 0 | FV159: 0 | FW159: 0
B160: =IF('Bond Input Sheet'!B164="","", 'Bond Input Sheet'!B164) ->  | C160: =IF('Bond Input Sheet'!C164="","NR", 'Bond Input Sheet'!C164) -> NR | D160: =IF('Bond Input Sheet'!D164="","NR", 'Bond Input Sheet'!D164) -> NR | L160: 8 | M160: ='Bond Input Sheet'!E164 -> 0 | N160: ='Bond Input Sheet'!F164 -> 0 | O160: ='Bond Input Sheet'!G164 -> 0 | P160: ='Bond Input Sheet'!H164 -> 0 | Q160: ='Bond Input Sheet'!I164 -> 0 | R160: ='Bond Input Sheet'!J164 -> 0 | S160: 1 | T160: ='Bond Input Sheet'!K164 -> 00:00:00 | U160: 1 | V160: -120.4273973 | W160: 0 | X160: ='Bond Input Sheet'!L164 -> 0 | Y160: =IF('Bond Input Sheet'!M164=0,"",'Bond Input Sheet'!M164) ->  | Z160: ='Bond Input Sheet'!N164 -> 00:00:00 | AA160: ='Bond Input Sheet'!O164 -> 0 | AB160: ='Bond Input Sheet'!P164 -> 0 | AC160: ='Bond Input Sheet'!Q164 -> 0 | AD160: 0 | AE160: 0 | AF160: 0 | AG160: 0 | AH160: 0 | AI160: 0 | AJ160: 0 | AK160: 0 | AL160: 0 | AM160: 0 | AN160: 0 | AO160: 0 | AP160: 0 | AQ160: 0 | AR160: 0 | AS160: 0 | AT160: 0 | AU160: 0 | AV160: 0 | AW160: 0 | AX160: 0 | AY160: 0 | AZ160: 0 | BA160: 0 | BB160: 0 | BC160: 0 | BD160: 0 | BE160: 0 | BF160: 0 | BG160: 0 | BH160: 0 | BI160: 0 | BJ160: ='Bond Input Sheet'!R164 -> 0 | BK160: 0 | BW160: 0 | BX160: 0 | BZ160: 0 | CV160: 0 | FS160: 0 | FV160: 0 | FW160: 0
B161: =IF('Bond Input Sheet'!B165="","", 'Bond Input Sheet'!B165) ->  | C161: =IF('Bond Input Sheet'!C165="","NR", 'Bond Input Sheet'!C165) -> NR | D161: =IF('Bond Input Sheet'!D165="","NR", 'Bond Input Sheet'!D165) -> NR | L161: 8 | M161: ='Bond Input Sheet'!E165 -> 0 | N161: ='Bond Input Sheet'!F165 -> 0 | O161: ='Bond Input Sheet'!G165 -> 0 | P161: ='Bond Input Sheet'!H165 -> 0 | Q161: ='Bond Input Sheet'!I165 -> 0 | R161: ='Bond Input Sheet'!J165 -> 0 | S161: 1 | T161: ='Bond Input Sheet'!K165 -> 00:00:00 | U161: 1 | V161: -120.4273973 | W161: 0 | X161: ='Bond Input Sheet'!L165 -> 0 | Y161: =IF('Bond Input Sheet'!M165=0,"",'Bond Input Sheet'!M165) ->  | Z161: ='Bond Input Sheet'!N165 -> 00:00:00 | AA161: ='Bond Input Sheet'!O165 -> 0 | AB161: ='Bond Input Sheet'!P165 -> 0 | AC161: ='Bond Input Sheet'!Q165 -> 0 | AD161: 0 | AE161: 0 | AF161: 0 | AG161: 0 | AH161: 0 | AI161: 0 | AJ161: 0 | AK161: 0 | AL161: 0 | AM161: 0 | AN161: 0 | AO161: 0 | AP161: 0 | AQ161: 0 | AR161: 0 | AS161: 0 | AT161: 0 | AU161: 0 | AV161: 0 | AW161: 0 | AX161: 0 | AY161: 0 | AZ161: 0 | BA161: 0 | BB161: 0 | BC161: 0 | BD161: 0 | BE161: 0 | BF161: 0 | BG161: 0 | BH161: 0 | BI161: 0 | BJ161: ='Bond Input Sheet'!R165 -> 0 | BK161: 0 | BW161: 0 | BX161: 0 | BZ161: 0 | CV161: 0 | FS161: 0 | FV161: 0 | FW161: 0
B162: =IF('Bond Input Sheet'!B166="","", 'Bond Input Sheet'!B166) ->  | C162: =IF('Bond Input Sheet'!C166="","NR", 'Bond Input Sheet'!C166) -> NR | D162: =IF('Bond Input Sheet'!D166="","NR", 'Bond Input Sheet'!D166) -> NR | L162: 8 | M162: ='Bond Input Sheet'!E166 -> 0 | N162: ='Bond Input Sheet'!F166 -> 0 | O162: ='Bond Input Sheet'!G166 -> 0 | P162: ='Bond Input Sheet'!H166 -> 0 | Q162: ='Bond Input Sheet'!I166 -> 0 | R162: ='Bond Input Sheet'!J166 -> 0 | S162: 1 | T162: ='Bond Input Sheet'!K166 -> 00:00:00 | U162: 1 | V162: -120.4273973 | W162: 0 | X162: ='Bond Input Sheet'!L166 -> 0 | Y162: =IF('Bond Input Sheet'!M166=0,"",'Bond Input Sheet'!M166) ->  | Z162: ='Bond Input Sheet'!N166 -> 00:00:00 | AA162: ='Bond Input Sheet'!O166 -> 0 | AB162: ='Bond Input Sheet'!P166 -> 0 | AC162: ='Bond Input Sheet'!Q166 -> 0 | AD162: 0 | AE162: 0 | AF162: 0 | AG162: 0 | AH162: 0 | AI162: 0 | AJ162: 0 | AK162: 0 | AL162: 0 | AM162: 0 | AN162: 0 | AO162: 0 | AP162: 0 | AQ162: 0 | AR162: 0 | AS162: 0 | AT162: 0 | AU162: 0 | AV162: 0 | AW162: 0 | AX162: 0 | AY162: 0 | AZ162: 0 | BA162: 0 | BB162: 0 | BC162: 0 | BD162: 0 | BE162: 0 | BF162: 0 | BG162: 0 | BH162: 0 | BI162: 0 | BJ162: ='Bond Input Sheet'!R166 -> 0 | BK162: 0 | BW162: 0 | BX162: 0 | BZ162: 0 | CV162: 0 | FS162: 0 | FV162: 0 | FW162: 0
B163: =IF('Bond Input Sheet'!B167="","", 'Bond Input Sheet'!B167) ->  | C163: =IF('Bond Input Sheet'!C167="","NR", 'Bond Input Sheet'!C167) -> NR | D163: =IF('Bond Input Sheet'!D167="","NR", 'Bond Input Sheet'!D167) -> NR | L163: 8 | M163: ='Bond Input Sheet'!E167 -> 0 | N163: ='Bond Input Sheet'!F167 -> 0 | O163: ='Bond Input Sheet'!G167 -> 0 | P163: ='Bond Input Sheet'!H167 -> 0 | Q163: ='Bond Input Sheet'!I167 -> 0 | R163: ='Bond Input Sheet'!J167 -> 0 | S163: 1 | T163: ='Bond Input Sheet'!K167 -> 00:00:00 | U163: 1 | V163: -120.4273973 | W163: 0 | X163: ='Bond Input Sheet'!L167 -> 0 | Y163: =IF('Bond Input Sheet'!M167=0,"",'Bond Input Sheet'!M167) ->  | Z163: ='Bond Input Sheet'!N167 -> 00:00:00 | AA163: ='Bond Input Sheet'!O167 -> 0 | AB163: ='Bond Input Sheet'!P167 -> 0 | AC163: ='Bond Input Sheet'!Q167 -> 0 | AD163: 0 | AE163: 0 | AF163: 0 | AG163: 0 | AH163: 0 | AI163: 0 | AJ163: 0 | AK163: 0 | AL163: 0 | AM163: 0 | AN163: 0 | AO163: 0 | AP163: 0 | AQ163: 0 | AR163: 0 | AS163: 0 | AT163: 0 | AU163: 0 | AV163: 0 | AW163: 0 | AX163: 0 | AY163: 0 | AZ163: 0 | BA163: 0 | BB163: 0 | BC163: 0 | BD163: 0 | BE163: 0 | BF163: 0 | BG163: 0 | BH163: 0 | BI163: 0 | BJ163: ='Bond Input Sheet'!R167 -> 0 | BK163: 0 | BW163: 0 | BX163: 0 | BZ163: 0 | CV163: 0 | FS163: 0 | FV163: 0 | FW163: 0
B164: =IF('Bond Input Sheet'!B168="","", 'Bond Input Sheet'!B168) ->  | C164: =IF('Bond Input Sheet'!C168="","NR", 'Bond Input Sheet'!C168) -> NR | D164: =IF('Bond Input Sheet'!D168="","NR", 'Bond Input Sheet'!D168) -> NR | L164: 8 | M164: ='Bond Input Sheet'!E168 -> 0 | N164: ='Bond Input Sheet'!F168 -> 0 | O164: ='Bond Input Sheet'!G168 -> 0 | P164: ='Bond Input Sheet'!H168 -> 0 | Q164: ='Bond Input Sheet'!I168 -> 0 | R164: ='Bond Input Sheet'!J168 -> 0 | S164: 1 | T164: ='Bond Input Sheet'!K168 -> 00:00:00 | U164: 1 | V164: -120.4273973 | W164: 0 | X164: ='Bond Input Sheet'!L168 -> 0 | Y164: =IF('Bond Input Sheet'!M168=0,"",'Bond Input Sheet'!M168) ->  | Z164: ='Bond Input Sheet'!N168 -> 00:00:00 | AA164: ='Bond Input Sheet'!O168 -> 0 | AB164: ='Bond Input Sheet'!P168 -> 0 | AC164: ='Bond Input Sheet'!Q168 -> 0 | AD164: 0 | AE164: 0 | AF164: 0 | AG164: 0 | AH164: 0 | AI164: 0 | AJ164: 0 | AK164: 0 | AL164: 0 | AM164: 0 | AN164: 0 | AO164: 0 | AP164: 0 | AQ164: 0 | AR164: 0 | AS164: 0 | AT164: 0 | AU164: 0 | AV164: 0 | AW164: 0 | AX164: 0 | AY164: 0 | AZ164: 0 | BA164: 0 | BB164: 0 | BC164: 0 | BD164: 0 | BE164: 0 | BF164: 0 | BG164: 0 | BH164: 0 | BI164: 0 | BJ164: ='Bond Input Sheet'!R168 -> 0 | BK164: 0 | BW164: 0 | BX164: 0 | BZ164: 0 | CV164: 0 | FS164: 0 | FV164: 0 | FW164: 0
B165: =IF('Bond Input Sheet'!B169="","", 'Bond Input Sheet'!B169) ->  | C165: =IF('Bond Input Sheet'!C169="","NR", 'Bond Input Sheet'!C169) -> NR | D165: =IF('Bond Input Sheet'!D169="","NR", 'Bond Input Sheet'!D169) -> NR | L165: 8 | M165: ='Bond Input Sheet'!E169 -> 0 | N165: ='Bond Input Sheet'!F169 -> 0 | O165: ='Bond Input Sheet'!G169 -> 0 | P165: ='Bond Input Sheet'!H169 -> 0 | Q165: ='Bond Input Sheet'!I169 -> 0 | R165: ='Bond Input Sheet'!J169 -> 0 | S165: 1 | T165: ='Bond Input Sheet'!K169 -> 00:00:00 | U165: 1 | V165: -120.4273973 | W165: 0 | X165: ='Bond Input Sheet'!L169 -> 0 | Y165: =IF('Bond Input Sheet'!M169=0,"",'Bond Input Sheet'!M169) ->  | Z165: ='Bond Input Sheet'!N169 -> 00:00:00 | AA165: ='Bond Input Sheet'!O169 -> 0 | AB165: ='Bond Input Sheet'!P169 -> 0 | AC165: ='Bond Input Sheet'!Q169 -> 0 | AD165: =IF(ISERROR(SEARCH("-",AA165)),AA165,LEFT(AA165,SEARCH("-",AA165)-1)+(1/32)*MID(AA165,SEARCH("-",AA165)+1,2)+IF(LEN(RIGHT(AA165,LEN(AA165)-SEARCH("-",AA165)-2))=1,IF(MID(AA165,SEARCH("-",AA165)+3,1)="+",1/64, MID(AA165,SEARCH("-",AA165)+3,1)*(1/256)),0)) -> 0 | AE165: 0 | AF165: 0 | AG165: =IF(B165<>"",AB165,0) -> 0 | AH165: =IF($B165<>"",AC165,0) -> 0 | AI165: 0 | AJ165: 0 | AK165: 0 | AL165: 0 | AM165: 0 | AN165: 0 | AO165: 0 | AP165: 0 | AQ165: 0 | AR165: 0 | AS165: 0 | AT165: 0 | AU165: 0 | AV165: 0 | AW165: 0 | AX165: 0 | AY165: 0 | AZ165: 0 | BA165: 0 | BB165: 0 | BC165: 0 | BD165: 0 | BE165: 0 | BF165: 0 | BG165: 0 | BH165: 0 | BI165: 0 | BJ165: ='Bond Input Sheet'!R169 -> 0 | BK165: 0 | BS165: =IF(OR(BL165="",YearsToMaturity>29),BN165,INDEX(MarketYieldTable,YearsToMaturity+1,BondTypeIndex)+(INDEX(MarketYieldTable,YearsToMaturity+2,BondTypeIndex)-INDEX(MarketYieldTable,YearsToMaturity+1,BondTypeIndex))*(YearsToMaturity-INT(YearsToMaturity))) ->  | BU165: =IF(LowestYield<>"",LowestYield-FairYTM,"") ->  | BV165: =IF(BX165<>0,BU165*BX165,"") ->  | BW165: 0 | BX165: 0 | BY165: =IF(Bonds<>0,BN165,"") ->  | BZ165: 0 | CV165: 0 | ED165: =IF(DY165="","",DY165*(1-VLOOKUP(BondType,BondTypeTable,2))) ->  | EE165: =IF(DZ165="","",DZ165*(1-VLOOKUP(BondType,BondTypeTable,2))) ->  | EF165: =IF(EA165="","",EA165*(1-VLOOKUP(BondType,BondTypeTable,2))) ->  | EG165: =IF(EB165="","",EB165*(1-VLOOKUP(BondType,BondTypeTable,2))) ->  | EH165: =IF(EC165="","",EC165*(1-VLOOKUP(BondType,BondTypeTable,2))) ->  | ES165: =IF(EI165="","",EI165*(1-VLOOKUP(BondType,BondTypeTable,2))) ->  | ET165: =IF(EJ165="","",EJ165*(1-VLOOKUP(BondType,BondTypeTable,2))) ->  | EU165: =IF(EK165="","",EK165*(1-VLOOKUP(BondType,BondTypeTable,2))) ->  | EV165: =IF(EL165="","",EL165*(1-VLOOKUP(BondType,BondTypeTable,2))) ->  | EW165: =IF(EM165="","",EM165*(1-VLOOKUP(BondType,BondTypeTable,2))) ->  | FK165: =IF(FC165="","",FC165*(1-VLOOKUP(BondType,BondTypeTable,2))) ->  | FL165: =IF(FD165="","",FD165*(1-VLOOKUP(BondType,BondTypeTable,2))) ->  | FM165: =IF(FE165="","",FE165*(1-VLOOKUP(BondType,BondTypeTable,2))) ->  | FN165: =IF(FF165="","",FF165*(1-VLOOKUP(BondType,BondTypeTable,2))) ->  | FO165: =IF(FG165="","",FG165*(1-VLOOKUP(BondType,BondTypeTable,2))) ->  | FP165: =IF(FH165="","",FH165*(1-VLOOKUP(BondType,BondTypeTable,2))) ->  | FQ165: =IF(FI165="","",FI165*(1-VLOOKUP(BondType,BondTypeTable,2))) ->  | FR165: =IF(FJ165="","",FJ165*(1-VLOOKUP(BondType,BondTypeTable,2))) ->  | FS165: 0 | FT165: =IF(AND(TotalPurchaseCost<>0,B165<>""),(MarketValue+InterestPaidOut-TotalPurchaseCost)/TotalPurchaseCost,"") ->  | FV165: 0 | FW165: 0 | FX165: =IF(BL165="","",(PriceIf100bpFall-PriceIf100bpRise)/(2*CurrentPrice*0.01)*(1+CurrentYield)) ->  | FY165: =IF(BL165="","",PercentPortfolio*ModDuration) ->  | FZ165: =IF(BL165="","",(PriceIf100bpRise+PriceIf100bpFall-(2*CurrentPrice))/((CurrentPrice*(0.01*0.01)))) ->  | GA165: =IF(BL165="","",(BW165/TotalPortfolioValue)*FZ165) ->  | GB165: =IF(BL165="","",ModDuration*0.01-((0.5)*BondConvexity*0.01*0.01)) ->  | GC165: =IF(BL165="","",(BX165)*GB165) ->  | GD165: =IF(BL165="","",MarketValue*BondRisk) -> 
B166: =IF('Bond Input Sheet'!B170="","", 'Bond Input Sheet'!B170) ->  | C166: =IF('Bond Input Sheet'!C170="","NR", 'Bond Input Sheet'!C170) -> NR | D166: =IF('Bond Input Sheet'!D170="","NR", 'Bond Input Sheet'!D170) -> NR | L166: 8 | M166: ='Bond Input Sheet'!E170 -> 0 | N166: ='Bond Input Sheet'!F170 -> 0 | O166: ='Bond Input Sheet'!G170 -> 0 | P166: ='Bond Input Sheet'!H170 -> 0 | Q166: ='Bond Input Sheet'!I170 -> 0 | R166: ='Bond Input Sheet'!J170 -> 0 | S166: 1 | T166: ='Bond Input Sheet'!K170 -> 00:00:00 | U166: 1 | V166: -120.4273973 | W166: 0 | X166: ='Bond Input Sheet'!L170 -> 0 | Y166: =IF('Bond Input Sheet'!M170=0,"",'Bond Input Sheet'!M170) ->  | Z166: ='Bond Input Sheet'!N170 -> 00:00:00 | AA166: ='Bond Input Sheet'!O170 -> 0 | AB166: ='Bond Input Sheet'!P170 -> 0 | AC166: ='Bond Input Sheet'!Q170 -> 0 | AD166: 0 | AE166: 0 | AF166: 0 | AG166: 0 | AH166: 0 | AI166: 0 | AJ166: 0 | AK166: 0 | AL166: 0 | AM166: 0 | AN166: 0 | AO166: 0 | AP166: 0 | AQ166: 0 | AR166: 0 | AS166: 0 | AT166: 0 | AU166: 0 | AV166: 0 | AW166: 0 | AX166: 0 | AY166: 0 | AZ166: 0 | BA166: 0 | BB166: 0 | BC166: 0 | BD166: 0 | BE166: 0 | BF166: 0 | BG166: 0 | BH166: 0 | BI166: 0 | BJ166: ='Bond Input Sheet'!R170 -> 0 | BK166: 0 | BW166: 0 | BX166: 0 | BZ166: 0 | CV166: 0 | FS166: 0 | FV166: 0 | FW166: 0
B167: =IF('Bond Input Sheet'!B171="","", 'Bond Input Sheet'!B171) ->  | C167: =IF('Bond Input Sheet'!C171="","NR", 'Bond Input Sheet'!C171) -> NR | D167: =IF('Bond Input Sheet'!D171="","NR", 'Bond Input Sheet'!D171) -> NR | L167: 8 | M167: ='Bond Input Sheet'!E171 -> 0 | N167: ='Bond Input Sheet'!F171 -> 0 | O167: ='Bond Input Sheet'!G171 -> 0 | P167: ='Bond Input Sheet'!H171 -> 0 | Q167: ='Bond Input Sheet'!I171 -> 0 | R167: ='Bond Input Sheet'!J171 -> 0 | S167: 1 | T167: ='Bond Input Sheet'!K171 -> 00:00:00 | U167: 1 | V167: -120.4273973 | W167: 0 | X167: ='Bond Input Sheet'!L171 -> 0 | Y167: =IF('Bond Input Sheet'!M171=0,"",'Bond Input Sheet'!M171) ->  | Z167: ='Bond Input Sheet'!N171 -> 00:00:00 | AA167: ='Bond Input Sheet'!O171 -> 0 | AB167: ='Bond Input Sheet'!P171 -> 0 | AC167: ='Bond Input Sheet'!Q171 -> 0 | AD167: 0 | AE167: 0 | AF167: 0 | AG167: 0 | AH167: 0 | AI167: 0 | AJ167: 0 | AK167: 0 | AL167: 0 | AM167: 0 | AN167: 0 | AO167: 0 | AP167: 0 | AQ167: 0 | AR167: 0 | AS167: 0 | AT167: 0 | AU167: 0 | AV167: 0 | AW167: 0 | AX167: 0 | AY167: 0 | AZ167: 0 | BA167: 0 | BB167: 0 | BC167: 0 | BD167: 0 | BE167: 0 | BF167: 0 | BG167: 0 | BH167: 0 | BI167: 0 | BJ167: ='Bond Input Sheet'!R171 -> 0 | BK167: 0 | BW167: 0 | BX167: 0 | BZ167: 0 | CV167: 0 | FS167: 0 | FV167: 0 | FW167: 0
B168: =IF('Bond Input Sheet'!B172="","", 'Bond Input Sheet'!B172) ->  | C168: =IF('Bond Input Sheet'!C172="","NR", 'Bond Input Sheet'!C172) -> NR | D168: =IF('Bond Input Sheet'!D172="","NR", 'Bond Input Sheet'!D172) -> NR | L168: 8 | M168: ='Bond Input Sheet'!E172 -> 0 | N168: ='Bond Input Sheet'!F172 -> 0 | O168: ='Bond Input Sheet'!G172 -> 0 | P168: ='Bond Input Sheet'!H172 -> 0 | Q168: ='Bond Input Sheet'!I172 -> 0 | R168: ='Bond Input Sheet'!J172 -> 0 | S168: 1 | T168: ='Bond Input Sheet'!K172 -> 00:00:00 | U168: 1 | V168: -120.4273973 | W168: 0 | X168: ='Bond Input Sheet'!L172 -> 0 | Y168: =IF('Bond Input Sheet'!M172=0,"",'Bond Input Sheet'!M172) ->  | Z168: ='Bond Input Sheet'!N172 -> 00:00:00 | AA168: ='Bond Input Sheet'!O172 -> 0 | AB168: ='Bond Input Sheet'!P172 -> 0 | AC168: ='Bond Input Sheet'!Q172 -> 0 | AD168: 0 | AE168: 0 | AF168: 0 | AG168: 0 | AH168: 0 | AI168: 0 | AJ168: 0 | AK168: 0 | AL168: 0 | AM168: 0 | AN168: 0 | AO168: 0 | AP168: 0 | AQ168: 0 | AR168: 0 | AS168: 0 | AT168: 0 | AU168: 0 | AV168: 0 | AW168: 0 | AX168: 0 | AY168: 0 | AZ168: 0 | BA168: 0 | BB168: 0 | BC168: 0 | BD168: 0 | BE168: 0 | BF168: 0 | BG168: 0 | BH168: 0 | BI168: 0 | BJ168: ='Bond Input Sheet'!R172 -> 0 | BK168: 0 | BW168: 0 | BX168: 0 | BZ168: 0 | CV168: 0 | FS168: 0 | FV168: 0 | FW168: 0
B169: =IF('Bond Input Sheet'!B173="","", 'Bond Input Sheet'!B173) ->  | C169: =IF('Bond Input Sheet'!C173="","NR", 'Bond Input Sheet'!C173) -> NR | D169: =IF('Bond Input Sheet'!D173="","NR", 'Bond Input Sheet'!D173) -> NR | L169: 8 | M169: ='Bond Input Sheet'!E173 -> 0 | N169: ='Bond Input Sheet'!F173 -> 0 | O169: ='Bond Input Sheet'!G173 -> 0 | P169: ='Bond Input Sheet'!H173 -> 0 | Q169: ='Bond Input Sheet'!I173 -> 0 | R169: ='Bond Input Sheet'!J173 -> 0 | S169: 1 | T169: ='Bond Input Sheet'!K173 -> 00:00:00 | U169: 1 | V169: -120.4273973 | W169: 0 | X169: ='Bond Input Sheet'!L173 -> 0 | Y169: =IF('Bond Input Sheet'!M173=0,"",'Bond Input Sheet'!M173) ->  | Z169: ='Bond Input Sheet'!N173 -> 00:00:00 | AA169: ='Bond Input Sheet'!O173 -> 0 | AB169: ='Bond Input Sheet'!P173 -> 0 | AC169: ='Bond Input Sheet'!Q173 -> 0 | AD169: 0 | AE169: 0 | AF169: 0 | AG169: 0 | AH169: 0 | AI169: 0 | AJ169: 0 | AK169: 0 | AL169: 0 | AM169: 0 | AN169: 0 | AO169: 0 | AP169: 0 | AQ169: 0 | AR169: 0 | AS169: 0 | AT169: 0 | AU169: 0 | AV169: 0 | AW169: 0 | AX169: 0 | AY169: 0 | AZ169: 0 | BA169: 0 | BB169: 0 | BC169: 0 | BD169: 0 | BE169: 0 | BF169: 0 | BG169: 0 | BH169: 0 | BI169: 0 | BJ169: ='Bond Input Sheet'!R173 -> 0 | BK169: 0 | BW169: 0 | BX169: 0 | BZ169: 0 | CA169: =IF(AND(Maturity<=CA$511,Maturity>BZ$511),MarketValue,"") ->  | CE169: =IF(AND(Maturity<=CE$511,Maturity>CD$511),MarketValue,"") ->  | CO169: =IF($L169=CO$511,$BW169,"") ->  | CV169: 0 | FS169: 0 | FV169: 0 | FW169: 0
B170: =IF('Bond Input Sheet'!B174="","", 'Bond Input Sheet'!B174) ->  | C170: =IF('Bond Input Sheet'!C174="","NR", 'Bond Input Sheet'!C174) -> NR | D170: =IF('Bond Input Sheet'!D174="","NR", 'Bond Input Sheet'!D174) -> NR | L170: 8 | M170: ='Bond Input Sheet'!E174 -> 0 | N170: ='Bond Input Sheet'!F174 -> 0 | O170: ='Bond Input Sheet'!G174 -> 0 | P170: ='Bond Input Sheet'!H174 -> 0 | Q170: ='Bond Input Sheet'!I174 -> 0 | R170: ='Bond Input Sheet'!J174 -> 0 | S170: 1 | T170: ='Bond Input Sheet'!K174 -> 00:00:00 | U170: 1 | V170: -120.4273973 | W170: 0 | X170: ='Bond Input Sheet'!L174 -> 0 | Y170: =IF('Bond Input Sheet'!M174=0,"",'Bond Input Sheet'!M174) ->  | Z170: ='Bond Input Sheet'!N174 -> 00:00:00 | AA170: ='Bond Input Sheet'!O174 -> 0 | AB170: ='Bond Input Sheet'!P174 -> 0 | AC170: ='Bond Input Sheet'!Q174 -> 0 | AD170: 0 | AE170: 0 | AF170: 0 | AG170: 0 | AH170: 0 | AI170: 0 | AJ170: 0 | AK170: 0 | AL170: 0 | AM170: 0 | AN170: 0 | AO170: 0 | AP170: 0 | AQ170: 0 | AR170: 0 | AS170: 0 | AT170: 0 | AU170: 0 | AV170: 0 | AW170: 0 | AX170: 0 | AY170: 0 | AZ170: 0 | BA170: 0 | BB170: 0 | BC170: 0 | BD170: 0 | BE170: 0 | BF170: 0 | BG170: 0 | BH170: 0 | BI170: 0 | BJ170: ='Bond Input Sheet'!R174 -> 0 | BK170: 0 | BW170: 0 | BX170: 0 | BZ170: 0 | CV170: 0 | FS170: 0 | FV170: 0 | FW170: 0
B171: =IF('Bond Input Sheet'!B175="","", 'Bond Input Sheet'!B175) ->  | C171: =IF('Bond Input Sheet'!C175="","NR", 'Bond Input Sheet'!C175) -> NR | D171: =IF('Bond Input Sheet'!D175="","NR", 'Bond Input Sheet'!D175) -> NR | L171: 8 | M171: ='Bond Input Sheet'!E175 -> 0 | N171: ='Bond Input Sheet'!F175 -> 0 | O171: ='Bond Input Sheet'!G175 -> 0 | P171: ='Bond Input Sheet'!H175 -> 0 | Q171: ='Bond Input Sheet'!I175 -> 0 | R171: ='Bond Input Sheet'!J175 -> 0 | S171: 1 | T171: ='Bond Input Sheet'!K175 -> 00:00:00 | U171: 1 | V171: -120.4273973 | W171: 0 | X171: ='Bond Input Sheet'!L175 -> 0 | Y171: =IF('Bond Input Sheet'!M175=0,"",'Bond Input Sheet'!M175) ->  | Z171: ='Bond Input Sheet'!N175 -> 00:00:00 | AA171: ='Bond Input Sheet'!O175 -> 0 | AB171: ='Bond Input Sheet'!P175 -> 0 | AC171: ='Bond Input Sheet'!Q175 -> 0 | AD171: 0 | AE171: 0 | AF171: 0 | AG171: 0 | AH171: 0 | AI171: 0 | AJ171: 0 | AK171: 0 | AL171: 0 | AM171: 0 | AN171: 0 | AO171: 0 | AP171: 0 | AQ171: 0 | AR171: 0 | AS171: 0 | AT171: 0 | AU171: 0 | AV171: 0 | AW171: 0 | AX171: 0 | AY171: 0 | AZ171: 0 | BA171: 0 | BB171: 0 | BC171: 0 | BD171: 0 | BE171: 0 | BF171: 0 | BG171: 0 | BH171: 0 | BI171: 0 | BJ171: ='Bond Input Sheet'!R175 -> 0 | BK171: 0 | BW171: 0 | BX171: 0 | BZ171: 0 | CV171: 0 | FS171: 0 | FV171: 0 | FW171: 0
B172: =IF('Bond Input Sheet'!B176="","", 'Bond Input Sheet'!B176) ->  | C172: =IF('Bond Input Sheet'!C176="","NR", 'Bond Input Sheet'!C176) -> NR | D172: =IF('Bond Input Sheet'!D176="","NR", 'Bond Input Sheet'!D176) -> NR | L172: 8 | M172: ='Bond Input Sheet'!E176 -> 0 | N172: ='Bond Input Sheet'!F176 -> 0 | O172: ='Bond Input Sheet'!G176 -> 0 | P172: ='Bond Input Sheet'!H176 -> 0 | Q172: ='Bond Input Sheet'!I176 -> 0 | R172: ='Bond Input Sheet'!J176 -> 0 | S172: 1 | T172: ='Bond Input Sheet'!K176 -> 00:00:00 | U172: 1 | V172: -120.4273973 | W172: 0 | X172: ='Bond Input Sheet'!L176 -> 0 | Y172: =IF('Bond Input Sheet'!M176=0,"",'Bond Input Sheet'!M176) ->  | Z172: ='Bond Input Sheet'!N176 -> 00:00:00 | AA172: ='Bond Input Sheet'!O176 -> 0 | AB172: ='Bond Input Sheet'!P176 -> 0 | AC172: ='Bond Input Sheet'!Q176 -> 0 | AD172: 0 | AE172: 0 | AF172: 0 | AG172: 0 | AH172: 0 | AI172: 0 | AJ172: 0 | AK172: 0 | AL172: 0 | AM172: 0 | AN172: 0 | AO172: 0 | AP172: 0 | AQ172: 0 | AR172: 0 | AS172: 0 | AT172: 0 | AU172: 0 | AV172: 0 | AW172: 0 | AX172: 0 | AY172: 0 | AZ172: 0 | BA172: 0 | BB172: 0 | BC172: 0 | BD172: 0 | BE172: 0 | BF172: 0 | BG172: 0 | BH172: 0 | BI172: 0 | BJ172: ='Bond Input Sheet'!R176 -> 0 | BK172: 0 | BW172: 0 | BX172: 0 | BZ172: 0 | CV172: 0 | FS172: 0 | FV172: 0 | FW172: 0
B173: =IF('Bond Input Sheet'!B177="","", 'Bond Input Sheet'!B177) ->  | C173: =IF('Bond Input Sheet'!C177="","NR", 'Bond Input Sheet'!C177) -> NR | D173: =IF('Bond Input Sheet'!D177="","NR", 'Bond Input Sheet'!D177) -> NR | L173: 8 | M173: ='Bond Input Sheet'!E177 -> 0 | N173: ='Bond Input Sheet'!F177 -> 0 | O173: ='Bond Input Sheet'!G177 -> 0 | P173: ='Bond Input Sheet'!H177 -> 0 | Q173: ='Bond Input Sheet'!I177 -> 0 | R173: ='Bond Input Sheet'!J177 -> 0 | S173: 1 | T173: ='Bond Input Sheet'!K177 -> 00:00:00 | U173: 1 | V173: -120.4273973 | W173: 0 | X173: ='Bond Input Sheet'!L177 -> 0 | Y173: =IF('Bond Input Sheet'!M177=0,"",'Bond Input Sheet'!M177) ->  | Z173: ='Bond Input Sheet'!N177 -> 00:00:00 | AA173: ='Bond Input Sheet'!O177 -> 0 | AB173: ='Bond Input Sheet'!P177 -> 0 | AC173: ='Bond Input Sheet'!Q177 -> 0 | AD173: 0 | AE173: 0 | AF173: 0 | AG173: 0 | AH173: 0 | AI173: 0 | AJ173: 0 | AK173: 0 | AL173: 0 | AM173: 0 | AN173: 0 | AO173: 0 | AP173: 0 | AQ173: 0 | AR173: 0 | AS173: 0 | AT173: 0 | AU173: 0 | AV173: 0 | AW173: 0 | AX173: 0 | AY173: 0 | AZ173: 0 | BA173: 0 | BB173: 0 | BC173: 0 | BD173: 0 | BE173: 0 | BF173: 0 | BG173: 0 | BH173: 0 | BI173: 0 | BJ173: ='Bond Input Sheet'!R177 -> 0 | BK173: 0 | BU173: =IF(LowestYield<>"",LowestYield-FairYTM,"") ->  | BW173: 0 | BX173: 0 | BZ173: 0 | CV173: 0 | FS173: 0 | FV173: 0 | FW173: 0
B174: =IF('Bond Input Sheet'!B178="","", 'Bond Input Sheet'!B178) ->  | C174: =IF('Bond Input Sheet'!C178="","NR", 'Bond Input Sheet'!C178) -> NR | D174: =IF('Bond Input Sheet'!D178="","NR", 'Bond Input Sheet'!D178) -> NR | L174: 8 | M174: ='Bond Input Sheet'!E178 -> 0 | N174: ='Bond Input Sheet'!F178 -> 0 | O174: ='Bond Input Sheet'!G178 -> 0 | P174: ='Bond Input Sheet'!H178 -> 0 | Q174: ='Bond Input Sheet'!I178 -> 0 | R174: ='Bond Input Sheet'!J178 -> 0 | S174: 1 | T174: ='Bond Input Sheet'!K178 -> 00:00:00 | U174: 1 | V174: -120.4273973 | W174: 0 | X174: ='Bond Input Sheet'!L178 -> 0 | Y174: =IF('Bond Input Sheet'!M178=0,"",'Bond Input Sheet'!M178) ->  | Z174: ='Bond Input Sheet'!N178 -> 00:00:00 | AA174: ='Bond Input Sheet'!O178 -> 0 | AB174: ='Bond Input Sheet'!P178 -> 0 | AC174: ='Bond Input Sheet'!Q178 -> 0 | AD174: 0 | AE174: 0 | AF174: 0 | AG174: 0 | AH174: 0 | AI174: 0 | AJ174: 0 | AK174: 0 | AL174: 0 | AM174: 0 | AN174: 0 | AO174: 0 | AP174: 0 | AQ174: =IF(CouponsPerYear<>0,IF(MOD(($U174-AQ$8)/(12/CouponsPerYear),1),,CouponPaymentAmount),0) -> 0 | AR174: 0 | AS174: 0 | AT174: 0 | AU174: 0 | AV174: 0 | AW174: 0 | AX174: 0 | AY174: 0 | AZ174: 0 | BA174: 0 | BB174: 0 | BC174: =IF(CouponsPerYear<>0,IF(MOD(($U174-BC$8)/(12/CouponsPerYear),1),,$AJ174*(1-VLOOKUP(BondType,BondTypeTable,2))),0) -> 0 | BD174: 0 | BE174: 0 | BF174: 0 | BG174: 0 | BH174: 0 | BI174: 0 | BJ174: ='Bond Input Sheet'!R178 -> 0 | BK174: 0 | BW174: 0 | BX174: 0 | BZ174: 0 | CV174: 0 | FS174: 0 | FV174: 0 | FW174: 0
B175: =IF('Bond Input Sheet'!B179="","", 'Bond Input Sheet'!B179) ->  | C175: =IF('Bond Input Sheet'!C179="","NR", 'Bond Input Sheet'!C179) -> NR | D175: =IF('Bond Input Sheet'!D179="","NR", 'Bond Input Sheet'!D179) -> NR | L175: 8 | M175: ='Bond Input Sheet'!E179 -> 0 | N175: ='Bond Input Sheet'!F179 -> 0 | O175: ='Bond Input Sheet'!G179 -> 0 | P175: ='Bond Input Sheet'!H179 -> 0 | Q175: ='Bond Input Sheet'!I179 -> 0 | R175: ='Bond Input Sheet'!J179 -> 0 | S175: 1 | T175: ='Bond Input Sheet'!K179 -> 00:00:00 | U175: 1 | V175: -120.4273973 | W175: 0 | X175: ='Bond Input Sheet'!L179 -> 0 | Y175: =IF('Bond Input Sheet'!M179=0,"",'Bond Input Sheet'!M179) ->  | Z175: ='Bond Input Sheet'!N179 -> 00:00:00 | AA175: ='Bond Input Sheet'!O179 -> 0 | AB175: ='Bond Input Sheet'!P179 -> 0 | AC175: ='Bond Input Sheet'!Q179 -> 0 | AD175: 0 | AE175: 0 | AF175: 0 | AG175: 0 | AH175: 0 | AI175: 0 | AJ175: 0 | AK175: =IF(CouponsPerYear<>0,IF(MOD(($U175-AK$8)/(12/CouponsPerYear),1),,CouponPaymentAmount),0) -> 0 | AL175: 0 | AM175: 0 | AN175: 0 | AO175: 0 | AP175: 0 | AQ175: 0 | AR175: 0 | AS175: 0 | AT175: 0 | AU175: 0 | AV175: 0 | AW175: =IF(CouponsPerYear<>0,IF(MOD(($U175-AW$8)/(12/CouponsPerYear),1),,$AJ175*(1-VLOOKUP(BondType,BondTypeTable,2))),0) -> 0 | AX175: 0 | AY175: 0 | AZ175: 0 | BA175: 0 | BB175: 0 | BC175: 0 | BD175: 0 | BE175: 0 | BF175: 0 | BG175: 0 | BH175: 0 | BI175: 0 | BJ175: ='Bond Input Sheet'!R179 -> 0 | BK175: 0 | BW175: 0 | BX175: 0 | BZ175: 0 | CV175: 0 | FS175: 0 | FV175: 0 | FW175: 0
B176: =IF('Bond Input Sheet'!B180="","", 'Bond Input Sheet'!B180) ->  | C176: =IF('Bond Input Sheet'!C180="","NR", 'Bond Input Sheet'!C180) -> NR | D176: =IF('Bond Input Sheet'!D180="","NR", 'Bond Input Sheet'!D180) -> NR | L176: 8 | M176: ='Bond Input Sheet'!E180 -> 0 | N176: ='Bond Input Sheet'!F180 -> 0 | O176: ='Bond Input Sheet'!G180 -> 0 | P176: ='Bond Input Sheet'!H180 -> 0 | Q176: ='Bond Input Sheet'!I180 -> 0 | R176: ='Bond Input Sheet'!J180 -> 0 | S176: 1 | T176: ='Bond Input Sheet'!K180 -> 00:00:00 | U176: 1 | V176: -120.4273973 | W176: 0 | X176: ='Bond Input Sheet'!L180 -> 0 | Y176: =IF('Bond Input Sheet'!M180=0,"",'Bond Input Sheet'!M180) ->  | Z176: ='Bond Input Sheet'!N180 -> 00:00:00 | AA176: ='Bond Input Sheet'!O180 -> 0 | AB176: ='Bond Input Sheet'!P180 -> 0 | AC176: ='Bond Input Sheet'!Q180 -> 0 | AD176: 0 | AE176: 0 | AF176: 0 | AG176: 0 | AH176: 0 | AI176: 0 | AJ176: 0 | AK176: 0 | AL176: 0 | AM176: 0 | AN176: 0 | AO176: 0 | AP176: 0 | AQ176: 0 | AR176: 0 | AS176: 0 | AT176: 0 | AU176: 0 | AV176: 0 | AW176: 0 | AX176: 0 | AY176: 0 | AZ176: 0 | BA176: 0 | BB176: 0 | BC176: 0 | BD176: 0 | BE176: 0 | BF176: 0 | BG176: 0 | BH176: 0 | BI176: 0 | BJ176: ='Bond Input Sheet'!R180 -> 0 | BK176: 0 | BW176: 0 | BX176: 0 | BZ176: 0 | CV176: 0 | FS176: 0 | FV176: 0 | FW176: 0
B177: =IF('Bond Input Sheet'!B181="","", 'Bond Input Sheet'!B181) ->  | C177: =IF('Bond Input Sheet'!C181="","NR", 'Bond Input Sheet'!C181) -> NR | D177: =IF('Bond Input Sheet'!D181="","NR", 'Bond Input Sheet'!D181) -> NR | L177: 8 | M177: ='Bond Input Sheet'!E181 -> 0 | N177: ='Bond Input Sheet'!F181 -> 0 | O177: ='Bond Input Sheet'!G181 -> 0 | P177: ='Bond Input Sheet'!H181 -> 0 | Q177: ='Bond Input Sheet'!I181 -> 0 | R177: ='Bond Input Sheet'!J181 -> 0 | S177: 1 | T177: ='Bond Input Sheet'!K181 -> 00:00:00 | U177: 1 | V177: -120.4273973 | W177: 0 | X177: ='Bond Input Sheet'!L181 -> 0 | Y177: =IF('Bond Input Sheet'!M181=0,"",'Bond Input Sheet'!M181) ->  | Z177: ='Bond Input Sheet'!N181 -> 00:00:00 | AA177: ='Bond Input Sheet'!O181 -> 0 | AB177: ='Bond Input Sheet'!P181 -> 0 | AC177: ='Bond Input Sheet'!Q181 -> 0 | AD177: 0 | AE177: 0 | AF177: 0 | AG177: 0 | AH177: 0 | AI177: 0 | AJ177: 0 | AK177: 0 | AL177: 0 | AM177: 0 | AN177: 0 | AO177: 0 | AP177: 0 | AQ177: 0 | AR177: 0 | AS177: 0 | AT177: 0 | AU177: 0 | AV177: 0 | AW177: 0 | AX177: 0 | AY177: 0 | AZ177: 0 | BA177: 0 | BB177: 0 | BC177: 0 | BD177: 0 | BE177: 0 | BF177: 0 | BG177: 0 | BH177: 0 | BI177: 0 | BJ177: ='Bond Input Sheet'!R181 -> 0 | BK177: 0 | BW177: 0 | BX177: 0 | BZ177: 0 | CV177: 0 | FS177: 0 | FV177: 0 | FW177: 0
B178: =IF('Bond Input Sheet'!B182="","", 'Bond Input Sheet'!B182) ->  | C178: =IF('Bond Input Sheet'!C182="","NR", 'Bond Input Sheet'!C182) -> NR | D178: =IF('Bond Input Sheet'!D182="","NR", 'Bond Input Sheet'!D182) -> NR | L178: 8 | M178: ='Bond Input Sheet'!E182 -> 0 | N178: ='Bond Input Sheet'!F182 -> 0 | O178: ='Bond Input Sheet'!G182 -> 0 | P178: ='Bond Input Sheet'!H182 -> 0 | Q178: ='Bond Input Sheet'!I182 -> 0 | R178: ='Bond Input Sheet'!J182 -> 0 | S178: 1 | T178: ='Bond Input Sheet'!K182 -> 00:00:00 | U178: 1 | V178: -120.4273973 | W178: 0 | X178: ='Bond Input Sheet'!L182 -> 0 | Y178: =IF('Bond Input Sheet'!M182=0,"",'Bond Input Sheet'!M182) ->  | Z178: ='Bond Input Sheet'!N182 -> 00:00:00 | AA178: ='Bond Input Sheet'!O182 -> 0 | AB178: ='Bond Input Sheet'!P182 -> 0 | AC178: ='Bond Input Sheet'!Q182 -> 0 | AD178: 0 | AE178: 0 | AF178: 0 | AG178: 0 | AH178: 0 | AI178: 0 | AJ178: 0 | AK178: 0 | AL178: 0 | AM178: 0 | AN178: 0 | AO178: 0 | AP178: 0 | AQ178: 0 | AR178: 0 | AS178: 0 | AT178: 0 | AU178: 0 | AV178: 0 | AW178: 0 | AX178: 0 | AY178: 0 | AZ178: 0 | BA178: 0 | BB178: 0 | BC178: 0 | BD178: 0 | BE178: 0 | BF178: 0 | BG178: 0 | BH178: 0 | BI178: 0 | BJ178: ='Bond Input Sheet'!R182 -> 0 | BK178: 0 | BW178: 0 | BX178: 0 | BZ178: 0 | CV178: 0 | FS178: 0 | FV178: 0 | FW178: 0
B179: =IF('Bond Input Sheet'!B183="","", 'Bond Input Sheet'!B183) ->  | C179: =IF('Bond Input Sheet'!C183="","NR", 'Bond Input Sheet'!C183) -> NR | D179: =IF('Bond Input Sheet'!D183="","NR", 'Bond Input Sheet'!D183) -> NR | L179: 8 | M179: ='Bond Input Sheet'!E183 -> 0 | N179: ='Bond Input Sheet'!F183 -> 0 | O179: ='Bond Input Sheet'!G183 -> 0 | P179: ='Bond Input Sheet'!H183 -> 0 | Q179: ='Bond Input Sheet'!I183 -> 0 | R179: ='Bond Input Sheet'!J183 -> 0 | S179: 1 | T179: ='Bond Input Sheet'!K183 -> 00:00:00 | U179: 1 | V179: -120.4273973 | W179: 0 | X179: ='Bond Input Sheet'!L183 -> 0 | Y179: =IF('Bond Input Sheet'!M183=0,"",'Bond Input Sheet'!M183) ->  | Z179: ='Bond Input Sheet'!N183 -> 00:00:00 | AA179: ='Bond Input Sheet'!O183 -> 0 | AB179: ='Bond Input Sheet'!P183 -> 0 | AC179: ='Bond Input Sheet'!Q183 -> 0 | AD179: 0 | AE179: 0 | AF179: 0 | AG179: 0 | AH179: 0 | AI179: 0 | AJ179: 0 | AK179: 0 | AL179: 0 | AM179: 0 | AN179: 0 | AO179: 0 | AP179: 0 | AQ179: 0 | AR179: 0 | AS179: 0 | AT179: 0 | AU179: 0 | AV179: 0 | AW179: 0 | AX179: 0 | AY179: 0 | AZ179: 0 | BA179: 0 | BB179: 0 | BC179: 0 | BD179: 0 | BE179: 0 | BF179: 0 | BG179: 0 | BH179: 0 | BI179: 0 | BJ179: ='Bond Input Sheet'!R183 -> 0 | BK179: 0 | BW179: 0 | BX179: 0 | BZ179: 0 | CA179: =IF(AND(Maturity<=CA$511,Maturity>BZ$511),MarketValue,"") ->  | CE179: =IF(AND(Maturity<=CE$511,Maturity>CD$511),MarketValue,"") ->  | CO179: =IF($L179=CO$511,$BW179,"") ->  | CV179: 0 | FS179: 0 | FV179: 0 | FW179: 0
B180: =IF('Bond Input Sheet'!B184="","", 'Bond Input Sheet'!B184) ->  | C180: =IF('Bond Input Sheet'!C184="","NR", 'Bond Input Sheet'!C184) -> NR | D180: =IF('Bond Input Sheet'!D184="","NR", 'Bond Input Sheet'!D184) -> NR | L180: 8 | M180: ='Bond Input Sheet'!E184 -> 0 | N180: ='Bond Input Sheet'!F184 -> 0 | O180: ='Bond Input Sheet'!G184 -> 0 | P180: ='Bond Input Sheet'!H184 -> 0 | Q180: ='Bond Input Sheet'!I184 -> 0 | R180: ='Bond Input Sheet'!J184 -> 0 | S180: 1 | T180: ='Bond Input Sheet'!K184 -> 00:00:00 | U180: 1 | V180: -120.4273973 | W180: 0 | X180: ='Bond Input Sheet'!L184 -> 0 | Y180: =IF('Bond Input Sheet'!M184=0,"",'Bond Input Sheet'!M184) ->  | Z180: ='Bond Input Sheet'!N184 -> 00:00:00 | AA180: ='Bond Input Sheet'!O184 -> 0 | AB180: ='Bond Input Sheet'!P184 -> 0 | AC180: ='Bond Input Sheet'!Q184 -> 0 | AD180: 0 | AE180: 0 | AF180: 0 | AG180: 0 | AH180: 0 | AI180: 0 | AJ180: 0 | AK180: 0 | AL180: 0 | AM180: 0 | AN180: 0 | AO180: 0 | AP180: 0 | AQ180: 0 | AR180: 0 | AS180: 0 | AT180: 0 | AU180: 0 | AV180: 0 | AW180: 0 | AX180: 0 | AY180: 0 | AZ180: 0 | BA180: 0 | BB180: 0 | BC180: 0 | BD180: 0 | BE180: 0 | BF180: 0 | BG180: 0 | BH180: 0 | BI180: 0 | BJ180: ='Bond Input Sheet'!R184 -> 0 | BK180: 0 | BW180: 0 | BX180: 0 | BZ180: 0 | CV180: 0 | FS180: 0 | FV180: 0 | FW180: 0
B181: =IF('Bond Input Sheet'!B185="","", 'Bond Input Sheet'!B185) ->  | C181: =IF('Bond Input Sheet'!C185="","NR", 'Bond Input Sheet'!C185) -> NR | D181: =IF('Bond Input Sheet'!D185="","NR", 'Bond Input Sheet'!D185) -> NR | L181: 8 | M181: ='Bond Input Sheet'!E185 -> 0 | N181: ='Bond Input Sheet'!F185 -> 0 | O181: ='Bond Input Sheet'!G185 -> 0 | P181: ='Bond Input Sheet'!H185 -> 0 | Q181: ='Bond Input Sheet'!I185 -> 0 | R181: ='Bond Input Sheet'!J185 -> 0 | S181: 1 | T181: ='Bond Input Sheet'!K185 -> 00:00:00 | U181: 1 | V181: -120.4273973 | W181: 0 | X181: ='Bond Input Sheet'!L185 -> 0 | Y181: =IF('Bond Input Sheet'!M185=0,"",'Bond Input Sheet'!M185) ->  | Z181: ='Bond Input Sheet'!N185 -> 00:00:00 | AA181: ='Bond Input Sheet'!O185 -> 0 | AB181: ='Bond Input Sheet'!P185 -> 0 | AC181: ='Bond Input Sheet'!Q185 -> 0 | AD181: 0 | AE181: 0 | AF181: 0 | AG181: 0 | AH181: 0 | AI181: 0 | AJ181: 0 | AK181: 0 | AL181: 0 | AM181: 0 | AN181: 0 | AO181: 0 | AP181: 0 | AQ181: 0 | AR181: 0 | AS181: 0 | AT181: 0 | AU181: 0 | AV181: 0 | AW181: 0 | AX181: 0 | AY181: 0 | AZ181: 0 | BA181: 0 | BB181: 0 | BC181: 0 | BD181: 0 | BE181: 0 | BF181: 0 | BG181: 0 | BH181: 0 | BI181: 0 | BJ181: ='Bond Input Sheet'!R185 -> 0 | BK181: 0 | BW181: 0 | BX181: 0 | BZ181: 0 | CV181: 0 | FS181: 0 | FV181: 0 | FW181: 0
B182: =IF('Bond Input Sheet'!B186="","", 'Bond Input Sheet'!B186) ->  | C182: =IF('Bond Input Sheet'!C186="","NR", 'Bond Input Sheet'!C186) -> NR | D182: =IF('Bond Input Sheet'!D186="","NR", 'Bond Input Sheet'!D186) -> NR | L182: 8 | M182: ='Bond Input Sheet'!E186 -> 0 | N182: ='Bond Input Sheet'!F186 -> 0 | O182: ='Bond Input Sheet'!G186 -> 0 | P182: ='Bond Input Sheet'!H186 -> 0 | Q182: ='Bond Input Sheet'!I186 -> 0 | R182: ='Bond Input Sheet'!J186 -> 0 | S182: 1 | T182: ='Bond Input Sheet'!K186 -> 00:00:00 | U182: 1 | V182: -120.4273973 | W182: 0 | X182: ='Bond Input Sheet'!L186 -> 0 | Y182: =IF('Bond Input Sheet'!M186=0,"",'Bond Input Sheet'!M186) ->  | Z182: ='Bond Input Sheet'!N186 -> 00:00:00 | AA182: ='Bond Input Sheet'!O186 -> 0 | AB182: ='Bond Input Sheet'!P186 -> 0 | AC182: ='Bond Input Sheet'!Q186 -> 0 | AD182: 0 | AE182: 0 | AF182: 0 | AG182: 0 | AH182: 0 | AI182: 0 | AJ182: 0 | AK182: 0 | AL182: 0 | AM182: 0 | AN182: 0 | AO182: 0 | AP182: 0 | AQ182: 0 | AR182: 0 | AS182: 0 | AT182: 0 | AU182: 0 | AV182: 0 | AW182: 0 | AX182: 0 | AY182: 0 | AZ182: 0 | BA182: 0 | BB182: 0 | BC182: 0 | BD182: 0 | BE182: 0 | BF182: 0 | BG182: 0 | BH182: 0 | BI182: 0 | BJ182: ='Bond Input Sheet'!R186 -> 0 | BK182: 0 | BW182: 0 | BX182: 0 | BZ182: 0 | CV182: 0 | FS182: 0 | FV182: 0 | FW182: 0
B183: =IF('Bond Input Sheet'!B187="","", 'Bond Input Sheet'!B187) ->  | C183: =IF('Bond Input Sheet'!C187="","NR", 'Bond Input Sheet'!C187) -> NR | D183: =IF('Bond Input Sheet'!D187="","NR", 'Bond Input Sheet'!D187) -> NR | L183: 8 | M183: ='Bond Input Sheet'!E187 -> 0 | N183: ='Bond Input Sheet'!F187 -> 0 | O183: ='Bond Input Sheet'!G187 -> 0 | P183: ='Bond Input Sheet'!H187 -> 0 | Q183: ='Bond Input Sheet'!I187 -> 0 | R183: ='Bond Input Sheet'!J187 -> 0 | S183: 1 | T183: ='Bond Input Sheet'!K187 -> 00:00:00 | U183: 1 | V183: -120.4273973 | W183: 0 | X183: ='Bond Input Sheet'!L187 -> 0 | Y183: =IF('Bond Input Sheet'!M187=0,"",'Bond Input Sheet'!M187) ->  | Z183: ='Bond Input Sheet'!N187 -> 00:00:00 | AA183: ='Bond Input Sheet'!O187 -> 0 | AB183: ='Bond Input Sheet'!P187 -> 0 | AC183: ='Bond Input Sheet'!Q187 -> 0 | AD183: 0 | AE183: 0 | AF183: 0 | AG183: 0 | AH183: 0 | AI183: 0 | AJ183: 0 | AK183: 0 | AL183: 0 | AM183: 0 | AN183: 0 | AO183: 0 | AP183: 0 | AQ183: 0 | AR183: 0 | AS183: 0 | AT183: 0 | AU183: 0 | AV183: 0 | AW183: 0 | AX183: 0 | AY183: 0 | AZ183: 0 | BA183: 0 | BB183: 0 | BC183: 0 | BD183: 0 | BE183: 0 | BF183: 0 | BG183: 0 | BH183: 0 | BI183: 0 | BJ183: ='Bond Input Sheet'!R187 -> 0 | BK183: 0 | BW183: 0 | BX183: 0 | BZ183: 0 | CV183: 0 | FS183: 0 | FV183: 0 | FW183: 0
B184: =IF('Bond Input Sheet'!B188="","", 'Bond Input Sheet'!B188) ->  | C184: =IF('Bond Input Sheet'!C188="","NR", 'Bond Input Sheet'!C188) -> NR | D184: =IF('Bond Input Sheet'!D188="","NR", 'Bond Input Sheet'!D188) -> NR | L184: 8 | M184: ='Bond Input Sheet'!E188 -> 0 | N184: ='Bond Input Sheet'!F188 -> 0 | O184: ='Bond Input Sheet'!G188 -> 0 | P184: ='Bond Input Sheet'!H188 -> 0 | Q184: ='Bond Input Sheet'!I188 -> 0 | R184: ='Bond Input Sheet'!J188 -> 0 | S184: 1 | T184: ='Bond Input Sheet'!K188 -> 00:00:00 | U184: 1 | V184: -120.4273973 | W184: 0 | X184: ='Bond Input Sheet'!L188 -> 0 | Y184: =IF('Bond Input Sheet'!M188=0,"",'Bond Input Sheet'!M188) ->  | Z184: ='Bond Input Sheet'!N188 -> 00:00:00 | AA184: ='Bond Input Sheet'!O188 -> 0 | AB184: ='Bond Input Sheet'!P188 -> 0 | AC184: ='Bond Input Sheet'!Q188 -> 0 | AD184: 0 | AE184: 0 | AF184: 0 | AG184: 0 | AH184: 0 | AI184: 0 | AJ184: 0 | AK184: 0 | AL184: 0 | AM184: 0 | AN184: 0 | AO184: 0 | AP184: 0 | AQ184: 0 | AR184: 0 | AS184: 0 | AT184: 0 | AU184: 0 | AV184: 0 | AW184: 0 | AX184: 0 | AY184: 0 | AZ184: 0 | BA184: 0 | BB184: 0 | BC184: 0 | BD184: 0 | BE184: 0 | BF184: 0 | BG184: 0 | BH184: 0 | BI184: 0 | BJ184: ='Bond Input Sheet'!R188 -> 0 | BK184: 0 | BW184: 0 | BX184: 0 | BZ184: 0 | CV184: 0 | FS184: 0 | FV184: 0 | FW184: 0
B185: =IF('Bond Input Sheet'!B189="","", 'Bond Input Sheet'!B189) ->  | C185: =IF('Bond Input Sheet'!C189="","NR", 'Bond Input Sheet'!C189) -> NR | D185: =IF('Bond Input Sheet'!D189="","NR", 'Bond Input Sheet'!D189) -> NR | L185: 8 | M185: ='Bond Input Sheet'!E189 -> 0 | N185: ='Bond Input Sheet'!F189 -> 0 | O185: ='Bond Input Sheet'!G189 -> 0 | P185: ='Bond Input Sheet'!H189 -> 0 | Q185: ='Bond Input Sheet'!I189 -> 0 | R185: ='Bond Input Sheet'!J189 -> 0 | S185: 1 | T185: ='Bond Input Sheet'!K189 -> 00:00:00 | U185: 1 | V185: -120.4273973 | W185: 0 | X185: ='Bond Input Sheet'!L189 -> 0 | Y185: =IF('Bond Input Sheet'!M189=0,"",'Bond Input Sheet'!M189) ->  | Z185: ='Bond Input Sheet'!N189 -> 00:00:00 | AA185: ='Bond Input Sheet'!O189 -> 0 | AB185: ='Bond Input Sheet'!P189 -> 0 | AC185: ='Bond Input Sheet'!Q189 -> 0 | AD185: 0 | AE185: 0 | AF185: 0 | AG185: 0 | AH185: 0 | AI185: 0 | AJ185: 0 | AK185: 0 | AL185: 0 | AM185: 0 | AN185: 0 | AO185: 0 | AP185: 0 | AQ185: 0 | AR185: 0 | AS185: 0 | AT185: 0 | AU185: 0 | AV185: 0 | AW185: 0 | AX185: 0 | AY185: 0 | AZ185: 0 | BA185: 0 | BB185: 0 | BC185: 0 | BD185: 0 | BE185: 0 | BF185: 0 | BG185: 0 | BH185: 0 | BI185: 0 | BJ185: ='Bond Input Sheet'!R189 -> 0 | BK185: 0 | BW185: 0 | BX185: 0 | BZ185: 0 | CV185: 0 | FS185: 0 | FV185: 0 | FW185: 0
B186: =IF('Bond Input Sheet'!B190="","", 'Bond Input Sheet'!B190) ->  | C186: =IF('Bond Input Sheet'!C190="","NR", 'Bond Input Sheet'!C190) -> NR | D186: =IF('Bond Input Sheet'!D190="","NR", 'Bond Input Sheet'!D190) -> NR | L186: 8 | M186: ='Bond Input Sheet'!E190 -> 0 | N186: ='Bond Input Sheet'!F190 -> 0 | O186: ='Bond Input Sheet'!G190 -> 0 | P186: ='Bond Input Sheet'!H190 -> 0 | Q186: ='Bond Input Sheet'!I190 -> 0 | R186: ='Bond Input Sheet'!J190 -> 0 | S186: 1 | T186: ='Bond Input Sheet'!K190 -> 00:00:00 | U186: 1 | V186: -120.4273973 | W186: 0 | X186: ='Bond Input Sheet'!L190 -> 0 | Y186: =IF('Bond Input Sheet'!M190=0,"",'Bond Input Sheet'!M190) ->  | Z186: ='Bond Input Sheet'!N190 -> 00:00:00 | AA186: ='Bond Input Sheet'!O190 -> 0 | AB186: ='Bond Input Sheet'!P190 -> 0 | AC186: ='Bond Input Sheet'!Q190 -> 0 | AD186: 0 | AE186: 0 | AF186: 0 | AG186: 0 | AH186: 0 | AI186: 0 | AJ186: 0 | AK186: 0 | AL186: 0 | AM186: 0 | AN186: 0 | AO186: 0 | AP186: 0 | AQ186: 0 | AR186: 0 | AS186: 0 | AT186: 0 | AU186: 0 | AV186: 0 | AW186: 0 | AX186: 0 | AY186: 0 | AZ186: 0 | BA186: 0 | BB186: 0 | BC186: 0 | BD186: 0 | BE186: 0 | BF186: 0 | BG186: 0 | BH186: 0 | BI186: 0 | BJ186: ='Bond Input Sheet'!R190 -> 0 | BK186: 0 | BW186: 0 | BX186: 0 | BZ186: 0 | CV186: 0 | FS186: 0 | FV186: 0 | FW186: 0
B187: =IF('Bond Input Sheet'!B191="","", 'Bond Input Sheet'!B191) ->  | C187: =IF('Bond Input Sheet'!C191="","NR", 'Bond Input Sheet'!C191) -> NR | D187: =IF('Bond Input Sheet'!D191="","NR", 'Bond Input Sheet'!D191) -> NR | L187: 8 | M187: ='Bond Input Sheet'!E191 -> 0 | N187: ='Bond Input Sheet'!F191 -> 0 | O187: ='Bond Input Sheet'!G191 -> 0 | P187: ='Bond Input Sheet'!H191 -> 0 | Q187: ='Bond Input Sheet'!I191 -> 0 | R187: ='Bond Input Sheet'!J191 -> 0 | S187: 1 | T187: ='Bond Input Sheet'!K191 -> 00:00:00 | U187: 1 | V187: -120.4273973 | W187: 0 | X187: ='Bond Input Sheet'!L191 -> 0 | Y187: =IF('Bond Input Sheet'!M191=0,"",'Bond Input Sheet'!M191) ->  | Z187: ='Bond Input Sheet'!N191 -> 00:00:00 | AA187: ='Bond Input Sheet'!O191 -> 0 | AB187: ='Bond Input Sheet'!P191 -> 0 | AC187: ='Bond Input Sheet'!Q191 -> 0 | AD187: 0 | AE187: 0 | AF187: 0 | AG187: 0 | AH187: 0 | AI187: 0 | AJ187: 0 | AK187: 0 | AL187: 0 | AM187: 0 | AN187: 0 | AO187: 0 | AP187: 0 | AQ187: 0 | AR187: 0 | AS187: 0 | AT187: 0 | AU187: 0 | AV187: 0 | AW187: 0 | AX187: 0 | AY187: 0 | AZ187: 0 | BA187: 0 | BB187: 0 | BC187: 0 | BD187: 0 | BE187: 0 | BF187: 0 | BG187: 0 | BH187: 0 | BI187: 0 | BJ187: ='Bond Input Sheet'!R191 -> 0 | BK187: 0 | BU187: =IF(LowestYield<>"",LowestYield-FairYTM,"") ->  | BW187: 0 | BX187: 0 | BZ187: 0 | CJ187: =IF(BondType=CJ$8,MarketValue,"") ->  | CV187: 0 | FS187: 0 | FV187: 0 | FW187: 0
B188: =IF('Bond Input Sheet'!B192="","", 'Bond Input Sheet'!B192) ->  | C188: =IF('Bond Input Sheet'!C192="","NR", 'Bond Input Sheet'!C192) -> NR | D188: =IF('Bond Input Sheet'!D192="","NR", 'Bond Input Sheet'!D192) -> NR | L188: 8 | M188: ='Bond Input Sheet'!E192 -> 0 | N188: ='Bond Input Sheet'!F192 -> 0 | O188: ='Bond Input Sheet'!G192 -> 0 | P188: ='Bond Input Sheet'!H192 -> 0 | Q188: ='Bond Input Sheet'!I192 -> 0 | R188: ='Bond Input Sheet'!J192 -> 0 | S188: 1 | T188: ='Bond Input Sheet'!K192 -> 00:00:00 | U188: 1 | V188: -120.4273973 | W188: 0 | X188: ='Bond Input Sheet'!L192 -> 0 | Y188: =IF('Bond Input Sheet'!M192=0,"",'Bond Input Sheet'!M192) ->  | Z188: ='Bond Input Sheet'!N192 -> 00:00:00 | AA188: ='Bond Input Sheet'!O192 -> 0 | AB188: ='Bond Input Sheet'!P192 -> 0 | AC188: ='Bond Input Sheet'!Q192 -> 0 | AD188: 0 | AE188: 0 | AF188: 0 | AG188: 0 | AH188: 0 | AI188: 0 | AJ188: 0 | AK188: 0 | AL188: 0 | AM188: 0 | AN188: 0 | AO188: 0 | AP188: 0 | AQ188: 0 | AR188: 0 | AS188: 0 | AT188: 0 | AU188: 0 | AV188: 0 | AW188: 0 | AX188: 0 | AY188: 0 | AZ188: 0 | BA188: 0 | BB188: 0 | BC188: 0 | BD188: 0 | BE188: 0 | BF188: 0 | BG188: 0 | BH188: 0 | BI188: 0 | BJ188: ='Bond Input Sheet'!R192 -> 0 | BK188: 0 | BW188: 0 | BX188: 0 | BZ188: 0 | CV188: 0 | FS188: 0 | FV188: 0 | FW188: 0
B189: =IF('Bond Input Sheet'!B193="","", 'Bond Input Sheet'!B193) ->  | C189: =IF('Bond Input Sheet'!C193="","NR", 'Bond Input Sheet'!C193) -> NR | D189: =IF('Bond Input Sheet'!D193="","NR", 'Bond Input Sheet'!D193) -> NR | L189: 8 | M189: ='Bond Input Sheet'!E193 -> 0 | N189: ='Bond Input Sheet'!F193 -> 0 | O189: ='Bond Input Sheet'!G193 -> 0 | P189: ='Bond Input Sheet'!H193 -> 0 | Q189: ='Bond Input Sheet'!I193 -> 0 | R189: ='Bond Input Sheet'!J193 -> 0 | S189: 1 | T189: ='Bond Input Sheet'!K193 -> 00:00:00 | U189: 1 | V189: -120.4273973 | W189: 0 | X189: ='Bond Input Sheet'!L193 -> 0 | Y189: =IF('Bond Input Sheet'!M193=0,"",'Bond Input Sheet'!M193) ->  | Z189: ='Bond Input Sheet'!N193 -> 00:00:00 | AA189: ='Bond Input Sheet'!O193 -> 0 | AB189: ='Bond Input Sheet'!P193 -> 0 | AC189: ='Bond Input Sheet'!Q193 -> 0 | AD189: 0 | AE189: 0 | AF189: 0 | AG189: 0 | AH189: 0 | AI189: 0 | AJ189: 0 | AK189: 0 | AL189: 0 | AM189: 0 | AN189: 0 | AO189: 0 | AP189: 0 | AQ189: 0 | AR189: 0 | AS189: 0 | AT189: 0 | AU189: 0 | AV189: 0 | AW189: 0 | AX189: 0 | AY189: 0 | AZ189: 0 | BA189: 0 | BB189: 0 | BC189: 0 | BD189: 0 | BE189: 0 | BF189: 0 | BG189: 0 | BH189: 0 | BI189: 0 | BJ189: ='Bond Input Sheet'!R193 -> 0 | BK189: 0 | BW189: 0 | BX189: 0 | BZ189: 0 | CA189: =IF(AND(Maturity<=CA$511,Maturity>BZ$511),MarketValue,"") ->  | CE189: =IF(AND(Maturity<=CE$511,Maturity>CD$511),MarketValue,"") ->  | CO189: =IF($L189=CO$511,$BW189,"") ->  | CV189: 0 | FS189: 0 | FV189: 0 | FW189: 0
B190: =IF('Bond Input Sheet'!B194="","", 'Bond Input Sheet'!B194) ->  | C190: =IF('Bond Input Sheet'!C194="","NR", 'Bond Input Sheet'!C194) -> NR | D190: =IF('Bond Input Sheet'!D194="","NR", 'Bond Input Sheet'!D194) -> NR | L190: 8 | M190: ='Bond Input Sheet'!E194 -> 0 | N190: ='Bond Input Sheet'!F194 -> 0 | O190: ='Bond Input Sheet'!G194 -> 0 | P190: ='Bond Input Sheet'!H194 -> 0 | Q190: ='Bond Input Sheet'!I194 -> 0 | R190: ='Bond Input Sheet'!J194 -> 0 | S190: 1 | T190: ='Bond Input Sheet'!K194 -> 00:00:00 | U190: 1 | V190: -120.4273973 | W190: 0 | X190: ='Bond Input Sheet'!L194 -> 0 | Y190: =IF('Bond Input Sheet'!M194=0,"",'Bond Input Sheet'!M194) ->  | Z190: ='Bond Input Sheet'!N194 -> 00:00:00 | AA190: ='Bond Input Sheet'!O194 -> 0 | AB190: ='Bond Input Sheet'!P194 -> 0 | AC190: ='Bond Input Sheet'!Q194 -> 0 | AD190: 0 | AE190: 0 | AF190: 0 | AG190: 0 | AH190: 0 | AI190: 0 | AJ190: 0 | AK190: =IF(CouponsPerYear<>0,IF(MOD(($U190-AK$8)/(12/CouponsPerYear),1),,CouponPaymentAmount),0) -> 0 | AL190: 0 | AM190: 0 | AN190: 0 | AO190: 0 | AP190: 0 | AQ190: 0 | AR190: 0 | AS190: 0 | AT190: 0 | AU190: 0 | AV190: 0 | AW190: =IF(CouponsPerYear<>0,IF(MOD(($U190-AW$8)/(12/CouponsPerYear),1),,$AJ190*(1-VLOOKUP(BondType,BondTypeTable,2))),0) -> 0 | AX190: 0 | AY190: 0 | AZ190: 0 | BA190: 0 | BB190: 0 | BC190: 0 | BD190: 0 | BE190: 0 | BF190: 0 | BG190: 0 | BH190: 0 | BI190: 0 | BJ190: ='Bond Input Sheet'!R194 -> 0 | BK190: 0 | BW190: 0 | BX190: 0 | BZ190: 0 | CV190: 0 | FS190: 0 | FV190: 0 | FW190: 0
B191: =IF('Bond Input Sheet'!B195="","", 'Bond Input Sheet'!B195) ->  | C191: =IF('Bond Input Sheet'!C195="","NR", 'Bond Input Sheet'!C195) -> NR | D191: =IF('Bond Input Sheet'!D195="","NR", 'Bond Input Sheet'!D195) -> NR | L191: 8 | M191: ='Bond Input Sheet'!E195 -> 0 | N191: ='Bond Input Sheet'!F195 -> 0 | O191: ='Bond Input Sheet'!G195 -> 0 | P191: ='Bond Input Sheet'!H195 -> 0 | Q191: ='Bond Input Sheet'!I195 -> 0 | R191: ='Bond Input Sheet'!J195 -> 0 | S191: 1 | T191: ='Bond Input Sheet'!K195 -> 00:00:00 | U191: 1 | V191: -120.4273973 | W191: 0 | X191: ='Bond Input Sheet'!L195 -> 0 | Y191: =IF('Bond Input Sheet'!M195=0,"",'Bond Input Sheet'!M195) ->  | Z191: ='Bond Input Sheet'!N195 -> 00:00:00 | AA191: ='Bond Input Sheet'!O195 -> 0 | AB191: ='Bond Input Sheet'!P195 -> 0 | AC191: ='Bond Input Sheet'!Q195 -> 0 | AD191: 0 | AE191: 0 | AF191: 0 | AG191: 0 | AH191: 0 | AI191: 0 | AJ191: 0 | AK191: 0 | AL191: 0 | AM191: 0 | AN191: 0 | AO191: 0 | AP191: 0 | AQ191: 0 | AR191: 0 | AS191: 0 | AT191: 0 | AU191: 0 | AV191: 0 | AW191: 0 | AX191: 0 | AY191: 0 | AZ191: 0 | BA191: 0 | BB191: 0 | BC191: 0 | BD191: 0 | BE191: 0 | BF191: 0 | BG191: 0 | BH191: 0 | BI191: 0 | BJ191: ='Bond Input Sheet'!R195 -> 0 | BK191: 0 | BW191: 0 | BX191: 0 | BZ191: 0 | CV191: 0 | FS191: 0 | FV191: 0 | FW191: 0
B192: =IF('Bond Input Sheet'!B196="","", 'Bond Input Sheet'!B196) ->  | C192: =IF('Bond Input Sheet'!C196="","NR", 'Bond Input Sheet'!C196) -> NR | D192: =IF('Bond Input Sheet'!D196="","NR", 'Bond Input Sheet'!D196) -> NR | L192: 8 | M192: ='Bond Input Sheet'!E196 -> 0 | N192: ='Bond Input Sheet'!F196 -> 0 | O192: ='Bond Input Sheet'!G196 -> 0 | P192: ='Bond Input Sheet'!H196 -> 0 | Q192: ='Bond Input Sheet'!I196 -> 0 | R192: ='Bond Input Sheet'!J196 -> 0 | S192: 1 | T192: ='Bond Input Sheet'!K196 -> 00:00:00 | U192: 1 | V192: -120.4273973 | W192: 0 | X192: ='Bond Input Sheet'!L196 -> 0 | Y192: =IF('Bond Input Sheet'!M196=0,"",'Bond Input Sheet'!M196) ->  | Z192: ='Bond Input Sheet'!N196 -> 00:00:00 | AA192: ='Bond Input Sheet'!O196 -> 0 | AB192: ='Bond Input Sheet'!P196 -> 0 | AC192: ='Bond Input Sheet'!Q196 -> 0 | AD192: 0 | AE192: 0 | AF192: 0 | AG192: 0 | AH192: 0 | AI192: 0 | AJ192: 0 | AK192: 0 | AL192: 0 | AM192: 0 | AN192: 0 | AO192: 0 | AP192: 0 | AQ192: 0 | AR192: 0 | AS192: 0 | AT192: 0 | AU192: 0 | AV192: 0 | AW192: 0 | AX192: 0 | AY192: 0 | AZ192: 0 | BA192: 0 | BB192: 0 | BC192: 0 | BD192: 0 | BE192: 0 | BF192: 0 | BG192: 0 | BH192: 0 | BI192: 0 | BJ192: ='Bond Input Sheet'!R196 -> 0 | BK192: 0 | BW192: 0 | BX192: 0 | BZ192: 0 | CV192: 0 | FS192: 0 | FV192: 0 | FW192: 0
B193: =IF('Bond Input Sheet'!B197="","", 'Bond Input Sheet'!B197) ->  | C193: =IF('Bond Input Sheet'!C197="","NR", 'Bond Input Sheet'!C197) -> NR | D193: =IF('Bond Input Sheet'!D197="","NR", 'Bond Input Sheet'!D197) -> NR | L193: 8 | M193: ='Bond Input Sheet'!E197 -> 0 | N193: ='Bond Input Sheet'!F197 -> 0 | O193: ='Bond Input Sheet'!G197 -> 0 | P193: ='Bond Input Sheet'!H197 -> 0 | Q193: ='Bond Input Sheet'!I197 -> 0 | R193: ='Bond Input Sheet'!J197 -> 0 | S193: 1 | T193: ='Bond Input Sheet'!K197 -> 00:00:00 | U193: 1 | V193: -120.4273973 | W193: 0 | X193: ='Bond Input Sheet'!L197 -> 0 | Y193: =IF('Bond Input Sheet'!M197=0,"",'Bond Input Sheet'!M197) ->  | Z193: ='Bond Input Sheet'!N197 -> 00:00:00 | AA193: ='Bond Input Sheet'!O197 -> 0 | AB193: ='Bond Input Sheet'!P197 -> 0 | AC193: ='Bond Input Sheet'!Q197 -> 0 | AD193: 0 | AE193: 0 | AF193: 0 | AG193: 0 | AH193: 0 | AI193: 0 | AJ193: 0 | AK193: 0 | AL193: 0 | AM193: 0 | AN193: 0 | AO193: 0 | AP193: 0 | AQ193: 0 | AR193: 0 | AS193: 0 | AT193: 0 | AU193: 0 | AV193: 0 | AW193: 0 | AX193: 0 | AY193: 0 | AZ193: 0 | BA193: 0 | BB193: 0 | BC193: 0 | BD193: 0 | BE193: 0 | BF193: 0 | BG193: 0 | BH193: 0 | BI193: 0 | BJ193: ='Bond Input Sheet'!R197 -> 0 | BK193: 0 | BU193: =IF(LowestYield<>"",LowestYield-FairYTM,"") ->  | BW193: 0 | BX193: 0 | BZ193: 0 | CV193: 0 | FS193: 0 | FV193: 0 | FW193: 0
B194: =IF('Bond Input Sheet'!B198="","", 'Bond Input Sheet'!B198) ->  | C194: =IF('Bond Input Sheet'!C198="","NR", 'Bond Input Sheet'!C198) -> NR | D194: =IF('Bond Input Sheet'!D198="","NR", 'Bond Input Sheet'!D198) -> NR | L194: 8 | M194: ='Bond Input Sheet'!E198 -> 0 | N194: ='Bond Input Sheet'!F198 -> 0 | O194: ='Bond Input Sheet'!G198 -> 0 | P194: ='Bond Input Sheet'!H198 -> 0 | Q194: ='Bond Input Sheet'!I198 -> 0 | R194: ='Bond Input Sheet'!J198 -> 0 | S194: 1 | T194: ='Bond Input Sheet'!K198 -> 00:00:00 | U194: 1 | V194: -120.4273973 | W194: 0 | X194: ='Bond Input Sheet'!L198 -> 0 | Y194: =IF('Bond Input Sheet'!M198=0,"",'Bond Input Sheet'!M198) ->  | Z194: ='Bond Input Sheet'!N198 -> 00:00:00 | AA194: ='Bond Input Sheet'!O198 -> 0 | AB194: ='Bond Input Sheet'!P198 -> 0 | AC194: ='Bond Input Sheet'!Q198 -> 0 | AD194: 0 | AE194: 0 | AF194: 0 | AG194: 0 | AH194: 0 | AI194: 0 | AJ194: 0 | AK194: 0 | AL194: 0 | AM194: 0 | AN194: 0 | AO194: 0 | AP194: 0 | AQ194: 0 | AR194: 0 | AS194: 0 | AT194: 0 | AU194: 0 | AV194: 0 | AW194: 0 | AX194: 0 | AY194: 0 | AZ194: 0 | BA194: 0 | BB194: 0 | BC194: 0 | BD194: 0 | BE194: 0 | BF194: 0 | BG194: 0 | BH194: 0 | BI194: 0 | BJ194: ='Bond Input Sheet'!R198 -> 0 | BK194: 0 | BW194: 0 | BX194: 0 | BZ194: 0 | CV194: 0 | FS194: 0 | FV194: 0 | FW194: 0
B195: =IF('Bond Input Sheet'!B199="","", 'Bond Input Sheet'!B199) ->  | C195: =IF('Bond Input Sheet'!C199="","NR", 'Bond Input Sheet'!C199) -> NR | D195: =IF('Bond Input Sheet'!D199="","NR", 'Bond Input Sheet'!D199) -> NR | L195: 8 | M195: ='Bond Input Sheet'!E199 -> 0 | N195: ='Bond Input Sheet'!F199 -> 0 | O195: ='Bond Input Sheet'!G199 -> 0 | P195: ='Bond Input Sheet'!H199 -> 0 | Q195: ='Bond Input Sheet'!I199 -> 0 | R195: ='Bond Input Sheet'!J199 -> 0 | S195: 1 | T195: ='Bond Input Sheet'!K199 -> 00:00:00 | U195: 1 | V195: -120.4273973 | W195: 0 | X195: ='Bond Input Sheet'!L199 -> 0 | Y195: =IF('Bond Input Sheet'!M199=0,"",'Bond Input Sheet'!M199) ->  | Z195: ='Bond Input Sheet'!N199 -> 00:00:00 | AA195: ='Bond Input Sheet'!O199 -> 0 | AB195: ='Bond Input Sheet'!P199 -> 0 | AC195: ='Bond Input Sheet'!Q199 -> 0 | AD195: 0 | AE195: 0 | AF195: 0 | AG195: 0 | AH195: 0 | AI195: 0 | AJ195: 0 | AK195: 0 | AL195: 0 | AM195: 0 | AN195: 0 | AO195: 0 | AP195: 0 | AQ195: 0 | AR195: 0 | AS195: 0 | AT195: 0 | AU195: 0 | AV195: 0 | AW195: 0 | AX195: 0 | AY195: 0 | AZ195: 0 | BA195: 0 | BB195: 0 | BC195: 0 | BD195: 0 | BE195: 0 | BF195: 0 | BG195: 0 | BH195: 0 | BI195: 0 | BJ195: ='Bond Input Sheet'!R199 -> 0 | BK195: 0 | BW195: 0 | BX195: 0 | BZ195: 0 | CV195: 0 | FS195: 0 | FV195: 0 | FW195: 0
B196: =IF('Bond Input Sheet'!B200="","", 'Bond Input Sheet'!B200) ->  | C196: =IF('Bond Input Sheet'!C200="","NR", 'Bond Input Sheet'!C200) -> NR | D196: =IF('Bond Input Sheet'!D200="","NR", 'Bond Input Sheet'!D200) -> NR | L196: 8 | M196: ='Bond Input Sheet'!E200 -> 0 | N196: ='Bond Input Sheet'!F200 -> 0 | O196: ='Bond Input Sheet'!G200 -> 0 | P196: ='Bond Input Sheet'!H200 -> 0 | Q196: ='Bond Input Sheet'!I200 -> 0 | R196: ='Bond Input Sheet'!J200 -> 0 | S196: 1 | T196: ='Bond Input Sheet'!K200 -> 00:00:00 | U196: 1 | V196: -120.4273973 | W196: 0 | X196: ='Bond Input Sheet'!L200 -> 0 | Y196: =IF('Bond Input Sheet'!M200=0,"",'Bond Input Sheet'!M200) ->  | Z196: ='Bond Input Sheet'!N200 -> 00:00:00 | AA196: ='Bond Input Sheet'!O200 -> 0 | AB196: ='Bond Input Sheet'!P200 -> 0 | AC196: ='Bond Input Sheet'!Q200 -> 0 | AD196: 0 | AE196: 0 | AF196: 0 | AG196: 0 | AH196: 0 | AI196: 0 | AJ196: 0 | AK196: 0 | AL196: 0 | AM196: 0 | AN196: 0 | AO196: 0 | AP196: 0 | AQ196: 0 | AR196: 0 | AS196: 0 | AT196: 0 | AU196: 0 | AV196: 0 | AW196: 0 | AX196: 0 | AY196: 0 | AZ196: 0 | BA196: 0 | BB196: 0 | BC196: 0 | BD196: 0 | BE196: 0 | BF196: 0 | BG196: 0 | BH196: 0 | BI196: 0 | BJ196: ='Bond Input Sheet'!R200 -> 0 | BK196: 0 | BW196: 0 | BX196: 0 | BZ196: 0 | CV196: 0 | FS196: 0 | FV196: 0 | FW196: 0
B197: =IF('Bond Input Sheet'!B201="","", 'Bond Input Sheet'!B201) ->  | C197: =IF('Bond Input Sheet'!C201="","NR", 'Bond Input Sheet'!C201) -> NR | D197: =IF('Bond Input Sheet'!D201="","NR", 'Bond Input Sheet'!D201) -> NR | L197: 8 | M197: ='Bond Input Sheet'!E201 -> 0 | N197: ='Bond Input Sheet'!F201 -> 0 | O197: ='Bond Input Sheet'!G201 -> 0 | P197: ='Bond Input Sheet'!H201 -> 0 | Q197: ='Bond Input Sheet'!I201 -> 0 | R197: ='Bond Input Sheet'!J201 -> 0 | S197: 1 | T197: ='Bond Input Sheet'!K201 -> 00:00:00 | U197: 1 | V197: -120.4273973 | W197: 0 | X197: ='Bond Input Sheet'!L201 -> 0 | Y197: =IF('Bond Input Sheet'!M201=0,"",'Bond Input Sheet'!M201) ->  | Z197: ='Bond Input Sheet'!N201 -> 00:00:00 | AA197: ='Bond Input Sheet'!O201 -> 0 | AB197: ='Bond Input Sheet'!P201 -> 0 | AC197: ='Bond Input Sheet'!Q201 -> 0 | AD197: 0 | AE197: 0 | AF197: 0 | AG197: 0 | AH197: 0 | AI197: 0 | AJ197: 0 | AK197: 0 | AL197: 0 | AM197: 0 | AN197: 0 | AO197: 0 | AP197: 0 | AQ197: 0 | AR197: 0 | AS197: 0 | AT197: 0 | AU197: 0 | AV197: 0 | AW197: 0 | AX197: 0 | AY197: 0 | AZ197: 0 | BA197: 0 | BB197: 0 | BC197: 0 | BD197: 0 | BE197: 0 | BF197: 0 | BG197: 0 | BH197: 0 | BI197: 0 | BJ197: ='Bond Input Sheet'!R201 -> 0 | BK197: 0 | BW197: 0 | BX197: 0 | BZ197: 0 | CV197: 0 | FS197: 0 | FV197: 0 | FW197: 0
B198: =IF('Bond Input Sheet'!B202="","", 'Bond Input Sheet'!B202) ->  | C198: =IF('Bond Input Sheet'!C202="","NR", 'Bond Input Sheet'!C202) -> NR | D198: =IF('Bond Input Sheet'!D202="","NR", 'Bond Input Sheet'!D202) -> NR | L198: 8 | M198: ='Bond Input Sheet'!E202 -> 0 | N198: ='Bond Input Sheet'!F202 -> 0 | O198: ='Bond Input Sheet'!G202 -> 0 | P198: ='Bond Input Sheet'!H202 -> 0 | Q198: ='Bond Input Sheet'!I202 -> 0 | R198: ='Bond Input Sheet'!J202 -> 0 | S198: 1 | T198: ='Bond Input Sheet'!K202 -> 00:00:00 | U198: 1 | V198: -120.4273973 | W198: 0 | X198: ='Bond Input Sheet'!L202 -> 0 | Y198: =IF('Bond Input Sheet'!M202=0,"",'Bond Input Sheet'!M202) ->  | Z198: ='Bond Input Sheet'!N202 -> 00:00:00 | AA198: ='Bond Input Sheet'!O202 -> 0 | AB198: ='Bond Input Sheet'!P202 -> 0 | AC198: ='Bond Input Sheet'!Q202 -> 0 | AD198: 0 | AE198: 0 | AF198: 0 | AG198: 0 | AH198: 0 | AI198: 0 | AJ198: 0 | AK198: 0 | AL198: 0 | AM198: 0 | AN198: 0 | AO198: 0 | AP198: 0 | AQ198: 0 | AR198: 0 | AS198: 0 | AT198: 0 | AU198: 0 | AV198: 0 | AW198: 0 | AX198: 0 | AY198: 0 | AZ198: 0 | BA198: 0 | BB198: 0 | BC198: 0 | BD198: 0 | BE198: 0 | BF198: 0 | BG198: 0 | BH198: 0 | BI198: 0 | BJ198: ='Bond Input Sheet'!R202 -> 0 | BK198: 0 | BW198: 0 | BX198: 0 | BZ198: 0 | CV198: 0 | FS198: 0 | FV198: 0 | FW198: 0
B199: =IF('Bond Input Sheet'!B203="","", 'Bond Input Sheet'!B203) ->  | C199: =IF('Bond Input Sheet'!C203="","NR", 'Bond Input Sheet'!C203) -> NR | D199: =IF('Bond Input Sheet'!D203="","NR", 'Bond Input Sheet'!D203) -> NR | L199: 8 | M199: ='Bond Input Sheet'!E203 -> 0 | N199: ='Bond Input Sheet'!F203 -> 0 | O199: ='Bond Input Sheet'!G203 -> 0 | P199: ='Bond Input Sheet'!H203 -> 0 | Q199: ='Bond Input Sheet'!I203 -> 0 | R199: ='Bond Input Sheet'!J203 -> 0 | S199: 1 | T199: ='Bond Input Sheet'!K203 -> 00:00:00 | U199: 1 | V199: -120.4273973 | W199: 0 | X199: ='Bond Input Sheet'!L203 -> 0 | Y199: =IF('Bond Input Sheet'!M203=0,"",'Bond Input Sheet'!M203) ->  | Z199: ='Bond Input Sheet'!N203 -> 00:00:00 | AA199: ='Bond Input Sheet'!O203 -> 0 | AB199: ='Bond Input Sheet'!P203 -> 0 | AC199: ='Bond Input Sheet'!Q203 -> 0 | AD199: 0 | AE199: 0 | AF199: 0 | AG199: 0 | AH199: 0 | AI199: 0 | AJ199: 0 | AK199: 0 | AL199: 0 | AM199: 0 | AN199: 0 | AO199: 0 | AP199: 0 | AQ199: 0 | AR199: 0 | AS199: 0 | AT199: 0 | AU199: 0 | AV199: 0 | AW199: 0 | AX199: 0 | AY199: 0 | AZ199: 0 | BA199: 0 | BB199: 0 | BC199: 0 | BD199: 0 | BE199: 0 | BF199: 0 | BG199: 0 | BH199: 0 | BI199: 0 | BJ199: ='Bond Input Sheet'!R203 -> 0 | BK199: 0 | BW199: 0 | BX199: 0 | BZ199: 0 | CA199: =IF(AND(Maturity<=CA$511,Maturity>BZ$511),MarketValue,"") ->  | CE199: =IF(AND(Maturity<=CE$511,Maturity>CD$511),MarketValue,"") ->  | CO199: =IF($L199=CO$511,$BW199,"") ->  | CV199: 0 | FS199: 0 | FV199: 0 | FW199: 0
B200: =IF('Bond Input Sheet'!B204="","", 'Bond Input Sheet'!B204) ->  | C200: =IF('Bond Input Sheet'!C204="","NR", 'Bond Input Sheet'!C204) -> NR | D200: =IF('Bond Input Sheet'!D204="","NR", 'Bond Input Sheet'!D204) -> NR | L200: 8 | M200: ='Bond Input Sheet'!E204 -> 0 | N200: ='Bond Input Sheet'!F204 -> 0 | O200: ='Bond Input Sheet'!G204 -> 0 | P200: ='Bond Input Sheet'!H204 -> 0 | Q200: ='Bond Input Sheet'!I204 -> 0 | R200: ='Bond Input Sheet'!J204 -> 0 | S200: 1 | T200: ='Bond Input Sheet'!K204 -> 00:00:00 | U200: 1 | V200: -120.4273973 | W200: 0 | X200: ='Bond Input Sheet'!L204 -> 0 | Y200: =IF('Bond Input Sheet'!M204=0,"",'Bond Input Sheet'!M204) ->  | Z200: ='Bond Input Sheet'!N204 -> 00:00:00 | AA200: ='Bond Input Sheet'!O204 -> 0 | AB200: ='Bond Input Sheet'!P204 -> 0 | AC200: ='Bond Input Sheet'!Q204 -> 0 | AD200: 0 | AE200: 0 | AF200: 0 | AG200: 0 | AH200: 0 | AI200: 0 | AJ200: 0 | AK200: 0 | AL200: 0 | AM200: 0 | AN200: 0 | AO200: 0 | AP200: 0 | AQ200: 0 | AR200: 0 | AS200: 0 | AT200: 0 | AU200: 0 | AV200: 0 | AW200: 0 | AX200: 0 | AY200: 0 | AZ200: 0 | BA200: 0 | BB200: 0 | BC200: 0 | BD200: 0 | BE200: 0 | BF200: 0 | BG200: 0 | BH200: 0 | BI200: 0 | BJ200: ='Bond Input Sheet'!R204 -> 0 | BK200: 0 | BW200: 0 | BX200: 0 | BZ200: 0 | CV200: 0 | FS200: 0 | FV200: 0 | FW200: 0
